{"text_format":"1","workbook":"xlsx","n_sheets":38,"sheets":["PRESENTACION","CARATULA","MENU","FILIACION_ESTUDIANTE","FILIACION_PPFF","VACUNAS","ESTADISTICA_EDADES","ASISTENCIA","FEBRERO","MARZO","ABRIL","MAYO","JUNIO","JULIO","AGOSTO","SEPTIEMBRE","OCTUBRE","NOVIEMBRE","DICIEMBRE","VALORACION POR CAMPOS","COM_SOC_1B","COM_SOC_2B","COM_SOC_3B","COM_SOC_4B","COSMOS_PENS_1B","COSMOS_PENS_2B","COSMOS_PENS_3B","COSMOS_PENS_4B","CIENCIA_TEC_1B","CIENCIA_TEC_2B","CIENCIA_TEC_3B","CIENCIA_TEC_4B","VIDA_TIERRA_1B","VIDA_TIERRA_2B","VIDA_TIERRA_3B","VIDA_TIERRA_4B","INFORME_FINAL","CENTRALIZADOR"],"not_rendered":{"charts":1,"images":12,"macros":1,"external_links":0,"defined_names":82,"comments":1,"pivot_tables":0},"unopened":[],"bounds":{"document_bytes":16777216,"sheet_cells":100000,"rows_first":2000,"rows_last":500,"rows_between":2000,"halvings":0,"cell_chars":16384,"cell_head_chars":4096},"cells_cut":0,"cells_raw":0,"read":"whole","date_system":"1900"}

{"sheet":"PRESENTACION","index":0,"n_rows":0,"n_cols":0,"rows_kept":0,"cut":false,"hidden":false,"merged":[]}

{"sheet":"CARATULA","index":1,"n_rows":27,"n_cols":22,"rows_kept":27,"cut":false,"hidden":false,"merged":[[23,4,23,7],[21,2,21,3],[22,2,22,3],[26,2,26,4],[26,5,26,7],[21,4,21,7],[22,4,22,7],[14,2,14,3],[15,2,15,3],[18,2,18,3],[19,2,19,3],[20,2,20,3],[14,4,14,7],[20,4,20,7],[19,4,19,7],[18,4,18,7],[15,4,15,7],[16,4,16,7],[17,4,17,7],[13,4,13,7],[12,4,12,7],[0,9,2,9],[6,1,6,8],[7,1,7,8],[11,4,11,7],[11,2,11,3],[12,2,12,3],[13,2,13,3],[8,1,9,8]]}
[]
[]
[]
[]
[]
[]
[null,{"$f":"IF(LEN(E13)=0,\" \",UPPER(E13))","v":" "}]
[null,"CUADERNO PEDAGÓGICO"]
[null,"EDUCACIÓN INICIAL                               EN FAMILIA COMUNITARIA"]
[]
[]
[null,null,"Departamento:",null,null,null,null,null,null,null,null,null,null,null,null,null,null,null,"UNIDAD EDUCATIVA",null,null,"MCAL. DE ZEPITA"]
[null,null,"Unidad Educativa:",null,null,null,null,null,null,null,null,null,null,null,null,null,null,null,"TURNO",null,"TARDE"]
[null,null,"Turno:",null,null,null,null,null,null,null,null,null,null,null,null,null,null,null,"NIVEL",null,"EDUCACION INICIAL EN FAMILIA COMUNITARIA"]
[null,null,"Paralelo:",null,null,null,null,null,null,null,null,null,null,null,null,null,null,null,"AÑO DE ESCOLARIDAD",null,"CUARTO"]
[null,null,"Distrito Educativo:",null,null,null,null,null,null,null,null,null,null,null,null,null,null,null,"PARALELO",null,"ROJO"]
[null,null,"Red/Núcleo:"]
[null,null,"Dependencia:"]
[null,null,"Código SIE:",null,null,null,null,null,null,null,null,null,null,null,null,null,null,null,"DIRECTOR(A): ",null,"ENRIQUE VILLAFÁN A."]
[null,null,"Directora (or):",null,null,null,null,null,null,null,null,null,null,null,null,null,null,null,"MAESTRA (O)",null,"ELIAS CARLOS HIDALGO M."]
[null,null,"Maestra (o):",null,null,null,null,null,null,null,null,null,null,null,null,null,null,null,"GESTION ",null,2018]
[null,null,"Nivel:"]
[null,null,"Año de Escolaridad:"]
[null,null,"Teléfono ó Celular:     "]
[]
[]
[null,null,"GESTIÓN  ",null,null,2019]

{"sheet":"MENU","index":2,"n_rows":0,"n_cols":0,"rows_kept":0,"cut":false,"hidden":false,"merged":[]}

{"sheet":"FILIACION_ESTUDIANTE","index":3,"n_rows":47,"n_cols":29,"rows_kept":47,"cut":false,"hidden":false,"merged":[[1,3,1,14],[4,0,6,0],[4,1,6,3],[4,4,6,4],[4,5,4,15],[5,5,6,5],[5,7,6,7],[5,8,6,8],[5,9,6,9],[5,14,6,14],[5,15,6,15],[5,12,5,13],[5,10,5,11],[5,6,6,6]]}
[]
[null,null,null,"FILIACIÓN  DEL   ESTUDIANTE"]
[null,null,{"$f":"UPPER(CARATULA!$C$13)","v":"UNIDAD EDUCATIVA:"},{"$f":"UPPER(CARATULA!$E$13)","v":""},null,null,null,null,null,null,null,null,null,"GESTIÓN: ",{"$f":"CARATULA!$F$27","v":2019}]
[null,null,{"$f":"UPPER( CARATULA!$C$21)","v":"MAESTRA (O):"},{"$f":"CARATULA!$E$21","v":0},null,null,null,null,null,null,null,null,null,"AÑO DE ESCOLARIDAD:",{"$f":"CARATULA!$E$23","v":0},null,null,null,null,null,null,{"$f":"DATE(CARATULA!F27,6,30)","v":"2019-06-30"}]
["N°","APELLIDOS Y NOMBRES",null,null,"CÓDIGO  RUDE","DATOS DEL ESTUDIANTE",null,null,null,null,null,null,null,null,null,null,null,null,null,null,null,{"$f":"MONTH(44)","v":2},{"$f":"YEAR(V4)","v":2019},null,null,null,"F"]
[null,null,null,null,null,"LUGAR  DE NACIMIENTO","CARNET DE IDENTIDAD","FECHA","EDAD","SEXO","PESO",null,"TALLA",null,"UNIDAD EDUCATIVA O CENTRO INFANTIL INTEGRAL  DE PROCEDENCIA","OBSERVACIÓN",null,null,null,null,null,null,null,null,null,null,"M"]
[null,null,null,null,null,null,null,null,null,null,"INI.","FINAL","INI.","FINAL"]
[1,null,null,null,null,null,null,null,{"$f":"IF(X8>20,\"\",X8)","v":""},null,null,null,null,null,null,null,null,null,null,null,null,{"$f":"MONTH(H8)","v":1},{"$f":"YEAR(H8)","v":1900},{"$f":"IF(V8<=V$5,W$5-W8,(W$5-W8-1))","v":119},{"$f":"N(W8)","v":1900},{"$f":"IF(J8=\"M\",1,0)","v":0},{"$f":"IF(J8=\"F\",1,0)","v":0},{"$f":"IF(Z8=1,X8,0)","v":0},{"$f":"IF(AA8=1,X8,0)","v":0}]
[2,null,null,null,null,null,null,null,{"$f":"IF(X9>20,\"\",X9)","v":""},null,null,null,null,null,null,null,null,null,null,null,null,{"$f":"MONTH(H9)","v":1},{"$f":"YEAR(H9)","v":1900},{"$f":"IF(V9<=V$5,W$5-W9,(W$5-W9-1))","v":119},{"$f":"N(W9)","v":1900},{"$f":"IF(J9=\"M\",1,0)","v":0},{"$f":"IF(J9=\"F\",1,0)","v":0},{"$f":"IF(Z9=1,X9,0)","v":0},{"$f":"IF(AA9=1,X9,0)","v":0}]
[3,null,null,null,null,null,null,null,"",null,null,null,null,null,null,null,null,null,null,null,null,{"$f":"MONTH(H10)","v":1},{"$f":"YEAR(H10)","v":1900},{"$f":"IF(V10<=V$5,W$5-W10,(W$5-W10-1))","v":119},{"$f":"N(W10)","v":1900},{"$f":"IF(J10=\"M\",1,0)","v":0},0,0,0]
[4,null,null,null,null,null,null,null,"",null,null,null,null,null,null,null,null,null,null,null,null,{"$f":"MONTH(H11)","v":1},{"$f":"YEAR(H11)","v":1900},{"$f":"IF(V11<=V$5,W$5-W11,(W$5-W11-1))","v":119},1900,{"$f":"IF(J11=\"M\",1,0)","v":0},0,0,0]
[5,null,null,null,null,null,null,null,"",null,null,null,null,null,null,null,null,null,null,null,null,1,1900,119,1900,{"$f":"IF(J12=\"M\",1,0)","v":0},0,0,0]
[6,null,null,null,null,null,null,null,"",null,null,null,null,null,null,null,null,null,null,null,null,1,1900,119,1900,{"$f":"IF(J13=\"M\",1,0)","v":0},0,0,0]
[7,null,null,null,null,null,null,null,null,null,null,null,null,null,null,null,null,null,null,null,null,1,1900,119,1900,0,0,0,0]
[8,null,null,null,null,null,null,null,null,null,null,null,null,null,null,null,null,null,null,null,null,1,1900,119,1900,0,0,0,0]
[9,null,null,null,null,null,null,null,"",null,null,null,null,null,null,null,null,null,null,null,null,1,1900,119,1900,0,0,0,0]
[10,null,null,null,null,null,null,null,"",null,null,null,null,null,null,null,null,null,null,null,null,1,1900,119,1900,0,0,0,0]
[11,null,null,null,null,null,null,null,"",null,null,null,null,null,null,null,null,null,null,null,null,1,1900,119,1900,0,0,0,0]
[12,null,null,null,null,null,null,null,"",null,null,null,null,null,null,null,null,null,null,null,null,1,1900,119,1900,0,{"$f":"IF(I19=\"F\",1,0)","v":0},0,0]
[13,null,null,null,null,null,null,null,"",null,null,null,null,null,null,null,null,null,null,null,null,1,1900,119,1900,0,0,0,0]
[14,null,null,null,null,null,null,null,"",null,null,null,null,null,null,null,null,null,null,null,null,1,1900,119,1900,0,0,0,0]
[15,null,null,null,null,null,null,null,"",null,null,null,null,null,null,null,null,null,null,null,null,1,1900,119,1900,0,0,0,0]
[16,null,null,null,null,null,null,null,"",null,null,null,null,null,null,null,null,null,null,null,null,1,1900,119,1900,0,0,0,0]
[17,null,null,null,null,null,null,null,"",null,null,null,null,null,null,null,null,null,null,null,null,1,1900,119,1900,0,0,0,0]
[18,null,null,null,null,null,null,null,"",null,null,null,null,null,null,null,null,null,null,null,null,1,1900,119,1900,0,0,0,0]
[19,null,null,null,null,null,null,null,{"$f":"IF(X26>20,\"\",X26)","v":""},null,null,null,null,null,null,null,null,null,null,null,null,1,{"$f":"YEAR(H26)","v":1900},{"$f":"IF(V26<=V$5,W$5-W26,(W$5-W26-1))","v":119},{"$f":"N(W26)","v":1900},0,0,0,0]
[20,null,null,null,null,null,null,null,"",null,null,null,null,null,null,null,null,null,null,null,null,{"$f":"MONTH(H27)","v":1},1900,119,1900,0,0,0,0]
[21,null,null,null,null,null,null,null,"",null,null,null,null,null,null,null,null,null,null,null,null,1,1900,119,1900,0,0,0,0]
[22,null,null,null,null,null,null,null,"",null,null,null,null,null,null,null,null,null,null,null,null,1,1900,119,1900,0,0,0,0]
[23,null,null,null,null,null,null,null,"",null,null,null,null,null,null,null,null,null,null,null,null,1,1900,119,1900,0,0,0,0]
[24,null,null,null,null,null,null,null,"",null,null,null,null,null,null,null,null,null,null,null,null,1,1900,119,1900,0,0,0,0]
[25,null,null,null,null,null,null,null,"",null,null,null,null,null,null,null,null,null,null,null,null,1,1900,119,1900,0,0,0,0]
[26,null,null,null,null,null,null,null,"",null,null,null,null,null,null,null,null,null,null,null,null,1,1900,119,1900,0,0,0,0]
[27,null,null,null,null,null,null,null,"",null,null,null,null,null,null,null,null,null,null,null,null,1,1900,119,1900,0,0,0,0]
[28,null,null,null,null,null,null,null,"",null,null,null,null,null,null,null,null,null,null,null,null,1,1900,119,1900,0,0,0,0]
[29,null,null,null,null,null,null,null,"",null,null,null,null,null,null,null,null,null,null,null,null,1,1900,119,1900,0,0,0,0]
[30,null,null,null,null,null,null,null,"",null,null,null,null,null,null,null,null,null,null,null,null,1,1900,119,1900,0,0,0,0]
[31,null,null,null,null,null,null,null,"",null,null,null,null,null,null,null,null,null,null,null,null,1,1900,119,1900,0,0,0,0]
[32,null,null,null,null,null,null,null,"",null,null,null,null,null,null,null,null,null,null,null,null,1,1900,119,1900,0,0,0,0]
[33,null,null,null,null,null,null,null,"",null,null,null,null,null,null,null,null,null,null,null,null,1,1900,119,1900,0,0,0,0]
[34,null,null,null,null,null,null,null,"",null,null,null,null,null,null,null,null,null,null,null,null,1,1900,119,1900,0,0,0,0]
[35,null,null,null,null,null,null,null,"",null,null,null,null,null,null,null,null,null,null,null,null,1,1900,119,1900,0,0,0,0]
[36,null,null,null,null,null,null,null,"",null,null,null,null,null,null,null,null,null,null,null,null,1,1900,119,1900,0,0,0,0]
[37,null,null,null,null,null,null,null,{"$f":"IF(X44>20,\"\",X44)","v":""},null,null,null,null,null,null,null,null,null,null,null,null,1,1900,119,1900,0,0,0,0]
[38,null,null,null,null,null,null,null,"",null,null,null,null,null,null,null,null,null,null,null,null,1,1900,119,1900,0,0,0,0]
[39,null,null,null,null,null,null,null,"",null,null,null,null,null,null,null,null,null,null,null,null,1,1900,119,1900,0,0,0,0]
[40,null,null,null,null,null,null,null,"",null,null,null,null,null,null,null,null,null,null,null,null,1,1900,119,1900,0,0,0,0]

{"sheet":"FILIACION_PPFF","index":4,"n_rows":46,"n_cols":10,"rows_kept":46,"cut":false,"hidden":false,"merged":[[4,9,5,9],[4,8,5,8],[1,1,1,9],[0,2,0,3],[4,0,5,0],[4,1,5,1],[4,2,4,4],[4,5,4,7]]}
[]
[null,"FILIACIÓN DE LA MADRE - PADRE - TUTOR"]
[null,{"$f":"UPPER(CARATULA!$C$13)","v":"UNIDAD EDUCATIVA:"},{"$f":"UPPER(CARATULA!$E$13)","v":""},null,null,null,null,"GESTIÓN: ",{"$f":"CARATULA!$F$27","v":2019}]
[null,{"$f":"UPPER( CARATULA!$C$21)","v":"MAESTRA (O):"},{"$f":"CARATULA!$E$21","v":0},null,null,null,null,"AÑO DE ESCOLARIDAD:",{"$f":"CARATULA!$E$23","v":0}]
["Nº","APELLIDOS Y NOMBRES/ESTUDIANTE","               DATOS DE LA MADRE O TUTOR",null,null,"DATOS DEL PADRE O TUTOR",null,null,"DIRECCIÓN","OBSERVACIÓN"]
[null,null,"NOMBRE","OCUPACIÓN PROFESIÓN","TELÉFONO","NOMBRE","OCUPACIÓN PROFESIÓN","TELÉFONO"]
[1,{"$f":"IF(FILIACION_ESTUDIANTE!D8=0,\"\",CONCATENATE(FILIACION_ESTUDIANTE!B8,\" \",FILIACION_ESTUDIANTE!C8,\" \",FILIACION_ESTUDIANTE!D8))","v":""}]
[2,{"$f":"IF(FILIACION_ESTUDIANTE!D9=0,\"\",CONCATENATE(FILIACION_ESTUDIANTE!B9,\" \",FILIACION_ESTUDIANTE!C9,\" \",FILIACION_ESTUDIANTE!D9))","v":""}]
[3,{"$f":"IF(FILIACION_ESTUDIANTE!D10=0,\"\",CONCATENATE(FILIACION_ESTUDIANTE!B10,\" \",FILIACION_ESTUDIANTE!C10,\" \",FILIACION_ESTUDIANTE!D10))","v":""}]
[4,{"$f":"IF(FILIACION_ESTUDIANTE!D11=0,\"\",CONCATENATE(FILIACION_ESTUDIANTE!B11,\" \",FILIACION_ESTUDIANTE!C11,\" \",FILIACION_ESTUDIANTE!D11))","v":""}]
[5,{"$f":"IF(FILIACION_ESTUDIANTE!D12=0,\"\",CONCATENATE(FILIACION_ESTUDIANTE!B12,\" \",FILIACION_ESTUDIANTE!C12,\" \",FILIACION_ESTUDIANTE!D12))","v":""}]
[6,{"$f":"IF(FILIACION_ESTUDIANTE!D13=0,\"\",CONCATENATE(FILIACION_ESTUDIANTE!B13,\" \",FILIACION_ESTUDIANTE!C13,\" \",FILIACION_ESTUDIANTE!D13))","v":""}]
[7,{"$f":"IF(FILIACION_ESTUDIANTE!D14=0,\"\",CONCATENATE(FILIACION_ESTUDIANTE!B14,\" \",FILIACION_ESTUDIANTE!C14,\" \",FILIACION_ESTUDIANTE!D14))","v":""}]
[8,{"$f":"IF(FILIACION_ESTUDIANTE!D15=0,\"\",CONCATENATE(FILIACION_ESTUDIANTE!B15,\" \",FILIACION_ESTUDIANTE!C15,\" \",FILIACION_ESTUDIANTE!D15))","v":""}]
[9,{"$f":"IF(FILIACION_ESTUDIANTE!D16=0,\"\",CONCATENATE(FILIACION_ESTUDIANTE!B16,\" \",FILIACION_ESTUDIANTE!C16,\" \",FILIACION_ESTUDIANTE!D16))","v":""}]
[10,{"$f":"IF(FILIACION_ESTUDIANTE!D17=0,\"\",CONCATENATE(FILIACION_ESTUDIANTE!B17,\" \",FILIACION_ESTUDIANTE!C17,\" \",FILIACION_ESTUDIANTE!D17))","v":""}]
[11,{"$f":"IF(FILIACION_ESTUDIANTE!D18=0,\"\",CONCATENATE(FILIACION_ESTUDIANTE!B18,\" \",FILIACION_ESTUDIANTE!C18,\" \",FILIACION_ESTUDIANTE!D18))","v":""}]
[12,{"$f":"IF(FILIACION_ESTUDIANTE!D19=0,\"\",CONCATENATE(FILIACION_ESTUDIANTE!B19,\" \",FILIACION_ESTUDIANTE!C19,\" \",FILIACION_ESTUDIANTE!D19))","v":""}]
[13,{"$f":"IF(FILIACION_ESTUDIANTE!D20=0,\"\",CONCATENATE(FILIACION_ESTUDIANTE!B20,\" \",FILIACION_ESTUDIANTE!C20,\" \",FILIACION_ESTUDIANTE!D20))","v":""}]
[14,{"$f":"IF(FILIACION_ESTUDIANTE!D21=0,\"\",CONCATENATE(FILIACION_ESTUDIANTE!B21,\" \",FILIACION_ESTUDIANTE!C21,\" \",FILIACION_ESTUDIANTE!D21))","v":""}]
[15,{"$f":"IF(FILIACION_ESTUDIANTE!D22=0,\"\",CONCATENATE(FILIACION_ESTUDIANTE!B22,\" \",FILIACION_ESTUDIANTE!C22,\" \",FILIACION_ESTUDIANTE!D22))","v":""}]
[16,{"$f":"IF(FILIACION_ESTUDIANTE!D23=0,\"\",CONCATENATE(FILIACION_ESTUDIANTE!B23,\" \",FILIACION_ESTUDIANTE!C23,\" \",FILIACION_ESTUDIANTE!D23))","v":""}]
[17,{"$f":"IF(FILIACION_ESTUDIANTE!D24=0,\"\",CONCATENATE(FILIACION_ESTUDIANTE!B24,\" \",FILIACION_ESTUDIANTE!C24,\" \",FILIACION_ESTUDIANTE!D24))","v":""}]
[18,{"$f":"IF(FILIACION_ESTUDIANTE!D25=0,\"\",CONCATENATE(FILIACION_ESTUDIANTE!B25,\" \",FILIACION_ESTUDIANTE!C25,\" \",FILIACION_ESTUDIANTE!D25))","v":""}]
[19,{"$f":"IF(FILIACION_ESTUDIANTE!D26=0,\"\",CONCATENATE(FILIACION_ESTUDIANTE!B26,\" \",FILIACION_ESTUDIANTE!C26,\" \",FILIACION_ESTUDIANTE!D26))","v":""}]
[20,{"$f":"IF(FILIACION_ESTUDIANTE!D27=0,\"\",CONCATENATE(FILIACION_ESTUDIANTE!B27,\" \",FILIACION_ESTUDIANTE!C27,\" \",FILIACION_ESTUDIANTE!D27))","v":""}]
[21,{"$f":"IF(FILIACION_ESTUDIANTE!D28=0,\"\",CONCATENATE(FILIACION_ESTUDIANTE!B28,\" \",FILIACION_ESTUDIANTE!C28,\" \",FILIACION_ESTUDIANTE!D28))","v":""}]
[22,{"$f":"IF(FILIACION_ESTUDIANTE!D29=0,\"\",CONCATENATE(FILIACION_ESTUDIANTE!B29,\" \",FILIACION_ESTUDIANTE!C29,\" \",FILIACION_ESTUDIANTE!D29))","v":""}]
[23,{"$f":"IF(FILIACION_ESTUDIANTE!D30=0,\"\",CONCATENATE(FILIACION_ESTUDIANTE!B30,\" \",FILIACION_ESTUDIANTE!C30,\" \",FILIACION_ESTUDIANTE!D30))","v":""}]
[24,{"$f":"IF(FILIACION_ESTUDIANTE!D31=0,\"\",CONCATENATE(FILIACION_ESTUDIANTE!B31,\" \",FILIACION_ESTUDIANTE!C31,\" \",FILIACION_ESTUDIANTE!D31))","v":""}]
[25,{"$f":"IF(FILIACION_ESTUDIANTE!D32=0,\"\",CONCATENATE(FILIACION_ESTUDIANTE!B32,\" \",FILIACION_ESTUDIANTE!C32,\" \",FILIACION_ESTUDIANTE!D32))","v":""}]
[26,{"$f":"IF(FILIACION_ESTUDIANTE!D33=0,\"\",CONCATENATE(FILIACION_ESTUDIANTE!B33,\" \",FILIACION_ESTUDIANTE!C33,\" \",FILIACION_ESTUDIANTE!D33))","v":""}]
[27,{"$f":"IF(FILIACION_ESTUDIANTE!D34=0,\"\",CONCATENATE(FILIACION_ESTUDIANTE!B34,\" \",FILIACION_ESTUDIANTE!C34,\" \",FILIACION_ESTUDIANTE!D34))","v":""}]
[28,{"$f":"IF(FILIACION_ESTUDIANTE!D35=0,\"\",CONCATENATE(FILIACION_ESTUDIANTE!B35,\" \",FILIACION_ESTUDIANTE!C35,\" \",FILIACION_ESTUDIANTE!D35))","v":""}]
[29,{"$f":"IF(FILIACION_ESTUDIANTE!D36=0,\"\",CONCATENATE(FILIACION_ESTUDIANTE!B36,\" \",FILIACION_ESTUDIANTE!C36,\" \",FILIACION_ESTUDIANTE!D36))","v":""}]
[30,{"$f":"IF(FILIACION_ESTUDIANTE!D37=0,\"\",CONCATENATE(FILIACION_ESTUDIANTE!B37,\" \",FILIACION_ESTUDIANTE!C37,\" \",FILIACION_ESTUDIANTE!D37))","v":""}]
[31,{"$f":"IF(FILIACION_ESTUDIANTE!D38=0,\"\",CONCATENATE(FILIACION_ESTUDIANTE!B38,\" \",FILIACION_ESTUDIANTE!C38,\" \",FILIACION_ESTUDIANTE!D38))","v":""}]
[32,{"$f":"IF(FILIACION_ESTUDIANTE!D39=0,\"\",CONCATENATE(FILIACION_ESTUDIANTE!B39,\" \",FILIACION_ESTUDIANTE!C39,\" \",FILIACION_ESTUDIANTE!D39))","v":""}]
[33,{"$f":"IF(FILIACION_ESTUDIANTE!D40=0,\"\",CONCATENATE(FILIACION_ESTUDIANTE!B40,\" \",FILIACION_ESTUDIANTE!C40,\" \",FILIACION_ESTUDIANTE!D40))","v":""}]
[34,{"$f":"IF(FILIACION_ESTUDIANTE!D41=0,\"\",CONCATENATE(FILIACION_ESTUDIANTE!B41,\" \",FILIACION_ESTUDIANTE!C41,\" \",FILIACION_ESTUDIANTE!D41))","v":""}]
[35,{"$f":"IF(FILIACION_ESTUDIANTE!D42=0,\"\",CONCATENATE(FILIACION_ESTUDIANTE!B42,\" \",FILIACION_ESTUDIANTE!C42,\" \",FILIACION_ESTUDIANTE!D42))","v":""}]
[36,{"$f":"IF(FILIACION_ESTUDIANTE!D43=0,\"\",CONCATENATE(FILIACION_ESTUDIANTE!B43,\" \",FILIACION_ESTUDIANTE!C43,\" \",FILIACION_ESTUDIANTE!D43))","v":""}]
[37,{"$f":"IF(FILIACION_ESTUDIANTE!D44=0,\"\",CONCATENATE(FILIACION_ESTUDIANTE!B44,\" \",FILIACION_ESTUDIANTE!C44,\" \",FILIACION_ESTUDIANTE!D44))","v":""}]
[38,{"$f":"IF(FILIACION_ESTUDIANTE!D45=0,\"\",CONCATENATE(FILIACION_ESTUDIANTE!B45,\" \",FILIACION_ESTUDIANTE!C45,\" \",FILIACION_ESTUDIANTE!D45))","v":""}]
[39,{"$f":"IF(FILIACION_ESTUDIANTE!D46=0,\"\",CONCATENATE(FILIACION_ESTUDIANTE!B46,\" \",FILIACION_ESTUDIANTE!C46,\" \",FILIACION_ESTUDIANTE!D46))","v":""}]
[40,{"$f":"IF(FILIACION_ESTUDIANTE!D47=0,\"\",CONCATENATE(FILIACION_ESTUDIANTE!B47,\" \",FILIACION_ESTUDIANTE!C47,\" \",FILIACION_ESTUDIANTE!D47))","v":""}]

{"sheet":"VACUNAS","index":5,"n_rows":47,"n_cols":13,"rows_kept":47,"cut":false,"hidden":false,"merged":[[1,0,1,12],[4,0,6,0],[4,1,6,1],[4,12,6,12],[4,2,4,11],[5,2,6,2],[5,3,5,5],[5,6,5,8],[5,11,6,11],[5,9,6,9],[5,10,6,10]]}
[]
["REGISTRO DE VACUNAS"]
[null,{"$f":"UPPER(CARATULA!$C$13)","v":"UNIDAD EDUCATIVA:"},{"$f":"UPPER(CARATULA!$E$13)","v":""},null,null,null,null,null,null,"GESTIÓN: ",{"$f":"CARATULA!$F$27","v":2019}]
[null,{"$f":"UPPER( CARATULA!$C$21)","v":"MAESTRA (O):"},{"$f":"CARATULA!$E$21","v":0},null,null,null,null,null,null,"AÑO DE ESCOLARIDAD:",{"$f":"CARATULA!$E$23","v":0}]
["Nº","APELLIDOS Y NOMBRES",null,null,null,null,null,null,null,null,null,null,"Observaciones"]
[null,null,"BCG(tuberculusis):única  Recién  Nacido","Antipolio",null,null,"Pentavalente",null,null,"Antiamarilla única          (12 meses)","SRP (MMR): única             (12 a 23 meses)","otras:"]
[null,null,null,"1° (2 meses)","2°(4 meses)","3° (6 meses)","1° (2 meses)","2°(4 meses)","3° (6 meses)"]
[1,{"$f":"IF(FILIACION_ESTUDIANTE!D8=0,\"\",CONCATENATE(FILIACION_ESTUDIANTE!B8,\" \",FILIACION_ESTUDIANTE!C8,\" \",FILIACION_ESTUDIANTE!D8))","v":""}]
[2,{"$f":"IF(FILIACION_ESTUDIANTE!D9=0,\"\",CONCATENATE(FILIACION_ESTUDIANTE!B9,\" \",FILIACION_ESTUDIANTE!C9,\" \",FILIACION_ESTUDIANTE!D9))","v":""}]
[3,{"$f":"IF(FILIACION_ESTUDIANTE!D10=0,\"\",CONCATENATE(FILIACION_ESTUDIANTE!B10,\" \",FILIACION_ESTUDIANTE!C10,\" \",FILIACION_ESTUDIANTE!D10))","v":""}]
[4,{"$f":"IF(FILIACION_ESTUDIANTE!D11=0,\"\",CONCATENATE(FILIACION_ESTUDIANTE!B11,\" \",FILIACION_ESTUDIANTE!C11,\" \",FILIACION_ESTUDIANTE!D11))","v":""}]
[5,{"$f":"IF(FILIACION_ESTUDIANTE!D12=0,\"\",CONCATENATE(FILIACION_ESTUDIANTE!B12,\" \",FILIACION_ESTUDIANTE!C12,\" \",FILIACION_ESTUDIANTE!D12))","v":""}]
[6,{"$f":"IF(FILIACION_ESTUDIANTE!D13=0,\"\",CONCATENATE(FILIACION_ESTUDIANTE!B13,\" \",FILIACION_ESTUDIANTE!C13,\" \",FILIACION_ESTUDIANTE!D13))","v":""}]
[7,{"$f":"IF(FILIACION_ESTUDIANTE!D14=0,\"\",CONCATENATE(FILIACION_ESTUDIANTE!B14,\" \",FILIACION_ESTUDIANTE!C14,\" \",FILIACION_ESTUDIANTE!D14))","v":""}]
[8,{"$f":"IF(FILIACION_ESTUDIANTE!D15=0,\"\",CONCATENATE(FILIACION_ESTUDIANTE!B15,\" \",FILIACION_ESTUDIANTE!C15,\" \",FILIACION_ESTUDIANTE!D15))","v":""}]
[9,{"$f":"IF(FILIACION_ESTUDIANTE!D16=0,\"\",CONCATENATE(FILIACION_ESTUDIANTE!B16,\" \",FILIACION_ESTUDIANTE!C16,\" \",FILIACION_ESTUDIANTE!D16))","v":""}]
[10,{"$f":"IF(FILIACION_ESTUDIANTE!D17=0,\"\",CONCATENATE(FILIACION_ESTUDIANTE!B17,\" \",FILIACION_ESTUDIANTE!C17,\" \",FILIACION_ESTUDIANTE!D17))","v":""}]
[11,{"$f":"IF(FILIACION_ESTUDIANTE!D18=0,\"\",CONCATENATE(FILIACION_ESTUDIANTE!B18,\" \",FILIACION_ESTUDIANTE!C18,\" \",FILIACION_ESTUDIANTE!D18))","v":""}]
[12,{"$f":"IF(FILIACION_ESTUDIANTE!D19=0,\"\",CONCATENATE(FILIACION_ESTUDIANTE!B19,\" \",FILIACION_ESTUDIANTE!C19,\" \",FILIACION_ESTUDIANTE!D19))","v":""}]
[13,{"$f":"IF(FILIACION_ESTUDIANTE!D20=0,\"\",CONCATENATE(FILIACION_ESTUDIANTE!B20,\" \",FILIACION_ESTUDIANTE!C20,\" \",FILIACION_ESTUDIANTE!D20))","v":""}]
[14,{"$f":"IF(FILIACION_ESTUDIANTE!D21=0,\"\",CONCATENATE(FILIACION_ESTUDIANTE!B21,\" \",FILIACION_ESTUDIANTE!C21,\" \",FILIACION_ESTUDIANTE!D21))","v":""}]
[15,{"$f":"IF(FILIACION_ESTUDIANTE!D22=0,\"\",CONCATENATE(FILIACION_ESTUDIANTE!B22,\" \",FILIACION_ESTUDIANTE!C22,\" \",FILIACION_ESTUDIANTE!D22))","v":""}]
[16,{"$f":"IF(FILIACION_ESTUDIANTE!D23=0,\"\",CONCATENATE(FILIACION_ESTUDIANTE!B23,\" \",FILIACION_ESTUDIANTE!C23,\" \",FILIACION_ESTUDIANTE!D23))","v":""}]
[17,{"$f":"IF(FILIACION_ESTUDIANTE!D24=0,\"\",CONCATENATE(FILIACION_ESTUDIANTE!B24,\" \",FILIACION_ESTUDIANTE!C24,\" \",FILIACION_ESTUDIANTE!D24))","v":""}]
[18,{"$f":"IF(FILIACION_ESTUDIANTE!D25=0,\"\",CONCATENATE(FILIACION_ESTUDIANTE!B25,\" \",FILIACION_ESTUDIANTE!C25,\" \",FILIACION_ESTUDIANTE!D25))","v":""}]
[19,{"$f":"IF(FILIACION_ESTUDIANTE!D26=0,\"\",CONCATENATE(FILIACION_ESTUDIANTE!B26,\" \",FILIACION_ESTUDIANTE!C26,\" \",FILIACION_ESTUDIANTE!D26))","v":""}]
[20,{"$f":"IF(FILIACION_ESTUDIANTE!D27=0,\"\",CONCATENATE(FILIACION_ESTUDIANTE!B27,\" \",FILIACION_ESTUDIANTE!C27,\" \",FILIACION_ESTUDIANTE!D27))","v":""}]
[21,{"$f":"IF(FILIACION_ESTUDIANTE!D28=0,\"\",CONCATENATE(FILIACION_ESTUDIANTE!B28,\" \",FILIACION_ESTUDIANTE!C28,\" \",FILIACION_ESTUDIANTE!D28))","v":""}]
[22,{"$f":"IF(FILIACION_ESTUDIANTE!D29=0,\"\",CONCATENATE(FILIACION_ESTUDIANTE!B29,\" \",FILIACION_ESTUDIANTE!C29,\" \",FILIACION_ESTUDIANTE!D29))","v":""}]
[23,{"$f":"IF(FILIACION_ESTUDIANTE!D30=0,\"\",CONCATENATE(FILIACION_ESTUDIANTE!B30,\" \",FILIACION_ESTUDIANTE!C30,\" \",FILIACION_ESTUDIANTE!D30))","v":""},null,null,null,null,null,null,null,null,"           "]
[24,{"$f":"IF(FILIACION_ESTUDIANTE!D31=0,\"\",CONCATENATE(FILIACION_ESTUDIANTE!B31,\" \",FILIACION_ESTUDIANTE!C31,\" \",FILIACION_ESTUDIANTE!D31))","v":""}]
[25,{"$f":"IF(FILIACION_ESTUDIANTE!D32=0,\"\",CONCATENATE(FILIACION_ESTUDIANTE!B32,\" \",FILIACION_ESTUDIANTE!C32,\" \",FILIACION_ESTUDIANTE!D32))","v":""}]
[26,{"$f":"IF(FILIACION_ESTUDIANTE!D33=0,\"\",CONCATENATE(FILIACION_ESTUDIANTE!B33,\" \",FILIACION_ESTUDIANTE!C33,\" \",FILIACION_ESTUDIANTE!D33))","v":""}]
[27,{"$f":"IF(FILIACION_ESTUDIANTE!D34=0,\"\",CONCATENATE(FILIACION_ESTUDIANTE!B34,\" \",FILIACION_ESTUDIANTE!C34,\" \",FILIACION_ESTUDIANTE!D34))","v":""}]
[28,{"$f":"IF(FILIACION_ESTUDIANTE!D35=0,\"\",CONCATENATE(FILIACION_ESTUDIANTE!B35,\" \",FILIACION_ESTUDIANTE!C35,\" \",FILIACION_ESTUDIANTE!D35))","v":""}]
[29,{"$f":"IF(FILIACION_ESTUDIANTE!D36=0,\"\",CONCATENATE(FILIACION_ESTUDIANTE!B36,\" \",FILIACION_ESTUDIANTE!C36,\" \",FILIACION_ESTUDIANTE!D36))","v":""}]
[30,{"$f":"IF(FILIACION_ESTUDIANTE!D37=0,\"\",CONCATENATE(FILIACION_ESTUDIANTE!B37,\" \",FILIACION_ESTUDIANTE!C37,\" \",FILIACION_ESTUDIANTE!D37))","v":""}]
[31,{"$f":"IF(FILIACION_ESTUDIANTE!D38=0,\"\",CONCATENATE(FILIACION_ESTUDIANTE!B38,\" \",FILIACION_ESTUDIANTE!C38,\" \",FILIACION_ESTUDIANTE!D38))","v":""}]
[32,{"$f":"IF(FILIACION_ESTUDIANTE!D39=0,\"\",CONCATENATE(FILIACION_ESTUDIANTE!B39,\" \",FILIACION_ESTUDIANTE!C39,\" \",FILIACION_ESTUDIANTE!D39))","v":""}]
[33]
[34]
[35]
[36]
[37]
[38]
[39]
[40]

{"sheet":"ESTADISTICA_EDADES","index":6,"n_rows":51,"n_cols":29,"rows_kept":51,"cut":false,"hidden":false,"merged":[[28,5,28,7],[28,3,28,4],[29,3,29,4],[29,5,29,7],[0,0,0,7],[1,0,1,7],[2,0,2,7]]}
[{"$f":"UPPER(CONCATENATE(CARATULA!C13,\" \",CARATULA!E13))","v":"UNIDAD EDUCATIVA: "}]
[]
["CUADRO DE EDADES"]
[]
[]
[]
[]
[null,null,null,null,null,null,null,null,null,null,null,null,null,null,null,null,null,null,null,null,null,null,null,null,null,null,null,{"$f":"FILIACION_ESTUDIANTE!AB8","v":0},{"$f":"FILIACION_ESTUDIANTE!AC8","v":0}]
[null,null,null,null,null,null,null,null,null,null,null,null,null,null,null,null,null,null,null,null,null,null,null,null,null,null,null,{"$f":"FILIACION_ESTUDIANTE!AB9","v":0},{"$f":"FILIACION_ESTUDIANTE!AC9","v":0}]
[null,null,null,null,null,null,null,null,null,null,null,null,null,null,null,null,null,null,null,null,null,null,null,null,null,null,null,{"$f":"FILIACION_ESTUDIANTE!AB10","v":0},{"$f":"FILIACION_ESTUDIANTE!AC10","v":0}]
[null,null,null,null,null,null,null,null,null,null,null,null,null,null,null,null,null,null,null,null,null,null,null,null,null,null,null,{"$f":"FILIACION_ESTUDIANTE!AB11","v":0},{"$f":"FILIACION_ESTUDIANTE!AC11","v":0}]
[null,null,null,null,null,null,null,null,null,null,null,null,null,null,null,null,null,null,null,null,null,null,null,null,null,null,null,{"$f":"FILIACION_ESTUDIANTE!AB12","v":0},{"$f":"FILIACION_ESTUDIANTE!AC12","v":0}]
[null,null,null,null,null,null,null,null,null,null,null,null,null,null,null,null,null,null,null,null,null,null,null,null,null,null,null,{"$f":"FILIACION_ESTUDIANTE!AB13","v":0},{"$f":"FILIACION_ESTUDIANTE!AC13","v":0}]
[null,null,null,null,null,null,null,null,null,null,null,null,null,null,null,null,null,null,null,null,null,null,null,null,null,null,null,{"$f":"FILIACION_ESTUDIANTE!AB14","v":0},{"$f":"FILIACION_ESTUDIANTE!AC14","v":0}]
[null,null,null,null,null,null,null,null,null,null,null,null,null,null,null,null,null,null,null,null,null,null,null,null,null,null,null,{"$f":"FILIACION_ESTUDIANTE!AB15","v":0},{"$f":"FILIACION_ESTUDIANTE!AC15","v":0}]
[null,null,null,null,null,null,null,null,null,null,null,null,null,null,null,null,null,null,null,null,null,null,null,null,null,null,null,{"$f":"FILIACION_ESTUDIANTE!AB16","v":0},{"$f":"FILIACION_ESTUDIANTE!AC16","v":0}]
[null,null,null,null,null,null,null,null,null,null,null,null,null,null,null,null,null,null,null,null,null,null,null,null,null,null,null,{"$f":"FILIACION_ESTUDIANTE!AB17","v":0},{"$f":"FILIACION_ESTUDIANTE!AC17","v":0}]
[null,null,null,null,null,null,null,null,null,null,null,null,null,null,null,null,null,null,null,null,null,null,null,null,null,null,null,{"$f":"FILIACION_ESTUDIANTE!AB18","v":0},{"$f":"FILIACION_ESTUDIANTE!AC18","v":0}]
[null,null,null,null,null,null,null,null,null,null,null,null,null,null,null,null,null,null,null,null,null,null,null,null,null,null,null,{"$f":"FILIACION_ESTUDIANTE!AB19","v":0},{"$f":"FILIACION_ESTUDIANTE!AC19","v":0}]
[null,null,null,null,null,null,null,null,null,null,null,null,null,null,null,null,null,null,null,null,null,null,null,null,null,null,null,{"$f":"FILIACION_ESTUDIANTE!AB20","v":0},{"$f":"FILIACION_ESTUDIANTE!AC20","v":0}]
[null,null,null,null,null,null,null,null,null,null,null,null,null,null,null,null,null,null,null,null,null,null,null,null,null,null,null,{"$f":"FILIACION_ESTUDIANTE!AB21","v":0},{"$f":"FILIACION_ESTUDIANTE!AC21","v":0}]
[null,null,null,null,null,null,null,null,null,null,null,null,null,null,null,null,null,null,null,null,null,null,null,null,null,null,null,{"$f":"FILIACION_ESTUDIANTE!AB22","v":0},{"$f":"FILIACION_ESTUDIANTE!AC22","v":0}]
[null,null,null,null,null,null,null,null,null,null,null,null,null,null,null,null,null,null,null,null,null,null,null,null,null,null,null,{"$f":"FILIACION_ESTUDIANTE!AB23","v":0},{"$f":"FILIACION_ESTUDIANTE!AC23","v":0}]
[null,null,3,4,5,6,null,null,null,null,null,null,null,null,null,null,null,null,null,null,null,null,null,null,null,null,null,{"$f":"FILIACION_ESTUDIANTE!AB24","v":0},{"$f":"FILIACION_ESTUDIANTE!AC24","v":0}]
[null,"AÑOS","3 AÑOS","4 AÑOS","5 AÑOS","6 AÑOS","PARCIAL",null,null,null,null,null,null,null,null,null,null,null,null,null,null,null,null,null,null,null,null,{"$f":"FILIACION_ESTUDIANTE!AB25","v":0},{"$f":"FILIACION_ESTUDIANTE!AC25","v":0}]
[null,"VARONES",{"$f":"IF(COUNTIF($AB8:$AB47,C24)=0,\"_\",COUNTIF($AB8:$AB47,C24))","v":"_"},{"$f":"IF(COUNTIF($AB8:$AB47,D24)=0,\"_\",COUNTIF($AB8:$AB47,D24))","v":"_"},{"$f":"IF(COUNTIF($AB8:$AB47,E24)=0,\"_\",COUNTIF($AB8:$AB47,E24))","v":"_"},{"$f":"IF(COUNTIF($AB8:$AB47,F24)=0,\"_\",COUNTIF($AB8:$AB47,F24))","v":"_"},{"$f":"SUM(C26:F26)","v":0},null,null,null,null,null,null,null,null,null,null,null,null,null,null,null,null,null,null,null,null,{"$f":"FILIACION_ESTUDIANTE!AB26","v":0},{"$f":"FILIACION_ESTUDIANTE!AC26","v":0}]
[null,"MUJERES",{"$f":"IF(COUNTIF($AC8:$AC47,C24)=0,\"_\",COUNTIF($AC8:$AC47,C24))","v":"_"},{"$f":"IF(COUNTIF($AC8:$AC47,D24)=0,\"_\",COUNTIF($AC8:$AC47,D24))","v":"_"},{"$f":"IF(COUNTIF($AC8:$AC47,E24)=0,\"_\",COUNTIF($AC8:$AC47,E24))","v":"_"},{"$f":"IF(COUNTIF($AC8:$AC47,F24)=0,\"_\",COUNTIF($AC8:$AC47,F24))","v":"_"},{"$f":"SUM(C27:F27)","v":0},null,null,null,null,null,null,null,null,null,null,null,null,null,null,null,null,null,null,null,null,{"$f":"FILIACION_ESTUDIANTE!AB27","v":0},{"$f":"FILIACION_ESTUDIANTE!AC27","v":0}]
[null,"TOTAL",{"$f":"IF(SUM(C26:C27)=0,\"_\",SUM(C26:C27))","v":"_"},{"$f":"IF(SUM(D26:D27)=0,\"_\",SUM(D26:D27))","v":"_"},{"$f":"IF(SUM(E26:E27)=0,\"_\",SUM(E26:E27))","v":"_"},{"$f":"IF(SUM(F26:F27)=0,\"_\",SUM(F26:F27))","v":"_"},{"$f":"SUM(C28:F28)","v":0},null,null,null,null,null,null,null,null,null,null,null,null,null,null,null,null,null,null,null,null,{"$f":"FILIACION_ESTUDIANTE!AB28","v":0},{"$f":"FILIACION_ESTUDIANTE!AC28","v":0}]
[null,null,null,"MAESTRA(O):",null,{"$f":"UPPER(CARATULA!E21)","v":""},null,null,null,null,null,null,null,null,null,null,null,null,null,null,null,null,null,null,null,null,null,{"$f":"FILIACION_ESTUDIANTE!AB29","v":0},{"$f":"FILIACION_ESTUDIANTE!AC29","v":0}]
[null,null,null,"AÑO DE ESCOLARIDAD",null,{"$f":"UPPER(CARATULA!E23)","v":""},null,null,null,null,null,null,null,null,null,null,null,null,null,null,null,null,null,null,null,null,null,{"$f":"FILIACION_ESTUDIANTE!AB30","v":0},{"$f":"FILIACION_ESTUDIANTE!AC30","v":0}]
[null,null,null,null,null,null,null,null,null,null,null,null,null,null,null,null,null,null,null,null,null,null,null,null,null,null,null,{"$f":"FILIACION_ESTUDIANTE!AB31","v":0},{"$f":"FILIACION_ESTUDIANTE!AC31","v":0}]
[null,null,null,null,null,null,null,null,null,null,null,null,null,null,null,null,null,null,null,null,null,null,null,null,null,null,null,{"$f":"FILIACION_ESTUDIANTE!AB32","v":0},{"$f":"FILIACION_ESTUDIANTE!AC32","v":0}]
[null,"* Años cumplidos al 30 de junio",null,null,null,null,null,null,null,null,null,null,null,null,null,null,null,null,null,null,null,null,null,null,null,null,null,{"$f":"FILIACION_ESTUDIANTE!AB33","v":0},{"$f":"FILIACION_ESTUDIANTE!AC33","v":0}]
[null,null,null,null,null,null,null,null,null,null,null,null,null,null,null,null,null,null,null,null,null,null,null,null,null,null,null,{"$f":"FILIACION_ESTUDIANTE!AB34","v":0},{"$f":"FILIACION_ESTUDIANTE!AC34","v":0}]
[null,null,null,null,null,null,null,null,null,null,null,null,null,null,null,null,null,null,null,null,null,null,null,null,null,null,null,{"$f":"FILIACION_ESTUDIANTE!AB35","v":0},{"$f":"FILIACION_ESTUDIANTE!AC35","v":0}]
[null,null,null,null,null,null,null,null,null,null,null,null,null,null,null,null,null,null,null,null,null,null,null,null,null,null,null,{"$f":"FILIACION_ESTUDIANTE!AB36","v":0},{"$f":"FILIACION_ESTUDIANTE!AC36","v":0}]
[null,null,null,null,null,null,null,null,null,null,null,null,null,null,null,null,null,null,null,null,null,null,null,null,null,null,null,{"$f":"FILIACION_ESTUDIANTE!AB37","v":0},{"$f":"FILIACION_ESTUDIANTE!AC37","v":0}]
[null,null,null,null,null,null,null,null,null,null,null,null,null,null,null,null,null,null,null,null,null,null,null,null,null,null,null,{"$f":"FILIACION_ESTUDIANTE!AB38","v":0},{"$f":"FILIACION_ESTUDIANTE!AC38","v":0}]
[null,null,null,null,null,null,null,null,null,null,null,null,null,null,null,null,null,null,null,null,null,null,null,null,null,null,null,{"$f":"FILIACION_ESTUDIANTE!AB39","v":0},{"$f":"FILIACION_ESTUDIANTE!AC39","v":0}]
[null,null,null,null,null,null,null,null,null,null,null,null,null,null,null,null,null,null,null,null,null,null,null,null,null,null,null,{"$f":"FILIACION_ESTUDIANTE!AB40","v":0},{"$f":"FILIACION_ESTUDIANTE!AC40","v":0}]
[null,null,null,null,null,null,null,null,null,null,null,null,null,null,null,null,null,null,null,null,null,null,null,null,null,null,null,{"$f":"FILIACION_ESTUDIANTE!AB41","v":0},{"$f":"FILIACION_ESTUDIANTE!AC41","v":0}]
[null,null,null,null,null,null,null,null,null,null,null,null,null,null,null,null,null,null,null,null,null,null,null,null,null,null,null,{"$f":"FILIACION_ESTUDIANTE!AB42","v":0},{"$f":"FILIACION_ESTUDIANTE!AC42","v":0}]
[null,null,null,null,null,null,null,null,null,null,null,null,null,null,null,null,null,null,null,null,null,null,null,null,null,null,null,{"$f":"FILIACION_ESTUDIANTE!AB43","v":0},{"$f":"FILIACION_ESTUDIANTE!AC43","v":0}]
[null,null,null,null,null,null,null,null,null,null,null,null,null,null,null,null,null,null,null,null,null,null,null,null,null,null,null,{"$f":"FILIACION_ESTUDIANTE!AB44","v":0},{"$f":"FILIACION_ESTUDIANTE!AC44","v":0}]
[null,null,null,null,null,null,null,null,null,null,null,null,null,null,null,null,null,null,null,null,null,null,null,null,null,null,null,{"$f":"FILIACION_ESTUDIANTE!AB45","v":0},{"$f":"FILIACION_ESTUDIANTE!AC45","v":0}]
[null,null,null,null,null,null,null,null,null,null,null,null,null,null,null,null,null,null,null,null,null,null,null,null,null,null,null,{"$f":"FILIACION_ESTUDIANTE!AB46","v":0},{"$f":"FILIACION_ESTUDIANTE!AC46","v":0}]
[null,null,null,null,null,null,null,null,null,null,null,null,null,null,null,null,null,null,null,null,null,null,null,null,null,null,null,{"$f":"FILIACION_ESTUDIANTE!AB47","v":0},{"$f":"FILIACION_ESTUDIANTE!AC47","v":0}]
[null,null,null,null,null,null,null,null,null,null,null,null,null,null,null,null,null,null,null,null,null,null,null,null,null,null,null,{"$f":"FILIACION_ESTUDIANTE!#REF!","v":{"$error":"#REF!"}},{"$f":"FILIACION_ESTUDIANTE!#REF!","v":{"$error":"#REF!"}}]
[null,null,null,null,null,null,null,null,null,null,null,null,null,null,null,null,null,null,null,null,null,null,null,null,null,null,null,{"$f":"FILIACION_ESTUDIANTE!#REF!","v":{"$error":"#REF!"}},{"$f":"FILIACION_ESTUDIANTE!#REF!","v":{"$error":"#REF!"}}]
[null,null,null,null,null,null,null,null,null,null,null,null,null,null,null,null,null,null,null,null,null,null,null,null,null,null,null,{"$f":"FILIACION_ESTUDIANTE!#REF!","v":{"$error":"#REF!"}},{"$f":"FILIACION_ESTUDIANTE!#REF!","v":{"$error":"#REF!"}}]
[null,null,null,null,null,null,null,null,null,null,null,null,null,null,null,null,null,null,null,null,null,null,null,null,null,null,null,{"$f":"FILIACION_ESTUDIANTE!#REF!","v":{"$error":"#REF!"}},{"$f":"FILIACION_ESTUDIANTE!#REF!","v":{"$error":"#REF!"}}]

{"sheet":"ASISTENCIA","index":7,"n_rows":0,"n_cols":0,"rows_kept":0,"cut":false,"hidden":false,"merged":[]}

{"sheet":"FEBRERO","index":8,"n_rows":53,"n_cols":53,"rows_kept":53,"cut":false,"hidden":false,"merged":[[52,4,52,7],[50,27,50,29],[51,15,51,21],[51,22,51,26],[51,27,51,29],[51,8,51,11],[52,8,52,11],[52,15,52,21],[52,22,52,26],[50,15,50,21],[50,22,50,26],[49,8,49,11],[50,8,50,11],[49,4,49,7],[50,4,50,7],[51,4,51,7],[39,1,39,4],[40,1,40,4],[30,1,30,4],[46,1,46,4],[41,1,41,4],[32,1,32,4],[33,1,33,4],[34,1,34,4],[35,1,35,4],[36,1,36,4],[38,1,38,4],[42,1,42,4],[43,1,43,4],[25,37,25,39],[26,1,26,4],[26,37,26,39],[48,33,56,33],[49,22,49,26],[49,27,49,29],[27,37,27,39],[27,1,27,4],[25,1,25,4],[44,1,44,4],[45,1,45,4],[52,27,52,29],[52,1,52,2],[28,37,28,39],[29,1,29,4],[29,37,29,39],[24,37,24,39],[16,37,18,39],[17,1,17,4],[18,1,18,4],[19,1,19,4],[19,37,19,39],[20,1,20,4],[20,37,20,39],[23,1,23,4],[16,1,16,4],[21,1,21,4],[21,37,21,39],[22,1,22,4],[22,37,22,39],[23,37,23,39],[8,33,47,33],[4,28,4,31],[4,24,4,27],[4,0,4,1],[5,0,5,31],[4,2,4,23],[8,1,8,4],[9,1,9,4],[10,1,10,4],[11,1,11,4],[12,1,12,4],[14,1,14,4],[15,1,15,4],[37,1,37,4],[24,1,24,4],[31,1,31,4],[28,1,28,4],[47,1,47,4],[0,33,0,34],[1,0,1,31],[2,0,2,31],[3,0,3,2],[3,3,3,12],[3,28,3,31],[3,24,3,27],[0,0,0,31],[6,0,7,0],[6,1,7,3],[6,28,7,28],[6,29,7,29],[6,31,7,31],[6,30,7,30],[13,1,13,4]]}
[null,null,null,null,null,null,null,null,null,null,null,null,null,null,null,null,null,null,null,null,null,null,null,null,null,null,null,null,null,null,null,null,null,"ASISTENCIAS E INASISTENCIAS",null,"AZUL"]
[null,null,null,null,null,null,null,null,null,null,null,null,null,null,null,null,null,null,null,null,null,null,null,null,null,null,null,null,null,null,null,null,null,"Presente","P"]
[{"$f":"AL20","v":"REGISTRO DE ASISTENCIA FEBRERO  2019"},null,null,null,null,null,null,null,null,null,null,null,null,null,null,null,null,null,null,null,null,null,null,null,null,null,null,null,null,null,null,null,null,"Atraso","A"]
[{"$f":"+UPPER(CARATULA!C21)","v":"MAESTRA (O):"},null,null,{"$f":"CARATULA!E21","v":0},null,null,null,null,null,null,null,null,null,null,null,null,null,null,null,null,null,null,null,null,"TURNO: ",null,null,null,{"$f":"CARATULA!E14","v":0},null,null,null,null,"falta con licencia","F"]
["NIVEL:",null,{"$f":"CARATULA!E22","v":0},null,null,null,null,null,null,null,null,null,null,null,null,null,null,null,null,null,null,null,null,null,"PARALELO:",null,null,null,{"$f":"CARATULA!E15","v":0},null,null,null,null,"Falta sin licencia","L"]
[{"$f":"+CONCATENATE(\"AÑO DE ESCOLARIDAD:  \",CARATULA!E23)","v":"AÑO DE ESCOLARIDAD:  "}]
["Nº","NÓMINA",null,null,"DÍA","L","M","M","J","V","L","M","M","J","V","L","M","M","J","V","L",{"$f":"IF(F8=7,\"\",\"M\")","v":"M"},{"$f":"IF(V8>27,\"\",\"M\")","v":"M"},{"$f":"IF(W8>27,\"\",\"J\")","v":"J"},{"$f":"IF(X8>27,\"\",\"V\")","v":""},null,null,null,"LICENCIA (L)","FALTA (F)","ATRASO (A)","PRESENTE=DÍAS TRABAJAOS",null,"dias materias tecnicas",0]
[null,null,null,null,"FECHA",4,{"$f":"F8+1","v":5},{"$f":"G8+1","v":6},{"$f":"H8+1","v":7},{"$f":"I8+1","v":8},{"$f":"J8+3","v":11},{"$f":"K8+1","v":12},{"$f":"L8+1","v":13},{"$f":"M8+1","v":14},{"$f":"N8+1","v":15},{"$f":"O8+3","v":18},{"$f":"P8+1","v":19},{"$f":"Q8+1","v":20},{"$f":"R8+1","v":21},{"$f":"S8+1","v":22},{"$f":"T8+3","v":25},{"$f":"IF(F8=7,\"\",U8+1)","v":26},{"$f":"IF(V8>27,\"\",V8+1)","v":27},{"$f":"IF(W8>27,\"\",W8+1)","v":28},{"$f":"IF(X8>27,\"\",X8+1)","v":""},null,null,{"$f":"IF($AH$9=\"FEBRERO\",\"\",AA8+1)","v":""}]
[1,{"$f":"IF(FILIACION_ESTUDIANTE!D8=0,\"\",FILIACION_PPFF!B7)","v":""},null,null,null,null,null,null,null,null,null,null,null,null,null,null,null,null,null,null,null,null,null,null,null,null,null,null,{"$f":"IF((COUNTBLANK(F9:AB9))>=23,\" \",(COUNTIF((F9:AB9),$AI$5)))","v":" "},{"$f":"IF((COUNTBLANK(F9:AB9))>=23,\" \",(COUNTIF((F9:AB9),$AI$4)))","v":" "},{"$f":"IF((COUNTBLANK(F9:AB9))>=23,\" \",(COUNTIF((F9:AB9),$AI$3)))","v":" "},{"$f":"IF(COUNTBLANK(F9:AB9)>=23,\" \",(COUNTIF((F9:AB9),$AI$2)+AE9+$AI$7))","v":" "},null,"FEBRERO"]
[2,{"$f":"IF(FILIACION_ESTUDIANTE!D9=0,\"\",FILIACION_PPFF!B8)","v":""},null,null,null,null,null,null,null,null,null,null,null,null,null,null,null,null,null,null,null,null,null,null,null,null,null,null," "," "," "," "]
[3,{"$f":"IF(FILIACION_ESTUDIANTE!D10=0,\"\",FILIACION_PPFF!B9)","v":""},null,null,null,null,null,null,null,null,null,null,null,null,null,null,null,null,null,null,null,null,null,null,null,null,null,null," "," "," "," "]
[4,{"$f":"IF(FILIACION_ESTUDIANTE!D11=0,\"\",FILIACION_PPFF!B10)","v":""},null,null,null,null,null,null,null,null,null,null,null,null,null,null,null,null,null,null,null,null,null,null,null,null,null,null," "," "," "," ",null,null,null,null,null,null,null,null,null,null,null,null,null,null,null,null,null,null,null,{"$f":"ISLOGICAL((#REF!))","v":false},1]
[5,{"$f":"IF(FILIACION_ESTUDIANTE!D12=0,\"\",FILIACION_PPFF!B11)","v":""},null,null,null,null,null,null,null,null,null,null,null,null,null,null,null,null,null,null,null,null,null,null,null,null,null,null," "," "," "," ",null,null,null,null,null,null,null,null,null,null,null,null,null,null,null,null,null,null,null,null,"A"]
[6,{"$f":"IF(FILIACION_ESTUDIANTE!D13=0,\"\",FILIACION_PPFF!B12)","v":""},null,null,null,null,null,null,null,null,null,null,null,null,null,null,null,null,null,null,null,null,null,null,null,null,null,null," "," "," "," ",null,null,null,null,null,null,null,null,null,null,null,null,null,null,null,null,null,null,{"$f":"ISTEXT(#REF!)","v":false}]
[7,{"$f":"IF(FILIACION_ESTUDIANTE!D14=0,\"\",FILIACION_PPFF!B13)","v":""},null,null,null,null,null,null,null,null,null,null,null,null,null,null,null,null,null,null,null,null,null,null,null,null,null,null," "," "," "," ",null,null,null,null,null,null,null,null,null,null,null,null,null,null,null,null,null,null,null,null,"a"]
[8,{"$f":"IF(FILIACION_ESTUDIANTE!D15=0,\"\",FILIACION_PPFF!B14)","v":""},null,null,null,null,null,null,null,null,null,null,null,null,null,null,null,null,null,null,null,null,null,null,null,null,null,null," "," "," "," ",null,null,null,null,null,null,null,null,null,null,null,null,null,null,null,null,null,null,null,null,"a"]
[9,{"$f":"IF(FILIACION_ESTUDIANTE!D16=0,\"\",FILIACION_PPFF!B15)","v":""},null,null,null,null,null,null,null,null,null,null,null,null,null,null,null,null,null,null,null,null,null,null,null,null,null,null," "," "," "," ",null,null,null,null,null,"ENCABEZADO DE LOS FORMULARIOS DE CONTROL DE ASISTENCIA",null,null,null,null,null,null,null,null,null,null,null,{"$f":"MONTH(AX18)","v":2},null,null,"f"]
[10,{"$f":"IF(FILIACION_ESTUDIANTE!D17=0,\"\",FILIACION_PPFF!B16)","v":""},null,null,null,null,null,null,null,null,null,null,null,null,null,null,null,null,null,null,null,null,null,null,null,null,null,null," "," "," "," ",null,null,null,null,null,null,null,null,null,null,null,null,null,null,null,null,null,"2010-02-01",null,null,"f"]
[11,{"$f":"IF(FILIACION_ESTUDIANTE!D18=0,\"\",FILIACION_PPFF!B17)","v":""},null,null,null,null,null,null,null,null,null,null,null,null,null,null,null,null,null,null,null,null,null,null,null,null,null,null," "," "," "," ",null,null,null,null,null,null,null,null,null,null,null,null,null,null,null,null,null,null,null,null,"f"]
[12,{"$f":"IF(FILIACION_ESTUDIANTE!D19=0,\"\",FILIACION_PPFF!B18)","v":""},null,null,null,null,null,null,null,null,null,null,null,null,null,null,null,null,null,null,null,null,null,null,null,null,null,null," "," "," "," ",null,null,null,null,null,{"$f":"CONCATENATE(AO20,\" \",AP20)","v":"REGISTRO DE ASISTENCIA FEBRERO  2019"},null,null,"REGISTRO DE ASISTENCIA FEBRERO ",{"$f":"CARATULA!F27","v":2019},null,null,null,null,null,null,null,null,null,null,"p"]
[13,{"$f":"IF(FILIACION_ESTUDIANTE!D20=0,\"\",FILIACION_PPFF!B19)","v":""},null,null,null,null,null,null,null,null,null,null,null,null,null,null,null,null,null,null,null,null,null,null,null,null,null,null," "," "," "," ",null,null,null,null,null,{"$f":"CONCATENATE(AO21,\" \",AP21)","v":"REGISTRO DE ASISTENCIA MARZO  2019"},null,null,"REGISTRO DE ASISTENCIA MARZO ",{"$f":"AP20","v":2019},null,null,null,null,null,null,null,null,null,null,"y"]
[14,{"$f":"IF(FILIACION_ESTUDIANTE!D21=0,\"\",FILIACION_PPFF!B20)","v":""},null,null,null,null,null,null,null,null,null,null,null,null,null,null,null,null,null,null,null,null,null,null,null,null,null,null," "," "," "," ",null,null,null,null,null,"REGISTRO DE ASISTENCIA ABRIL  2019",null,null,"REGISTRO DE ASISTENCIA ABRIL ",{"$f":"AP21","v":2019},null,null,null,null,null,null,null,null,null,null,"a"]
[15,{"$f":"IF(FILIACION_ESTUDIANTE!D22=0,\"\",FILIACION_PPFF!B21)","v":""},null,null,null,null,null,null,null,null,null,null,null,null,null,null,null,null,null,null,null,null,null,null,null,null,null,null," "," "," "," ",null,null,null,null,null,"REGISTRO DE ASISTENCIA MAYO  2019",null,null,"REGISTRO DE ASISTENCIA MAYO ",{"$f":"AP22","v":2019},null,null,null,null,null,null,null,null,null,null,"a"]
[16,{"$f":"IF(FILIACION_ESTUDIANTE!D23=0,\"\",FILIACION_PPFF!B22)","v":""},null,null,null,null,null,null,null,null,null,null,null,null,null,null,null,null,null,null,null,null,null,null,null,null,null,null," "," "," "," ",null,null,null,null,null,"REGISTRO DE ASISTENCIA JUNIO  2019",null,null,"REGISTRO DE ASISTENCIA JUNIO ",2019,null,null,null,null,null,null,null,null,null,null,"a"]
[17,{"$f":"IF(FILIACION_ESTUDIANTE!D24=0,\"\",FILIACION_PPFF!B23)","v":""},null,null,null,null,null,null,null,null,null,null,null,null,null,null,null,null,null,null,null,null,null,null,null,null,null,null," "," "," "," ",null,null,null,null,null,"REGISTRO DE ASISTENCIA JULIO  2019",null,null,"REGISTRO DE ASISTENCIA JULIO ",2019,null,null,null,null,null,null,null,null,null,null,"a"]
[18,{"$f":"IF(FILIACION_ESTUDIANTE!D25=0,\"\",FILIACION_PPFF!B24)","v":""},null,null,null,null,null,null,null,null,null,null,null,null,null,null,null,null,null,null,null,null,null,null,null,null,null,null," "," "," "," ",null,null,null,null,null,"REGISTRO DE ASISTENCIA AGOSTO  2019",null,null,"REGISTRO DE ASISTENCIA AGOSTO ",2019,null,null,null,null,null,null,null,null,null,null,"a"]
[19,{"$f":"IF(FILIACION_ESTUDIANTE!D26=0,\"\",FILIACION_PPFF!B25)","v":""},null,null,null,null,null,null,null,null,null,null,null,null,null,null,null,null,null,null,null,null,null,null,null,null,null,null," "," "," "," ",null,null,null,null,null,"REGISTRO DE ASISTENCIA SEPTIEMBRE  2019",null,null,"REGISTRO DE ASISTENCIA SEPTIEMBRE ",2019,null,null,null,null,null,null,null,null,null,null,"a"]
[20,{"$f":"IF(FILIACION_ESTUDIANTE!D27=0,\"\",FILIACION_PPFF!B26)","v":""},null,null,null,null,null,null,null,null,null,null,null,null,null,null,null,null,null,null,null,null,null,null,null,null,null,null," "," "," "," ",null,null,null,null,null,"REGISTRO DE ASISTENCIA OCTUBRE  2019",null,null,"REGISTRO DE ASISTENCIA OCTUBRE ",2019,null,null,null,null,null,null,null,null,null,null,"f"]
[21,{"$f":"IF(FILIACION_ESTUDIANTE!D28=0,\"\",FILIACION_PPFF!B27)","v":""},null,null,null,null,null,null,null,null,null,null,null,null,null,null,null,null,null,null,null,null,null,null,null,null,null,null," "," "," "," ",null,null,null,null,null,"REGISTRO DE ASISTENCIA NOVIEMBRE  2019",null,null,"REGISTRO DE ASISTENCIA NOVIEMBRE ",2019,null,null,null,null,null,null,null,null,null,null,"p"]
[22,{"$f":"IF(FILIACION_ESTUDIANTE!D29=0,\"\",FILIACION_PPFF!B28)","v":""},null,null,null,null,null,null,null,null,null,null,null,null,null,null,null,null,null,null,null,null,null,null,null,null,null,null," "," "," "," ",null,null,null,null,null,"REGISTRO DE ASISTENCIA DICIEMBRE  2019",null,null,"REGISTRO DE ASISTENCIA DICIEMBRE ",2019,null,null,null,null,null,null,null,null,null,null,"M"]
[23,{"$f":"IF(FILIACION_ESTUDIANTE!D30=0,\"\",FILIACION_PPFF!B29)","v":""},null,null,null,null,null,null,null,null,null,null,null,null,null,null,null,null,null,null,null,null,null,null,null,null,null,null," "," "," "," "]
[24,{"$f":"IF(FILIACION_ESTUDIANTE!D31=0,\"\",FILIACION_PPFF!B30)","v":""},null,null,null,null,null,null,null,null,null,null,null,null,null,null,null,null,null,null,null,null,null,null,null,null,null,null," "," "," "," ",null,null,null,null,null,null,null,null,null,null,null,null,null,null,null,null,null,null,null,null,"M"]
[25,{"$f":"IF(FILIACION_ESTUDIANTE!D32=0,\"\",FILIACION_PPFF!B31)","v":""},null,null,null,null,null,null,null,null,null,null,null,null,null,null,null,null,null,null,null,null,null,null,null,null,null,null," "," "," "," ",null,null,null,null,null,null,null,null,null,null,null,null,null,null,null,null,null,null,null,null,"M"]
[26,{"$f":"IF(FILIACION_ESTUDIANTE!D33=0,\"\",FILIACION_PPFF!B32)","v":""},null,null,null,null,null,null,null,null,null,null,null,null,null,null,null,null,null,null,null,null,null,null,null,null,null,null," "," "," "," ",null,null,null,null,null,null,null,null,null,null,null,null,null,null,null,null,null,null,null,null,"M"]
[27,{"$f":"IF(FILIACION_ESTUDIANTE!D34=0,\"\",FILIACION_PPFF!B33)","v":""},null,null,null,null,null,null,null,null,null,null,null,null,null,null,null,null,null,null,null,null,null,null,null,null,null,null," "," "," "," ",null,null,null,null,null,null,null,null,null,null,null,null,null,null,null,null,null,null,null,null,"M"]
[28,{"$f":"IF(FILIACION_ESTUDIANTE!D35=0,\"\",FILIACION_PPFF!B34)","v":""},null,null,null,null,null,null,null,null,null,null,null,null,null,null,null,null,null,null,null,null,null,null,null,null,null,null," "," "," "," ",null,null,null,null,null,null,null,null,null,null,null,null,null,null,null,null,null,null,null,null,"M"]
[29,{"$f":"IF(FILIACION_ESTUDIANTE!D36=0,\"\",FILIACION_PPFF!B35)","v":""},null,null,null,null,null,null,null,null,null,null,null,null,null,null,null,null,null,null,null,null,null,null,null,null,null,null," "," "," "," "]
[30,{"$f":"IF(FILIACION_ESTUDIANTE!D37=0,\"\",FILIACION_PPFF!B36)","v":""},null,null,null,null,null,null,null,null,null,null,null,null,null,null,null,null,null,null,null,null,null,null,null,null,null,null," "," "," "," "]
[31,{"$f":"IF(FILIACION_ESTUDIANTE!D38=0,\"\",FILIACION_PPFF!B37)","v":""},null,null,null,null,null,null,null,null,null,null,null,null,null,null,null,null,null,null,null,null,null,null,null,null,null,null," "," "," "," ",null,null,null,null,null,null,null,null,null,null,null,null,null,null,null,null,null,null,null,null,"M"]
[32,{"$f":"IF(FILIACION_ESTUDIANTE!D39=0,\"\",FILIACION_PPFF!B38)","v":""},null,null,null,null,null,null,null,null,null,null,null,null,null,null,null,null,null,null,null,null,null,null,null,null,null,null," "," "," "," ",null,null,null,null,null,null,null,null,null,null,null,null,null,null,null,null,null,null,null,null,"M"]
[33,{"$f":"IF(FILIACION_ESTUDIANTE!D40=0,\"\",FILIACION_PPFF!B39)","v":""},null,null,null,null,null,null,null,null,null,null,null,null,null,null,null,null,null,null,null,null,null,null,null,null,null,null," "," "," "," "]
[34,{"$f":"IF(FILIACION_ESTUDIANTE!D41=0,\"\",FILIACION_PPFF!B40)","v":""},null,null,null,null,null,null,null,null,null,null,null,null,null,null,null,null,null,null,null,null,null,null,null,null,null,null," "," "," "," "]
[35,{"$f":"IF(FILIACION_ESTUDIANTE!D42=0,\"\",FILIACION_PPFF!B41)","v":""},null,null,null,null,null,null,null,null,null,null,null,null,null,null,null,null,null,null,null,null,null,null,null,null,null,null," "," "," "," "]
[36,{"$f":"IF(FILIACION_ESTUDIANTE!D43=0,\"\",FILIACION_PPFF!B42)","v":""},null,null,null,null,null,null,null,null,null,null,null,null,null,null,null,null,null,null,null,null,null,null,null,null,null,null," "," "," "," "]
[37,{"$f":"IF(FILIACION_ESTUDIANTE!D44=0,\"\",FILIACION_PPFF!B43)","v":""},null,null,null,null,null,null,null,null,null,null,null,null,null,null,null,null,null,null,null,null,null,null,null,null,null,null," "," "," "," "]
[38,{"$f":"IF(FILIACION_ESTUDIANTE!D45=0,\"\",FILIACION_PPFF!B44)","v":""},null,null,null,null,null,null,null,null,null,null,null,null,null,null,null,null,null,null,null,null,null,null,null,null,null,null," "," "," "," "]
[39,{"$f":"IF(FILIACION_ESTUDIANTE!D46=0,\"\",FILIACION_PPFF!B45)","v":""},null,null,null,null,null,null,null,null,null,null,null,null,null,null,null,null,null,null,null,null,null,null,null,null,null,null," "," "," "," "]
[40,{"$f":"IF(FILIACION_ESTUDIANTE!D47=0,\"\",FILIACION_PPFF!B46)","v":""},null,null,null,null,null,null,null,null,null,null,null,null,null,null,null,null,null,null,null,null,null,null,null,null,null,null," "," "," "," "]
[]
[null,null,null,"INSCRITOS","NO INCORPORADO",null,null,null,"EFECTIVOS",null,null,null,null,null,null,null,null,null,null,null,null,null,"PROMEDIO",null,null,null,null,"%",null,null,null,null,null,null,null,{"$f":"(SUM(AF9:AF48,AC9:AD48)/D53)","v":{"$error":"#VALUE!"}},"SUMATORIA","DIAS TRAB","PROMEDIO"]
[null,"VARONES",null,{"$f":"COUNTIF(FILIACION_ESTUDIANTE!J8:J47,\"M\")","v":0},0,null,null,null,{"$f":"IF(D51=0,\" \",(D51-E51-G51))","v":" "},null,null,null,null,null,null,"ASISTENCIA",null,null,null,null,null,null,{"$f":"IF(AJ50=0,\"\",ROUND(AM51-G53,0))","v":{"$error":"#VALUE!"}},null,null,null,null,{"$f":"IF(AJ50=0,\"\",ROUND((100*W51)/W53,0))","v":{"$error":"#VALUE!"}},null,null,null,null,null,null,null,"PRESENTE",{"$f":"IF(AJ50=0,\"\",SUM(AE9:AF48))","v":{"$error":"#VALUE!"}},{"$f":"IF(AJ50=0,\"\",AJ50)","v":{"$error":"#VALUE!"}},{"$f":"IF(AJ50=0,\"\",AK51/AL51)","v":{"$error":"#VALUE!"}}]
[null,"MUJERES",null,{"$f":"COUNTIF(FILIACION_ESTUDIANTE!J8:J47,\"F\")","v":0},0,null,null,null,{"$f":"IF(D52=0,\" \",(D52-E52-G52))","v":" "},null,null,null,null,null,null,"FALTA",null,null,null,null,null,null,{"$f":"IF(AJ50=0,\"\",ROUND(AM52,0))","v":{"$error":"#VALUE!"}},null,null,null,null,{"$f":"IF(AJ50=0,\"\",ROUND((100*W52)/W53,0))","v":{"$error":"#VALUE!"}},null,null,null,null,null,null,null,"FALTA",{"$f":"IF(AJ50=0,\"\",SUM(AC9:AD48))","v":{"$error":"#VALUE!"}},{"$f":"IF(AJ50=0,\"\",AJ50)","v":{"$error":"#VALUE!"}},{"$f":"IF(AJ50=0,\"\",AK52/AL52)","v":{"$error":"#VALUE!"}}]
[null,"TOTAL",null,{"$f":"IF(D51=0,\" \",(SUM(D51,D52)))","v":" "},{"$f":"SUM(E51,E52)","v":0},null,null,null,{"$f":"IF(I51=\" \",\" \",(SUM(I51,I52)))","v":" "},null,null,null,null,null,null,"TOTAL",null,null,null,null,null,null,{"$f":"IF(AJ50=0,\"\",SUM(W51:AA52))","v":{"$error":"#VALUE!"}},null,null,null,null,{"$f":"IF(AJ50=0,\"\",SUM(AB51:AD52))","v":{"$error":"#VALUE!"}},null,null,null,null,null,null,null,null,null,null,{"$f":"SUM(AM51:AM52)","v":{"$error":"#VALUE!"}}]

{"sheet":"MARZO","index":9,"n_rows":53,"n_cols":53,"rows_kept":53,"cut":false,"hidden":false,"merged":[[4,0,4,1],[4,2,4,23],[4,24,4,27],[4,28,4,31],[5,0,5,31],[6,0,7,0],[6,1,7,3],[6,28,7,28],[6,29,7,29],[6,30,7,30],[0,33,0,34],[1,0,1,31],[2,0,2,31],[3,0,3,2],[3,3,3,12],[3,24,3,27],[3,28,3,31],[0,0,0,31],[16,37,18,39],[17,1,17,4],[18,1,18,4],[19,1,19,4],[6,31,7,31],[8,1,8,4],[8,33,47,33],[9,1,9,4],[10,1,10,4],[11,1,11,4],[12,1,12,4],[13,1,13,4],[14,1,14,4],[15,1,15,4],[16,1,16,4],[19,37,19,39],[21,37,21,39],[22,1,22,4],[22,37,22,39],[20,1,20,4],[20,37,20,39],[21,1,21,4],[23,37,23,39],[24,1,24,4],[24,37,24,39],[25,1,25,4],[25,37,25,39],[23,1,23,4],[26,37,26,39],[35,1,35,4],[27,1,27,4],[27,37,27,39],[28,1,28,4],[28,37,28,39],[29,1,29,4],[29,37,29,39],[30,1,30,4],[31,1,31,4],[32,1,32,4],[33,1,33,4],[34,1,34,4],[26,1,26,4],[47,1,47,4],[36,1,36,4],[37,1,37,4],[38,1,38,4],[39,1,39,4],[40,1,40,4],[41,1,41,4],[42,1,42,4],[43,1,43,4],[44,1,44,4],[45,1,45,4],[46,1,46,4],[49,4,49,7],[50,4,50,7],[51,4,51,7],[52,1,52,2],[52,8,52,10],[52,4,52,7],[52,15,52,21],[52,22,52,26],[48,33,56,33],[49,8,49,10],[49,22,49,26],[49,27,49,29],[50,8,50,10],[50,15,50,21],[50,22,50,26],[50,27,50,29],[51,8,51,10],[51,15,51,21],[51,22,51,26],[51,27,51,29],[52,27,52,29]]}
[null,null,null,null,null,null,null,null,null,null,null,null,null,null,null,null,null,null,null,null,null,null,null,null,null,null,null,null,null,null,null,null,null,"ASISTENCIAS E INASISTENCIAS",null,"AZUL"]
[null,null,null,null,null,null,null,null,null,null,null,null,null,null,null,null,null,null,null,null,null,null,null,null,null,null,null,null,null,null,null,null,null,"Presente","P"]
[{"$f":"AL21","v":"REGISTRO DE ASISTENCIA MARZO  2019"},null,null,null,null,null,null,null,null,null,null,null,null,null,null,null,null,null,null,null,null,null,null,null,null,null,null,null,null,null,null,null,null,"Atraso","A"]
[{"$f":"+UPPER(CARATULA!C21)","v":"MAESTRA (O):"},null,null,{"$f":"CARATULA!E21","v":0},null,null,null,null,null,null,null,null,null,null,null,null,null,null,null,null,null,null,null,null,"TURNO: ",null,null,null,{"$f":"CARATULA!E14","v":0},null,null,null,null,"falta con licencia","F"]
["NIVEL:",null,{"$f":"CARATULA!E22","v":0},null,null,null,null,null,null,null,null,null,null,null,null,null,null,null,null,null,null,null,null,null,"PARALELO:",null,null,null,{"$f":"CARATULA!E15","v":0},null,null,null,null,"Falta sin licencia","L"]
[{"$f":"+CONCATENATE(\"AÑO DE ESCOLARIDAD:  \",CARATULA!E23)","v":"AÑO DE ESCOLARIDAD:  "}]
["Nº","NÓMINA",null,null,"DÍA","V","L","M","M","J","V","L","M","M","J","V","L","M","M","J","V","L",{"$f":"IF(G8=7,\"\",\"M\")","v":"M"},"M","J","V",null,null,"LICENCIA (L)","FALTA (F)","ATRASO (A)","PRESENTE=DÍAS TRABAJAOS",null,"dias materias tecnicas",0]
[null,null,null,null,"FECHA",1,{"$f":"+F8+3","v":4},{"$f":"G8+1","v":5},{"$f":"H8+1","v":6},{"$f":"I8+1","v":7},{"$f":"J8+1","v":8},{"$f":"K8+3","v":11},{"$f":"L8+1","v":12},{"$f":"M8+1","v":13},{"$f":"N8+1","v":14},{"$f":"O8+1","v":15},{"$f":"P8+3","v":18},{"$f":"Q8+1","v":19},{"$f":"R8+1","v":20},{"$f":"S8+1","v":21},{"$f":"T8+1","v":22},{"$f":"U8+3","v":25},{"$f":"V8+1","v":26},{"$f":"W8+1","v":27},{"$f":"X8+1","v":28},{"$f":"Y8+1","v":29}]
[1,{"$f":"IF(FILIACION_ESTUDIANTE!D8=0,\"\",FILIACION_PPFF!B7)","v":""},null,null,null,null,null,null,null,null,null,null,null,null,null,null,null,null,null,null,null,null,null,null,null,null,null,null,{"$f":"IF((COUNTBLANK(F9:AB9))>=23,\" \",(COUNTIF((F9:AB9),$AI$5)))","v":" "},{"$f":"IF((COUNTBLANK(F9:AB9))>=23,\" \",(COUNTIF((F9:AB9),$AI$4)))","v":" "},{"$f":"IF((COUNTBLANK(F9:AB9))>=23,\" \",(COUNTIF((F9:AB9),$AI$3)))","v":" "},{"$f":"IF(COUNTBLANK(F9:AB9)>=23,\" \",(COUNTIF((F9:AB9),$AI$2)+AE9+$AI$7))","v":" "},null,"MARZO"]
[2,{"$f":"IF(FILIACION_ESTUDIANTE!D9=0,\"\",FILIACION_PPFF!B8)","v":""},null,null,null,null,null,null,null,null,null,null,null,null,null,null,null,null,null,null,null,null,null,null,null,null,null,null," "," "," "," "]
[3,{"$f":"IF(FILIACION_ESTUDIANTE!D10=0,\"\",FILIACION_PPFF!B9)","v":""},null,null,null,null,null,null,null,null,null,null,null,null,null,null,null,null,null,null,null,null,null,null,null,null,null,null," "," "," "," "]
[4,{"$f":"IF(FILIACION_ESTUDIANTE!D11=0,\"\",FILIACION_PPFF!B10)","v":""},null,null,null,null,null,null,null,null,null,null,null,null,null,null,null,null,null,null,null,null,null,null,null,null,null,null," "," "," "," ",null,null,null,null,null,null,null,null,null,null,null,null,null,null,null,null,null,null,null,{"$f":"ISLOGICAL((#REF!))","v":false},1]
[5,{"$f":"IF(FILIACION_ESTUDIANTE!D12=0,\"\",FILIACION_PPFF!B11)","v":""},null,null,null,null,null,null,null,null,null,null,null,null,null,null,null,null,null,null,null,null,null,null,null,null,null,null," "," "," "," ",null,null,null,null,null,null,null,null,null,null,null,null,null,null,null,null,null,null,null,null,"A"]
[6,{"$f":"IF(FILIACION_ESTUDIANTE!D13=0,\"\",FILIACION_PPFF!B12)","v":""},null,null,null,null,null,null,null,null,null,null,null,null,null,null,null,null,null,null,null,null,null,null,null,null,null,null," "," "," "," ",null,null,null,null,null,null,null,null,null,null,null,null,null,null,null,null,null,null,{"$f":"ISTEXT(#REF!)","v":false}]
[7,{"$f":"IF(FILIACION_ESTUDIANTE!D14=0,\"\",FILIACION_PPFF!B13)","v":""},null,null,null,null,null,null,null,null,null,null,null,null,null,null,null,null,null,null,null,null,null,null,null,null,null,null," "," "," "," ",null,null,null,null,null,null,null,null,null,null,null,null,null,null,null,null,null,null,null,null,"a"]
[8,{"$f":"IF(FILIACION_ESTUDIANTE!D15=0,\"\",FILIACION_PPFF!B14)","v":""},null,null,null,null,null,null,null,null,null,null,null,null,null,null,null,null,null,null,null,null,null,null,null,null,null,null," "," "," "," ",null,null,null,null,null,null,null,null,null,null,null,null,null,null,null,null,null,null,null,null,"a"]
[9,{"$f":"IF(FILIACION_ESTUDIANTE!D16=0,\"\",FILIACION_PPFF!B15)","v":""},null,null,null,null,null,null,null,null,null,null,null,null,null,null,null,null,null,null,null,null,null,null,null,null,null,null," "," "," "," ",null,null,null,null,null,"ENCABEZADO DE LOS FORMULARIOS DE CONTROL DE ASISTENCIA",null,null,null,null,null,null,null,null,null,null,null,{"$f":"MONTH(AX18)","v":2},null,null,"f"]
[10,{"$f":"IF(FILIACION_ESTUDIANTE!D17=0,\"\",FILIACION_PPFF!B16)","v":""},null,null,null,null,null,null,null,null,null,null,null,null,null,null,null,null,null,null,null,null,null,null,null,null,null,null," "," "," "," ",null,null,null,null,null,null,null,null,null,null,null,null,null,null,null,null,null,"2010-02-01",null,null,"f"]
[11,{"$f":"IF(FILIACION_ESTUDIANTE!D18=0,\"\",FILIACION_PPFF!B17)","v":""},null,null,null,null,null,null,null,null,null,null,null,null,null,null,null,null,null,null,null,null,null,null,null,null,null,null," "," "," "," ",null,null,null,null,null,null,null,null,null,null,null,null,null,null,null,null,null,null,null,null,"f"]
[12,{"$f":"IF(FILIACION_ESTUDIANTE!D19=0,\"\",FILIACION_PPFF!B18)","v":""},null,null,null,null,null,null,null,null,null,null,null,null,null,null,null,null,null,null,null,null,null,null,null,null,null,null," "," "," "," ",null,null,null,null,null,{"$f":"CONCATENATE(AO20,\" \",AP20)","v":"REGISTRO DE ASISTENCIA FEBRERO  2019"},null,null,"REGISTRO DE ASISTENCIA FEBRERO ",{"$f":"CARATULA!F27","v":2019},null,null,null,null,null,null,null,null,null,null,"p"]
[13,{"$f":"IF(FILIACION_ESTUDIANTE!D20=0,\"\",FILIACION_PPFF!B19)","v":""},null,null,null,null,null,null,null,null,null,null,null,null,null,null,null,null,null,null,null,null,null,null,null,null,null,null," "," "," "," ",null,null,null,null,null,{"$f":"CONCATENATE(AO21,\" \",AP21)","v":"REGISTRO DE ASISTENCIA MARZO  2019"},null,null,"REGISTRO DE ASISTENCIA MARZO ",{"$f":"AP20","v":2019},null,null,null,null,null,null,null,null,null,null,"y"]
[14,{"$f":"IF(FILIACION_ESTUDIANTE!D21=0,\"\",FILIACION_PPFF!B20)","v":""},null,null,null,null,null,null,null,null,null,null,null,null,null,null,null,null,null,null,null,null,null,null,null,null,null,null," "," "," "," ",null,null,null,null,null,"REGISTRO DE ASISTENCIA ABRIL  2019",null,null,"REGISTRO DE ASISTENCIA ABRIL ",{"$f":"AP21","v":2019},null,null,null,null,null,null,null,null,null,null,"a"]
[15,{"$f":"IF(FILIACION_ESTUDIANTE!D22=0,\"\",FILIACION_PPFF!B21)","v":""},null,null,null,null,null,null,null,null,null,null,null,null,null,null,null,null,null,null,null,null,null,null,null,null,null,null," "," "," "," ",null,null,null,null,null,"REGISTRO DE ASISTENCIA MAYO  2019",null,null,"REGISTRO DE ASISTENCIA MAYO ",{"$f":"AP22","v":2019},null,null,null,null,null,null,null,null,null,null,"a"]
[16,{"$f":"IF(FILIACION_ESTUDIANTE!D23=0,\"\",FILIACION_PPFF!B22)","v":""},null,null,null,null,null,null,null,null,null,null,null,null,null,null,null,null,null,null,null,null,null,null,null,null,null,null," "," "," "," ",null,null,null,null,null,"REGISTRO DE ASISTENCIA JUNIO  2019",null,null,"REGISTRO DE ASISTENCIA JUNIO ",2019,null,null,null,null,null,null,null,null,null,null,"a"]
[17,{"$f":"IF(FILIACION_ESTUDIANTE!D24=0,\"\",FILIACION_PPFF!B23)","v":""},null,null,null,null,null,null,null,null,null,null,null,null,null,null,null,null,null,null,null,null,null,null,null,null,null,null," "," "," "," ",null,null,null,null,null,"REGISTRO DE ASISTENCIA JULIO  2019",null,null,"REGISTRO DE ASISTENCIA JULIO ",2019,null,null,null,null,null,null,null,null,null,null,"a"]
[18,{"$f":"IF(FILIACION_ESTUDIANTE!D25=0,\"\",FILIACION_PPFF!B24)","v":""},null,null,null,null,null,null,null,null,null,null,null,null,null,null,null,null,null,null,null,null,null,null,null,null,null,null," "," "," "," ",null,null,null,null,null,"REGISTRO DE ASISTENCIA AGOSTO  2019",null,null,"REGISTRO DE ASISTENCIA AGOSTO ",2019,null,null,null,null,null,null,null,null,null,null,"a"]
[19,{"$f":"IF(FILIACION_ESTUDIANTE!D26=0,\"\",FILIACION_PPFF!B25)","v":""},null,null,null,null,null,null,null,null,null,null,null,null,null,null,null,null,null,null,null,null,null,null,null,null,null,null," "," "," "," ",null,null,null,null,null,"REGISTRO DE ASISTENCIA SEPTIEMBRE  2019",null,null,"REGISTRO DE ASISTENCIA SEPTIEMBRE ",2019,null,null,null,null,null,null,null,null,null,null,"a"]
[20,{"$f":"IF(FILIACION_ESTUDIANTE!D27=0,\"\",FILIACION_PPFF!B26)","v":""},null,null,null,null,null,null,null,null,null,null,null,null,null,null,null,null,null,null,null,null,null,null,null,null,null,null," "," "," "," ",null,null,null,null,null,"REGISTRO DE ASISTENCIA OCTUBRE  2019",null,null,"REGISTRO DE ASISTENCIA OCTUBRE ",2019,null,null,null,null,null,null,null,null,null,null,"f"]
[21,{"$f":"IF(FILIACION_ESTUDIANTE!D28=0,\"\",FILIACION_PPFF!B27)","v":""},null,null,null,null,null,null,null,null,null,null,null,null,null,null,null,null,null,null,null,null,null,null,null,null,null,null," "," "," "," ",null,null,null,null,null,"REGISTRO DE ASISTENCIA NOVIEMBRE  2019",null,null,"REGISTRO DE ASISTENCIA NOVIEMBRE ",2019,null,null,null,null,null,null,null,null,null,null,"p"]
[22,{"$f":"IF(FILIACION_ESTUDIANTE!D29=0,\"\",FILIACION_PPFF!B28)","v":""},null,null,null,null,null,null,null,null,null,null,null,null,null,null,null,null,null,null,null,null,null,null,null,null,null,null," "," "," "," ",null,null,null,null,null,"REGISTRO DE ASISTENCIA DICIEMBRE  2019",null,null,"REGISTRO DE ASISTENCIA DICIEMBRE ",2019,null,null,null,null,null,null,null,null,null,null,"M"]
[23,{"$f":"IF(FILIACION_ESTUDIANTE!D30=0,\"\",FILIACION_PPFF!B29)","v":""},null,null,null,null,null,null,null,null,null,null,null,null,null,null,null,null,null,null,null,null,null,null,null,null,null,null," "," "," "," "]
[24,{"$f":"IF(FILIACION_ESTUDIANTE!D31=0,\"\",FILIACION_PPFF!B30)","v":""},null,null,null,null,null,null,null,null,null,null,null,null,null,null,null,null,null,null,null,null,null,null,null,null,null,null," "," "," "," ",null,null,null,null,null,null,null,null,null,null,null,null,null,null,null,null,null,null,null,null,"M"]
[25,{"$f":"IF(FILIACION_ESTUDIANTE!D32=0,\"\",FILIACION_PPFF!B31)","v":""},null,null,null,null,null,null,null,null,null,null,null,null,null,null,null,null,null,null,null,null,null,null,null,null,null,null," "," "," "," ",null,null,null,null,null,null,null,null,null,null,null,null,null,null,null,null,null,null,null,null,"M"]
[26,{"$f":"IF(FILIACION_ESTUDIANTE!D33=0,\"\",FILIACION_PPFF!B32)","v":""},null,null,null,null,null,null,null,null,null,null,null,null,null,null,null,null,null,null,null,null,null,null,null,null,null,null," "," "," "," ",null,null,null,null,null,null,null,null,null,null,null,null,null,null,null,null,null,null,null,null,"M"]
[27,{"$f":"IF(FILIACION_ESTUDIANTE!D34=0,\"\",FILIACION_PPFF!B33)","v":""},null,null,null,null,null,null,null,null,null,null,null,null,null,null,null,null,null,null,null,null,null,null,null,null,null,null," "," "," "," ",null,null,null,null,null,null,null,null,null,null,null,null,null,null,null,null,null,null,null,null,"M"]
[28,{"$f":"IF(FILIACION_ESTUDIANTE!D35=0,\"\",FILIACION_PPFF!B34)","v":""},null,null,null,null,null,null,null,null,null,null,null,null,null,null,null,null,null,null,null,null,null,null,null,null,null,null," "," "," "," ",null,null,null,null,null,null,null,null,null,null,null,null,null,null,null,null,null,null,null,null,"M"]
[29,{"$f":"IF(FILIACION_ESTUDIANTE!D36=0,\"\",FILIACION_PPFF!B35)","v":""},null,null,null,null,null,null,null,null,null,null,null,null,null,null,null,null,null,null,null,null,null,null,null,null,null,null," "," "," "," "]
[30,{"$f":"IF(FILIACION_ESTUDIANTE!D37=0,\"\",FILIACION_PPFF!B36)","v":""},null,null,null,null,null,null,null,null,null,null,null,null,null,null,null,null,null,null,null,null,null,null,null,null,null,null," "," "," "," "]
[31,{"$f":"IF(FILIACION_ESTUDIANTE!D38=0,\"\",FILIACION_PPFF!B37)","v":""},null,null,null,null,null,null,null,null,null,null,null,null,null,null,null,null,null,null,null,null,null,null,null,null,null,null," "," "," "," ",null,null,null,null,null,null,null,null,null,null,null,null,null,null,null,null,null,null,null,null,"M"]
[32,{"$f":"IF(FILIACION_ESTUDIANTE!D39=0,\"\",FILIACION_PPFF!B38)","v":""},null,null,null,null,null,null,null,null,null,null,null,null,null,null,null,null,null,null,null,null,null,null,null,null,null,null," "," "," "," ",null,null,null,null,null,null,null,null,null,null,null,null,null,null,null,null,null,null,null,null,"M"]
[33,{"$f":"IF(FILIACION_ESTUDIANTE!D40=0,\"\",FILIACION_PPFF!B39)","v":""},null,null,null,null,null,null,null,null,null,null,null,null,null,null,null,null,null,null,null,null,null,null,null,null,null,null," "," "," "," "]
[34,{"$f":"IF(FILIACION_ESTUDIANTE!D41=0,\"\",FILIACION_PPFF!B40)","v":""},null,null,null,null,null,null,null,null,null,null,null,null,null,null,null,null,null,null,null,null,null,null,null,null,null,null," "," "," "," "]
[35,{"$f":"IF(FILIACION_ESTUDIANTE!D42=0,\"\",FILIACION_PPFF!B41)","v":""},null,null,null,null,null,null,null,null,null,null,null,null,null,null,null,null,null,null,null,null,null,null,null,null,null,null," "," "," "," "]
[36,{"$f":"IF(FILIACION_ESTUDIANTE!D43=0,\"\",FILIACION_PPFF!B42)","v":""},null,null,null,null,null,null,null,null,null,null,null,null,null,null,null,null,null,null,null,null,null,null,null,null,null,null," "," "," "," "]
[37,{"$f":"IF(FILIACION_ESTUDIANTE!D44=0,\"\",FILIACION_PPFF!B43)","v":""},null,null,null,null,null,null,null,null,null,null,null,null,null,null,null,null,null,null,null,null,null,null,null,null,null,null," "," "," "," "]
[38,{"$f":"IF(FILIACION_ESTUDIANTE!D45=0,\"\",FILIACION_PPFF!B44)","v":""},null,null,null,null,null,null,null,null,null,null,null,null,null,null,null,null,null,null,null,null,null,null,null,null,null,null," "," "," "," "]
[39,{"$f":"IF(FILIACION_ESTUDIANTE!D46=0,\"\",FILIACION_PPFF!B45)","v":""},null,null,null,null,null,null,null,null,null,null,null,null,null,null,null,null,null,null,null,null,null,null,null,null,null,null," "," "," "," "]
[40,{"$f":"IF(FILIACION_ESTUDIANTE!D47=0,\"\",FILIACION_PPFF!B46)","v":""},null,null,null,null,null,null,null,null,null,null,null,null,null,null,null,null,null,null,null,null,null,null,null,null,null,null," "," "," "," "]
[]
[null,null,null,"INSCRITOS","NO INCORPORADO",null,null,null,"EFECTIVOS",null,null,null,null,null,null,null,null,null,null,null,null,null,"PROMEDIO",null,null,null,null,"%",null,null,null,null,null,null,null,{"$f":"(SUM(AF9:AF48,AC9:AD48)/D53)","v":{"$error":"#VALUE!"}},"SUMATORIA","DIAS TRAB","PROMEDIO"]
[null,"VARONES",null,{"$f":"COUNTIF(FILIACION_ESTUDIANTE!J8:J47,\"M\")","v":0},0,null,null,null,{"$f":"IF(D51=0,\" \",(D51-E51-G51))","v":" "},null,null,null,null,null,null,"ASISTENCIA",null,null,null,null,null,null,{"$f":"IF(AJ50=0,\"\",ROUND(AM51-G53,0))","v":{"$error":"#VALUE!"}},null,null,null,null,{"$f":"IF(AJ50=0,\"\",ROUND((100*W51)/W53,0))","v":{"$error":"#VALUE!"}},null,null,null,null,null,null,null,"PRESENTE",{"$f":"IF(AJ50=0,\"\",SUM(AE9:AF48))","v":{"$error":"#VALUE!"}},{"$f":"IF(AJ50=0,\"\",AJ50)","v":{"$error":"#VALUE!"}},{"$f":"IF(AJ50=0,\"\",AK51/AL51)","v":{"$error":"#VALUE!"}}]
[null,"MUJERES",null,{"$f":"COUNTIF(FILIACION_ESTUDIANTE!J8:J47,\"F\")","v":0},0,null,null,null,{"$f":"IF(D52=0,\" \",(D52-E52-G52))","v":" "},null,null,null,null,null,null,"FALTA",null,null,null,null,null,null,{"$f":"IF(AJ50=0,\"\",ROUND(AM52,0))","v":{"$error":"#VALUE!"}},null,null,null,null,{"$f":"IF(AJ50=0,\"\",ROUND((100*W52)/W53,0))","v":{"$error":"#VALUE!"}},null,null,null,null,null,null,null,"FALTA",{"$f":"IF(AJ50=0,\"\",SUM(AC9:AD48))","v":{"$error":"#VALUE!"}},{"$f":"IF(AJ50=0,\"\",AJ50)","v":{"$error":"#VALUE!"}},{"$f":"IF(AJ50=0,\"\",AK52/AL52)","v":{"$error":"#VALUE!"}}]
[null,"TOTAL",null,{"$f":"IF(D51=0,\" \",(SUM(D51,D52)))","v":" "},{"$f":"SUM(E51,E52)","v":0},null,null,null,{"$f":"IF(I51=\" \",\" \",(SUM(I51,I52)))","v":" "},null,null,null,null,null,null,"TOTAL",null,null,null,null,null,null,{"$f":"IF(AJ50=0,\"\",SUM(W51:AA52))","v":{"$error":"#VALUE!"}},null,null,null,null,{"$f":"IF(AJ50=0,\"\",SUM(AB51:AD52))","v":{"$error":"#VALUE!"}},null,null,null,null,null,null,null,null,null,null,{"$f":"SUM(AM51:AM52)","v":{"$error":"#VALUE!"}}]

{"sheet":"ABRIL","index":10,"n_rows":53,"n_cols":59,"rows_kept":53,"cut":false,"hidden":false,"merged":[[4,0,4,1],[4,2,4,23],[4,24,4,27],[4,28,4,31],[5,0,5,31],[6,0,7,0],[6,1,7,3],[6,28,7,28],[6,29,7,29],[6,30,7,30],[0,33,0,34],[1,0,1,31],[2,0,2,31],[3,0,3,2],[3,3,3,12],[3,24,3,27],[3,28,3,31],[0,0,0,31],[16,37,18,39],[17,1,17,4],[18,1,18,4],[19,1,19,4],[6,31,7,31],[8,1,8,4],[8,33,47,33],[9,1,9,4],[10,1,10,4],[11,1,11,4],[12,1,12,4],[13,1,13,4],[14,1,14,4],[15,1,15,4],[16,1,16,4],[19,37,19,39],[21,37,21,39],[22,1,22,4],[22,37,22,39],[20,1,20,4],[20,37,20,39],[21,1,21,4],[23,37,23,39],[24,1,24,4],[24,37,24,39],[25,1,25,4],[25,37,25,39],[23,1,23,4],[26,37,26,39],[35,1,35,4],[27,1,27,4],[27,37,27,39],[28,1,28,4],[28,37,28,39],[29,1,29,4],[29,37,29,39],[30,1,30,4],[31,1,31,4],[32,1,32,4],[33,1,33,4],[34,1,34,4],[26,1,26,4],[47,1,47,4],[36,1,36,4],[37,1,37,4],[38,1,38,4],[39,1,39,4],[40,1,40,4],[41,1,41,4],[42,1,42,4],[43,1,43,4],[44,1,44,4],[45,1,45,4],[46,1,46,4],[49,4,49,7],[50,4,50,7],[51,4,51,7],[52,1,52,2],[52,8,52,10],[52,4,52,7],[52,15,52,21],[52,22,52,26],[48,33,56,33],[49,8,49,10],[49,22,49,26],[49,27,49,29],[50,8,50,10],[50,15,50,21],[50,22,50,26],[50,27,50,29],[51,8,51,10],[51,15,51,21],[51,22,51,26],[51,27,51,29],[52,27,52,29]]}
[null,null,null,null,null,null,null,null,null,null,null,null,null,null,null,null,null,null,null,null,null,null,null,null,null,null,null,null,null,null,null,null,null,"ASISTENCIAS E INASISTENCIAS",null,"AZUL"]
[null,null,null,null,null,null,null,null,null,null,null,null,null,null,null,null,null,null,null,null,null,null,null,null,null,null,null,null,null,null,null,null,null,"Presente","P"]
[{"$f":"AL22","v":"REGISTRO DE ASISTENCIA ABRIL  2019"},null,null,null,null,null,null,null,null,null,null,null,null,null,null,null,null,null,null,null,null,null,null,null,null,null,null,null,null,null,null,null,null,"Atraso","A"]
[{"$f":"+UPPER(CARATULA!C21)","v":"MAESTRA (O):"},null,null,{"$f":"CARATULA!E21","v":0},null,null,null,null,null,null,null,null,null,null,null,null,null,null,null,null,null,null,null,null,"TURNO: ",null,null,null,{"$f":"CARATULA!E14","v":0},null,null,null,null,"falta con licencia","F"]
["NIVEL:",null,{"$f":"CARATULA!E22","v":0},null,null,null,null,null,null,null,null,null,null,null,null,null,null,null,null,null,null,null,null,null,"PARALELO:",null,null,null,{"$f":"CARATULA!E15","v":0},null,null,null,null,"Falta sin licencia","L"]
[{"$f":"+CONCATENATE(\"AÑO DE ESCOLARIDAD:  \",CARATULA!E23)","v":"AÑO DE ESCOLARIDAD:  "}]
["Nº","NÓMINA",null,null,"DÍA","L","M","M","J","V","L","M","M","J","V","L","M","M","J","V","L",{"$f":"IF(F8=7,\"\",\"M\")","v":"M"},{"$f":"IF(V8>27,\"\",\"M\")","v":"M"},{"$f":"IF(W8>27,\"\",\"J\")","v":"J"},{"$f":"IF(X8>27,\"\",\"V\")","v":"V"},"L",{"$f":"IF(K8=7,\"\",\"M\")","v":"M"},null,"LICENCIA (L)","FALTA (F)","ATRASO (A)","PRESENTE=DÍAS TRABAJAOS",null,"dias materias tecnicas",0]
[null,null,null,null,"FECHA",1,{"$f":"F8+1","v":2},{"$f":"G8+1","v":3},{"$f":"H8+1","v":4},{"$f":"I8+1","v":5},{"$f":"J8+3","v":8},{"$f":"K8+1","v":9},{"$f":"L8+1","v":10},{"$f":"M8+1","v":11},{"$f":"N8+1","v":12},{"$f":"O8+3","v":15},{"$f":"P8+1","v":16},{"$f":"Q8+1","v":17},{"$f":"R8+1","v":18},{"$f":"S8+1","v":19},{"$f":"T8+3","v":22},{"$f":"U8+1","v":23},24,25,26,{"$f":"Y8+3","v":29},30,{"$f":"IF($AH$9=\"FEBRERO\",\"\",AA8+1)","v":31}]
[1,{"$f":"IF(FILIACION_ESTUDIANTE!D8=0,\"\",FILIACION_PPFF!B7)","v":""},null,null,null,null,null,null,null,null,null,null,null,null,null,null,null,null,null,null,null,null,null,null,null,null,null,null,{"$f":"IF((COUNTBLANK(F9:AB9))>=23,\" \",(COUNTIF((F9:AB9),$AI$5)))","v":" "},{"$f":"IF((COUNTBLANK(F9:AB9))>=23,\" \",(COUNTIF((F9:AB9),$AI$4)))","v":" "},{"$f":"IF((COUNTBLANK(F9:AB9))>=23,\" \",(COUNTIF((F9:AB9),$AI$3)))","v":" "},{"$f":"IF(COUNTBLANK(F9:AB9)>=23,\" \",(COUNTIF((F9:AB9),$AI$2)+AE9+$AI$7))","v":" "},null,"ABRIL"]
[2,{"$f":"IF(FILIACION_ESTUDIANTE!D9=0,\"\",FILIACION_PPFF!B8)","v":""},null,null,null,null,null,null,null,null,null,null,null,null,null,null,null,null,null,null,null,null,null,null,null,null,null,null," "," "," "," "]
[3,{"$f":"IF(FILIACION_ESTUDIANTE!D10=0,\"\",FILIACION_PPFF!B9)","v":""},null,null,null,null,null,null,null,null,null,null,null,null,null,null,null,null,null,null,null,null,null,null,null,null,null,null," "," "," "," "]
[4,{"$f":"IF(FILIACION_ESTUDIANTE!D11=0,\"\",FILIACION_PPFF!B10)","v":""},null,null,null,null,null,null,null,null,null,null,null,null,null,null,null,null,null,null,null,null,null,null,null,null,null,null," "," "," "," ",null,null,null,null,null,null,null,null,null,null,null,null,null,null,null,null,null,null,null,{"$f":"ISLOGICAL((#REF!))","v":false},1]
[5,{"$f":"IF(FILIACION_ESTUDIANTE!D12=0,\"\",FILIACION_PPFF!B11)","v":""},null,null,null,null,null,null,null,null,null,null,null,null,null,null,null,null,null,null,null,null,null,null,null,null,null,null," "," "," "," ",null,null,null,null,null,null,null,null,null,null,null,null,null,null,null,null,null,null,null,null,"A"]
[6,{"$f":"IF(FILIACION_ESTUDIANTE!D13=0,\"\",FILIACION_PPFF!B12)","v":""},null,null,null,null,null,null,null,null,null,null,null,null,null,null,null,null,null,null,null,null,null,null,null,null,null,null," "," "," "," ",null,null,null,null,null,null,null,null,null,null,null,null,null,null,null,null,null,null,{"$f":"ISTEXT(#REF!)","v":false}]
[7,{"$f":"IF(FILIACION_ESTUDIANTE!D14=0,\"\",FILIACION_PPFF!B13)","v":""},null,null,null,null,null,null,null,null,null,null,null,null,null,null,null,null,null,null,null,null,null,null,null,null,null,null," "," "," "," ",null,null,null,null,null,null,null,null,null,null,null,null,null,null,null,null,null,null,null,null,"a"]
[8,{"$f":"IF(FILIACION_ESTUDIANTE!D15=0,\"\",FILIACION_PPFF!B14)","v":""},null,null,null,null,null,null,null,null,null,null,null,null,null,null,null,null,null,null,null,null,null,null,null,null,null,null," "," "," "," ",null,null,null,null,null,null,null,null,null,null,null,null,null,null,null,null,null,null,null,null,"a"]
[9,{"$f":"IF(FILIACION_ESTUDIANTE!D16=0,\"\",FILIACION_PPFF!B15)","v":""},null,null,null,null,null,null,null,null,null,null,null,null,null,null,null,null,null,null,null,null,null,null,null,null,null,null," "," "," "," ",null,null,null,null,null,"ENCABEZADO DE LOS FORMULARIOS DE CONTROL DE ASISTENCIA",null,null,null,null,null,null,null,null,null,null,null,{"$f":"MONTH(AX18)","v":2},null,null,"f"]
[10,{"$f":"IF(FILIACION_ESTUDIANTE!D17=0,\"\",FILIACION_PPFF!B16)","v":""},null,null,null,null,null,null,null,null,null,null,null,null,null,null,null,null,null,null,null,null,null,null,null,null,null,null," "," "," "," ",null,null,null,null,null,null,null,null,null,null,null,null,null,null,null,null,null,"2010-02-01",null,null,"f"]
[11,{"$f":"IF(FILIACION_ESTUDIANTE!D18=0,\"\",FILIACION_PPFF!B17)","v":""},null,null,null,null,null,null,null,null,null,null,null,null,null,null,null,null,null,null,null,null,null,null,null,null,null,null," "," "," "," ",null,null,null,null,null,null,null,null,null,null,null,null,null,null,null,null,null,null,null,null,"f"]
[12,{"$f":"IF(FILIACION_ESTUDIANTE!D19=0,\"\",FILIACION_PPFF!B18)","v":""},null,null,null,null,null,null,null,null,null,null,null,null,null,null,null,null,null,null,null,null,null,null,null,null,null,null," "," "," "," ",null,null,null,null,null,{"$f":"CONCATENATE(AO20,\" \",AP20)","v":"REGISTRO DE ASISTENCIA FEBRERO  2019"},null,null,"REGISTRO DE ASISTENCIA FEBRERO ",{"$f":"CARATULA!F27","v":2019},null,null,null,null,null,null,null,null,null,null,"p"]
[13,{"$f":"IF(FILIACION_ESTUDIANTE!D20=0,\"\",FILIACION_PPFF!B19)","v":""},null,null,null,null,null,null,null,null,null,null,null,null,null,null,null,null,null,null,null,null,null,null,null,null,null,null," "," "," "," ",null,null,null,null,null,{"$f":"CONCATENATE(AO21,\" \",AP21)","v":"REGISTRO DE ASISTENCIA MARZO  2019"},null,null,"REGISTRO DE ASISTENCIA MARZO ",{"$f":"AP20","v":2019},null,null,null,null,null,null,null,null,null,null,"y"]
[14,{"$f":"IF(FILIACION_ESTUDIANTE!D21=0,\"\",FILIACION_PPFF!B20)","v":""},null,null,null,null,null,null,null,null,null,null,null,null,null,null,null,null,null,null,null,null,null,null,null,null,null,null," "," "," "," ",null,null,null,null,null,"REGISTRO DE ASISTENCIA ABRIL  2019",null,null,"REGISTRO DE ASISTENCIA ABRIL ",{"$f":"AP21","v":2019},null,null,null,null,null,null,null,null,null,null,"a"]
[15,{"$f":"IF(FILIACION_ESTUDIANTE!D22=0,\"\",FILIACION_PPFF!B21)","v":""},null,null,null,null,null,null,null,null,null,null,null,null,null,null,null,null,null,null,null,null,null,null,null,null,null,null," "," "," "," ",null,null,null,null,null,"REGISTRO DE ASISTENCIA MAYO  2019",null,null,"REGISTRO DE ASISTENCIA MAYO ",{"$f":"AP22","v":2019},null,null,null,null,null,null,null,null,null,null,"a"]
[16,{"$f":"IF(FILIACION_ESTUDIANTE!D23=0,\"\",FILIACION_PPFF!B22)","v":""},null,null,null,null,null,null,null,null,null,null,null,null,null,null,null,null,null,null,null,null,null,null,null,null,null,null," "," "," "," ",null,null,null,null,null,"REGISTRO DE ASISTENCIA JUNIO  2019",null,null,"REGISTRO DE ASISTENCIA JUNIO ",2019,null,null,null,null,null,null,null,null,null,null,"a"]
[17,{"$f":"IF(FILIACION_ESTUDIANTE!D24=0,\"\",FILIACION_PPFF!B23)","v":""},null,null,null,null,null,null,null,null,null,null,null,null,null,null,null,null,null,null,null,null,null,null,null,null,null,null," "," "," "," ",null,null,null,null,null,"REGISTRO DE ASISTENCIA JULIO  2019",null,null,"REGISTRO DE ASISTENCIA JULIO ",2019,null,null,null,null,null,null,null,null,null,null,"a"]
[18,{"$f":"IF(FILIACION_ESTUDIANTE!D25=0,\"\",FILIACION_PPFF!B24)","v":""},null,null,null,null,null,null,null,null,null,null,null,null,null,null,null,null,null,null,null,null,null,null,null,null,null,null," "," "," "," ",null,null,null,null,null,"REGISTRO DE ASISTENCIA AGOSTO  2019",null,null,"REGISTRO DE ASISTENCIA AGOSTO ",2019,null,null,null,null,null,null,null,null,null,null,"a"]
[19,{"$f":"IF(FILIACION_ESTUDIANTE!D26=0,\"\",FILIACION_PPFF!B25)","v":""},null,null,null,null,null,null,null,null,null,null,null,null,null,null,null,null,null,null,null,null,null,null,null,null,null,null," "," "," "," ",null,null,null,null,null,"REGISTRO DE ASISTENCIA SEPTIEMBRE  2019",null,null,"REGISTRO DE ASISTENCIA SEPTIEMBRE ",2019,null,null,null,null,null,null,null,null,null,null,"a"]
[20,{"$f":"IF(FILIACION_ESTUDIANTE!D27=0,\"\",FILIACION_PPFF!B26)","v":""},null,null,null,null,null,null,null,null,null,null,null,null,null,null,null,null,null,null,null,null,null,null,null,null,null,null," "," "," "," ",null,null,null,null,null,"REGISTRO DE ASISTENCIA OCTUBRE  2019",null,null,"REGISTRO DE ASISTENCIA OCTUBRE ",2019,null,null,null,null,null,null,null,null,null,null,"f"]
[21,{"$f":"IF(FILIACION_ESTUDIANTE!D28=0,\"\",FILIACION_PPFF!B27)","v":""},null,null,null,null,null,null,null,null,null,null,null,null,null,null,null,null,null,null,null,null,null,null,null,null,null,null," "," "," "," ",null,null,null,null,null,"REGISTRO DE ASISTENCIA NOVIEMBRE  2019",null,null,"REGISTRO DE ASISTENCIA NOVIEMBRE ",2019,null,null,null,null,null,null,null,null,null,null,"p"]
[22,{"$f":"IF(FILIACION_ESTUDIANTE!D29=0,\"\",FILIACION_PPFF!B28)","v":""},null,null,null,null,null,null,null,null,null,null,null,null,null,null,null,null,null,null,null,null,null,null,null,null,null,null," "," "," "," ",null,null,null,null,null,"REGISTRO DE ASISTENCIA DICIEMBRE  2019",null,null,"REGISTRO DE ASISTENCIA DICIEMBRE ",2019,null,null,null,null,null,null,null,null,null,null,"M"]
[23,{"$f":"IF(FILIACION_ESTUDIANTE!D30=0,\"\",FILIACION_PPFF!B29)","v":""},null,null,null,null,null,null,null,null,null,null,null,null,null,null,null,null,null,null,null,null,null,null,null,null,null,null," "," "," "," "]
[24,{"$f":"IF(FILIACION_ESTUDIANTE!D31=0,\"\",FILIACION_PPFF!B30)","v":""},null,null,null,null,null,null,null,null,null,null,null,null,null,null,null,null,null,null,null,null,null,null,null,null,null,null," "," "," "," ",null,null,null,null,null,null,null,null,null,null,null,null,null,null,null,null,null,null,null,null,"M"]
[25,{"$f":"IF(FILIACION_ESTUDIANTE!D32=0,\"\",FILIACION_PPFF!B31)","v":""},null,null,null,null,null,null,null,null,null,null,null,null,null,null,null,null,null,null,null,null,null,null,null,null,null,null," "," "," "," ",null,null,null,null,null,null,null,null,null,null,null,null,null,null,null,null,null,null,null,null,"M",null,null,null,null,null,{"$f":"CARATULA!E15","v":0}]
[26,{"$f":"IF(FILIACION_ESTUDIANTE!D33=0,\"\",FILIACION_PPFF!B32)","v":""},null,null,null,null,null,null,null,null,null,null,null,null,null,null,null,null,null,null,null,null,null,null,null,null,null,null," "," "," "," ",null,null,null,null,null,null,null,null,null,null,null,null,null,null,null,null,null,null,null,null,"M"]
[27,{"$f":"IF(FILIACION_ESTUDIANTE!D34=0,\"\",FILIACION_PPFF!B33)","v":""},null,null,null,null,null,null,null,null,null,null,null,null,null,null,null,null,null,null,null,null,null,null,null,null,null,null," "," "," "," ",null,null,null,null,null,null,null,null,null,null,null,null,null,null,null,null,null,null,null,null,"M"]
[28,{"$f":"IF(FILIACION_ESTUDIANTE!D35=0,\"\",FILIACION_PPFF!B34)","v":""},null,null,null,null,null,null,null,null,null,null,null,null,null,null,null,null,null,null,null,null,null,null,null,null,null,null," "," "," "," ",null,null,null,null,null,null,null,null,null,null,null,null,null,null,null,null,null,null,null,null,"M"]
[29,{"$f":"IF(FILIACION_ESTUDIANTE!D36=0,\"\",FILIACION_PPFF!B35)","v":""},null,null,null,null,null,null,null,null,null,null,null,null,null,null,null,null,null,null,null,null,null,null,null,null,null,null," "," "," "," "]
[30,{"$f":"IF(FILIACION_ESTUDIANTE!D37=0,\"\",FILIACION_PPFF!B36)","v":""},null,null,null,null,null,null,null,null,null,null,null,null,null,null,null,null,null,null,null,null,null,null,null,null,null,null," "," "," "," "]
[31,{"$f":"IF(FILIACION_ESTUDIANTE!D38=0,\"\",FILIACION_PPFF!B37)","v":""},null,null,null,null,null,null,null,null,null,null,null,null,null,null,null,null,null,null,null,null,null,null,null,null,null,null," "," "," "," ",null,null,null,null,null,null,null,null,null,null,null,null,null,null,null,null,null,null,null,null,"M"]
[32,{"$f":"IF(FILIACION_ESTUDIANTE!D39=0,\"\",FILIACION_PPFF!B38)","v":""},null,null,null,null,null,null,null,null,null,null,null,null,null,null,null,null,null,null,null,null,null,null,null,null,null,null," "," "," "," ",null,null,null,null,null,null,null,null,null,null,null,null,null,null,null,null,null,null,null,null,"M"]
[33,{"$f":"IF(FILIACION_ESTUDIANTE!D40=0,\"\",FILIACION_PPFF!B39)","v":""},null,null,null,null,null,null,null,null,null,null,null,null,null,null,null,null,null,null,null,null,null,null,null,null,null,null," "," "," "," "]
[34,{"$f":"IF(FILIACION_ESTUDIANTE!D41=0,\"\",FILIACION_PPFF!B40)","v":""},null,null,null,null,null,null,null,null,null,null,null,null,null,null,null,null,null,null,null,null,null,null,null,null,null,null," "," "," "," "]
[35,{"$f":"IF(FILIACION_ESTUDIANTE!D42=0,\"\",FILIACION_PPFF!B41)","v":""},null,null,null,null,null,null,null,null,null,null,null,null,null,null,null,null,null,null,null,null,null,null,null,null,null,null," "," "," "," "]
[36,{"$f":"IF(FILIACION_ESTUDIANTE!D43=0,\"\",FILIACION_PPFF!B42)","v":""},null,null,null,null,null,null,null,null,null,null,null,null,null,null,null,null,null,null,null,null,null,null,null,null,null,null," "," "," "," "]
[37,{"$f":"IF(FILIACION_ESTUDIANTE!D44=0,\"\",FILIACION_PPFF!B43)","v":""},null,null,null,null,null,null,null,null,null,null,null,null,null,null,null,null,null,null,null,null,null,null,null,null,null,null," "," "," "," "]
[38,{"$f":"IF(FILIACION_ESTUDIANTE!D45=0,\"\",FILIACION_PPFF!B44)","v":""},null,null,null,null,null,null,null,null,null,null,null,null,null,null,null,null,null,null,null,null,null,null,null,null,null,null," "," "," "," "]
[39,{"$f":"IF(FILIACION_ESTUDIANTE!D46=0,\"\",FILIACION_PPFF!B45)","v":""},null,null,null,null,null,null,null,null,null,null,null,null,null,null,null,null,null,null,null,null,null,null,null,null,null,null," "," "," "," "]
[40,{"$f":"IF(FILIACION_ESTUDIANTE!D47=0,\"\",FILIACION_PPFF!B46)","v":""},null,null,null,null,null,null,null,null,null,null,null,null,null,null,null,null,null,null,null,null,null,null,null,null,null,null," "," "," "," "]
[]
[null,null,null,"INSCRITOS","NO INCORPORADO",null,null,null,"EFECTIVOS",null,null,null,null,null,null,null,null,null,null,null,null,null,"PROMEDIO",null,null,null,null,"%",null,null,null,null,null,null,null,{"$f":"(SUM(AF9:AF48,AC9:AD48)/D53)","v":{"$error":"#VALUE!"}},"SUMATORIA","DIAS TRAB","PROMEDIO"]
[null,"VARONES",null,{"$f":"COUNTIF(FILIACION_ESTUDIANTE!J8:J47,\"M\")","v":0},0,null,null,null,{"$f":"IF(D51=0,\" \",(D51-E51-G51))","v":" "},null,null,null,null,null,null,"ASISTENCIA",null,null,null,null,null,null,{"$f":"IF(AJ50=0,\"\",ROUND(AM51-G53,0))","v":{"$error":"#VALUE!"}},null,null,null,null,{"$f":"IF(AJ50=0,\"\",ROUND((100*W51)/W53,0))","v":{"$error":"#VALUE!"}},null,null,null,null,null,null,null,"PRESENTE",{"$f":"IF(AJ50=0,\"\",SUM(AE9:AF48))","v":{"$error":"#VALUE!"}},{"$f":"IF(AJ50=0,\"\",AJ50)","v":{"$error":"#VALUE!"}},{"$f":"IF(AJ50=0,\"\",AK51/AL51)","v":{"$error":"#VALUE!"}}]
[null,"MUJERES",null,{"$f":"COUNTIF(FILIACION_ESTUDIANTE!J8:J47,\"F\")","v":0},0,null,null,null,{"$f":"IF(D52=0,\" \",(D52-E52-G52))","v":" "},null,null,null,null,null,null,"FALTA",null,null,null,null,null,null,{"$f":"IF(AJ50=0,\"\",ROUND(AM52,0))","v":{"$error":"#VALUE!"}},null,null,null,null,{"$f":"IF(AJ50=0,\"\",ROUND((100*W52)/W53,0))","v":{"$error":"#VALUE!"}},null,null,null,null,null,null,null,"FALTA",{"$f":"IF(AJ50=0,\"\",SUM(AC9:AD48))","v":{"$error":"#VALUE!"}},{"$f":"IF(AJ50=0,\"\",AJ50)","v":{"$error":"#VALUE!"}},{"$f":"IF(AJ50=0,\"\",AK52/AL52)","v":{"$error":"#VALUE!"}}]
[null,"TOTAL",null,{"$f":"IF(D51=0,\" \",(SUM(D51,D52)))","v":" "},{"$f":"SUM(E51,E52)","v":0},null,null,null,{"$f":"IF(I51=\" \",\" \",(SUM(I51,I52)))","v":" "},null,null,null,null,null,null,"TOTAL",null,null,null,null,null,null,{"$f":"IF(AJ50=0,\"\",SUM(W51:AA52))","v":{"$error":"#VALUE!"}},null,null,null,null,{"$f":"IF(AJ50=0,\"\",SUM(AB51:AD52))","v":{"$error":"#VALUE!"}},null,null,null,null,null,null,null,null,null,null,{"$f":"SUM(AM51:AM52)","v":{"$error":"#VALUE!"}}]

{"sheet":"MAYO","index":11,"n_rows":53,"n_cols":53,"rows_kept":53,"cut":false,"hidden":false,"merged":[[4,0,4,1],[4,2,4,23],[4,24,4,27],[4,28,4,31],[5,0,5,31],[6,0,7,0],[6,1,7,3],[6,28,7,28],[6,29,7,29],[6,30,7,30],[0,33,0,34],[1,0,1,31],[2,0,2,31],[3,0,3,2],[3,3,3,12],[3,24,3,27],[3,28,3,31],[0,0,0,31],[16,37,18,39],[17,1,17,4],[18,1,18,4],[19,1,19,4],[6,31,7,31],[8,1,8,4],[8,33,47,33],[9,1,9,4],[10,1,10,4],[11,1,11,4],[12,1,12,4],[13,1,13,4],[14,1,14,4],[15,1,15,4],[16,1,16,4],[19,37,19,39],[21,37,21,39],[22,1,22,4],[22,37,22,39],[20,1,20,4],[20,37,20,39],[21,1,21,4],[23,37,23,39],[24,1,24,4],[24,37,24,39],[25,1,25,4],[25,37,25,39],[23,1,23,4],[26,37,26,39],[35,1,35,4],[27,1,27,4],[27,37,27,39],[28,1,28,4],[28,37,28,39],[29,1,29,4],[29,37,29,39],[30,1,30,4],[31,1,31,4],[32,1,32,4],[33,1,33,4],[34,1,34,4],[26,1,26,4],[47,1,47,4],[36,1,36,4],[37,1,37,4],[38,1,38,4],[39,1,39,4],[40,1,40,4],[41,1,41,4],[42,1,42,4],[43,1,43,4],[44,1,44,4],[45,1,45,4],[46,1,46,4],[49,4,49,7],[50,4,50,7],[51,4,51,7],[52,1,52,2],[52,8,52,10],[52,4,52,7],[52,15,52,21],[52,22,52,26],[48,33,56,33],[49,8,49,10],[49,22,49,26],[49,27,49,29],[50,8,50,10],[50,15,50,21],[50,22,50,26],[50,27,50,29],[51,8,51,10],[51,15,51,21],[51,22,51,26],[51,27,51,29],[52,27,52,29]]}
[null,null,null,null,null,null,null,null,null,null,null,null,null,null,null,null,null,null,null,null,null,null,null,null,null,null,null,null,null,null,null,null,null,"ASISTENCIAS E INASISTENCIAS",null,"AZUL"]
[null,null,null,null,null,null,null,null,null,null,null,null,null,null,null,null,null,null,null,null,null,null,null,null,null,null,null,null,null,null,null,null,null,"Presente","P"]
[{"$f":"AL23","v":"REGISTRO DE ASISTENCIA MAYO  2019"},null,null,null,null,null,null,null,null,null,null,null,null,null,null,null,null,null,null,null,null,null,null,null,null,null,null,null,null,null,null,null,null,"Atraso","A"]
[{"$f":"+UPPER(CARATULA!C21)","v":"MAESTRA (O):"},null,null,{"$f":"CARATULA!E21","v":0},null,null,null,null,null,null,null,null,null,null,null,null,null,null,null,null,null,null,null,null,"TURNO: ",null,null,null,{"$f":"CARATULA!E14","v":0},null,null,null,null,"falta con licencia","F"]
["NIVEL:",null,{"$f":"CARATULA!E22","v":0},null,null,null,null,null,null,null,null,null,null,null,null,null,null,null,null,null,null,null,null,null,"PARALELO:",null,null,null,{"$f":"CARATULA!E15","v":0},null,null,null,null,"Falta sin licencia","L"]
[{"$f":"+CONCATENATE(\"AÑO DE ESCOLARIDAD:  \",CARATULA!E23)","v":"AÑO DE ESCOLARIDAD:  "}]
["Nº","NÓMINA",null,null,"DÍA","M","J","V","L","M","M","J","V","L","M","M","J","V","L","M","M","J","V","L","M","M","J","V","LICENCIA (L)","FALTA (F)","ATRASO (A)","PRESENTE=DÍAS TRABAJAOS",null,"dias materias tecnicas",0]
[null,null,null,null,"FECHA",1,{"$f":"+F8+1","v":2},{"$f":"+G8+1","v":3},{"$f":"+H8+3","v":6},7,8,9,10,{"$f":"+M8+3","v":13},14,15,16,17,{"$f":"+R8+3","v":20},21,22,23,24,{"$f":"+W8+3","v":27},28,29,30,31]
[1,{"$f":"IF(FILIACION_ESTUDIANTE!D8=0,\"\",FILIACION_PPFF!B7)","v":""},null,null,null,null,null,null,null,null,null,null,null,null,null,null,null,null,null,null,null,null,null,null,null,null,null,null,{"$f":"IF((COUNTBLANK(F9:AB9))>=23,\" \",(COUNTIF((F9:AB9),$AI$5)))","v":" "},{"$f":"IF((COUNTBLANK(F9:AB9))>=23,\" \",(COUNTIF((F9:AB9),$AI$4)))","v":" "},{"$f":"IF((COUNTBLANK(F9:AB9))>=23,\" \",(COUNTIF((F9:AB9),$AI$3)))","v":" "},{"$f":"IF(COUNTBLANK(F9:AB9)>=23,\" \",(COUNTIF((F9:AB9),$AI$2)+AE9+$AI$7))","v":" "},null,"MAYO"]
[2,{"$f":"IF(FILIACION_ESTUDIANTE!D9=0,\"\",FILIACION_PPFF!B8)","v":""},null,null,null,null,null,null,null,null,null,null,null,null,null,null,null,null,null,null,null,null,null,null,null,null,null,null," "," "," "," "]
[3,{"$f":"IF(FILIACION_ESTUDIANTE!D10=0,\"\",FILIACION_PPFF!B9)","v":""},null,null,null,null,null,null,null,null,null,null,null,null,null,null,null,null,null,null,null,null,null,null,null,null,null,null," "," "," "," "]
[4,{"$f":"IF(FILIACION_ESTUDIANTE!D11=0,\"\",FILIACION_PPFF!B10)","v":""},null,null,null,null,null,null,null,null,null,null,null,null,null,null,null,null,null,null,null,null,null,null,null,null,null,null," "," "," "," ",null,null,null,null,null,null,null,null,null,null,null,null,null,null,null,null,null,null,null,{"$f":"ISLOGICAL((#REF!))","v":false},1]
[5,{"$f":"IF(FILIACION_ESTUDIANTE!D12=0,\"\",FILIACION_PPFF!B11)","v":""},null,null,null,null,null,null,null,null,null,null,null,null,null,null,null,null,null,null,null,null,null,null,null,null,null,null," "," "," "," ",null,null,null,null,null,null,null,null,null,null,null,null,null,null,null,null,null,null,null,null,"A"]
[6,{"$f":"IF(FILIACION_ESTUDIANTE!D13=0,\"\",FILIACION_PPFF!B12)","v":""},null,null,null,null,null,null,null,null,null,null,null,null,null,null,null,null,null,null,null,null,null,null,null,null,null,null," "," "," "," ",null,null,null,null,null,null,null,null,null,null,null,null,null,null,null,null,null,null,{"$f":"ISTEXT(#REF!)","v":false}]
[7,{"$f":"IF(FILIACION_ESTUDIANTE!D14=0,\"\",FILIACION_PPFF!B13)","v":""},null,null,null,null,null,null,null,null,null,null,null,null,null,null,null,null,null,null,null,null,null,null,null,null,null,null," "," "," "," ",null,null,null,null,null,null,null,null,null,null,null,null,null,null,null,null,null,null,null,null,"a"]
[8,{"$f":"IF(FILIACION_ESTUDIANTE!D15=0,\"\",FILIACION_PPFF!B14)","v":""},null,null,null,null,null,null,null,null,null,null,null,null,null,null,null,null,null,null,null,null,null,null,null,null,null,null," "," "," "," ",null,null,null,null,null,null,null,null,null,null,null,null,null,null,null,null,null,null,null,null,"a"]
[9,{"$f":"IF(FILIACION_ESTUDIANTE!D16=0,\"\",FILIACION_PPFF!B15)","v":""},null,null,null,null,null,null,null,null,null,null,null,null,null,null,null,null,null,null,null,null,null,null,null,null,null,null," "," "," "," ",null,null,null,null,null,"ENCABEZADO DE LOS FORMULARIOS DE CONTROL DE ASISTENCIA",null,null,null,null,null,null,null,null,null,null,null,{"$f":"MONTH(AX18)","v":2},null,null,"f"]
[10,{"$f":"IF(FILIACION_ESTUDIANTE!D17=0,\"\",FILIACION_PPFF!B16)","v":""},null,null,null,null,null,null,null,null,null,null,null,null,null,null,null,null,null,null,null,null,null,null,null,null,null,null," "," "," "," ",null,null,null,null,null,null,null,null,null,null,null,null,null,null,null,null,null,"2010-02-01",null,null,"f"]
[11,{"$f":"IF(FILIACION_ESTUDIANTE!D18=0,\"\",FILIACION_PPFF!B17)","v":""},null,null,null,null,null,null,null,null,null,null,null,null,null,null,null,null,null,null,null,null,null,null,null,null,null,null," "," "," "," ",null,null,null,null,null,null,null,null,null,null,null,null,null,null,null,null,null,null,null,null,"f"]
[12,{"$f":"IF(FILIACION_ESTUDIANTE!D19=0,\"\",FILIACION_PPFF!B18)","v":""},null,null,null,null,null,null,null,null,null,null,null,null,null,null,null,null,null,null,null,null,null,null,null,null,null,null," "," "," "," ",null,null,null,null,null,{"$f":"CONCATENATE(AO20,\" \",AP20)","v":"REGISTRO DE ASISTENCIA FEBRERO  2019"},null,null,"REGISTRO DE ASISTENCIA FEBRERO ",{"$f":"CARATULA!F27","v":2019},null,null,null,null,null,null,null,null,null,null,"p"]
[13,{"$f":"IF(FILIACION_ESTUDIANTE!D20=0,\"\",FILIACION_PPFF!B19)","v":""},null,null,null,null,null,null,null,null,null,null,null,null,null,null,null,null,null,null,null,null,null,null,null,null,null,null," "," "," "," ",null,null,null,null,null,{"$f":"CONCATENATE(AO21,\" \",AP21)","v":"REGISTRO DE ASISTENCIA MARZO  2019"},null,null,"REGISTRO DE ASISTENCIA MARZO ",{"$f":"AP20","v":2019},null,null,null,null,null,null,null,null,null,null,"y"]
[14,{"$f":"IF(FILIACION_ESTUDIANTE!D21=0,\"\",FILIACION_PPFF!B20)","v":""},null,null,null,null,null,null,null,null,null,null,null,null,null,null,null,null,null,null,null,null,null,null,null,null,null,null," "," "," "," ",null,null,null,null,null,"REGISTRO DE ASISTENCIA ABRIL  2019",null,null,"REGISTRO DE ASISTENCIA ABRIL ",{"$f":"AP21","v":2019},null,null,null,null,null,null,null,null,null,null,"a"]
[15,{"$f":"IF(FILIACION_ESTUDIANTE!D22=0,\"\",FILIACION_PPFF!B21)","v":""},null,null,null,null,null,null,null,null,null,null,null,null,null,null,null,null,null,null,null,null,null,null,null,null,null,null," "," "," "," ",null,null,null,null,null,"REGISTRO DE ASISTENCIA MAYO  2019",null,null,"REGISTRO DE ASISTENCIA MAYO ",{"$f":"AP22","v":2019},null,null,null,null,null,null,null,null,null,null,"a"]
[16,{"$f":"IF(FILIACION_ESTUDIANTE!D23=0,\"\",FILIACION_PPFF!B22)","v":""},null,null,null,null,null,null,null,null,null,null,null,null,null,null,null,null,null,null,null,null,null,null,null,null,null,null," "," "," "," ",null,null,null,null,null,"REGISTRO DE ASISTENCIA JUNIO  2019",null,null,"REGISTRO DE ASISTENCIA JUNIO ",2019,null,null,null,null,null,null,null,null,null,null,"a"]
[17,{"$f":"IF(FILIACION_ESTUDIANTE!D24=0,\"\",FILIACION_PPFF!B23)","v":""},null,null,null,null,null,null,null,null,null,null,null,null,null,null,null,null,null,null,null,null,null,null,null,null,null,null," "," "," "," ",null,null,null,null,null,"REGISTRO DE ASISTENCIA JULIO  2019",null,null,"REGISTRO DE ASISTENCIA JULIO ",2019,null,null,null,null,null,null,null,null,null,null,"a"]
[18,{"$f":"IF(FILIACION_ESTUDIANTE!D25=0,\"\",FILIACION_PPFF!B24)","v":""},null,null,null,null,null,null,null,null,null,null,null,null,null,null,null,null,null,null,null,null,null,null,null,null,null,null," "," "," "," ",null,null,null,null,null,"REGISTRO DE ASISTENCIA AGOSTO  2019",null,null,"REGISTRO DE ASISTENCIA AGOSTO ",2019,null,null,null,null,null,null,null,null,null,null,"a"]
[19,{"$f":"IF(FILIACION_ESTUDIANTE!D26=0,\"\",FILIACION_PPFF!B25)","v":""},null,null,null,null,null,null,null,null,null,null,null,null,null,null,null,null,null,null,null,null,null,null,null,null,null,null," "," "," "," ",null,null,null,null,null,"REGISTRO DE ASISTENCIA SEPTIEMBRE  2019",null,null,"REGISTRO DE ASISTENCIA SEPTIEMBRE ",2019,null,null,null,null,null,null,null,null,null,null,"a"]
[20,{"$f":"IF(FILIACION_ESTUDIANTE!D27=0,\"\",FILIACION_PPFF!B26)","v":""},null,null,null,null,null,null,null,null,null,null,null,null,null,null,null,null,null,null,null,null,null,null,null,null,null,null," "," "," "," ",null,null,null,null,null,"REGISTRO DE ASISTENCIA OCTUBRE  2019",null,null,"REGISTRO DE ASISTENCIA OCTUBRE ",2019,null,null,null,null,null,null,null,null,null,null,"f"]
[21,{"$f":"IF(FILIACION_ESTUDIANTE!D28=0,\"\",FILIACION_PPFF!B27)","v":""},null,null,null,null,null,null,null,null,null,null,null,null,null,null,null,null,null,null,null,null,null,null,null,null,null,null," "," "," "," ",null,null,null,null,null,"REGISTRO DE ASISTENCIA NOVIEMBRE  2019",null,null,"REGISTRO DE ASISTENCIA NOVIEMBRE ",2019,null,null,null,null,null,null,null,null,null,null,"p"]
[22,{"$f":"IF(FILIACION_ESTUDIANTE!D29=0,\"\",FILIACION_PPFF!B28)","v":""},null,null,null,null,null,null,null,null,null,null,null,null,null,null,null,null,null,null,null,null,null,null,null,null,null,null," "," "," "," ",null,null,null,null,null,"REGISTRO DE ASISTENCIA DICIEMBRE  2019",null,null,"REGISTRO DE ASISTENCIA DICIEMBRE ",2019,null,null,null,null,null,null,null,null,null,null,"M"]
[23,{"$f":"IF(FILIACION_ESTUDIANTE!D30=0,\"\",FILIACION_PPFF!B29)","v":""},null,null,null,null,null,null,null,null,null,null,null,null,null,null,null,null,null,null,null,null,null,null,null,null,null,null," "," "," "," "]
[24,{"$f":"IF(FILIACION_ESTUDIANTE!D31=0,\"\",FILIACION_PPFF!B30)","v":""},null,null,null,null,null,null,null,null,null,null,null,null,null,null,null,null,null,null,null,null,null,null,null,null,null,null," "," "," "," ",null,null,null,null,null,null,null,null,null,null,null,null,null,null,null,null,null,null,null,null,"M"]
[25,{"$f":"IF(FILIACION_ESTUDIANTE!D32=0,\"\",FILIACION_PPFF!B31)","v":""},null,null,null,null,null,null,null,null,null,null,null,null,null,null,null,null,null,null,null,null,null,null,null,null,null,null," "," "," "," ",null,null,null,null,null,null,null,null,null,null,null,null,null,null,null,null,null,null,null,null,"M"]
[26,{"$f":"IF(FILIACION_ESTUDIANTE!D33=0,\"\",FILIACION_PPFF!B32)","v":""},null,null,null,null,null,null,null,null,null,null,null,null,null,null,null,null,null,null,null,null,null,null,null,null,null,null," "," "," "," ",null,null,null,null,null,null,null,null,null,null,null,null,null,null,null,null,null,null,null,null,"M"]
[27,{"$f":"IF(FILIACION_ESTUDIANTE!D34=0,\"\",FILIACION_PPFF!B33)","v":""},null,null,null,null,null,null,null,null,null,null,null,null,null,null,null,null,null,null,null,null,null,null,null,null,null,null," "," "," "," ",null,null,null,null,null,null,null,null,null,null,null,null,null,null,null,null,null,null,null,null,"M"]
[28,{"$f":"IF(FILIACION_ESTUDIANTE!D35=0,\"\",FILIACION_PPFF!B34)","v":""},null,null,null,null,null,null,null,null,null,null,null,null,null,null,null,null,null,null,null,null,null,null,null,null,null,null," "," "," "," ",null,null,null,null,null,null,null,null,null,null,null,null,null,null,null,null,null,null,null,null,"M"]
[29,{"$f":"IF(FILIACION_ESTUDIANTE!D36=0,\"\",FILIACION_PPFF!B35)","v":""},null,null,null,null,null,null,null,null,null,null,null,null,null,null,null,null,null,null,null,null,null,null,null,null,null,null," "," "," "," "]
[30,{"$f":"IF(FILIACION_ESTUDIANTE!D37=0,\"\",FILIACION_PPFF!B36)","v":""},null,null,null,null,null,null,null,null,null,null,null,null,null,null,null,null,null,null,null,null,null,null,null,null,null,null," "," "," "," "]
[31,{"$f":"IF(FILIACION_ESTUDIANTE!D38=0,\"\",FILIACION_PPFF!B37)","v":""},null,null,null,null,null,null,null,null,null,null,null,null,null,null,null,null,null,null,null,null,null,null,null,null,null,null," "," "," "," ",null,null,null,null,null,null,null,null,null,null,null,null,null,null,null,null,null,null,null,null,"M"]
[32,{"$f":"IF(FILIACION_ESTUDIANTE!D39=0,\"\",FILIACION_PPFF!B38)","v":""},null,null,null,null,null,null,null,null,null,null,null,null,null,null,null,null,null,null,null,null,null,null,null,null,null,null," "," "," "," ",null,null,null,null,null,null,null,null,null,null,null,null,null,null,null,null,null,null,null,null,"M"]
[33,{"$f":"IF(FILIACION_ESTUDIANTE!D40=0,\"\",FILIACION_PPFF!B39)","v":""},null,null,null,null,null,null,null,null,null,null,null,null,null,null,null,null,null,null,null,null,null,null,null,null,null,null," "," "," "," "]
[34,{"$f":"IF(FILIACION_ESTUDIANTE!D41=0,\"\",FILIACION_PPFF!B40)","v":""},null,null,null,null,null,null,null,null,null,null,null,null,null,null,null,null,null,null,null,null,null,null,null,null,null,null," "," "," "," "]
[35,{"$f":"IF(FILIACION_ESTUDIANTE!D42=0,\"\",FILIACION_PPFF!B41)","v":""},null,null,null,null,null,null,null,null,null,null,null,null,null,null,null,null,null,null,null,null,null,null,null,null,null,null," "," "," "," "]
[36,{"$f":"IF(FILIACION_ESTUDIANTE!D43=0,\"\",FILIACION_PPFF!B42)","v":""},null,null,null,null,null,null,null,null,null,null,null,null,null,null,null,null,null,null,null,null,null,null,null,null,null,null," "," "," "," "]
[37,{"$f":"IF(FILIACION_ESTUDIANTE!D44=0,\"\",FILIACION_PPFF!B43)","v":""},null,null,null,null,null,null,null,null,null,null,null,null,null,null,null,null,null,null,null,null,null,null,null,null,null,null," "," "," "," "]
[38,{"$f":"IF(FILIACION_ESTUDIANTE!D45=0,\"\",FILIACION_PPFF!B44)","v":""},null,null,null,null,null,null,null,null,null,null,null,null,null,null,null,null,null,null,null,null,null,null,null,null,null,null," "," "," "," "]
[39,{"$f":"IF(FILIACION_ESTUDIANTE!D46=0,\"\",FILIACION_PPFF!B45)","v":""},null,null,null,null,null,null,null,null,null,null,null,null,null,null,null,null,null,null,null,null,null,null,null,null,null,null," "," "," "," "]
[40,{"$f":"IF(FILIACION_ESTUDIANTE!D47=0,\"\",FILIACION_PPFF!B46)","v":""},null,null,null,null,null,null,null,null,null,null,null,null,null,null,null,null,null,null,null,null,null,null,null,null,null,null," "," "," "," "]
[null,null,null,null,null,null,null,null,null,null,null,null,null,null,null,null,null,null,null,null,null,null,null,null,null,null,null,null,null,null,null,null,null,{"$f":"IF(AJ50=0,\"Asistencia Vacia contactese con eliascarloshidalgo@gmail.com O LLAME AL 74094003\",IF(I53=W53,\"Impresión Asistencia  correcta \",\"CUIDADO LOS RESULTADOS NO SON LOS CORRECTOS\"))","v":{"$error":"#VALUE!"}}]
[null,null,null,"INSCRITOS","NO INCORPORADO",null,null,null,"EFECTIVOS",null,null,null,null,null,null,null,null,null,null,null,null,null,"PROMEDIO",null,null,null,null,"%",null,null,null,null,null,null,null,{"$f":"(SUM(AF9:AF48,AC9:AD48)/D53)","v":{"$error":"#VALUE!"}},"SUMATORIA","DIAS TRAB","PROMEDIO"]
[null,"VARONES",null,{"$f":"COUNTIF(FILIACION_ESTUDIANTE!J8:J47,\"M\")","v":0},0,null,null,null,{"$f":"IF(D51=0,\" \",(D51-E51-G51))","v":" "},null,null,null,null,null,null,"ASISTENCIA",null,null,null,null,null,null,{"$f":"IF(AJ50=0,\"\",ROUND(AM51-G53,0))","v":{"$error":"#VALUE!"}},null,null,null,null,{"$f":"IF(AJ50=0,\"\",ROUND((100*W51)/W53,0))","v":{"$error":"#VALUE!"}},null,null,null,null,null,null,null,"PRESENTE",{"$f":"IF(AJ50=0,\"\",SUM(AE9:AF48))","v":{"$error":"#VALUE!"}},{"$f":"IF(AJ50=0,\"\",AJ50)","v":{"$error":"#VALUE!"}},{"$f":"IF(AJ50=0,\"\",AK51/AL51)","v":{"$error":"#VALUE!"}}]
[null,"MUJERES",null,{"$f":"COUNTIF(FILIACION_ESTUDIANTE!J8:J47,\"F\")","v":0},0,null,null,null,{"$f":"IF(D52=0,\" \",(D52-E52-G52))","v":" "},null,null,null,null,null,null,"FALTA",null,null,null,null,null,null,{"$f":"IF(AJ50=0,\"\",ROUND(AM52,0))","v":{"$error":"#VALUE!"}},null,null,null,null,{"$f":"IF(AJ50=0,\"\",ROUND((100*W52)/W53,0))","v":{"$error":"#VALUE!"}},null,null,null,null,null,null,null,"FALTA",{"$f":"IF(AJ50=0,\"\",SUM(AC9:AD48))","v":{"$error":"#VALUE!"}},{"$f":"IF(AJ50=0,\"\",AJ50)","v":{"$error":"#VALUE!"}},{"$f":"IF(AJ50=0,\"\",AK52/AL52)","v":{"$error":"#VALUE!"}}]
[null,"TOTAL",null,{"$f":"IF(D51=0,\" \",(SUM(D51,D52)))","v":" "},{"$f":"SUM(E51,E52)","v":0},null,null,null,{"$f":"IF(I51=\" \",\" \",(SUM(I51,I52)))","v":" "},null,null,null,null,null,null,"TOTAL",null,null,null,null,null,null,{"$f":"IF(AJ50=0,\"\",SUM(W51:AA52))","v":{"$error":"#VALUE!"}},null,null,null,null,{"$f":"IF(AJ50=0,\"\",SUM(AB51:AD52))","v":{"$error":"#VALUE!"}},null,null,null,null,null,null,null,null,null,null,{"$f":"SUM(AM51:AM52)","v":{"$error":"#VALUE!"}}]

{"sheet":"JUNIO","index":12,"n_rows":53,"n_cols":53,"rows_kept":53,"cut":false,"hidden":false,"merged":[[4,0,4,1],[4,2,4,23],[4,24,4,27],[4,28,4,31],[5,0,5,31],[6,0,7,0],[6,1,7,3],[6,28,7,28],[6,29,7,29],[6,30,7,30],[0,33,0,34],[1,0,1,31],[2,0,2,31],[3,0,3,2],[3,3,3,12],[3,24,3,27],[3,28,3,31],[0,0,0,31],[16,37,18,39],[17,1,17,4],[18,1,18,4],[19,1,19,4],[6,31,7,31],[8,1,8,4],[8,33,47,33],[9,1,9,4],[10,1,10,4],[11,1,11,4],[12,1,12,4],[13,1,13,4],[14,1,14,4],[15,1,15,4],[16,1,16,4],[19,37,19,39],[21,37,21,39],[22,1,22,4],[22,37,22,39],[20,1,20,4],[20,37,20,39],[21,1,21,4],[23,37,23,39],[24,1,24,4],[24,37,24,39],[25,1,25,4],[25,37,25,39],[23,1,23,4],[26,37,26,39],[35,1,35,4],[27,1,27,4],[27,37,27,39],[28,1,28,4],[28,37,28,39],[29,1,29,4],[29,37,29,39],[30,1,30,4],[31,1,31,4],[32,1,32,4],[33,1,33,4],[34,1,34,4],[26,1,26,4],[47,1,47,4],[36,1,36,4],[37,1,37,4],[38,1,38,4],[39,1,39,4],[40,1,40,4],[41,1,41,4],[42,1,42,4],[43,1,43,4],[44,1,44,4],[45,1,45,4],[46,1,46,4],[49,4,49,7],[50,4,50,7],[51,4,51,7],[52,1,52,2],[52,8,52,10],[52,4,52,7],[52,15,52,21],[52,22,52,26],[48,33,56,33],[49,8,49,10],[49,22,49,26],[49,27,49,29],[50,8,50,10],[50,15,50,21],[50,22,50,26],[50,27,50,29],[51,8,51,10],[51,15,51,21],[51,22,51,26],[51,27,51,29],[52,27,52,29]]}
[null,null,null,null,null,null,null,null,null,null,null,null,null,null,null,null,null,null,null,null,null,null,null,null,null,null,null,null,null,null,null,null,null,"ASISTENCIAS E INASISTENCIAS",null,"AZUL"]
[null,null,null,null,null,null,null,null,null,null,null,null,null,null,null,null,null,null,null,null,null,null,null,null,null,null,null,null,null,null,null,null,null,"Presente","P"]
[{"$f":"AL24","v":"REGISTRO DE ASISTENCIA JUNIO  2019"},null,null,null,null,null,null,null,null,null,null,null,null,null,null,null,null,null,null,null,null,null,null,null,null,null,null,null,null,null,null,null,null,"Atraso","A"]
[{"$f":"+UPPER(CARATULA!C21)","v":"MAESTRA (O):"},null,null,{"$f":"CARATULA!E21","v":0},null,null,null,null,null,null,null,null,null,null,null,null,null,null,null,null,null,null,null,null,"TURNO: ",null,null,null,{"$f":"CARATULA!E14","v":0},null,null,null,null,"falta con licencia","F"]
["NIVEL:",null,{"$f":"CARATULA!E22","v":0},null,null,null,null,null,null,null,null,null,null,null,null,null,null,null,null,null,null,null,null,null,"PARALELO:",null,null,null,{"$f":"CARATULA!E15","v":0},null,null,null,null,"Falta sin licencia","L"]
[{"$f":"+CONCATENATE(\"AÑO DE ESCOLARIDAD:  \",CARATULA!E23)","v":"AÑO DE ESCOLARIDAD:  "}]
["Nº","NÓMINA",null,null,"DÍA","L","M","M","J","V","L","M","M","J","V","L","M","M","J","V","L",{"$f":"IF(F8=7,\"\",\"M\")","v":"M"},{"$f":"IF(V8>27,\"\",\"M\")","v":"M"},{"$f":"IF(W8>27,\"\",\"J\")","v":"J"},{"$f":"IF(X8>27,\"\",\"V\")","v":"V"},null,null,null,"LICENCIA (L)","FALTA (F)","ATRASO (A)","PRESENTE=DÍAS TRABAJAOS",null,"dias materias tecnicas",0]
[null,null,null,null,"FECHA",3,{"$f":"F8+1","v":4},{"$f":"G8+1","v":5},{"$f":"H8+1","v":6},{"$f":"I8+1","v":7},{"$f":"J8+3","v":10},{"$f":"K8+1","v":11},{"$f":"L8+1","v":12},{"$f":"M8+1","v":13},{"$f":"N8+1","v":14},{"$f":"O8+3","v":17},{"$f":"P8+1","v":18},{"$f":"Q8+1","v":19},{"$f":"R8+1","v":20},{"$f":"S8+1","v":21},{"$f":"T8+3","v":24},{"$f":"IF(F8=7,\"\",U8+1)","v":25},{"$f":"IF(V8>27,\"\",V8+1)","v":26},{"$f":"IF(W8>27,\"\",W8+1)","v":27},{"$f":"IF(X8>27,\"\",X8+1)","v":28}]
[1,{"$f":"IF(FILIACION_ESTUDIANTE!D8=0,\"\",FILIACION_PPFF!B7)","v":""},null,null,null,null,null,null,null,null,null,null,null,null,null,null,null,null,null,null,null,null,null,null,null,null,null,null,{"$f":"IF((COUNTBLANK(F9:AB9))>=23,\" \",(COUNTIF((F9:AB9),$AI$5)))","v":" "},{"$f":"IF((COUNTBLANK(F9:AB9))>=23,\" \",(COUNTIF((F9:AB9),$AI$4)))","v":" "},{"$f":"IF((COUNTBLANK(F9:AB9))>=23,\" \",(COUNTIF((F9:AB9),$AI$3)))","v":" "},{"$f":"IF(COUNTBLANK(F9:AB9)>=23,\" \",(COUNTIF((F9:AB9),$AI$2)+AE9+$AI$7))","v":" "},null,"JUNIO"]
[2,{"$f":"IF(FILIACION_ESTUDIANTE!D9=0,\"\",FILIACION_PPFF!B8)","v":""},null,null,null,null,null,null,null,null,null,null,null,null,null,null,null,null,null,null,null,null,null,null,null,null,null,null," "," "," "," "]
[3,{"$f":"IF(FILIACION_ESTUDIANTE!D10=0,\"\",FILIACION_PPFF!B9)","v":""},null,null,null,null,null,null,null,null,null,null,null,null,null,null,null,null,null,null,null,null,null,null,null,null,null,null," "," "," "," "]
[4,{"$f":"IF(FILIACION_ESTUDIANTE!D11=0,\"\",FILIACION_PPFF!B10)","v":""},null,null,null,null,null,null,null,null,null,null,null,null,null,null,null,null,null,null,null,null,null,null,null,null,null,null," "," "," "," ",null,null,null,null,null,null,null,null,null,null,null,null,null,null,null,null,null,null,null,{"$f":"ISLOGICAL((#REF!))","v":false},1]
[5,{"$f":"IF(FILIACION_ESTUDIANTE!D12=0,\"\",FILIACION_PPFF!B11)","v":""},null,null,null,null,null,null,null,null,null,null,null,null,null,null,null,null,null,null,null,null,null,null,null,null,null,null," "," "," "," ",null,null,null,null,null,null,null,null,null,null,null,null,null,null,null,null,null,null,null,null,"A"]
[6,{"$f":"IF(FILIACION_ESTUDIANTE!D13=0,\"\",FILIACION_PPFF!B12)","v":""},null,null,null,null,null,null,null,null,null,null,null,null,null,null,null,null,null,null,null,null,null,null,null,null,null,null," "," "," "," ",null,null,null,null,null,null,null,null,null,null,null,null,null,null,null,null,null,null,{"$f":"ISTEXT(#REF!)","v":false}]
[7,{"$f":"IF(FILIACION_ESTUDIANTE!D14=0,\"\",FILIACION_PPFF!B13)","v":""},null,null,null,null,null,null,null,null,null,null,null,null,null,null,null,null,null,null,null,null,null,null,null,null,null,null," "," "," "," ",null,null,null,null,null,null,null,null,null,null,null,null,null,null,null,null,null,null,null,null,"a"]
[8,{"$f":"IF(FILIACION_ESTUDIANTE!D15=0,\"\",FILIACION_PPFF!B14)","v":""},null,null,null,null,null,null,null,null,null,null,null,null,null,null,null,null,null,null,null,null,null,null,null,null,null,null," "," "," "," ",null,null,null,null,null,null,null,null,null,null,null,null,null,null,null,null,null,null,null,null,"a"]
[9,{"$f":"IF(FILIACION_ESTUDIANTE!D16=0,\"\",FILIACION_PPFF!B15)","v":""},null,null,null,null,null,null,null,null,null,null,null,null,null,null,null,null,null,null,null,null,null,null,null,null,null,null," "," "," "," ",null,null,null,null,null,"ENCABEZADO DE LOS FORMULARIOS DE CONTROL DE ASISTENCIA",null,null,null,null,null,null,null,null,null,null,null,{"$f":"MONTH(AX18)","v":2},null,null,"f"]
[10,{"$f":"IF(FILIACION_ESTUDIANTE!D17=0,\"\",FILIACION_PPFF!B16)","v":""},null,null,null,null,null,null,null,null,null,null,null,null,null,null,null,null,null,null,null,null,null,null,null,null,null,null," "," "," "," ",null,null,null,null,null,null,null,null,null,null,null,null,null,null,null,null,null,"2010-02-01",null,null,"f"]
[11,{"$f":"IF(FILIACION_ESTUDIANTE!D18=0,\"\",FILIACION_PPFF!B17)","v":""},null,null,null,null,null,null,null,null,null,null,null,null,null,null,null,null,null,null,null,null,null,null,null,null,null,null," "," "," "," ",null,null,null,null,null,null,null,null,null,null,null,null,null,null,null,null,null,null,null,null,"f"]
[12,{"$f":"IF(FILIACION_ESTUDIANTE!D19=0,\"\",FILIACION_PPFF!B18)","v":""},null,null,null,null,null,null,null,null,null,null,null,null,null,null,null,null,null,null,null,null,null,null,null,null,null,null," "," "," "," ",null,null,null,null,null,{"$f":"CONCATENATE(AO20,\" \",AP20)","v":"REGISTRO DE ASISTENCIA FEBRERO  2019"},null,null,"REGISTRO DE ASISTENCIA FEBRERO ",{"$f":"CARATULA!F27","v":2019},null,null,null,null,null,null,null,null,null,null,"p"]
[13,{"$f":"IF(FILIACION_ESTUDIANTE!D20=0,\"\",FILIACION_PPFF!B19)","v":""},null,null,null,null,null,null,null,null,null,null,null,null,null,null,null,null,null,null,null,null,null,null,null,null,null,null," "," "," "," ",null,null,null,null,null,{"$f":"CONCATENATE(AO21,\" \",AP21)","v":"REGISTRO DE ASISTENCIA MARZO  2019"},null,null,"REGISTRO DE ASISTENCIA MARZO ",{"$f":"AP20","v":2019},null,null,null,null,null,null,null,null,null,null,"y"]
[14,{"$f":"IF(FILIACION_ESTUDIANTE!D21=0,\"\",FILIACION_PPFF!B20)","v":""},null,null,null,null,null,null,null,null,null,null,null,null,null,null,null,null,null,null,null,null,null,null,null,null,null,null," "," "," "," ",null,null,null,null,null,"REGISTRO DE ASISTENCIA ABRIL  2019",null,null,"REGISTRO DE ASISTENCIA ABRIL ",{"$f":"AP21","v":2019},null,null,null,null,null,null,null,null,null,null,"a"]
[15,{"$f":"IF(FILIACION_ESTUDIANTE!D22=0,\"\",FILIACION_PPFF!B21)","v":""},null,null,null,null,null,null,null,null,null,null,null,null,null,null,null,null,null,null,null,null,null,null,null,null,null,null," "," "," "," ",null,null,null,null,null,"REGISTRO DE ASISTENCIA MAYO  2019",null,null,"REGISTRO DE ASISTENCIA MAYO ",{"$f":"AP22","v":2019},null,null,null,null,null,null,null,null,null,null,"a"]
[16,{"$f":"IF(FILIACION_ESTUDIANTE!D23=0,\"\",FILIACION_PPFF!B22)","v":""},null,null,null,null,null,null,null,null,null,null,null,null,null,null,null,null,null,null,null,null,null,null,null,null,null,null," "," "," "," ",null,null,null,null,null,"REGISTRO DE ASISTENCIA JUNIO  2019",null,null,"REGISTRO DE ASISTENCIA JUNIO ",2019,null,null,null,null,null,null,null,null,null,null,"a"]
[17,{"$f":"IF(FILIACION_ESTUDIANTE!D24=0,\"\",FILIACION_PPFF!B23)","v":""},null,null,null,null,null,null,null,null,null,null,null,null,null,null,null,null,null,null,null,null,null,null,null,null,null,null," "," "," "," ",null,null,null,null,null,"REGISTRO DE ASISTENCIA JULIO  2019",null,null,"REGISTRO DE ASISTENCIA JULIO ",2019,null,null,null,null,null,null,null,null,null,null,"a"]
[18,{"$f":"IF(FILIACION_ESTUDIANTE!D25=0,\"\",FILIACION_PPFF!B24)","v":""},null,null,null,null,null,null,null,null,null,null,null,null,null,null,null,null,null,null,null,null,null,null,null,null,null,null," "," "," "," ",null,null,null,null,null,"REGISTRO DE ASISTENCIA AGOSTO  2019",null,null,"REGISTRO DE ASISTENCIA AGOSTO ",2019,null,null,null,null,null,null,null,null,null,null,"a"]
[19,{"$f":"IF(FILIACION_ESTUDIANTE!D26=0,\"\",FILIACION_PPFF!B25)","v":""},null,null,null,null,null,null,null,null,null,null,null,null,null,null,null,null,null,null,null,null,null,null,null,null,null,null," "," "," "," ",null,null,null,null,null,"REGISTRO DE ASISTENCIA SEPTIEMBRE  2019",null,null,"REGISTRO DE ASISTENCIA SEPTIEMBRE ",2019,null,null,null,null,null,null,null,null,null,null,"a"]
[20,{"$f":"IF(FILIACION_ESTUDIANTE!D27=0,\"\",FILIACION_PPFF!B26)","v":""},null,null,null,null,null,null,null,null,null,null,null,null,null,null,null,null,null,null,null,null,null,null,null,null,null,null," "," "," "," ",null,null,null,null,null,"REGISTRO DE ASISTENCIA OCTUBRE  2019",null,null,"REGISTRO DE ASISTENCIA OCTUBRE ",2019,null,null,null,null,null,null,null,null,null,null,"f"]
[21,{"$f":"IF(FILIACION_ESTUDIANTE!D28=0,\"\",FILIACION_PPFF!B27)","v":""},null,null,null,null,null,null,null,null,null,null,null,null,null,null,null,null,null,null,null,null,null,null,null,null,null,null," "," "," "," ",null,null,null,null,null,"REGISTRO DE ASISTENCIA NOVIEMBRE  2019",null,null,"REGISTRO DE ASISTENCIA NOVIEMBRE ",2019,null,null,null,null,null,null,null,null,null,null,"p"]
[22,{"$f":"IF(FILIACION_ESTUDIANTE!D29=0,\"\",FILIACION_PPFF!B28)","v":""},null,null,null,null,null,null,null,null,null,null,null,null,null,null,null,null,null,null,null,null,null,null,null,null,null,null," "," "," "," ",null,null,null,null,null,"REGISTRO DE ASISTENCIA DICIEMBRE  2019",null,null,"REGISTRO DE ASISTENCIA DICIEMBRE ",2019,null,null,null,null,null,null,null,null,null,null,"M"]
[23,{"$f":"IF(FILIACION_ESTUDIANTE!D30=0,\"\",FILIACION_PPFF!B29)","v":""},null,null,null,null,null,null,null,null,null,null,null,null,null,null,null,null,null,null,null,null,null,null,null,null,null,null," "," "," "," "]
[24,{"$f":"IF(FILIACION_ESTUDIANTE!D31=0,\"\",FILIACION_PPFF!B30)","v":""},null,null,null,null,null,null,null,null,null,null,null,null,null,null,null,null,null,null,null,null,null,null,null,null,null,null," "," "," "," ",null,null,null,null,null,null,null,null,null,null,null,null,null,null,null,null,null,null,null,null,"M"]
[25,{"$f":"IF(FILIACION_ESTUDIANTE!D32=0,\"\",FILIACION_PPFF!B31)","v":""},null,null,null,null,null,null,null,null,null,null,null,null,null,null,null,null,null,null,null,null,null,null,null,null,null,null," "," "," "," ",null,null,null,null,null,null,null,null,null,null,null,null,null,null,null,null,null,null,null,null,"M"]
[26,{"$f":"IF(FILIACION_ESTUDIANTE!D33=0,\"\",FILIACION_PPFF!B32)","v":""},null,null,null,null,null,null,null,null,null,null,null,null,null,null,null,null,null,null,null,null,null,null,null,null,null,null," "," "," "," ",null,null,null,null,null,null,null,null,null,null,null,null,null,null,null,null,null,null,null,null,"M"]
[27,{"$f":"IF(FILIACION_ESTUDIANTE!D34=0,\"\",FILIACION_PPFF!B33)","v":""},null,null,null,null,null,null,null,null,null,null,null,null,null,null,null,null,null,null,null,null,null,null,null,null,null,null," "," "," "," ",null,null,null,null,null,null,null,null,null,null,null,null,null,null,null,null,null,null,null,null,"M"]
[28,{"$f":"IF(FILIACION_ESTUDIANTE!D35=0,\"\",FILIACION_PPFF!B34)","v":""},null,null,null,null,null,null,null,null,null,null,null,null,null,null,null,null,null,null,null,null,null,null,null,null,null,null," "," "," "," ",null,null,null,null,null,null,null,null,null,null,null,null,null,null,null,null,null,null,null,null,"M"]
[29,{"$f":"IF(FILIACION_ESTUDIANTE!D36=0,\"\",FILIACION_PPFF!B35)","v":""},null,null,null,null,null,null,null,null,null,null,null,null,null,null,null,null,null,null,null,null,null,null,null,null,null,null," "," "," "," "]
[30,{"$f":"IF(FILIACION_ESTUDIANTE!D37=0,\"\",FILIACION_PPFF!B36)","v":""},null,null,null,null,null,null,null,null,null,null,null,null,null,null,null,null,null,null,null,null,null,null,null,null,null,null," "," "," "," "]
[31,{"$f":"IF(FILIACION_ESTUDIANTE!D38=0,\"\",FILIACION_PPFF!B37)","v":""},null,null,null,null,null,null,null,null,null,null,null,null,null,null,null,null,null,null,null,null,null,null,null,null,null,null," "," "," "," ",null,null,null,null,null,null,null,null,null,null,null,null,null,null,null,null,null,null,null,null,"M"]
[32,{"$f":"IF(FILIACION_ESTUDIANTE!D39=0,\"\",FILIACION_PPFF!B38)","v":""},null,null,null,null,null,null,null,null,null,null,null,null,null,null,null,null,null,null,null,null,null,null,null,null,null,null," "," "," "," ",null,null,null,null,null,null,null,null,null,null,null,null,null,null,null,null,null,null,null,null,"M"]
[33,{"$f":"IF(FILIACION_ESTUDIANTE!D40=0,\"\",FILIACION_PPFF!B39)","v":""},null,null,null,null,null,null,null,null,null,null,null,null,null,null,null,null,null,null,null,null,null,null,null,null,null,null," "," "," "," "]
[34,{"$f":"IF(FILIACION_ESTUDIANTE!D41=0,\"\",FILIACION_PPFF!B40)","v":""},null,null,null,null,null,null,null,null,null,null,null,null,null,null,null,null,null,null,null,null,null,null,null,null,null,null," "," "," "," "]
[35,{"$f":"IF(FILIACION_ESTUDIANTE!D42=0,\"\",FILIACION_PPFF!B41)","v":""},null,null,null,null,null,null,null,null,null,null,null,null,null,null,null,null,null,null,null,null,null,null,null,null,null,null," "," "," "," "]
[36,{"$f":"IF(FILIACION_ESTUDIANTE!D43=0,\"\",FILIACION_PPFF!B42)","v":""},null,null,null,null,null,null,null,null,null,null,null,null,null,null,null,null,null,null,null,null,null,null,null,null,null,null," "," "," "," "]
[37,{"$f":"IF(FILIACION_ESTUDIANTE!D44=0,\"\",FILIACION_PPFF!B43)","v":""},null,null,null,null,null,null,null,null,null,null,null,null,null,null,null,null,null,null,null,null,null,null,null,null,null,null," "," "," "," "]
[38,{"$f":"IF(FILIACION_ESTUDIANTE!D45=0,\"\",FILIACION_PPFF!B44)","v":""},null,null,null,null,null,null,null,null,null,null,null,null,null,null,null,null,null,null,null,null,null,null,null,null,null,null," "," "," "," "]
[39,{"$f":"IF(FILIACION_ESTUDIANTE!D46=0,\"\",FILIACION_PPFF!B45)","v":""},null,null,null,null,null,null,null,null,null,null,null,null,null,null,null,null,null,null,null,null,null,null,null,null,null,null," "," "," "," "]
[40,{"$f":"IF(FILIACION_ESTUDIANTE!D47=0,\"\",FILIACION_PPFF!B46)","v":""},null,null,null,null,null,null,null,null,null,null,null,null,null,null,null,null,null,null,null,null,null,null,null,null,null,null," "," "," "," "]
[]
[null,null,null,"INSCRITOS","NO INCORPORADO",null,null,null,"EFECTIVOS",null,null,null,null,null,null,null,null,null,null,null,null,null,"PROMEDIO",null,null,null,null,"%",null,null,null,null,null,null,null,{"$f":"(SUM(AF9:AF48,AC9:AD48)/D53)","v":{"$error":"#VALUE!"}},"SUMATORIA","DIAS TRAB","PROMEDIO"]
[null,"VARONES",null,{"$f":"COUNTIF(FILIACION_ESTUDIANTE!J8:J47,\"M\")","v":0},0,null,null,null,{"$f":"IF(D51=0,\" \",(D51-E51-G51))","v":" "},null,null,null,null,null,null,"ASISTENCIA",null,null,null,null,null,null,{"$f":"IF(AJ50=0,\"\",ROUND(AM51-G53,0))","v":{"$error":"#VALUE!"}},null,null,null,null,{"$f":"IF(AJ50=0,\"\",ROUND((100*W51)/W53,0))","v":{"$error":"#VALUE!"}},null,null,null,null,null,null,null,"PRESENTE",{"$f":"IF(AJ50=0,\"\",SUM(AE9:AF48))","v":{"$error":"#VALUE!"}},{"$f":"IF(AJ50=0,\"\",AJ50)","v":{"$error":"#VALUE!"}},{"$f":"IF(AJ50=0,\"\",AK51/AL51)","v":{"$error":"#VALUE!"}}]
[null,"MUJERES",null,{"$f":"COUNTIF(FILIACION_ESTUDIANTE!J8:J47,\"F\")","v":0},0,null,null,null,{"$f":"IF(D52=0,\" \",(D52-E52-G52))","v":" "},null,null,null,null,null,null,"FALTA",null,null,null,null,null,null,{"$f":"IF(AJ50=0,\"\",ROUND(AM52,0))","v":{"$error":"#VALUE!"}},null,null,null,null,{"$f":"IF(AJ50=0,\"\",ROUND((100*W52)/W53,0))","v":{"$error":"#VALUE!"}},null,null,null,null,null,null,null,"FALTA",{"$f":"IF(AJ50=0,\"\",SUM(AC9:AD48))","v":{"$error":"#VALUE!"}},{"$f":"IF(AJ50=0,\"\",AJ50)","v":{"$error":"#VALUE!"}},{"$f":"IF(AJ50=0,\"\",AK52/AL52)","v":{"$error":"#VALUE!"}}]
[null,"TOTAL",null,{"$f":"IF(D51=0,\" \",(SUM(D51,D52)))","v":" "},{"$f":"SUM(E51,E52)","v":0},null,null,null,{"$f":"IF(I51=\" \",\" \",(SUM(I51,I52)))","v":" "},null,null,null,null,null,null,"TOTAL",null,null,null,null,null,null,{"$f":"IF(AJ50=0,\"\",SUM(W51:AA52))","v":{"$error":"#VALUE!"}},null,null,null,null,{"$f":"IF(AJ50=0,\"\",SUM(AB51:AD52))","v":{"$error":"#VALUE!"}},null,null,null,null,null,null,null,null,null,null,{"$f":"SUM(AM51:AM52)","v":{"$error":"#VALUE!"}}]

{"sheet":"JULIO","index":13,"n_rows":53,"n_cols":53,"rows_kept":53,"cut":false,"hidden":false,"merged":[[4,0,4,1],[4,2,4,23],[4,24,4,27],[4,28,4,31],[5,0,5,31],[6,0,7,0],[6,1,7,3],[6,28,7,28],[6,29,7,29],[6,30,7,30],[0,33,0,34],[1,0,1,31],[2,0,2,31],[3,0,3,2],[3,3,3,12],[3,24,3,27],[3,28,3,31],[0,0,0,31],[16,37,18,39],[17,1,17,4],[18,1,18,4],[19,1,19,4],[6,31,7,31],[8,1,8,4],[8,33,47,33],[9,1,9,4],[10,1,10,4],[11,1,11,4],[12,1,12,4],[13,1,13,4],[14,1,14,4],[15,1,15,4],[16,1,16,4],[19,37,19,39],[21,37,21,39],[22,1,22,4],[22,37,22,39],[20,1,20,4],[20,37,20,39],[21,1,21,4],[23,37,23,39],[24,1,24,4],[24,37,24,39],[25,1,25,4],[25,37,25,39],[23,1,23,4],[26,37,26,39],[35,1,35,4],[27,1,27,4],[27,37,27,39],[28,1,28,4],[28,37,28,39],[29,1,29,4],[29,37,29,39],[30,1,30,4],[31,1,31,4],[32,1,32,4],[33,1,33,4],[34,1,34,4],[26,1,26,4],[47,1,47,4],[36,1,36,4],[37,1,37,4],[38,1,38,4],[39,1,39,4],[40,1,40,4],[41,1,41,4],[42,1,42,4],[43,1,43,4],[44,1,44,4],[45,1,45,4],[46,1,46,4],[49,4,49,7],[50,4,50,7],[51,4,51,7],[52,1,52,2],[52,8,52,10],[52,4,52,7],[52,15,52,21],[52,22,52,26],[48,33,56,33],[49,8,49,10],[49,22,49,26],[49,27,49,29],[50,8,50,10],[50,15,50,21],[50,22,50,26],[50,27,50,29],[51,8,51,10],[51,15,51,21],[51,22,51,26],[51,27,51,29],[52,27,52,29]]}
[null,null,null,null,null,null,null,null,null,null,null,null,null,null,null,null,null,null,null,null,null,null,null,null,null,null,null,null,null,null,null,null,null,"ASISTENCIAS E INASISTENCIAS",null,"AZUL"]
[null,null,null,null,null,null,null,null,null,null,null,null,null,null,null,null,null,null,null,null,null,null,null,null,null,null,null,null,null,null,null,null,null,"Presente","P"]
[{"$f":"AL25","v":"REGISTRO DE ASISTENCIA JULIO  2019"},null,null,null,null,null,null,null,null,null,null,null,null,null,null,null,null,null,null,null,null,null,null,null,null,null,null,null,null,null,null,null,null,"Atraso","A"]
[{"$f":"+UPPER(CARATULA!C21)","v":"MAESTRA (O):"},null,null,{"$f":"CARATULA!E21","v":0},null,null,null,null,null,null,null,null,null,null,null,null,null,null,null,null,null,null,null,null,"TURNO: ",null,null,null,{"$f":"CARATULA!E14","v":0},null,null,null,null,"falta con licencia","F"]
["NIVEL:",null,{"$f":"CARATULA!E22","v":0},null,null,null,null,null,null,null,null,null,null,null,null,null,null,null,null,null,null,null,null,null,"PARALELO:",null,null,null,{"$f":"CARATULA!E15","v":0},null,null,null,null,"Falta sin licencia","L"]
[{"$f":"+CONCATENATE(\"AÑO DE ESCOLARIDAD:  \",CARATULA!E23)","v":"AÑO DE ESCOLARIDAD:  "}]
["Nº","NÓMINA",null,null,"DÍA","L","M","M","J","V","L","M","M","J","V","L","M","M","J","V","L",{"$f":"IF(F8=7,\"\",\"M\")","v":"M"},{"$f":"IF(V8>27,\"\",\"M\")","v":"M"},{"$f":"IF(W8>27,\"\",\"J\")","v":"J"},{"$f":"IF(X8>27,\"\",\"V\")","v":"V"},"L",{"$f":"IF(K8=7,\"\",\"M\")","v":"M"},{"$f":"IF(L8=7,\"\",\"M\")","v":"M"},"LICENCIA (L)","FALTA (F)","ATRASO (A)","PRESENTE=DÍAS TRABAJAOS",null,"dias materias tecnicas",0]
[null,null,null,null,"FECHA",1,{"$f":"F8+1","v":2},{"$f":"G8+1","v":3},{"$f":"H8+1","v":4},{"$f":"I8+1","v":5},{"$f":"J8+3","v":8},{"$f":"K8+1","v":9},{"$f":"L8+1","v":10},{"$f":"M8+1","v":11},{"$f":"N8+1","v":12},{"$f":"O8+3","v":15},{"$f":"P8+1","v":16},{"$f":"Q8+1","v":17},{"$f":"R8+1","v":18},{"$f":"S8+1","v":19},{"$f":"T8+3","v":22},{"$f":"U8+1","v":23},24,25,26,{"$f":"Y8+3","v":29},30,31]
[1,{"$f":"IF(FILIACION_ESTUDIANTE!D8=0,\"\",FILIACION_PPFF!B7)","v":""},null,null,null,null,null,null,null,null,null,null,null,null,null,null,null,null,null,null,null,null,null,null,null,null,null,null,{"$f":"IF((COUNTBLANK(F9:AB9))>=23,\" \",(COUNTIF((F9:AB9),$AI$5)))","v":" "},{"$f":"IF((COUNTBLANK(F9:AB9))>=23,\" \",(COUNTIF((F9:AB9),$AI$4)))","v":" "},{"$f":"IF((COUNTBLANK(F9:AB9))>=23,\" \",(COUNTIF((F9:AB9),$AI$3)))","v":" "},{"$f":"IF(COUNTBLANK(F9:AB9)>=23,\" \",(COUNTIF((F9:AB9),$AI$2)+AE9+$AI$7))","v":" "},null,"JULIO"]
[2,{"$f":"IF(FILIACION_ESTUDIANTE!D9=0,\"\",FILIACION_PPFF!B8)","v":""},null,null,null,null,null,null,null,null,null,null,null,null,null,null,null,null,null,null,null,null,null,null,null,null,null,null," "," "," "," "]
[3,{"$f":"IF(FILIACION_ESTUDIANTE!D10=0,\"\",FILIACION_PPFF!B9)","v":""},null,null,null,null,null,null,null,null,null,null,null,null,null,null,null,null,null,null,null,null,null,null,null,null,null,null," "," "," "," "]
[4,{"$f":"IF(FILIACION_ESTUDIANTE!D11=0,\"\",FILIACION_PPFF!B10)","v":""},null,null,null,null,null,null,null,null,null,null,null,null,null,null,null,null,null,null,null,null,null,null,null,null,null,null," "," "," "," ",null,null,null,null,null,null,null,null,null,null,null,null,null,null,null,null,null,null,null,{"$f":"ISLOGICAL((#REF!))","v":false},1]
[5,{"$f":"IF(FILIACION_ESTUDIANTE!D12=0,\"\",FILIACION_PPFF!B11)","v":""},null,null,null,null,null,null,null,null,null,null,null,null,null,null,null,null,null,null,null,null,null,null,null,null,null,null," "," "," "," ",null,null,null,null,null,null,null,null,null,null,null,null,null,null,null,null,null,null,null,null,"A"]
[6,{"$f":"IF(FILIACION_ESTUDIANTE!D13=0,\"\",FILIACION_PPFF!B12)","v":""},null,null,null,null,null,null,null,null,null,null,null,null,null,null,null,null,null,null,null,null,null,null,null,null,null,null," "," "," "," ",null,null,null,null,null,null,null,null,null,null,null,null,null,null,null,null,null,null,{"$f":"ISTEXT(#REF!)","v":false}]
[7,{"$f":"IF(FILIACION_ESTUDIANTE!D14=0,\"\",FILIACION_PPFF!B13)","v":""},null,null,null,null,null,null,null,null,null,null,null,null,null,null,null,null,null,null,null,null,null,null,null,null,null,null," "," "," "," ",null,null,null,null,null,null,null,null,null,null,null,null,null,null,null,null,null,null,null,null,"a"]
[8,{"$f":"IF(FILIACION_ESTUDIANTE!D15=0,\"\",FILIACION_PPFF!B14)","v":""},null,null,null,null,null,null,null,null,null,null,null,null,null,null,null,null,null,null,null,null,null,null,null,null,null,null," "," "," "," ",null,null,null,null,null,null,null,null,null,null,null,null,null,null,null,null,null,null,null,null,"a"]
[9,{"$f":"IF(FILIACION_ESTUDIANTE!D16=0,\"\",FILIACION_PPFF!B15)","v":""},null,null,null,null,null,null,null,null,null,null,null,null,null,null,null,null,null,null,null,null,null,null,null,null,null,null," "," "," "," ",null,null,null,null,null,"ENCABEZADO DE LOS FORMULARIOS DE CONTROL DE ASISTENCIA",null,null,null,null,null,null,null,null,null,null,null,{"$f":"MONTH(AX18)","v":2},null,null,"f"]
[10,{"$f":"IF(FILIACION_ESTUDIANTE!D17=0,\"\",FILIACION_PPFF!B16)","v":""},null,null,null,null,null,null,null,null,null,null,null,null,null,null,null,null,null,null,null,null,null,null,null,null,null,null," "," "," "," ",null,null,null,null,null,null,null,null,null,null,null,null,null,null,null,null,null,"2010-02-01",null,null,"f"]
[11,{"$f":"IF(FILIACION_ESTUDIANTE!D18=0,\"\",FILIACION_PPFF!B17)","v":""},null,null,null,null,null,null,null,null,null,null,null,null,null,null,null,null,null,null,null,null,null,null,null,null,null,null," "," "," "," ",null,null,null,null,null,null,null,null,null,null,null,null,null,null,null,null,null,null,null,null,"f"]
[12,{"$f":"IF(FILIACION_ESTUDIANTE!D19=0,\"\",FILIACION_PPFF!B18)","v":""},null,null,null,null,null,null,null,null,null,null,null,null,null,null,null,null,null,null,null,null,null,null,null,null,null,null," "," "," "," ",null,null,null,null,null,{"$f":"CONCATENATE(AO20,\" \",AP20)","v":"REGISTRO DE ASISTENCIA FEBRERO  2019"},null,null,"REGISTRO DE ASISTENCIA FEBRERO ",{"$f":"CARATULA!F27","v":2019},null,null,null,null,null,null,null,null,null,null,"p"]
[13,{"$f":"IF(FILIACION_ESTUDIANTE!D20=0,\"\",FILIACION_PPFF!B19)","v":""},null,null,null,null,null,null,null,null,null,null,null,null,null,null,null,null,null,null,null,null,null,null,null,null,null,null," "," "," "," ",null,null,null,null,null,{"$f":"CONCATENATE(AO21,\" \",AP21)","v":"REGISTRO DE ASISTENCIA MARZO  2019"},null,null,"REGISTRO DE ASISTENCIA MARZO ",{"$f":"AP20","v":2019},null,null,null,null,null,null,null,null,null,null,"y"]
[14,{"$f":"IF(FILIACION_ESTUDIANTE!D21=0,\"\",FILIACION_PPFF!B20)","v":""},null,null,null,null,null,null,null,null,null,null,null,null,null,null,null,null,null,null,null,null,null,null,null,null,null,null," "," "," "," ",null,null,null,null,null,"REGISTRO DE ASISTENCIA ABRIL  2019",null,null,"REGISTRO DE ASISTENCIA ABRIL ",{"$f":"AP21","v":2019},null,null,null,null,null,null,null,null,null,null,"a"]
[15,{"$f":"IF(FILIACION_ESTUDIANTE!D22=0,\"\",FILIACION_PPFF!B21)","v":""},null,null,null,null,null,null,null,null,null,null,null,null,null,null,null,null,null,null,null,null,null,null,null,null,null,null," "," "," "," ",null,null,null,null,null,"REGISTRO DE ASISTENCIA MAYO  2019",null,null,"REGISTRO DE ASISTENCIA MAYO ",{"$f":"AP22","v":2019},null,null,null,null,null,null,null,null,null,null,"a"]
[16,{"$f":"IF(FILIACION_ESTUDIANTE!D23=0,\"\",FILIACION_PPFF!B22)","v":""},null,null,null,null,null,null,null,null,null,null,null,null,null,null,null,null,null,null,null,null,null,null,null,null,null,null," "," "," "," ",null,null,null,null,null,"REGISTRO DE ASISTENCIA JUNIO  2019",null,null,"REGISTRO DE ASISTENCIA JUNIO ",2019,null,null,null,null,null,null,null,null,null,null,"a"]
[17,{"$f":"IF(FILIACION_ESTUDIANTE!D24=0,\"\",FILIACION_PPFF!B23)","v":""},null,null,null,null,null,null,null,null,null,null,null,null,null,null,null,null,null,null,null,null,null,null,null,null,null,null," "," "," "," ",null,null,null,null,null,"REGISTRO DE ASISTENCIA JULIO  2019",null,null,"REGISTRO DE ASISTENCIA JULIO ",2019,null,null,null,null,null,null,null,null,null,null,"a"]
[18,{"$f":"IF(FILIACION_ESTUDIANTE!D25=0,\"\",FILIACION_PPFF!B24)","v":""},null,null,null,null,null,null,null,null,null,null,null,null,null,null,null,null,null,null,null,null,null,null,null,null,null,null," "," "," "," ",null,null,null,null,null,"REGISTRO DE ASISTENCIA AGOSTO  2019",null,null,"REGISTRO DE ASISTENCIA AGOSTO ",2019,null,null,null,null,null,null,null,null,null,null,"a"]
[19,{"$f":"IF(FILIACION_ESTUDIANTE!D26=0,\"\",FILIACION_PPFF!B25)","v":""},null,null,null,null,null,null,null,null,null,null,null,null,null,null,null,null,null,null,null,null,null,null,null,null,null,null," "," "," "," ",null,null,null,null,null,"REGISTRO DE ASISTENCIA SEPTIEMBRE  2019",null,null,"REGISTRO DE ASISTENCIA SEPTIEMBRE ",2019,null,null,null,null,null,null,null,null,null,null,"a"]
[20,{"$f":"IF(FILIACION_ESTUDIANTE!D27=0,\"\",FILIACION_PPFF!B26)","v":""},null,null,null,null,null,null,null,null,null,null,null,null,null,null,null,null,null,null,null,null,null,null,null,null,null,null," "," "," "," ",null,null,null,null,null,"REGISTRO DE ASISTENCIA OCTUBRE  2019",null,null,"REGISTRO DE ASISTENCIA OCTUBRE ",2019,null,null,null,null,null,null,null,null,null,null,"f"]
[21,{"$f":"IF(FILIACION_ESTUDIANTE!D28=0,\"\",FILIACION_PPFF!B27)","v":""},null,null,null,null,null,null,null,null,null,null,null,null,null,null,null,null,null,null,null,null,null,null,null,null,null,null," "," "," "," ",null,null,null,null,null,"REGISTRO DE ASISTENCIA NOVIEMBRE  2019",null,null,"REGISTRO DE ASISTENCIA NOVIEMBRE ",2019,null,null,null,null,null,null,null,null,null,null,"p"]
[22,{"$f":"IF(FILIACION_ESTUDIANTE!D29=0,\"\",FILIACION_PPFF!B28)","v":""},null,null,null,null,null,null,null,null,null,null,null,null,null,null,null,null,null,null,null,null,null,null,null,null,null,null," "," "," "," ",null,null,null,null,null,"REGISTRO DE ASISTENCIA DICIEMBRE  2019",null,null,"REGISTRO DE ASISTENCIA DICIEMBRE ",2019,null,null,null,null,null,null,null,null,null,null,"M"]
[23,{"$f":"IF(FILIACION_ESTUDIANTE!D30=0,\"\",FILIACION_PPFF!B29)","v":""},null,null,null,null,null,null,null,null,null,null,null,null,null,null,null,null,null,null,null,null,null,null,null,null,null,null," "," "," "," "]
[24,{"$f":"IF(FILIACION_ESTUDIANTE!D31=0,\"\",FILIACION_PPFF!B30)","v":""},null,null,null,null,null,null,null,null,null,null,null,null,null,null,null,null,null,null,null,null,null,null,null,null,null,null," "," "," "," ",null,null,null,null,null,null,null,null,null,null,null,null,null,null,null,null,null,null,null,null,"M"]
[25,{"$f":"IF(FILIACION_ESTUDIANTE!D32=0,\"\",FILIACION_PPFF!B31)","v":""},null,null,null,null,null,null,null,null,null,null,null,null,null,null,null,null,null,null,null,null,null,null,null,null,null,null," "," "," "," ",null,null,null,null,null,null,null,null,null,null,null,null,null,null,null,null,null,null,null,null,"M"]
[26,{"$f":"IF(FILIACION_ESTUDIANTE!D33=0,\"\",FILIACION_PPFF!B32)","v":""},null,null,null,null,null,null,null,null,null,null,null,null,null,null,null,null,null,null,null,null,null,null,null,null,null,null," "," "," "," ",null,null,null,null,null,null,null,null,null,null,null,null,null,null,null,null,null,null,null,null,"M"]
[27,{"$f":"IF(FILIACION_ESTUDIANTE!D34=0,\"\",FILIACION_PPFF!B33)","v":""},null,null,null,null,null,null,null,null,null,null,null,null,null,null,null,null,null,null,null,null,null,null,null,null,null,null," "," "," "," ",null,null,null,null,null,null,null,null,null,null,null,null,null,null,null,null,null,null,null,null,"M"]
[28,{"$f":"IF(FILIACION_ESTUDIANTE!D35=0,\"\",FILIACION_PPFF!B34)","v":""},null,null,null,null,null,null,null,null,null,null,null,null,null,null,null,null,null,null,null,null,null,null,null,null,null,null," "," "," "," ",null,null,null,null,null,null,null,null,null,null,null,null,null,null,null,null,null,null,null,null,"M"]
[29,{"$f":"IF(FILIACION_ESTUDIANTE!D36=0,\"\",FILIACION_PPFF!B35)","v":""},null,null,null,null,null,null,null,null,null,null,null,null,null,null,null,null,null,null,null,null,null,null,null,null,null,null," "," "," "," "]
[30,{"$f":"IF(FILIACION_ESTUDIANTE!D37=0,\"\",FILIACION_PPFF!B36)","v":""},null,null,null,null,null,null,null,null,null,null,null,null,null,null,null,null,null,null,null,null,null,null,null,null,null,null," "," "," "," "]
[31,{"$f":"IF(FILIACION_ESTUDIANTE!D38=0,\"\",FILIACION_PPFF!B37)","v":""},null,null,null,null,null,null,null,null,null,null,null,null,null,null,null,null,null,null,null,null,null,null,null,null,null,null," "," "," "," ",null,null,null,null,null,null,null,null,null,null,null,null,null,null,null,null,null,null,null,null,"M"]
[32,{"$f":"IF(FILIACION_ESTUDIANTE!D39=0,\"\",FILIACION_PPFF!B38)","v":""},null,null,null,null,null,null,null,null,null,null,null,null,null,null,null,null,null,null,null,null,null,null,null,null,null,null," "," "," "," ",null,null,null,null,null,null,null,null,null,null,null,null,null,null,null,null,null,null,null,null,"M"]
[33,{"$f":"IF(FILIACION_ESTUDIANTE!D40=0,\"\",FILIACION_PPFF!B39)","v":""},null,null,null,null,null,null,null,null,null,null,null,null,null,null,null,null,null,null,null,null,null,null,null,null,null,null," "," "," "," "]
[34,{"$f":"IF(FILIACION_ESTUDIANTE!D41=0,\"\",FILIACION_PPFF!B40)","v":""},null,null,null,null,null,null,null,null,null,null,null,null,null,null,null,null,null,null,null,null,null,null,null,null,null,null," "," "," "," "]
[35,{"$f":"IF(FILIACION_ESTUDIANTE!D42=0,\"\",FILIACION_PPFF!B41)","v":""},null,null,null,null,null,null,null,null,null,null,null,null,null,null,null,null,null,null,null,null,null,null,null,null,null,null," "," "," "," "]
[36,{"$f":"IF(FILIACION_ESTUDIANTE!D43=0,\"\",FILIACION_PPFF!B42)","v":""},null,null,null,null,null,null,null,null,null,null,null,null,null,null,null,null,null,null,null,null,null,null,null,null,null,null," "," "," "," "]
[37,{"$f":"IF(FILIACION_ESTUDIANTE!D44=0,\"\",FILIACION_PPFF!B43)","v":""},null,null,null,null,null,null,null,null,null,null,null,null,null,null,null,null,null,null,null,null,null,null,null,null,null,null," "," "," "," "]
[38,{"$f":"IF(FILIACION_ESTUDIANTE!D45=0,\"\",FILIACION_PPFF!B44)","v":""},null,null,null,null,null,null,null,null,null,null,null,null,null,null,null,null,null,null,null,null,null,null,null,null,null,null," "," "," "," "]
[39,{"$f":"IF(FILIACION_ESTUDIANTE!D46=0,\"\",FILIACION_PPFF!B45)","v":""},null,null,null,null,null,null,null,null,null,null,null,null,null,null,null,null,null,null,null,null,null,null,null,null,null,null," "," "," "," "]
[40,{"$f":"IF(FILIACION_ESTUDIANTE!D47=0,\"\",FILIACION_PPFF!B46)","v":""},null,null,null,null,null,null,null,null,null,null,null,null,null,null,null,null,null,null,null,null,null,null,null,null,null,null," "," "," "," "]
[]
[null,null,null,"INSCRITOS","NO INCORPORADO",null,null,null,"EFECTIVOS",null,null,null,null,null,null,null,null,null,null,null,null,null,"PROMEDIO",null,null,null,null,"%",null,null,null,null,null,null,null,{"$f":"(SUM(AF9:AF48,AC9:AD48)/D53)","v":{"$error":"#VALUE!"}},"SUMATORIA","DIAS TRAB","PROMEDIO"]
[null,"VARONES",null,{"$f":"COUNTIF(FILIACION_ESTUDIANTE!J8:J47,\"M\")","v":0},0,null,null,null,{"$f":"IF(D51=0,\" \",(D51-E51-G51))","v":" "},null,null,null,null,null,null,"ASISTENCIA",null,null,null,null,null,null,{"$f":"IF(AJ50=0,\"\",ROUND(AM51-G53,0))","v":{"$error":"#VALUE!"}},null,null,null,null,{"$f":"IF(AJ50=0,\"\",ROUND((100*W51)/W53,0))","v":{"$error":"#VALUE!"}},null,null,null,null,null,null,null,"PRESENTE",{"$f":"IF(AJ50=0,\"\",SUM(AE9:AF48))","v":{"$error":"#VALUE!"}},{"$f":"IF(AJ50=0,\"\",AJ50)","v":{"$error":"#VALUE!"}},{"$f":"IF(AJ50=0,\"\",AK51/AL51)","v":{"$error":"#VALUE!"}}]
[null,"MUJERES",null,{"$f":"COUNTIF(FILIACION_ESTUDIANTE!J8:J47,\"F\")","v":0},0,null,null,null,{"$f":"IF(D52=0,\" \",(D52-E52-G52))","v":" "},null,null,null,null,null,null,"FALTA",null,null,null,null,null,null,{"$f":"IF(AJ50=0,\"\",ROUND(AM52,0))","v":{"$error":"#VALUE!"}},null,null,null,null,{"$f":"IF(AJ50=0,\"\",ROUND((100*W52)/W53,0))","v":{"$error":"#VALUE!"}},null,null,null,null,null,null,null,"FALTA",{"$f":"IF(AJ50=0,\"\",SUM(AC9:AD48))","v":{"$error":"#VALUE!"}},{"$f":"IF(AJ50=0,\"\",AJ50)","v":{"$error":"#VALUE!"}},{"$f":"IF(AJ50=0,\"\",AK52/AL52)","v":{"$error":"#VALUE!"}}]
[null,"TOTAL",null,{"$f":"IF(D51=0,\" \",(SUM(D51,D52)))","v":" "},{"$f":"SUM(E51,E52)","v":0},null,null,null,{"$f":"IF(I51=\" \",\" \",(SUM(I51,I52)))","v":" "},null,null,null,null,null,null,"TOTAL",null,null,null,null,null,null,{"$f":"IF(AJ50=0,\"\",SUM(W51:AA52))","v":{"$error":"#VALUE!"}},null,null,null,null,{"$f":"IF(AJ50=0,\"\",SUM(AB51:AD52))","v":{"$error":"#VALUE!"}},null,null,null,null,null,null,null,null,null,null,{"$f":"SUM(AM51:AM52)","v":{"$error":"#VALUE!"}}]

{"sheet":"AGOSTO","index":14,"n_rows":53,"n_cols":53,"rows_kept":53,"cut":false,"hidden":false,"merged":[[4,0,4,1],[4,2,4,23],[4,24,4,27],[4,28,4,31],[5,0,5,31],[6,0,7,0],[6,1,7,3],[6,28,7,28],[6,29,7,29],[6,30,7,30],[0,33,0,34],[1,0,1,31],[2,0,2,31],[3,0,3,2],[3,3,3,12],[3,24,3,27],[3,28,3,31],[0,0,0,31],[16,37,18,39],[17,1,17,4],[18,1,18,4],[19,1,19,4],[6,31,7,31],[8,1,8,4],[8,33,47,33],[9,1,9,4],[10,1,10,4],[11,1,11,4],[12,1,12,4],[13,1,13,4],[14,1,14,4],[15,1,15,4],[16,1,16,4],[19,37,19,39],[21,37,21,39],[22,1,22,4],[22,37,22,39],[20,1,20,4],[20,37,20,39],[21,1,21,4],[23,37,23,39],[24,1,24,4],[24,37,24,39],[25,1,25,4],[25,37,25,39],[23,1,23,4],[26,37,26,39],[35,1,35,4],[27,1,27,4],[27,37,27,39],[28,1,28,4],[28,37,28,39],[29,1,29,4],[29,37,29,39],[30,1,30,4],[31,1,31,4],[32,1,32,4],[33,1,33,4],[34,1,34,4],[26,1,26,4],[47,1,47,4],[36,1,36,4],[37,1,37,4],[38,1,38,4],[39,1,39,4],[40,1,40,4],[41,1,41,4],[42,1,42,4],[43,1,43,4],[44,1,44,4],[45,1,45,4],[46,1,46,4],[49,4,49,7],[50,4,50,7],[51,4,51,7],[52,1,52,2],[52,8,52,10],[52,4,52,7],[52,15,52,21],[52,22,52,26],[48,33,56,33],[49,8,49,10],[49,22,49,26],[49,27,49,29],[50,8,50,10],[50,15,50,21],[50,22,50,26],[50,27,50,29],[51,8,51,10],[51,15,51,21],[51,22,51,26],[51,27,51,29],[52,27,52,29]]}
[null,null,null,null,null,null,null,null,null,null,null,null,null,null,null,null,null,null,null,null,null,null,null,null,null,null,null,null,null,null,null,null,null,"ASISTENCIAS E INASISTENCIAS",null,"AZUL"]
[null,null,null,null,null,null,null,null,null,null,null,null,null,null,null,null,null,null,null,null,null,null,null,null,null,null,null,null,null,null,null,null,null,"Presente","P"]
[{"$f":"AL26","v":"REGISTRO DE ASISTENCIA AGOSTO  2019"},null,null,null,null,null,null,null,null,null,null,null,null,null,null,null,null,null,null,null,null,null,null,null,null,null,null,null,null,null,null,null,null,"Atraso","A"]
[{"$f":"+UPPER(CARATULA!C21)","v":"MAESTRA (O):"},null,null,{"$f":"CARATULA!E21","v":0},null,null,null,null,null,null,null,null,null,null,null,null,null,null,null,null,null,null,null,null,"TURNO: ",null,null,null,{"$f":"CARATULA!E14","v":0},null,null,null,null,"falta con licencia","F"]
["NIVEL:",null,{"$f":"CARATULA!E22","v":0},null,null,null,null,null,null,null,null,null,null,null,null,null,null,null,null,null,null,null,null,null,"PARALELO:",null,null,null,{"$f":"CARATULA!E15","v":0},null,null,null,null,"Falta sin licencia","L"]
[{"$f":"+CONCATENATE(\"AÑO DE ESCOLARIDAD:  \",CARATULA!E23)","v":"AÑO DE ESCOLARIDAD:  "}]
["Nº","NÓMINA",null,null,"DÍA","J","V","L","M","M","J","V","L","M","M","J","V","L",{"$f":"IF(F8=7,\"\",\"M\")","v":"M"},{"$f":"IF(V8>27,\"\",\"M\")","v":"M"},{"$f":"IF(W8>27,\"\",\"J\")","v":"J"},{"$f":"IF(X8>27,\"\",\"V\")","v":"V"},"L","M","M","J","V",null,"LICENCIA (L)","FALTA (F)","ATRASO (A)","PRESENTE=DÍAS TRABAJAOS",null,"dias materias tecnicas",0]
[null,null,null,null,"FECHA",1,{"$f":"F8+1","v":2},{"$f":"G8+3","v":5},{"$f":"H8+1","v":6},7,8,9,{"$f":"L8+3","v":12},13,14,15,16,{"$f":"Q8+3","v":19},20,21,22,23,{"$f":"V8+3","v":26},27,28,29,30,{"$f":"IF($AH$9=\"FEBRERO\",\"\",AA8+1)","v":31}]
[1,{"$f":"IF(FILIACION_ESTUDIANTE!D8=0,\"\",FILIACION_PPFF!B7)","v":""},null,null,null,null,null,null,null,null,null,null,null,null,null,null,null,null,null,null,null,null,null,null,null,null,null,null,{"$f":"IF((COUNTBLANK(F9:AB9))>=23,\" \",(COUNTIF((F9:AB9),$AI$5)))","v":" "},{"$f":"IF((COUNTBLANK(F9:AB9))>=23,\" \",(COUNTIF((F9:AB9),$AI$4)))","v":" "},{"$f":"IF((COUNTBLANK(F9:AB9))>=23,\" \",(COUNTIF((F9:AB9),$AI$3)))","v":" "},{"$f":"IF(COUNTBLANK(F9:AB9)>=23,\" \",(COUNTIF((F9:AB9),$AI$2)+AE9+$AI$7))","v":" "},null,"AGOSTO"]
[2,{"$f":"IF(FILIACION_ESTUDIANTE!D9=0,\"\",FILIACION_PPFF!B8)","v":""},null,null,null,null,null,null,null,null,null,null,null,null,null,null,null,null,null,null,null,null,null,null,null,null,null,null," "," "," "," "]
[3,{"$f":"IF(FILIACION_ESTUDIANTE!D10=0,\"\",FILIACION_PPFF!B9)","v":""},null,null,null,null,null,null,null,null,null,null,null,null,null,null,null,null,null,null,null,null,null,null,null,null,null,null," "," "," "," "]
[4,{"$f":"IF(FILIACION_ESTUDIANTE!D11=0,\"\",FILIACION_PPFF!B10)","v":""},null,null,null,null,null,null,null,null,null,null,null,null,null,null,null,null,null,null,null,null,null,null,null,null,null,null," "," "," "," ",null,null,null,null,null,null,null,null,null,null,null,null,null,null,null,null,null,null,null,{"$f":"ISLOGICAL((#REF!))","v":false},1]
[5,{"$f":"IF(FILIACION_ESTUDIANTE!D12=0,\"\",FILIACION_PPFF!B11)","v":""},null,null,null,null,null,null,null,null,null,null,null,null,null,null,null,null,null,null,null,null,null,null,null,null,null,null," "," "," "," ",null,null,null,null,null,null,null,null,null,null,null,null,null,null,null,null,null,null,null,null,"A"]
[6,{"$f":"IF(FILIACION_ESTUDIANTE!D13=0,\"\",FILIACION_PPFF!B12)","v":""},null,null,null,null,null,null,null,null,null,null,null,null,null,null,null,null,null,null,null,null,null,null,null,null,null,null," "," "," "," ",null,null,null,null,null,null,null,null,null,null,null,null,null,null,null,null,null,null,{"$f":"ISTEXT(#REF!)","v":false}]
[7,{"$f":"IF(FILIACION_ESTUDIANTE!D14=0,\"\",FILIACION_PPFF!B13)","v":""},null,null,null,null,null,null,null,null,null,null,null,null,null,null,null,null,null,null,null,null,null,null,null,null,null,null," "," "," "," ",null,null,null,null,null,null,null,null,null,null,null,null,null,null,null,null,null,null,null,null,"a"]
[8,{"$f":"IF(FILIACION_ESTUDIANTE!D15=0,\"\",FILIACION_PPFF!B14)","v":""},null,null,null,null,null,null,null,null,null,null,null,null,null,null,null,null,null,null,null,null,null,null,null,null,null,null," "," "," "," ",null,null,null,null,null,null,null,null,null,null,null,null,null,null,null,null,null,null,null,null,"a"]
[9,{"$f":"IF(FILIACION_ESTUDIANTE!D16=0,\"\",FILIACION_PPFF!B15)","v":""},null,null,null,null,null,null,null,null,null,null,null,null,null,null,null,null,null,null,null,null,null,null,null,null,null,null," "," "," "," ",null,null,null,null,null,"ENCABEZADO DE LOS FORMULARIOS DE CONTROL DE ASISTENCIA",null,null,null,null,null,null,null,null,null,null,null,{"$f":"MONTH(AX18)","v":2},null,null,"f"]
[10,{"$f":"IF(FILIACION_ESTUDIANTE!D17=0,\"\",FILIACION_PPFF!B16)","v":""},null,null,null,null,null,null,null,null,null,null,null,null,null,null,null,null,null,null,null,null,null,null,null,null,null,null," "," "," "," ",null,null,null,null,null,null,null,null,null,null,null,null,null,null,null,null,null,"2010-02-01",null,null,"f"]
[11,{"$f":"IF(FILIACION_ESTUDIANTE!D18=0,\"\",FILIACION_PPFF!B17)","v":""},null,null,null,null,null,null,null,null,null,null,null,null,null,null,null,null,null,null,null,null,null,null,null,null,null,null," "," "," "," ",null,null,null,null,null,null,null,null,null,null,null,null,null,null,null,null,null,null,null,null,"f"]
[12,{"$f":"IF(FILIACION_ESTUDIANTE!D19=0,\"\",FILIACION_PPFF!B18)","v":""},null,null,null,null,null,null,null,null,null,null,null,null,null,null,null,null,null,null,null,null,null,null,null,null,null,null," "," "," "," ",null,null,null,null,null,{"$f":"CONCATENATE(AO20,\" \",AP20)","v":"REGISTRO DE ASISTENCIA FEBRERO  2019"},null,null,"REGISTRO DE ASISTENCIA FEBRERO ",{"$f":"CARATULA!F27","v":2019},null,null,null,null,null,null,null,null,null,null,"p"]
[13,{"$f":"IF(FILIACION_ESTUDIANTE!D20=0,\"\",FILIACION_PPFF!B19)","v":""},null,null,null,null,null,null,null,null,null,null,null,null,null,null,null,null,null,null,null,null,null,null,null,null,null,null," "," "," "," ",null,null,null,null,null,{"$f":"CONCATENATE(AO21,\" \",AP21)","v":"REGISTRO DE ASISTENCIA MARZO  2019"},null,null,"REGISTRO DE ASISTENCIA MARZO ",{"$f":"AP20","v":2019},null,null,null,null,null,null,null,null,null,null,"y"]
[14,{"$f":"IF(FILIACION_ESTUDIANTE!D21=0,\"\",FILIACION_PPFF!B20)","v":""},null,null,null,null,null,null,null,null,null,null,null,null,null,null,null,null,null,null,null,null,null,null,null,null,null,null," "," "," "," ",null,null,null,null,null,"REGISTRO DE ASISTENCIA ABRIL  2019",null,null,"REGISTRO DE ASISTENCIA ABRIL ",{"$f":"AP21","v":2019},null,null,null,null,null,null,null,null,null,null,"a"]
[15,{"$f":"IF(FILIACION_ESTUDIANTE!D22=0,\"\",FILIACION_PPFF!B21)","v":""},null,null,null,null,null,null,null,null,null,null,null,null,null,null,null,null,null,null,null,null,null,null,null,null,null,null," "," "," "," ",null,null,null,null,null,"REGISTRO DE ASISTENCIA MAYO  2019",null,null,"REGISTRO DE ASISTENCIA MAYO ",{"$f":"AP22","v":2019},null,null,null,null,null,null,null,null,null,null,"a"]
[16,{"$f":"IF(FILIACION_ESTUDIANTE!D23=0,\"\",FILIACION_PPFF!B22)","v":""},null,null,null,null,null,null,null,null,null,null,null,null,null,null,null,null,null,null,null,null,null,null,null,null,null,null," "," "," "," ",null,null,null,null,null,"REGISTRO DE ASISTENCIA JUNIO  2019",null,null,"REGISTRO DE ASISTENCIA JUNIO ",2019,null,null,null,null,null,null,null,null,null,null,"a"]
[17,{"$f":"IF(FILIACION_ESTUDIANTE!D24=0,\"\",FILIACION_PPFF!B23)","v":""},null,null,null,null,null,null,null,null,null,null,null,null,null,null,null,null,null,null,null,null,null,null,null,null,null,null," "," "," "," ",null,null,null,null,null,"REGISTRO DE ASISTENCIA JULIO  2019",null,null,"REGISTRO DE ASISTENCIA JULIO ",2019,null,null,null,null,null,null,null,null,null,null,"a"]
[18,{"$f":"IF(FILIACION_ESTUDIANTE!D25=0,\"\",FILIACION_PPFF!B24)","v":""},null,null,null,null,null,null,null,null,null,null,null,null,null,null,null,null,null,null,null,null,null,null,null,null,null,null," "," "," "," ",null,null,null,null,null,"REGISTRO DE ASISTENCIA AGOSTO  2019",null,null,"REGISTRO DE ASISTENCIA AGOSTO ",2019,null,null,null,null,null,null,null,null,null,null,"a"]
[19,{"$f":"IF(FILIACION_ESTUDIANTE!D26=0,\"\",FILIACION_PPFF!B25)","v":""},null,null,null,null,null,null,null,null,null,null,null,null,null,null,null,null,null,null,null,null,null,null,null,null,null,null," "," "," "," ",null,null,null,null,null,"REGISTRO DE ASISTENCIA SEPTIEMBRE  2019",null,null,"REGISTRO DE ASISTENCIA SEPTIEMBRE ",2019,null,null,null,null,null,null,null,null,null,null,"a"]
[20,{"$f":"IF(FILIACION_ESTUDIANTE!D27=0,\"\",FILIACION_PPFF!B26)","v":""},null,null,null,null,null,null,null,null,null,null,null,null,null,null,null,null,null,null,null,null,null,null,null,null,null,null," "," "," "," ",null,null,null,null,null,"REGISTRO DE ASISTENCIA OCTUBRE  2019",null,null,"REGISTRO DE ASISTENCIA OCTUBRE ",2019,null,null,null,null,null,null,null,null,null,null,"f"]
[21,{"$f":"IF(FILIACION_ESTUDIANTE!D28=0,\"\",FILIACION_PPFF!B27)","v":""},null,null,null,null,null,null,null,null,null,null,null,null,null,null,null,null,null,null,null,null,null,null,null,null,null,null," "," "," "," ",null,null,null,null,null,"REGISTRO DE ASISTENCIA NOVIEMBRE  2019",null,null,"REGISTRO DE ASISTENCIA NOVIEMBRE ",2019,null,null,null,null,null,null,null,null,null,null,"p"]
[22,{"$f":"IF(FILIACION_ESTUDIANTE!D29=0,\"\",FILIACION_PPFF!B28)","v":""},null,null,null,null,null,null,null,null,null,null,null,null,null,null,null,null,null,null,null,null,null,null,null,null,null,null," "," "," "," ",null,null,null,null,null,"REGISTRO DE ASISTENCIA DICIEMBRE  2019",null,null,"REGISTRO DE ASISTENCIA DICIEMBRE ",2019,null,null,null,null,null,null,null,null,null,null,"M"]
[23,{"$f":"IF(FILIACION_ESTUDIANTE!D30=0,\"\",FILIACION_PPFF!B29)","v":""},null,null,null,null,null,null,null,null,null,null,null,null,null,null,null,null,null,null,null,null,null,null,null,null,null,null," "," "," "," "]
[24,{"$f":"IF(FILIACION_ESTUDIANTE!D31=0,\"\",FILIACION_PPFF!B30)","v":""},null,null,null,null,null,null,null,null,null,null,null,null,null,null,null,null,null,null,null,null,null,null,null,null,null,null," "," "," "," ",null,null,null,null,null,null,null,null,null,null,null,null,null,null,null,null,null,null,null,null,"M"]
[25,{"$f":"IF(FILIACION_ESTUDIANTE!D32=0,\"\",FILIACION_PPFF!B31)","v":""},null,null,null,null,null,null,null,null,null,null,null,null,null,null,null,null,null,null,null,null,null,null,null,null,null,null," "," "," "," ",null,null,null,null,null,null,null,null,null,null,null,null,null,null,null,null,null,null,null,null,"M"]
[26,{"$f":"IF(FILIACION_ESTUDIANTE!D33=0,\"\",FILIACION_PPFF!B32)","v":""},null,null,null,null,null,null,null,null,null,null,null,null,null,null,null,null,null,null,null,null,null,null,null,null,null,null," "," "," "," ",null,null,null,null,null,null,null,null,null,null,null,null,null,null,null,null,null,null,null,null,"M"]
[27,{"$f":"IF(FILIACION_ESTUDIANTE!D34=0,\"\",FILIACION_PPFF!B33)","v":""},null,null,null,null,null,null,null,null,null,null,null,null,null,null,null,null,null,null,null,null,null,null,null,null,null,null," "," "," "," ",null,null,null,null,null,null,null,null,null,null,null,null,null,null,null,null,null,null,null,null,"M"]
[28,{"$f":"IF(FILIACION_ESTUDIANTE!D35=0,\"\",FILIACION_PPFF!B34)","v":""},null,null,null,null,null,null,null,null,null,null,null,null,null,null,null,null,null,null,null,null,null,null,null,null,null,null," "," "," "," ",null,null,null,null,null,null,null,null,null,null,null,null,null,null,null,null,null,null,null,null,"M"]
[29,{"$f":"IF(FILIACION_ESTUDIANTE!D36=0,\"\",FILIACION_PPFF!B35)","v":""},null,null,null,null,null,null,null,null,null,null,null,null,null,null,null,null,null,null,null,null,null,null,null,null,null,null," "," "," "," "]
[30,{"$f":"IF(FILIACION_ESTUDIANTE!D37=0,\"\",FILIACION_PPFF!B36)","v":""},null,null,null,null,null,null,null,null,null,null,null,null,null,null,null,null,null,null,null,null,null,null,null,null,null,null," "," "," "," "]
[31,{"$f":"IF(FILIACION_ESTUDIANTE!D38=0,\"\",FILIACION_PPFF!B37)","v":""},null,null,null,null,null,null,null,null,null,null,null,null,null,null,null,null,null,null,null,null,null,null,null,null,null,null," "," "," "," ",null,null,null,null,null,null,null,null,null,null,null,null,null,null,null,null,null,null,null,null,"M"]
[32,{"$f":"IF(FILIACION_ESTUDIANTE!D39=0,\"\",FILIACION_PPFF!B38)","v":""},null,null,null,null,null,null,null,null,null,null,null,null,null,null,null,null,null,null,null,null,null,null,null,null,null,null," "," "," "," ",null,null,null,null,null,null,null,null,null,null,null,null,null,null,null,null,null,null,null,null,"M"]
[33,{"$f":"IF(FILIACION_ESTUDIANTE!D40=0,\"\",FILIACION_PPFF!B39)","v":""},null,null,null,null,null,null,null,null,null,null,null,null,null,null,null,null,null,null,null,null,null,null,null,null,null,null," "," "," "," "]
[34,{"$f":"IF(FILIACION_ESTUDIANTE!D41=0,\"\",FILIACION_PPFF!B40)","v":""},null,null,null,null,null,null,null,null,null,null,null,null,null,null,null,null,null,null,null,null,null,null,null,null,null,null," "," "," "," "]
[35,{"$f":"IF(FILIACION_ESTUDIANTE!D42=0,\"\",FILIACION_PPFF!B41)","v":""},null,null,null,null,null,null,null,null,null,null,null,null,null,null,null,null,null,null,null,null,null,null,null,null,null,null," "," "," "," "]
[36,{"$f":"IF(FILIACION_ESTUDIANTE!D43=0,\"\",FILIACION_PPFF!B42)","v":""},null,null,null,null,null,null,null,null,null,null,null,null,null,null,null,null,null,null,null,null,null,null,null,null,null,null," "," "," "," "]
[37,{"$f":"IF(FILIACION_ESTUDIANTE!D44=0,\"\",FILIACION_PPFF!B43)","v":""},null,null,null,null,null,null,null,null,null,null,null,null,null,null,null,null,null,null,null,null,null,null,null,null,null,null," "," "," "," "]
[38,{"$f":"IF(FILIACION_ESTUDIANTE!D45=0,\"\",FILIACION_PPFF!B44)","v":""},null,null,null,null,null,null,null,null,null,null,null,null,null,null,null,null,null,null,null,null,null,null,null,null,null,null," "," "," "," "]
[39,{"$f":"IF(FILIACION_ESTUDIANTE!D46=0,\"\",FILIACION_PPFF!B45)","v":""},null,null,null,null,null,null,null,null,null,null,null,null,null,null,null,null,null,null,null,null,null,null,null,null,null,null," "," "," "," "]
[40,{"$f":"IF(FILIACION_ESTUDIANTE!D47=0,\"\",FILIACION_PPFF!B46)","v":""},null,null,null,null,null,null,null,null,null,null,null,null,null,null,null,null,null,null,null,null,null,null,null,null,null,null," "," "," "," "]
[]
[null,null,null,"INSCRITOS","NO INCORPORADSOS",null,null,null,"EFECTIVOS",null,null,null,null,null,null,null,null,null,null,null,null,null,"PROMEDIO",null,null,null,null,"%",null,null,null,null,null,null,null,{"$f":"(SUM(AF9:AF48,AC9:AD48)/D53)","v":{"$error":"#VALUE!"}},"SUMATORIA","DIAS TRAB","PROMEDIO"]
[null,"VARONES",null,{"$f":"COUNTIF(FILIACION_ESTUDIANTE!J8:J47,\"M\")","v":0},0,null,null,null,{"$f":"IF(D51=0,\" \",(D51-E51-G51))","v":" "},null,null,null,null,null,null,"ASISTENCIA",null,null,null,null,null,null,{"$f":"IF(AJ50=0,\"\",ROUND(AM51-G53,0))","v":{"$error":"#VALUE!"}},null,null,null,null,{"$f":"IF(AJ50=0,\"\",ROUND((100*W51)/W53,0))","v":{"$error":"#VALUE!"}},null,null,null,null,null,null,null,"PRESENTE",{"$f":"IF(AJ50=0,\"\",SUM(AE9:AF48))","v":{"$error":"#VALUE!"}},{"$f":"IF(AJ50=0,\"\",AJ50)","v":{"$error":"#VALUE!"}},{"$f":"IF(AJ50=0,\"\",AK51/AL51)","v":{"$error":"#VALUE!"}}]
[null,"MUJERES",null,{"$f":"COUNTIF(FILIACION_ESTUDIANTE!J8:J47,\"F\")","v":0},0,null,null,null,{"$f":"IF(D52=0,\" \",(D52-E52-G52))","v":" "},null,null,null,null,null,null,"FALTA",null,null,null,null,null,null,{"$f":"IF(AJ50=0,\"\",ROUND(AM52,0))","v":{"$error":"#VALUE!"}},null,null,null,null,{"$f":"IF(AJ50=0,\"\",ROUND((100*W52)/W53,0))","v":{"$error":"#VALUE!"}},null,null,null,null,null,null,null,"FALTA",{"$f":"IF(AJ50=0,\"\",SUM(AC9:AD48))","v":{"$error":"#VALUE!"}},{"$f":"IF(AJ50=0,\"\",AJ50)","v":{"$error":"#VALUE!"}},{"$f":"IF(AJ50=0,\"\",AK52/AL52)","v":{"$error":"#VALUE!"}}]
[null,"TOTAL",null,{"$f":"IF(D51=0,\" \",(SUM(D51,D52)))","v":" "},{"$f":"SUM(E51,E52)","v":0},null,null,null,{"$f":"IF(I51=\" \",\" \",(SUM(I51,I52)))","v":" "},null,null,null,null,null,null,"TOTAL",null,null,null,null,null,null,{"$f":"IF(AJ50=0,\"\",SUM(W51:AA52))","v":{"$error":"#VALUE!"}},null,null,null,null,{"$f":"IF(AJ50=0,\"\",SUM(AB51:AD52))","v":{"$error":"#VALUE!"}},null,null,null,null,null,null,null,null,null,null,{"$f":"SUM(AM51:AM52)","v":{"$error":"#VALUE!"}}]

{"sheet":"SEPTIEMBRE","index":15,"n_rows":53,"n_cols":53,"rows_kept":53,"cut":false,"hidden":false,"merged":[[4,0,4,1],[4,2,4,23],[4,24,4,27],[4,28,4,31],[5,0,5,31],[6,0,7,0],[6,1,7,3],[6,28,7,28],[6,29,7,29],[6,30,7,30],[0,33,0,34],[1,0,1,31],[2,0,2,31],[3,0,3,2],[3,3,3,12],[3,24,3,27],[3,28,3,31],[0,0,0,31],[16,37,18,39],[17,1,17,4],[18,1,18,4],[19,1,19,4],[6,31,7,31],[8,1,8,4],[8,33,47,33],[9,1,9,4],[10,1,10,4],[11,1,11,4],[12,1,12,4],[13,1,13,4],[14,1,14,4],[15,1,15,4],[16,1,16,4],[19,37,19,39],[21,37,21,39],[22,1,22,4],[22,37,22,39],[20,1,20,4],[20,37,20,39],[21,1,21,4],[23,37,23,39],[24,1,24,4],[24,37,24,39],[25,1,25,4],[25,37,25,39],[23,1,23,4],[26,37,26,39],[35,1,35,4],[27,1,27,4],[27,37,27,39],[28,1,28,4],[28,37,28,39],[29,1,29,4],[29,37,29,39],[30,1,30,4],[31,1,31,4],[32,1,32,4],[33,1,33,4],[34,1,34,4],[26,1,26,4],[47,1,47,4],[36,1,36,4],[37,1,37,4],[38,1,38,4],[39,1,39,4],[40,1,40,4],[41,1,41,4],[42,1,42,4],[43,1,43,4],[44,1,44,4],[45,1,45,4],[46,1,46,4],[49,4,49,7],[50,4,50,7],[51,4,51,7],[52,1,52,2],[52,8,52,10],[52,4,52,7],[52,15,52,21],[52,22,52,26],[48,33,56,33],[49,8,49,10],[49,22,49,26],[49,27,49,29],[50,8,50,10],[50,15,50,21],[50,22,50,26],[50,27,50,29],[51,8,51,10],[51,15,51,21],[51,22,51,26],[51,27,51,29],[52,27,52,29]]}
[null,null,null,null,null,null,null,null,null,null,null,null,null,null,null,null,null,null,null,null,null,null,null,null,null,null,null,null,null,null,null,null,null,"ASISTENCIAS E INASISTENCIAS",null,"AZUL"]
[null,null,null,null,null,null,null,null,null,null,null,null,null,null,null,null,null,null,null,null,null,null,null,null,null,null,null,null,null,null,null,null,null,"Presente","P"]
[{"$f":"AL27","v":"REGISTRO DE ASISTENCIA SEPTIEMBRE  2019"},null,null,null,null,null,null,null,null,null,null,null,null,null,null,null,null,null,null,null,null,null,null,null,null,null,null,null,null,null,null,null,null,"Atraso","A"]
[{"$f":"+UPPER(CARATULA!C21)","v":"MAESTRA (O):"},null,null,{"$f":"CARATULA!E21","v":0},null,null,null,null,null,null,null,null,null,null,null,null,null,null,null,null,null,null,null,null,"TURNO: ",null,null,null,{"$f":"CARATULA!E14","v":0},null,null,null,null,"falta con licencia","F"]
["NIVEL:",null,{"$f":"CARATULA!E22","v":0},null,null,null,null,null,null,null,null,null,null,null,null,null,null,null,null,null,null,null,null,null,"PARALELO:",null,null,null,{"$f":"CARATULA!E15","v":0},null,null,null,null,"Falta sin licencia","L"]
[{"$f":"+CONCATENATE(\"AÑO DE ESCOLARIDAD:  \",CARATULA!E23)","v":"AÑO DE ESCOLARIDAD:  "}]
["Nº","NÓMINA",null,null,"DÍA","L","M","M","J","V","L","M","M","J","V","L","M","M","J","V","L",{"$f":"IF(F8=7,\"\",\"M\")","v":"M"},{"$f":"IF(V8>27,\"\",\"M\")","v":"M"},{"$f":"IF(W8>27,\"\",\"J\")","v":"J"},{"$f":"IF(X8>27,\"\",\"V\")","v":"V"},"L",null,null,"LICENCIA (L)","FALTA (F)","ATRASO (A)","PRESENTE=DÍAS TRABAJAOS",null,"dias materias tecnicas",0]
[null,null,null,null,"FECHA",2,{"$f":"F8+1","v":3},{"$f":"G8+1","v":4},{"$f":"H8+1","v":5},{"$f":"I8+1","v":6},{"$f":"J8+3","v":9},{"$f":"K8+1","v":10},{"$f":"L8+1","v":11},{"$f":"M8+1","v":12},{"$f":"N8+1","v":13},{"$f":"O8+3","v":16},{"$f":"P8+1","v":17},{"$f":"Q8+1","v":18},{"$f":"R8+1","v":19},{"$f":"S8+1","v":20},{"$f":"T8+3","v":23},{"$f":"IF(F8=7,\"\",U8+1)","v":24},{"$f":"IF(V8>27,\"\",V8+1)","v":25},{"$f":"IF(W8>27,\"\",W8+1)","v":26},{"$f":"IF(X8>27,\"\",X8+1)","v":27},{"$f":"+Y8+3","v":30}]
[1,{"$f":"IF(FILIACION_ESTUDIANTE!D8=0,\"\",FILIACION_PPFF!B7)","v":""},null,null,null,null,null,null,null,null,null,null,null,null,null,null,null,null,null,null,null,null,null,null,null,null,null,null,{"$f":"IF((COUNTBLANK(F9:AB9))>=23,\" \",(COUNTIF((F9:AB9),$AI$5)))","v":" "},{"$f":"IF((COUNTBLANK(F9:AB9))>=23,\" \",(COUNTIF((F9:AB9),$AI$4)))","v":" "},{"$f":"IF((COUNTBLANK(F9:AB9))>=23,\" \",(COUNTIF((F9:AB9),$AI$3)))","v":" "},{"$f":"IF(COUNTBLANK(F9:AB9)>=23,\" \",(COUNTIF((F9:AB9),$AI$2)+AE9+$AI$7))","v":" "},null,"SEPTIEMBRE"]
[2,{"$f":"IF(FILIACION_ESTUDIANTE!D9=0,\"\",FILIACION_PPFF!B8)","v":""},null,null,null,null,null,null,null,null,null,null,null,null,null,null,null,null,null,null,null,null,null,null,null,null,null,null," "," "," "," "]
[3,{"$f":"IF(FILIACION_ESTUDIANTE!D10=0,\"\",FILIACION_PPFF!B9)","v":""},null,null,null,null,null,null,null,null,null,null,null,null,null,null,null,null,null,null,null,null,null,null,null,null,null,null," "," "," "," "]
[4,{"$f":"IF(FILIACION_ESTUDIANTE!D11=0,\"\",FILIACION_PPFF!B10)","v":""},null,null,null,null,null,null,null,null,null,null,null,null,null,null,null,null,null,null,null,null,null,null,null,null,null,null," "," "," "," ",null,null,null,null,null,null,null,null,null,null,null,null,null,null,null,null,null,null,null,{"$f":"ISLOGICAL((#REF!))","v":false},1]
[5,{"$f":"IF(FILIACION_ESTUDIANTE!D12=0,\"\",FILIACION_PPFF!B11)","v":""},null,null,null,null,null,null,null,null,null,null,null,null,null,null,null,null,null,null,null,null,null,null,null,null,null,null," "," "," "," ",null,null,null,null,null,null,null,null,null,null,null,null,null,null,null,null,null,null,null,null,"A"]
[6,{"$f":"IF(FILIACION_ESTUDIANTE!D13=0,\"\",FILIACION_PPFF!B12)","v":""},null,null,null,null,null,null,null,null,null,null,null,null,null,null,null,null,null,null,null,null,null,null,null,null,null,null," "," "," "," ",null,null,null,null,null,null,null,null,null,null,null,null,null,null,null,null,null,null,{"$f":"ISTEXT(#REF!)","v":false}]
[7,{"$f":"IF(FILIACION_ESTUDIANTE!D14=0,\"\",FILIACION_PPFF!B13)","v":""},null,null,null,null,null,null,null,null,null,null,null,null,null,null,null,null,null,null,null,null,null,null,null,null,null,null," "," "," "," ",null,null,null,null,null,null,null,null,null,null,null,null,null,null,null,null,null,null,null,null,"a"]
[8,{"$f":"IF(FILIACION_ESTUDIANTE!D15=0,\"\",FILIACION_PPFF!B14)","v":""},null,null,null,null,null,null,null,null,null,null,null,null,null,null,null,null,null,null,null,null,null,null,null,null,null,null," "," "," "," ",null,null,null,null,null,null,null,null,null,null,null,null,null,null,null,null,null,null,null,null,"a"]
[9,{"$f":"IF(FILIACION_ESTUDIANTE!D16=0,\"\",FILIACION_PPFF!B15)","v":""},null,null,null,null,null,null,null,null,null,null,null,null,null,null,null,null,null,null,null,null,null,null,null,null,null,null," "," "," "," ",null,null,null,null,null,"ENCABEZADO DE LOS FORMULARIOS DE CONTROL DE ASISTENCIA",null,null,null,null,null,null,null,null,null,null,null,{"$f":"MONTH(AX18)","v":2},null,null,"f"]
[10,{"$f":"IF(FILIACION_ESTUDIANTE!D17=0,\"\",FILIACION_PPFF!B16)","v":""},null,null,null,null,null,null,null,null,null,null,null,null,null,null,null,null,null,null,null,null,null,null,null,null,null,null," "," "," "," ",null,null,null,null,null,null,null,null,null,null,null,null,null,null,null,null,null,"2010-02-01",null,null,"f"]
[11,{"$f":"IF(FILIACION_ESTUDIANTE!D18=0,\"\",FILIACION_PPFF!B17)","v":""},null,null,null,null,null,null,null,null,null,null,null,null,null,null,null,null,null,null,null,null,null,null,null,null,null,null," "," "," "," ",null,null,null,null,null,null,null,null,null,null,null,null,null,null,null,null,null,null,null,null,"f"]
[12,{"$f":"IF(FILIACION_ESTUDIANTE!D19=0,\"\",FILIACION_PPFF!B18)","v":""},null,null,null,null,null,null,null,null,null,null,null,null,null,null,null,null,null,null,null,null,null,null,null,null,null,null," "," "," "," ",null,null,null,null,null,{"$f":"CONCATENATE(AO20,\" \",AP20)","v":"REGISTRO DE ASISTENCIA FEBRERO  2019"},null,null,"REGISTRO DE ASISTENCIA FEBRERO ",{"$f":"CARATULA!F27","v":2019},null,null,null,null,null,null,null,null,null,null,"p"]
[13,{"$f":"IF(FILIACION_ESTUDIANTE!D20=0,\"\",FILIACION_PPFF!B19)","v":""},null,null,null,null,null,null,null,null,null,null,null,null,null,null,null,null,null,null,null,null,null,null,null,null,null,null," "," "," "," ",null,null,null,null,null,{"$f":"CONCATENATE(AO21,\" \",AP21)","v":"REGISTRO DE ASISTENCIA MARZO  2019"},null,null,"REGISTRO DE ASISTENCIA MARZO ",{"$f":"AP20","v":2019},null,null,null,null,null,null,null,null,null,null,"y"]
[14,{"$f":"IF(FILIACION_ESTUDIANTE!D21=0,\"\",FILIACION_PPFF!B20)","v":""},null,null,null,null,null,null,null,null,null,null,null,null,null,null,null,null,null,null,null,null,null,null,null,null,null,null," "," "," "," ",null,null,null,null,null,"REGISTRO DE ASISTENCIA ABRIL  2019",null,null,"REGISTRO DE ASISTENCIA ABRIL ",{"$f":"AP21","v":2019},null,null,null,null,null,null,null,null,null,null,"a"]
[15,{"$f":"IF(FILIACION_ESTUDIANTE!D22=0,\"\",FILIACION_PPFF!B21)","v":""},null,null,null,null,null,null,null,null,null,null,null,null,null,null,null,null,null,null,null,null,null,null,null,null,null,null," "," "," "," ",null,null,null,null,null,"REGISTRO DE ASISTENCIA MAYO  2019",null,null,"REGISTRO DE ASISTENCIA MAYO ",{"$f":"AP22","v":2019},null,null,null,null,null,null,null,null,null,null,"a"]
[16,{"$f":"IF(FILIACION_ESTUDIANTE!D23=0,\"\",FILIACION_PPFF!B22)","v":""},null,null,null,null,null,null,null,null,null,null,null,null,null,null,null,null,null,null,null,null,null,null,null,null,null,null," "," "," "," ",null,null,null,null,null,"REGISTRO DE ASISTENCIA JUNIO  2019",null,null,"REGISTRO DE ASISTENCIA JUNIO ",2019,null,null,null,null,null,null,null,null,null,null,"a"]
[17,{"$f":"IF(FILIACION_ESTUDIANTE!D24=0,\"\",FILIACION_PPFF!B23)","v":""},null,null,null,null,null,null,null,null,null,null,null,null,null,null,null,null,null,null,null,null,null,null,null,null,null,null," "," "," "," ",null,null,null,null,null,"REGISTRO DE ASISTENCIA JULIO  2019",null,null,"REGISTRO DE ASISTENCIA JULIO ",2019,null,null,null,null,null,null,null,null,null,null,"a"]
[18,{"$f":"IF(FILIACION_ESTUDIANTE!D25=0,\"\",FILIACION_PPFF!B24)","v":""},null,null,null,null,null,null,null,null,null,null,null,null,null,null,null,null,null,null,null,null,null,null,null,null,null,null," "," "," "," ",null,null,null,null,null,"REGISTRO DE ASISTENCIA AGOSTO  2019",null,null,"REGISTRO DE ASISTENCIA AGOSTO ",2019,null,null,null,null,null,null,null,null,null,null,"a"]
[19,{"$f":"IF(FILIACION_ESTUDIANTE!D26=0,\"\",FILIACION_PPFF!B25)","v":""},null,null,null,null,null,null,null,null,null,null,null,null,null,null,null,null,null,null,null,null,null,null,null,null,null,null," "," "," "," ",null,null,null,null,null,"REGISTRO DE ASISTENCIA SEPTIEMBRE  2019",null,null,"REGISTRO DE ASISTENCIA SEPTIEMBRE ",2019,null,null,null,null,null,null,null,null,null,null,"a"]
[20,{"$f":"IF(FILIACION_ESTUDIANTE!D27=0,\"\",FILIACION_PPFF!B26)","v":""},null,null,null,null,null,null,null,null,null,null,null,null,null,null,null,null,null,null,null,null,null,null,null,null,null,null," "," "," "," ",null,null,null,null,null,"REGISTRO DE ASISTENCIA OCTUBRE  2019",null,null,"REGISTRO DE ASISTENCIA OCTUBRE ",2019,null,null,null,null,null,null,null,null,null,null,"f"]
[21,{"$f":"IF(FILIACION_ESTUDIANTE!D28=0,\"\",FILIACION_PPFF!B27)","v":""},null,null,null,null,null,null,null,null,null,null,null,null,null,null,null,null,null,null,null,null,null,null,null,null,null,null," "," "," "," ",null,null,null,null,null,"REGISTRO DE ASISTENCIA NOVIEMBRE  2019",null,null,"REGISTRO DE ASISTENCIA NOVIEMBRE ",2019,null,null,null,null,null,null,null,null,null,null,"p"]
[22,{"$f":"IF(FILIACION_ESTUDIANTE!D29=0,\"\",FILIACION_PPFF!B28)","v":""},null,null,null,null,null,null,null,null,null,null,null,null,null,null,null,null,null,null,null,null,null,null,null,null,null,null," "," "," "," ",null,null,null,null,null,"REGISTRO DE ASISTENCIA DICIEMBRE  2019",null,null,"REGISTRO DE ASISTENCIA DICIEMBRE ",2019,null,null,null,null,null,null,null,null,null,null,"M"]
[23,{"$f":"IF(FILIACION_ESTUDIANTE!D30=0,\"\",FILIACION_PPFF!B29)","v":""},null,null,null,null,null,null,null,null,null,null,null,null,null,null,null,null,null,null,null,null,null,null,null,null,null,null," "," "," "," "]
[24,{"$f":"IF(FILIACION_ESTUDIANTE!D31=0,\"\",FILIACION_PPFF!B30)","v":""},null,null,null,null,null,null,null,null,null,null,null,null,null,null,null,null,null,null,null,null,null,null,null,null,null,null," "," "," "," ",null,null,null,null,null,null,null,null,null,null,null,null,null,null,null,null,null,null,null,null,"M"]
[25,{"$f":"IF(FILIACION_ESTUDIANTE!D32=0,\"\",FILIACION_PPFF!B31)","v":""},null,null,null,null,null,null,null,null,null,null,null,null,null,null,null,null,null,null,null,null,null,null,null,null,null,null," "," "," "," ",null,null,null,null,null,null,null,null,null,null,null,null,null,null,null,null,null,null,null,null,"M"]
[26,{"$f":"IF(FILIACION_ESTUDIANTE!D33=0,\"\",FILIACION_PPFF!B32)","v":""},null,null,null,null,null,null,null,null,null,null,null,null,null,null,null,null,null,null,null,null,null,null,null,null,null,null," "," "," "," ",null,null,null,null,null,null,null,null,null,null,null,null,null,null,null,null,null,null,null,null,"M"]
[27,{"$f":"IF(FILIACION_ESTUDIANTE!D34=0,\"\",FILIACION_PPFF!B33)","v":""},null,null,null,null,null,null,null,null,null,null,null,null,null,null,null,null,null,null,null,null,null,null,null,null,null,null," "," "," "," ",null,null,null,null,null,null,null,null,null,null,null,null,null,null,null,null,null,null,null,null,"M"]
[28,{"$f":"IF(FILIACION_ESTUDIANTE!D35=0,\"\",FILIACION_PPFF!B34)","v":""},null,null,null,null,null,null,null,null,null,null,null,null,null,null,null,null,null,null,null,null,null,null,null,null,null,null," "," "," "," ",null,null,null,null,null,null,null,null,null,null,null,null,null,null,null,null,null,null,null,null,"M"]
[29,{"$f":"IF(FILIACION_ESTUDIANTE!D36=0,\"\",FILIACION_PPFF!B35)","v":""},null,null,null,null,null,null,null,null,null,null,null,null,null,null,null,null,null,null,null,null,null,null,null,null,null,null," "," "," "," "]
[30,{"$f":"IF(FILIACION_ESTUDIANTE!D37=0,\"\",FILIACION_PPFF!B36)","v":""},null,null,null,null,null,null,null,null,null,null,null,null,null,null,null,null,null,null,null,null,null,null,null,null,null,null," "," "," "," "]
[31,{"$f":"IF(FILIACION_ESTUDIANTE!D38=0,\"\",FILIACION_PPFF!B37)","v":""},null,null,null,null,null,null,null,null,null,null,null,null,null,null,null,null,null,null,null,null,null,null,null,null,null,null," "," "," "," ",null,null,null,null,null,null,null,null,null,null,null,null,null,null,null,null,null,null,null,null,"M"]
[32,{"$f":"IF(FILIACION_ESTUDIANTE!D39=0,\"\",FILIACION_PPFF!B38)","v":""},null,null,null,null,null,null,null,null,null,null,null,null,null,null,null,null,null,null,null,null,null,null,null,null,null,null," "," "," "," ",null,null,null,null,null,null,null,null,null,null,null,null,null,null,null,null,null,null,null,null,"M"]
[33,{"$f":"IF(FILIACION_ESTUDIANTE!D40=0,\"\",FILIACION_PPFF!B39)","v":""},null,null,null,null,null,null,null,null,null,null,null,null,null,null,null,null,null,null,null,null,null,null,null,null,null,null," "," "," "," "]
[34,{"$f":"IF(FILIACION_ESTUDIANTE!D41=0,\"\",FILIACION_PPFF!B40)","v":""},null,null,null,null,null,null,null,null,null,null,null,null,null,null,null,null,null,null,null,null,null,null,null,null,null,null," "," "," "," "]
[35,{"$f":"IF(FILIACION_ESTUDIANTE!D42=0,\"\",FILIACION_PPFF!B41)","v":""},null,null,null,null,null,null,null,null,null,null,null,null,null,null,null,null,null,null,null,null,null,null,null,null,null,null," "," "," "," "]
[36,{"$f":"IF(FILIACION_ESTUDIANTE!D43=0,\"\",FILIACION_PPFF!B42)","v":""},null,null,null,null,null,null,null,null,null,null,null,null,null,null,null,null,null,null,null,null,null,null,null,null,null,null," "," "," "," "]
[37,{"$f":"IF(FILIACION_ESTUDIANTE!D44=0,\"\",FILIACION_PPFF!B43)","v":""},null,null,null,null,null,null,null,null,null,null,null,null,null,null,null,null,null,null,null,null,null,null,null,null,null,null," "," "," "," "]
[38,{"$f":"IF(FILIACION_ESTUDIANTE!D45=0,\"\",FILIACION_PPFF!B44)","v":""},null,null,null,null,null,null,null,null,null,null,null,null,null,null,null,null,null,null,null,null,null,null,null,null,null,null," "," "," "," "]
[39,{"$f":"IF(FILIACION_ESTUDIANTE!D46=0,\"\",FILIACION_PPFF!B45)","v":""},null,null,null,null,null,null,null,null,null,null,null,null,null,null,null,null,null,null,null,null,null,null,null,null,null,null," "," "," "," "]
[40,{"$f":"IF(FILIACION_ESTUDIANTE!D47=0,\"\",FILIACION_PPFF!B46)","v":""},null,null,null,null,null,null,null,null,null,null,null,null,null,null,null,null,null,null,null,null,null,null,null,null,null,null," "," "," "," "]
[]
[null,null,null,"INSCRITOS","NO INCORPORADO",null,null,null,"EFECTIVOS",null,null,null,null,null,null,null,null,null,null,null,null,null,"PROMEDIO",null,null,null,null,"%",null,null,null,null,null,null,null,{"$f":"(SUM(AF9:AF48,AC9:AD48)/D53)","v":{"$error":"#VALUE!"}},"SUMATORIA","DIAS TRAB","PROMEDIO"]
[null,"VARONES",null,{"$f":"COUNTIF(FILIACION_ESTUDIANTE!J8:J47,\"M\")","v":0},0,null,null,null,{"$f":"IF(D51=0,\" \",(D51-E51-G51))","v":" "},null,null,null,null,null,null,"ASISTENCIA",null,null,null,null,null,null,{"$f":"IF(AJ50=0,\"\",ROUND(AM51-G53,0))","v":{"$error":"#VALUE!"}},null,null,null,null,{"$f":"IF(AJ50=0,\"\",ROUND((100*W51)/W53,0))","v":{"$error":"#VALUE!"}},null,null,null,null,null,null,null,"PRESENTE",{"$f":"IF(AJ50=0,\"\",SUM(AE9:AF48))","v":{"$error":"#VALUE!"}},{"$f":"IF(AJ50=0,\"\",AJ50)","v":{"$error":"#VALUE!"}},{"$f":"IF(AJ50=0,\"\",AK51/AL51)","v":{"$error":"#VALUE!"}}]
[null,"MUJERES",null,{"$f":"COUNTIF(FILIACION_ESTUDIANTE!J8:J47,\"F\")","v":0},0,null,null,null,{"$f":"IF(D52=0,\" \",(D52-E52-G52))","v":" "},null,null,null,null,null,null,"FALTA",null,null,null,null,null,null,{"$f":"IF(AJ50=0,\"\",ROUND(AM52,0))","v":{"$error":"#VALUE!"}},null,null,null,null,{"$f":"IF(AJ50=0,\"\",ROUND((100*W52)/W53,0))","v":{"$error":"#VALUE!"}},null,null,null,null,null,null,null,"FALTA",{"$f":"IF(AJ50=0,\"\",SUM(AC9:AD48))","v":{"$error":"#VALUE!"}},{"$f":"IF(AJ50=0,\"\",AJ50)","v":{"$error":"#VALUE!"}},{"$f":"IF(AJ50=0,\"\",AK52/AL52)","v":{"$error":"#VALUE!"}}]
[null,"TOTAL",null,{"$f":"IF(D51=0,\" \",(SUM(D51,D52)))","v":" "},{"$f":"SUM(E51,E52)","v":0},null,null,null,{"$f":"IF(I51=\" \",\" \",(SUM(I51,I52)))","v":" "},null,null,null,null,null,null,"TOTAL",null,null,null,null,null,null,{"$f":"IF(AJ50=0,\"\",SUM(W51:AA52))","v":{"$error":"#VALUE!"}},null,null,null,null,{"$f":"IF(AJ50=0,\"\",SUM(AB51:AD52))","v":{"$error":"#VALUE!"}},null,null,null,null,null,null,null,null,null,null,{"$f":"SUM(AM51:AM52)","v":{"$error":"#VALUE!"}}]

{"sheet":"OCTUBRE","index":16,"n_rows":53,"n_cols":53,"rows_kept":53,"cut":false,"hidden":false,"merged":[[4,0,4,1],[4,2,4,23],[4,24,4,27],[4,28,4,31],[5,0,5,31],[6,0,7,0],[6,1,7,3],[6,28,7,28],[6,29,7,29],[6,30,7,30],[0,33,0,34],[1,0,1,31],[2,0,2,31],[3,0,3,2],[3,3,3,12],[3,24,3,27],[3,28,3,31],[0,0,0,31],[16,37,18,39],[17,1,17,4],[18,1,18,4],[19,1,19,4],[6,31,7,31],[8,1,8,4],[8,33,47,33],[9,1,9,4],[10,1,10,4],[11,1,11,4],[12,1,12,4],[13,1,13,4],[14,1,14,4],[15,1,15,4],[16,1,16,4],[19,37,19,39],[21,37,21,39],[22,1,22,4],[22,37,22,39],[20,1,20,4],[20,37,20,39],[21,1,21,4],[23,37,23,39],[24,1,24,4],[24,37,24,39],[25,1,25,4],[25,37,25,39],[23,1,23,4],[26,37,26,39],[35,1,35,4],[27,1,27,4],[27,37,27,39],[28,1,28,4],[28,37,28,39],[29,1,29,4],[29,37,29,39],[30,1,30,4],[31,1,31,4],[32,1,32,4],[33,1,33,4],[34,1,34,4],[26,1,26,4],[47,1,47,4],[36,1,36,4],[37,1,37,4],[38,1,38,4],[39,1,39,4],[40,1,40,4],[41,1,41,4],[42,1,42,4],[43,1,43,4],[44,1,44,4],[45,1,45,4],[46,1,46,4],[49,4,49,7],[50,4,50,7],[51,4,51,7],[52,1,52,2],[52,8,52,10],[52,4,52,7],[52,15,52,21],[52,22,52,26],[48,33,56,33],[49,8,49,10],[49,22,49,26],[49,27,49,29],[50,8,50,10],[50,15,50,21],[50,22,50,26],[50,27,50,29],[51,8,51,10],[51,15,51,21],[51,22,51,26],[51,27,51,29],[52,27,52,29]]}
[null,null,null,null,null,null,null,null,null,null,null,null,null,null,null,null,null,null,null,null,null,null,null,null,null,null,null,null,null,null,null,null,null,"ASISTENCIAS E INASISTENCIAS",null,"AZUL"]
[null,null,null,null,null,null,null,null,null,null,null,null,null,null,null,null,null,null,null,null,null,null,null,null,null,null,null,null,null,null,null,null,null,"Presente","P"]
[{"$f":"AL28","v":"REGISTRO DE ASISTENCIA OCTUBRE  2019"},null,null,null,null,null,null,null,null,null,null,null,null,null,null,null,null,null,null,null,null,null,null,null,null,null,null,null,null,null,null,null,null,"Atraso","A"]
[{"$f":"+UPPER(CARATULA!C21)","v":"MAESTRA (O):"},null,null,{"$f":"CARATULA!E21","v":0},null,null,null,null,null,null,null,null,null,null,null,null,null,null,null,null,null,null,null,null,"TURNO: ",null,null,null,{"$f":"CARATULA!E14","v":0},null,null,null,null,"falta con licencia","F"]
["NIVEL:",null,{"$f":"CARATULA!E22","v":0},null,null,null,null,null,null,null,null,null,null,null,null,null,null,null,null,null,null,null,null,null,"PARALELO:",null,null,null,{"$f":"CARATULA!E15","v":0},null,null,null,null,"Falta sin licencia","L"]
[{"$f":"+CONCATENATE(\"AÑO DE ESCOLARIDAD:  \",CARATULA!E23)","v":"AÑO DE ESCOLARIDAD:  "}]
["Nº","NÓMINA",null,null,"DÍA","M","M","J","V","L","M","M","J","V","L","M","M","J","V","L","M","M","J","V","L","M","M","J","LICENCIA (L)","FALTA (F)","ATRASO (A)","PRESENTE=DÍAS TRABAJAOS",null,"dias materias tecnicas",0]
[null,null,null,null,"FECHA",1,{"$f":"F8+1","v":2},{"$f":"G8+1","v":3},{"$f":"H8+1","v":4},{"$f":"I8+3","v":7},{"$f":"J8+1","v":8},{"$f":"K8+1","v":9},{"$f":"L8+1","v":10},{"$f":"M8+1","v":11},{"$f":"N8+3","v":14},{"$f":"O8+1","v":15},{"$f":"P8+1","v":16},{"$f":"Q8+1","v":17},18,{"$f":"S8+3","v":21},22,23,24,25,{"$f":"X8+3","v":28},{"$f":"+Y8+1","v":29},{"$f":"+Z8+1","v":30},31]
[1,{"$f":"IF(FILIACION_ESTUDIANTE!D8=0,\"\",FILIACION_PPFF!B7)","v":""},null,null,null,null,null,null,null,null,null,null,null,null,null,null,null,null,null,null,null,null,null,null,null,null,null,null,{"$f":"IF((COUNTBLANK(F9:AB9))>=23,\" \",(COUNTIF((F9:AB9),$AI$5)))","v":" "},{"$f":"IF((COUNTBLANK(F9:AB9))>=23,\" \",(COUNTIF((F9:AB9),$AI$4)))","v":" "},{"$f":"IF((COUNTBLANK(F9:AB9))>=23,\" \",(COUNTIF((F9:AB9),$AI$3)))","v":" "},{"$f":"IF(COUNTBLANK(F9:AB9)>=23,\" \",(COUNTIF((F9:AB9),$AI$2)+AE9+$AI$7))","v":" "},null,"OCTUBRE"]
[2,{"$f":"IF(FILIACION_ESTUDIANTE!D9=0,\"\",FILIACION_PPFF!B8)","v":""},null,null,null,null,null,null,null,null,null,null,null,null,null,null,null,null,null,null,null,null,null,null,null,null,null,null," "," "," "," "]
[3,{"$f":"IF(FILIACION_ESTUDIANTE!D10=0,\"\",FILIACION_PPFF!B9)","v":""},null,null,null,null,null,null,null,null,null,null,null,null,null,null,null,null,null,null,null,null,null,null,null,null,null,null," "," "," "," "]
[4,{"$f":"IF(FILIACION_ESTUDIANTE!D11=0,\"\",FILIACION_PPFF!B10)","v":""},null,null,null,null,null,null,null,null,null,null,null,null,null,null,null,null,null,null,null,null,null,null,null,null,null,null," "," "," "," ",null,null,null,null,null,null,null,null,null,null,null,null,null,null,null,null,null,null,null,{"$f":"ISLOGICAL((#REF!))","v":false},1]
[5,{"$f":"IF(FILIACION_ESTUDIANTE!D12=0,\"\",FILIACION_PPFF!B11)","v":""},null,null,null,null,null,null,null,null,null,null,null,null,null,null,null,null,null,null,null,null,null,null,null,null,null,null," "," "," "," ",null,null,null,null,null,null,null,null,null,null,null,null,null,null,null,null,null,null,null,null,"A"]
[6,{"$f":"IF(FILIACION_ESTUDIANTE!D13=0,\"\",FILIACION_PPFF!B12)","v":""},null,null,null,null,null,null,null,null,null,null,null,null,null,null,null,null,null,null,null,null,null,null,null,null,null,null," "," "," "," ",null,null,null,null,null,null,null,null,null,null,null,null,null,null,null,null,null,null,{"$f":"ISTEXT(#REF!)","v":false}]
[7,{"$f":"IF(FILIACION_ESTUDIANTE!D14=0,\"\",FILIACION_PPFF!B13)","v":""},null,null,null,null,null,null,null,null,null,null,null,null,null,null,null,null,null,null,null,null,null,null,null,null,null,null," "," "," "," ",null,null,null,null,null,null,null,null,null,null,null,null,null,null,null,null,null,null,null,null,"a"]
[8,{"$f":"IF(FILIACION_ESTUDIANTE!D15=0,\"\",FILIACION_PPFF!B14)","v":""},null,null,null,null,null,null,null,null,null,null,null,null,null,null,null,null,null,null,null,null,null,null,null,null,null,null," "," "," "," ",null,null,null,null,null,null,null,null,null,null,null,null,null,null,null,null,null,null,null,null,"a"]
[9,{"$f":"IF(FILIACION_ESTUDIANTE!D16=0,\"\",FILIACION_PPFF!B15)","v":""},null,null,null,null,null,null,null,null,null,null,null,null,null,null,null,null,null,null,null,null,null,null,null,null,null,null," "," "," "," ",null,null,null,null,null,"ENCABEZADO DE LOS FORMULARIOS DE CONTROL DE ASISTENCIA",null,null,null,null,null,null,null,null,null,null,null,{"$f":"MONTH(AX18)","v":2},null,null,"f"]
[10,{"$f":"IF(FILIACION_ESTUDIANTE!D17=0,\"\",FILIACION_PPFF!B16)","v":""},null,null,null,null,null,null,null,null,null,null,null,null,null,null,null,null,null,null,null,null,null,null,null,null,null,null," "," "," "," ",null,null,null,null,null,null,null,null,null,null,null,null,null,null,null,null,null,"2010-02-01",null,null,"f"]
[11,{"$f":"IF(FILIACION_ESTUDIANTE!D18=0,\"\",FILIACION_PPFF!B17)","v":""},null,null,null,null,null,null,null,null,null,null,null,null,null,null,null,null,null,null,null,null,null,null,null,null,null,null," "," "," "," ",null,null,null,null,null,null,null,null,null,null,null,null,null,null,null,null,null,null,null,null,"f"]
[12,{"$f":"IF(FILIACION_ESTUDIANTE!D19=0,\"\",FILIACION_PPFF!B18)","v":""},null,null,null,null,null,null,null,null,null,null,null,null,null,null,null,null,null,null,null,null,null,null,null,null,null,null," "," "," "," ",null,null,null,null,null,{"$f":"CONCATENATE(AO20,\" \",AP20)","v":"REGISTRO DE ASISTENCIA FEBRERO  2019"},null,null,"REGISTRO DE ASISTENCIA FEBRERO ",{"$f":"CARATULA!F27","v":2019},null,null,null,null,null,null,null,null,null,null,"p"]
[13,{"$f":"IF(FILIACION_ESTUDIANTE!D20=0,\"\",FILIACION_PPFF!B19)","v":""},null,null,null,null,null,null,null,null,null,null,null,null,null,null,null,null,null,null,null,null,null,null,null,null,null,null," "," "," "," ",null,null,null,null,null,{"$f":"CONCATENATE(AO21,\" \",AP21)","v":"REGISTRO DE ASISTENCIA MARZO  2019"},null,null,"REGISTRO DE ASISTENCIA MARZO ",{"$f":"AP20","v":2019},null,null,null,null,null,null,null,null,null,null,"y"]
[14,{"$f":"IF(FILIACION_ESTUDIANTE!D21=0,\"\",FILIACION_PPFF!B20)","v":""},null,null,null,null,null,null,null,null,null,null,null,null,null,null,null,null,null,null,null,null,null,null,null,null,null,null," "," "," "," ",null,null,null,null,null,"REGISTRO DE ASISTENCIA ABRIL  2019",null,null,"REGISTRO DE ASISTENCIA ABRIL ",{"$f":"AP21","v":2019},null,null,null,null,null,null,null,null,null,null,"a"]
[15,{"$f":"IF(FILIACION_ESTUDIANTE!D22=0,\"\",FILIACION_PPFF!B21)","v":""},null,null,null,null,null,null,null,null,null,null,null,null,null,null,null,null,null,null,null,null,null,null,null,null,null,null," "," "," "," ",null,null,null,null,null,"REGISTRO DE ASISTENCIA MAYO  2019",null,null,"REGISTRO DE ASISTENCIA MAYO ",{"$f":"AP22","v":2019},null,null,null,null,null,null,null,null,null,null,"a"]
[16,{"$f":"IF(FILIACION_ESTUDIANTE!D23=0,\"\",FILIACION_PPFF!B22)","v":""},null,null,null,null,null,null,null,null,null,null,null,null,null,null,null,null,null,null,null,null,null,null,null,null,null,null," "," "," "," ",null,null,null,null,null,"REGISTRO DE ASISTENCIA JUNIO  2019",null,null,"REGISTRO DE ASISTENCIA JUNIO ",2019,null,null,null,null,null,null,null,null,null,null,"a"]
[17,{"$f":"IF(FILIACION_ESTUDIANTE!D24=0,\"\",FILIACION_PPFF!B23)","v":""},null,null,null,null,null,null,null,null,null,null,null,null,null,null,null,null,null,null,null,null,null,null,null,null,null,null," "," "," "," ",null,null,null,null,null,"REGISTRO DE ASISTENCIA JULIO  2019",null,null,"REGISTRO DE ASISTENCIA JULIO ",2019,null,null,null,null,null,null,null,null,null,null,"a"]
[18,{"$f":"IF(FILIACION_ESTUDIANTE!D25=0,\"\",FILIACION_PPFF!B24)","v":""},null,null,null,null,null,null,null,null,null,null,null,null,null,null,null,null,null,null,null,null,null,null,null,null,null,null," "," "," "," ",null,null,null,null,null,"REGISTRO DE ASISTENCIA AGOSTO  2019",null,null,"REGISTRO DE ASISTENCIA AGOSTO ",2019,null,null,null,null,null,null,null,null,null,null,"a"]
[19,{"$f":"IF(FILIACION_ESTUDIANTE!D26=0,\"\",FILIACION_PPFF!B25)","v":""},null,null,null,null,null,null,null,null,null,null,null,null,null,null,null,null,null,null,null,null,null,null,null,null,null,null," "," "," "," ",null,null,null,null,null,"REGISTRO DE ASISTENCIA SEPTIEMBRE  2019",null,null,"REGISTRO DE ASISTENCIA SEPTIEMBRE ",2019,null,null,null,null,null,null,null,null,null,null,"a"]
[20,{"$f":"IF(FILIACION_ESTUDIANTE!D27=0,\"\",FILIACION_PPFF!B26)","v":""},null,null,null,null,null,null,null,null,null,null,null,null,null,null,null,null,null,null,null,null,null,null,null,null,null,null," "," "," "," ",null,null,null,null,null,"REGISTRO DE ASISTENCIA OCTUBRE  2019",null,null,"REGISTRO DE ASISTENCIA OCTUBRE ",2019,null,null,null,null,null,null,null,null,null,null,"f"]
[21,{"$f":"IF(FILIACION_ESTUDIANTE!D28=0,\"\",FILIACION_PPFF!B27)","v":""},null,null,null,null,null,null,null,null,null,null,null,null,null,null,null,null,null,null,null,null,null,null,null,null,null,null," "," "," "," ",null,null,null,null,null,"REGISTRO DE ASISTENCIA NOVIEMBRE  2019",null,null,"REGISTRO DE ASISTENCIA NOVIEMBRE ",2019,null,null,null,null,null,null,null,null,null,null,"p"]
[22,{"$f":"IF(FILIACION_ESTUDIANTE!D29=0,\"\",FILIACION_PPFF!B28)","v":""},null,null,null,null,null,null,null,null,null,null,null,null,null,null,null,null,null,null,null,null,null,null,null,null,null,null," "," "," "," ",null,null,null,null,null,"REGISTRO DE ASISTENCIA DICIEMBRE  2019",null,null,"REGISTRO DE ASISTENCIA DICIEMBRE ",2019,null,null,null,null,null,null,null,null,null,null,"M"]
[23,{"$f":"IF(FILIACION_ESTUDIANTE!D30=0,\"\",FILIACION_PPFF!B29)","v":""},null,null,null,null,null,null,null,null,null,null,null,null,null,null,null,null,null,null,null,null,null,null,null,null,null,null," "," "," "," "]
[24,{"$f":"IF(FILIACION_ESTUDIANTE!D31=0,\"\",FILIACION_PPFF!B30)","v":""},null,null,null,null,null,null,null,null,null,null,null,null,null,null,null,null,null,null,null,null,null,null,null,null,null,null," "," "," "," ",null,null,null,null,null,null,null,null,null,null,null,null,null,null,null,null,null,null,null,null,"M"]
[25,{"$f":"IF(FILIACION_ESTUDIANTE!D32=0,\"\",FILIACION_PPFF!B31)","v":""},null,null,null,null,null,null,null,null,null,null,null,null,null,null,null,null,null,null,null,null,null,null,null,null,null,null," "," "," "," ",null,null,null,null,null,null,null,null,null,null,null,null,null,null,null,null,null,null,null,null,"M"]
[26,{"$f":"IF(FILIACION_ESTUDIANTE!D33=0,\"\",FILIACION_PPFF!B32)","v":""},null,null,null,null,null,null,null,null,null,null,null,null,null,null,null,null,null,null,null,null,null,null,null,null,null,null," "," "," "," ",null,null,null,null,null,null,null,null,null,null,null,null,null,null,null,null,null,null,null,null,"M"]
[27,{"$f":"IF(FILIACION_ESTUDIANTE!D34=0,\"\",FILIACION_PPFF!B33)","v":""},null,null,null,null,null,null,null,null,null,null,null,null,null,null,null,null,null,null,null,null,null,null,null,null,null,null," "," "," "," ",null,null,null,null,null,null,null,null,null,null,null,null,null,null,null,null,null,null,null,null,"M"]
[28,{"$f":"IF(FILIACION_ESTUDIANTE!D35=0,\"\",FILIACION_PPFF!B34)","v":""},null,null,null,null,null,null,null,null,null,null,null,null,null,null,null,null,null,null,null,null,null,null,null,null,null,null," "," "," "," ",null,null,null,null,null,null,null,null,null,null,null,null,null,null,null,null,null,null,null,null,"M"]
[29,{"$f":"IF(FILIACION_ESTUDIANTE!D36=0,\"\",FILIACION_PPFF!B35)","v":""},null,null,null,null,null,null,null,null,null,null,null,null,null,null,null,null,null,null,null,null,null,null,null,null,null,null," "," "," "," "]
[30,{"$f":"IF(FILIACION_ESTUDIANTE!D37=0,\"\",FILIACION_PPFF!B36)","v":""},null,null,null,null,null,null,null,null,null,null,null,null,null,null,null,null,null,null,null,null,null,null,null,null,null,null," "," "," "," "]
[31,{"$f":"IF(FILIACION_ESTUDIANTE!D38=0,\"\",FILIACION_PPFF!B37)","v":""},null,null,null,null,null,null,null,null,null,null,null,null,null,null,null,null,null,null,null,null,null,null,null,null,null,null," "," "," "," ",null,null,null,null,null,null,null,null,null,null,null,null,null,null,null,null,null,null,null,null,"M"]
[32,{"$f":"IF(FILIACION_ESTUDIANTE!D39=0,\"\",FILIACION_PPFF!B38)","v":""},null,null,null,null,null,null,null,null,null,null,null,null,null,null,null,null,null,null,null,null,null,null,null,null,null,null," "," "," "," ",null,null,null,null,null,null,null,null,null,null,null,null,null,null,null,null,null,null,null,null,"M"]
[33,{"$f":"IF(FILIACION_ESTUDIANTE!D40=0,\"\",FILIACION_PPFF!B39)","v":""},null,null,null,null,null,null,null,null,null,null,null,null,null,null,null,null,null,null,null,null,null,null,null,null,null,null," "," "," "," "]
[34,{"$f":"IF(FILIACION_ESTUDIANTE!D41=0,\"\",FILIACION_PPFF!B40)","v":""},null,null,null,null,null,null,null,null,null,null,null,null,null,null,null,null,null,null,null,null,null,null,null,null,null,null," "," "," "," "]
[35,{"$f":"IF(FILIACION_ESTUDIANTE!D42=0,\"\",FILIACION_PPFF!B41)","v":""},null,null,null,null,null,null,null,null,null,null,null,null,null,null,null,null,null,null,null,null,null,null,null,null,null,null," "," "," "," "]
[36,{"$f":"IF(FILIACION_ESTUDIANTE!D43=0,\"\",FILIACION_PPFF!B42)","v":""},null,null,null,null,null,null,null,null,null,null,null,null,null,null,null,null,null,null,null,null,null,null,null,null,null,null," "," "," "," "]
[37,{"$f":"IF(FILIACION_ESTUDIANTE!D44=0,\"\",FILIACION_PPFF!B43)","v":""},null,null,null,null,null,null,null,null,null,null,null,null,null,null,null,null,null,null,null,null,null,null,null,null,null,null," "," "," "," "]
[38,{"$f":"IF(FILIACION_ESTUDIANTE!D45=0,\"\",FILIACION_PPFF!B44)","v":""},null,null,null,null,null,null,null,null,null,null,null,null,null,null,null,null,null,null,null,null,null,null,null,null,null,null," "," "," "," "]
[39,{"$f":"IF(FILIACION_ESTUDIANTE!D46=0,\"\",FILIACION_PPFF!B45)","v":""},null,null,null,null,null,null,null,null,null,null,null,null,null,null,null,null,null,null,null,null,null,null,null,null,null,null," "," "," "," "]
[40,{"$f":"IF(FILIACION_ESTUDIANTE!D47=0,\"\",FILIACION_PPFF!B46)","v":""},null,null,null,null,null,null,null,null,null,null,null,null,null,null,null,null,null,null,null,null,null,null,null,null,null,null," "," "," "," "]
[]
[null,null,null,"INSCRITOS","NO INCORPORADO",null,null,null,"EFECTIVOS",null,null,null,null,null,null,null,null,null,null,null,null,null,"PROMEDIO",null,null,null,null,"%",null,null,null,null,null,null,null,{"$f":"(SUM(AF9:AF48,AC9:AD48)/D53)","v":{"$error":"#VALUE!"}},"SUMATORIA","DIAS TRAB","PROMEDIO"]
[null,"VARONES",null,{"$f":"COUNTIF(FILIACION_ESTUDIANTE!J8:J47,\"M\")","v":0},0,null,null,null,{"$f":"IF(D51=0,\" \",(D51-E51-G51))","v":" "},null,null,null,null,null,null,"ASISTENCIA",null,null,null,null,null,null,{"$f":"IF(AJ50=0,\"\",ROUND(AM51-G53,0))","v":{"$error":"#VALUE!"}},null,null,null,null,{"$f":"IF(AJ50=0,\"\",ROUND((100*W51)/W53,0))","v":{"$error":"#VALUE!"}},null,null,null,null,null,null,null,"PRESENTE",{"$f":"IF(AJ50=0,\"\",SUM(AE9:AF48))","v":{"$error":"#VALUE!"}},{"$f":"IF(AJ50=0,\"\",AJ50)","v":{"$error":"#VALUE!"}},{"$f":"IF(AJ50=0,\"\",AK51/AL51)","v":{"$error":"#VALUE!"}}]
[null,"MUJERES",null,{"$f":"COUNTIF(FILIACION_ESTUDIANTE!J8:J47,\"F\")","v":0},0,null,null,null,{"$f":"IF(D52=0,\" \",(D52-E52-G52))","v":" "},null,null,null,null,null,null,"FALTA",null,null,null,null,null,null,{"$f":"IF(AJ50=0,\"\",ROUND(AM52,0))","v":{"$error":"#VALUE!"}},null,null,null,null,{"$f":"IF(AJ50=0,\"\",ROUND((100*W52)/W53,0))","v":{"$error":"#VALUE!"}},null,null,null,null,null,null,null,"FALTA",{"$f":"IF(AJ50=0,\"\",SUM(AC9:AD48))","v":{"$error":"#VALUE!"}},{"$f":"IF(AJ50=0,\"\",AJ50)","v":{"$error":"#VALUE!"}},{"$f":"IF(AJ50=0,\"\",AK52/AL52)","v":{"$error":"#VALUE!"}}]
[null,"TOTAL",null,{"$f":"IF(D51=0,\" \",(SUM(D51,D52)))","v":" "},{"$f":"SUM(E51,E52)","v":0},null,null,null,{"$f":"IF(I51=\" \",\" \",(SUM(I51,I52)))","v":" "},null,null,null,null,null,null,"TOTAL",null,null,null,null,null,null,{"$f":"IF(AJ50=0,\"\",SUM(W51:AA52))","v":{"$error":"#VALUE!"}},null,null,null,null,{"$f":"IF(AJ50=0,\"\",SUM(AB51:AD52))","v":{"$error":"#VALUE!"}},null,null,null,null,null,null,null,null,null,null,{"$f":"SUM(AM51:AM52)","v":{"$error":"#VALUE!"}}]

{"sheet":"NOVIEMBRE","index":17,"n_rows":53,"n_cols":53,"rows_kept":53,"cut":false,"hidden":false,"merged":[[4,0,4,1],[4,2,4,23],[4,24,4,27],[4,28,4,31],[5,0,5,31],[6,0,7,0],[6,1,7,3],[6,28,7,28],[6,29,7,29],[6,30,7,30],[0,33,0,34],[1,0,1,31],[2,0,2,31],[3,0,3,2],[3,3,3,12],[3,24,3,27],[3,28,3,31],[0,0,0,31],[16,37,18,39],[17,1,17,4],[18,1,18,4],[19,1,19,4],[6,31,7,31],[8,1,8,4],[8,33,47,33],[9,1,9,4],[10,1,10,4],[11,1,11,4],[12,1,12,4],[13,1,13,4],[14,1,14,4],[15,1,15,4],[16,1,16,4],[19,37,19,39],[21,37,21,39],[22,1,22,4],[22,37,22,39],[20,1,20,4],[20,37,20,39],[21,1,21,4],[23,37,23,39],[24,1,24,4],[24,37,24,39],[25,1,25,4],[25,37,25,39],[23,1,23,4],[26,37,26,39],[35,1,35,4],[27,1,27,4],[27,37,27,39],[28,1,28,4],[28,37,28,39],[29,1,29,4],[29,37,29,39],[30,1,30,4],[31,1,31,4],[32,1,32,4],[33,1,33,4],[34,1,34,4],[26,1,26,4],[47,1,47,4],[36,1,36,4],[37,1,37,4],[38,1,38,4],[39,1,39,4],[40,1,40,4],[41,1,41,4],[42,1,42,4],[43,1,43,4],[44,1,44,4],[45,1,45,4],[46,1,46,4],[49,4,49,7],[50,4,50,7],[51,4,51,7],[52,1,52,2],[52,8,52,10],[52,4,52,7],[52,15,52,21],[52,22,52,26],[48,33,56,33],[49,8,49,10],[49,22,49,26],[49,27,49,29],[50,8,50,10],[50,15,50,21],[50,22,50,26],[50,27,50,29],[51,8,51,10],[51,15,51,21],[51,22,51,26],[51,27,51,29],[52,27,52,29]]}
[null,null,null,null,null,null,null,null,null,null,null,null,null,null,null,null,null,null,null,null,null,null,null,null,null,null,null,null,null,null,null,null,null,"ASISTENCIAS E INASISTENCIAS",null,"AZUL"]
[null,null,null,null,null,null,null,null,null,null,null,null,null,null,null,null,null,null,null,null,null,null,null,null,null,null,null,null,null,null,null,null,null,"Presente","P"]
[{"$f":"AL29","v":"REGISTRO DE ASISTENCIA NOVIEMBRE  2019"},null,null,null,null,null,null,null,null,null,null,null,null,null,null,null,null,null,null,null,null,null,null,null,null,null,null,null,null,null,null,null,null,"Atraso","A"]
[{"$f":"+UPPER(CARATULA!C21)","v":"MAESTRA (O):"},null,null,{"$f":"CARATULA!E21","v":0},null,null,null,null,null,null,null,null,null,null,null,null,null,null,null,null,null,null,null,null,"TURNO: ",null,null,null,{"$f":"CARATULA!E14","v":0},null,null,null,null,"falta con licencia","F"]
["NIVEL:",null,{"$f":"CARATULA!E22","v":0},null,null,null,null,null,null,null,null,null,null,null,null,null,null,null,null,null,null,null,null,null,"PARALELO:",null,null,null,{"$f":"CARATULA!E15","v":0},null,null,null,null,"Falta sin licencia","L"]
[{"$f":"+CONCATENATE(\"AÑO DE ESCOLARIDAD:  \",CARATULA!E23)","v":"AÑO DE ESCOLARIDAD:  "}]
["Nº","NÓMINA",null,null,"DÍA","V","L","M","M","J","V","L","M","M","J","V","L","M","M","J","V","L","M","M","J","V",null,null,"LICENCIA (L)","FALTA (F)","ATRASO (A)","PRESENTE=DÍAS TRABAJAOS",null,"dias materias tecnicas",0]
[null,null,null,null,"FECHA",1,{"$f":"F8+3","v":4},{"$f":"G8+1","v":5},6,7,8,{"$f":"K8+3","v":11},12,13,14,15,{"$f":"P8+3","v":18},19,20,21,22,{"$f":"U8+3","v":25},26,27,28,29]
[1,{"$f":"IF(FILIACION_ESTUDIANTE!D8=0,\"\",FILIACION_PPFF!B7)","v":""},null,null,null,null,null,null,null,null,null,null,null,null,null,null,null,null,null,null,null,null,null,null,null,null,null,null,{"$f":"IF((COUNTBLANK(F9:AB9))>=23,\" \",(COUNTIF((F9:AB9),$AI$5)))","v":" "},{"$f":"IF((COUNTBLANK(F9:AB9))>=23,\" \",(COUNTIF((F9:AB9),$AI$4)))","v":" "},{"$f":"IF((COUNTBLANK(F9:AB9))>=23,\" \",(COUNTIF((F9:AB9),$AI$3)))","v":" "},{"$f":"IF(COUNTBLANK(F9:AB9)>=23,\" \",(COUNTIF((F9:AB9),$AI$2)+AE9+$AI$7))","v":" "},null,"NOVIEMBRE"]
[2,{"$f":"IF(FILIACION_ESTUDIANTE!D9=0,\"\",FILIACION_PPFF!B8)","v":""},null,null,null,null,null,null,null,null,null,null,null,null,null,null,null,null,null,null,null,null,null,null,null,null,null,null,{"$f":"IF((COUNTBLANK(F10:AB10))>=23,\" \",(COUNTIF((F10:AB10),$AI$5)))","v":" "}," "," "," "]
[3,{"$f":"IF(FILIACION_ESTUDIANTE!D10=0,\"\",FILIACION_PPFF!B9)","v":""},null,null,null,null,null,null,null,null,null,null,null,null,null,null,null,null,null,null,null,null,null,null,null,null,null,null," "," "," "," "]
[4,{"$f":"IF(FILIACION_ESTUDIANTE!D11=0,\"\",FILIACION_PPFF!B10)","v":""},null,null,null,null,null,null,null,null,null,null,null,null,null,null,null,null,null,null,null,null,null,null,null,null,null,null," "," "," "," ",null,null,null,null,null,null,null,null,null,null,null,null,null,null,null,null,null,null,null,{"$f":"ISLOGICAL((#REF!))","v":false},1]
[5,{"$f":"IF(FILIACION_ESTUDIANTE!D12=0,\"\",FILIACION_PPFF!B11)","v":""},null,null,null,null,null,null,null,null,null,null,null,null,null,null,null,null,null,null,null,null,null,null,null,null,null,null," "," "," "," ",null,null,null,null,null,null,null,null,null,null,null,null,null,null,null,null,null,null,null,null,"A"]
[6,{"$f":"IF(FILIACION_ESTUDIANTE!D13=0,\"\",FILIACION_PPFF!B12)","v":""},null,null,null,null,null,null,null,null,null,null,null,null,null,null,null,null,null,null,null,null,null,null,null,null,null,null," "," "," "," ",null,null,null,null,null,null,null,null,null,null,null,null,null,null,null,null,null,null,{"$f":"ISTEXT(#REF!)","v":false}]
[7,{"$f":"IF(FILIACION_ESTUDIANTE!D14=0,\"\",FILIACION_PPFF!B13)","v":""},null,null,null,null,null,null,null,null,null,null,null,null,null,null,null,null,null,null,null,null,null,null,null,null,null,null," "," "," "," ",null,null,null,null,null,null,null,null,null,null,null,null,null,null,null,null,null,null,null,null,"a"]
[8,{"$f":"IF(FILIACION_ESTUDIANTE!D15=0,\"\",FILIACION_PPFF!B14)","v":""},null,null,null,null,null,null,null,null,null,null,null,null,null,null,null,null,null,null,null,null,null,null,null,null,null,null," "," "," "," ",null,null,null,null,null,null,null,null,null,null,null,null,null,null,null,null,null,null,null,null,"a"]
[9,{"$f":"IF(FILIACION_ESTUDIANTE!D16=0,\"\",FILIACION_PPFF!B15)","v":""},null,null,null,null,null,null,null,null,null,null,null,null,null,null,null,null,null,null,null,null,null,null,null,null,null,null," "," "," "," ",null,null,null,null,null,"ENCABEZADO DE LOS FORMULARIOS DE CONTROL DE ASISTENCIA",null,null,null,null,null,null,null,null,null,null,null,{"$f":"MONTH(AX18)","v":2},null,null,"f"]
[10,{"$f":"IF(FILIACION_ESTUDIANTE!D17=0,\"\",FILIACION_PPFF!B16)","v":""},null,null,null,null,null,null,null,null,null,null,null,null,null,null,null,null,null,null,null,null,null,null,null,null,null,null," "," "," "," ",null,null,null,null,null,null,null,null,null,null,null,null,null,null,null,null,null,"2010-02-01",null,null,"f"]
[11,{"$f":"IF(FILIACION_ESTUDIANTE!D18=0,\"\",FILIACION_PPFF!B17)","v":""},null,null,null,null,null,null,null,null,null,null,null,null,null,null,null,null,null,null,null,null,null,null,null,null,null,null," "," "," "," ",null,null,null,null,null,null,null,null,null,null,null,null,null,null,null,null,null,null,null,null,"f"]
[12,{"$f":"IF(FILIACION_ESTUDIANTE!D19=0,\"\",FILIACION_PPFF!B18)","v":""},null,null,null,null,null,null,null,null,null,null,null,null,null,null,null,null,null,null,null,null,null,null,null,null,null,null," "," "," "," ",null,null,null,null,null,{"$f":"CONCATENATE(AO20,\" \",AP20)","v":"REGISTRO DE ASISTENCIA FEBRERO  2019"},null,null,"REGISTRO DE ASISTENCIA FEBRERO ",{"$f":"CARATULA!F27","v":2019},null,null,null,null,null,null,null,null,null,null,"p"]
[13,{"$f":"IF(FILIACION_ESTUDIANTE!D20=0,\"\",FILIACION_PPFF!B19)","v":""},null,null,null,null,null,null,null,null,null,null,null,null,null,null,null,null,null,null,null,null,null,null,null,null,null,null," "," "," "," ",null,null,null,null,null,{"$f":"CONCATENATE(AO21,\" \",AP21)","v":"REGISTRO DE ASISTENCIA MARZO  2019"},null,null,"REGISTRO DE ASISTENCIA MARZO ",{"$f":"AP20","v":2019},null,null,null,null,null,null,null,null,null,null,"y"]
[14,{"$f":"IF(FILIACION_ESTUDIANTE!D21=0,\"\",FILIACION_PPFF!B20)","v":""},null,null,null,null,null,null,null,null,null,null,null,null,null,null,null,null,null,null,null,null,null,null,null,null,null,null," "," "," "," ",null,null,null,null,null,"REGISTRO DE ASISTENCIA ABRIL  2019",null,null,"REGISTRO DE ASISTENCIA ABRIL ",{"$f":"AP21","v":2019},null,null,null,null,null,null,null,null,null,null,"a"]
[15,{"$f":"IF(FILIACION_ESTUDIANTE!D22=0,\"\",FILIACION_PPFF!B21)","v":""},null,null,null,null,null,null,null,null,null,null,null,null,null,null,null,null,null,null,null,null,null,null,null,null,null,null," "," "," "," ",null,null,null,null,null,"REGISTRO DE ASISTENCIA MAYO  2019",null,null,"REGISTRO DE ASISTENCIA MAYO ",{"$f":"AP22","v":2019},null,null,null,null,null,null,null,null,null,null,"a"]
[16,{"$f":"IF(FILIACION_ESTUDIANTE!D23=0,\"\",FILIACION_PPFF!B22)","v":""},null,null,null,null,null,null,null,null,null,null,null,null,null,null,null,null,null,null,null,null,null,null,null,null,null,null," "," "," "," ",null,null,null,null,null,"REGISTRO DE ASISTENCIA JUNIO  2019",null,null,"REGISTRO DE ASISTENCIA JUNIO ",2019,null,null,null,null,null,null,null,null,null,null,"a"]
[17,{"$f":"IF(FILIACION_ESTUDIANTE!D24=0,\"\",FILIACION_PPFF!B23)","v":""},null,null,null,null,null,null,null,null,null,null,null,null,null,null,null,null,null,null,null,null,null,null,null,null,null,null," "," "," "," ",null,null,null,null,null,"REGISTRO DE ASISTENCIA JULIO  2019",null,null,"REGISTRO DE ASISTENCIA JULIO ",2019,null,null,null,null,null,null,null,null,null,null,"a"]
[18,{"$f":"IF(FILIACION_ESTUDIANTE!D25=0,\"\",FILIACION_PPFF!B24)","v":""},null,null,null,null,null,null,null,null,null,null,null,null,null,null,null,null,null,null,null,null,null,null,null,null,null,null," "," "," "," ",null,null,null,null,null,"REGISTRO DE ASISTENCIA AGOSTO  2019",null,null,"REGISTRO DE ASISTENCIA AGOSTO ",2019,null,null,null,null,null,null,null,null,null,null,"a"]
[19,{"$f":"IF(FILIACION_ESTUDIANTE!D26=0,\"\",FILIACION_PPFF!B25)","v":""},null,null,null,null,null,null,null,null,null,null,null,null,null,null,null,null,null,null,null,null,null,null,null,null,null,null," "," "," "," ",null,null,null,null,null,"REGISTRO DE ASISTENCIA SEPTIEMBRE  2019",null,null,"REGISTRO DE ASISTENCIA SEPTIEMBRE ",2019,null,null,null,null,null,null,null,null,null,null,"a"]
[20,{"$f":"IF(FILIACION_ESTUDIANTE!D27=0,\"\",FILIACION_PPFF!B26)","v":""},null,null,null,null,null,null,null,null,null,null,null,null,null,null,null,null,null,null,null,null,null,null,null,null,null,null," "," "," "," ",null,null,null,null,null,"REGISTRO DE ASISTENCIA OCTUBRE  2019",null,null,"REGISTRO DE ASISTENCIA OCTUBRE ",2019,null,null,null,null,null,null,null,null,null,null,"f"]
[21,{"$f":"IF(FILIACION_ESTUDIANTE!D28=0,\"\",FILIACION_PPFF!B27)","v":""},null,null,null,null,null,null,null,null,null,null,null,null,null,null,null,null,null,null,null,null,null,null,null,null,null,null," "," "," "," ",null,null,null,null,null,"REGISTRO DE ASISTENCIA NOVIEMBRE  2019",null,null,"REGISTRO DE ASISTENCIA NOVIEMBRE ",2019,null,null,null,null,null,null,null,null,null,null,"p"]
[22,{"$f":"IF(FILIACION_ESTUDIANTE!D29=0,\"\",FILIACION_PPFF!B28)","v":""},null,null,null,null,null,null,null,null,null,null,null,null,null,null,null,null,null,null,null,null,null,null,null,null,null,null," "," "," "," ",null,null,null,null,null,"REGISTRO DE ASISTENCIA DICIEMBRE  2019",null,null,"REGISTRO DE ASISTENCIA DICIEMBRE ",2019,null,null,null,null,null,null,null,null,null,null,"M"]
[23,{"$f":"IF(FILIACION_ESTUDIANTE!D30=0,\"\",FILIACION_PPFF!B29)","v":""},null,null,null,null,null,null,null,null,null,null,null,null,null,null,null,null,null,null,null,null,null,null,null,null,null,null," "," "," "," "]
[24,{"$f":"IF(FILIACION_ESTUDIANTE!D31=0,\"\",FILIACION_PPFF!B30)","v":""},null,null,null,null,null,null,null,null,null,null,null,null,null,null,null,null,null,null,null,null,null,null,null,null,null,null," "," "," "," ",null,null,null,null,null,null,null,null,null,null,null,null,null,null,null,null,null,null,null,null,"M"]
[25,{"$f":"IF(FILIACION_ESTUDIANTE!D32=0,\"\",FILIACION_PPFF!B31)","v":""},null,null,null,null,null,null,null,null,null,null,null,null,null,null,null,null,null,null,null,null,null,null,null,null,null,null," "," "," "," ",null,null,null,null,null,null,null,null,null,null,null,null,null,null,null,null,null,null,null,null,"M"]
[26,{"$f":"IF(FILIACION_ESTUDIANTE!D33=0,\"\",FILIACION_PPFF!B32)","v":""},null,null,null,null,null,null,null,null,null,null,null,null,null,null,null,null,null,null,null,null,null,null,null,null,null,null," "," "," "," ",null,null,null,null,null,null,null,null,null,null,null,null,null,null,null,null,null,null,null,null,"M"]
[27,{"$f":"IF(FILIACION_ESTUDIANTE!D34=0,\"\",FILIACION_PPFF!B33)","v":""},null,null,null,null,null,null,null,null,null,null,null,null,null,null,null,null,null,null,null,null,null,null,null,null,null,null," "," "," "," ",null,null,null,null,null,null,null,null,null,null,null,null,null,null,null,null,null,null,null,null,"M"]
[28,{"$f":"IF(FILIACION_ESTUDIANTE!D35=0,\"\",FILIACION_PPFF!B34)","v":""},null,null,null,null,null,null,null,null,null,null,null,null,null,null,null,null,null,null,null,null,null,null,null,null,null,null," "," "," "," ",null,null,null,null,null,null,null,null,null,null,null,null,null,null,null,null,null,null,null,null,"M"]
[29,{"$f":"IF(FILIACION_ESTUDIANTE!D36=0,\"\",FILIACION_PPFF!B35)","v":""},null,null,null,null,null,null,null,null,null,null,null,null,null,null,null,null,null,null,null,null,null,null,null,null,null,null," "," "," "," "]
[30,{"$f":"IF(FILIACION_ESTUDIANTE!D37=0,\"\",FILIACION_PPFF!B36)","v":""},null,null,null,null,null,null,null,null,null,null,null,null,null,null,null,null,null,null,null,null,null,null,null,null,null,null," "," "," "," "]
[31,{"$f":"IF(FILIACION_ESTUDIANTE!D38=0,\"\",FILIACION_PPFF!B37)","v":""},null,null,null,null,null,null,null,null,null,null,null,null,null,null,null,null,null,null,null,null,null,null,null,null,null,null," "," "," "," ",null,null,null,null,null,null,null,null,null,null,null,null,null,null,null,null,null,null,null,null,"M"]
[32,{"$f":"IF(FILIACION_ESTUDIANTE!D39=0,\"\",FILIACION_PPFF!B38)","v":""},null,null,null,null,null,null,null,null,null,null,null,null,null,null,null,null,null,null,null,null,null,null,null,null,null,null," "," "," "," ",null,null,null,null,null,null,null,null,null,null,null,null,null,null,null,null,null,null,null,null,"M"]
[33,{"$f":"IF(FILIACION_ESTUDIANTE!D40=0,\"\",FILIACION_PPFF!B39)","v":""},null,null,null,null,null,null,null,null,null,null,null,null,null,null,null,null,null,null,null,null,null,null,null,null,null,null," "," "," "," "]
[34,{"$f":"IF(FILIACION_ESTUDIANTE!D41=0,\"\",FILIACION_PPFF!B40)","v":""},null,null,null,null,null,null,null,null,null,null,null,null,null,null,null,null,null,null,null,null,null,null,null,null,null,null," "," "," "," "]
[35,{"$f":"IF(FILIACION_ESTUDIANTE!D42=0,\"\",FILIACION_PPFF!B41)","v":""},null,null,null,null,null,null,null,null,null,null,null,null,null,null,null,null,null,null,null,null,null,null,null,null,null,null," "," "," "," "]
[36,{"$f":"IF(FILIACION_ESTUDIANTE!D43=0,\"\",FILIACION_PPFF!B42)","v":""},null,null,null,null,null,null,null,null,null,null,null,null,null,null,null,null,null,null,null,null,null,null,null,null,null,null," "," "," "," "]
[37,{"$f":"IF(FILIACION_ESTUDIANTE!D44=0,\"\",FILIACION_PPFF!B43)","v":""},null,null,null,null,null,null,null,null,null,null,null,null,null,null,null,null,null,null,null,null,null,null,null,null,null,null," "," "," "," "]
[38,{"$f":"IF(FILIACION_ESTUDIANTE!D45=0,\"\",FILIACION_PPFF!B44)","v":""},null,null,null,null,null,null,null,null,null,null,null,null,null,null,null,null,null,null,null,null,null,null,null,null,null,null," "," "," "," "]
[39,{"$f":"IF(FILIACION_ESTUDIANTE!D46=0,\"\",FILIACION_PPFF!B45)","v":""},null,null,null,null,null,null,null,null,null,null,null,null,null,null,null,null,null,null,null,null,null,null,null,null,null,null," "," "," "," "]
[40,{"$f":"IF(FILIACION_ESTUDIANTE!D47=0,\"\",FILIACION_PPFF!B46)","v":""},null,null,null,null,null,null,null,null,null,null,null,null,null,null,null,null,null,null,null,null,null,null,null,null,null,null," "," "," "," "]
[]
[null,null,null,"INSCRITOS","NO INCORPORADO",null,null,null,"EFECTIVOS",null,null,null,null,null,null,null,null,null,null,null,null,null,"PROMEDIO",null,null,null,null,"%",null,null,null,null,null,null,null,{"$f":"(SUM(AF9:AF48,AC9:AD48)/D53)","v":{"$error":"#VALUE!"}},"SUMATORIA","DIAS TRAB","PROMEDIO"]
[null,"VARONES",null,{"$f":"COUNTIF(FILIACION_ESTUDIANTE!J8:J47,\"M\")","v":0},0,null,null,null,{"$f":"IF(D51=0,\" \",(D51-E51-G51))","v":" "},null,null,null,null,null,null,"ASISTENCIA",null,null,null,null,null,null,{"$f":"IF(AJ50=0,\"\",ROUND(AM51-G53,0))","v":{"$error":"#VALUE!"}},null,null,null,null,{"$f":"IF(AJ50=0,\"\",ROUND((100*W51)/W53,0))","v":{"$error":"#VALUE!"}},null,null,null,null,null,null,null,"PRESENTE",{"$f":"IF(AJ50=0,\"\",SUM(AE9:AF48))","v":{"$error":"#VALUE!"}},{"$f":"IF(AJ50=0,\"\",AJ50)","v":{"$error":"#VALUE!"}},{"$f":"IF(AJ50=0,\"\",AK51/AL51)","v":{"$error":"#VALUE!"}}]
[null,"MUJERES",null,{"$f":"COUNTIF(FILIACION_ESTUDIANTE!J8:J47,\"F\")","v":0},0,null,null,null,{"$f":"IF(D52=0,\" \",(D52-E52-G52))","v":" "},null,null,null,null,null,null,"FALTA",null,null,null,null,null,null,{"$f":"IF(AJ50=0,\"\",ROUND(AM52,0))","v":{"$error":"#VALUE!"}},null,null,null,null,{"$f":"IF(AJ50=0,\"\",ROUND((100*W52)/W53,0))","v":{"$error":"#VALUE!"}},null,null,null,null,null,null,null,"FALTA",{"$f":"IF(AJ50=0,\"\",SUM(AC9:AD48))","v":{"$error":"#VALUE!"}},{"$f":"IF(AJ50=0,\"\",AJ50)","v":{"$error":"#VALUE!"}},{"$f":"IF(AJ50=0,\"\",AK52/AL52)","v":{"$error":"#VALUE!"}}]
[null,"TOTAL",null,{"$f":"IF(D51=0,\" \",(SUM(D51,D52)))","v":" "},{"$f":"SUM(E51,E52)","v":0},null,null,null,{"$f":"IF(I51=\" \",\" \",(SUM(I51,I52)))","v":" "},null,null,null,null,null,null,"TOTAL",null,null,null,null,null,null,{"$f":"IF(AJ50=0,\"\",SUM(W51:AA52))","v":{"$error":"#VALUE!"}},null,null,null,null,{"$f":"IF(AJ50=0,\"\",SUM(AB51:AD52))","v":{"$error":"#VALUE!"}},null,null,null,null,null,null,null,null,null,null,{"$f":"SUM(AM51:AM52)","v":{"$error":"#VALUE!"}}]

{"sheet":"DICIEMBRE","index":18,"n_rows":53,"n_cols":53,"rows_kept":53,"cut":false,"hidden":false,"merged":[[4,0,4,1],[4,2,4,23],[4,24,4,27],[4,28,4,31],[5,0,5,31],[6,0,7,0],[6,1,7,3],[6,28,7,28],[6,29,7,29],[6,30,7,30],[0,33,0,34],[1,0,1,31],[2,0,2,31],[3,0,3,2],[3,3,3,12],[3,24,3,27],[3,28,3,31],[0,0,0,31],[16,37,18,39],[17,1,17,4],[18,1,18,4],[19,1,19,4],[6,31,7,31],[8,1,8,4],[8,33,47,33],[9,1,9,4],[10,1,10,4],[11,1,11,4],[12,1,12,4],[13,1,13,4],[14,1,14,4],[15,1,15,4],[16,1,16,4],[19,37,19,39],[21,37,21,39],[22,1,22,4],[22,37,22,39],[20,1,20,4],[20,37,20,39],[21,1,21,4],[23,37,23,39],[24,1,24,4],[24,37,24,39],[25,1,25,4],[25,37,25,39],[23,1,23,4],[26,37,26,39],[35,1,35,4],[27,1,27,4],[27,37,27,39],[28,1,28,4],[28,37,28,39],[29,1,29,4],[29,37,29,39],[30,1,30,4],[31,1,31,4],[32,1,32,4],[33,1,33,4],[34,1,34,4],[26,1,26,4],[47,1,47,4],[36,1,36,4],[37,1,37,4],[38,1,38,4],[39,1,39,4],[40,1,40,4],[41,1,41,4],[42,1,42,4],[43,1,43,4],[44,1,44,4],[45,1,45,4],[46,1,46,4],[49,4,49,7],[50,4,50,7],[51,4,51,7],[52,1,52,2],[52,8,52,10],[52,4,52,7],[52,15,52,21],[52,22,52,26],[48,33,56,33],[49,8,49,10],[49,22,49,26],[49,27,49,29],[50,8,50,10],[50,15,50,21],[50,22,50,26],[50,27,50,29],[51,8,51,10],[51,15,51,21],[51,22,51,26],[51,27,51,29],[52,27,52,29]]}
[null,null,null,null,null,null,null,null,null,null,null,null,null,null,null,null,null,null,null,null,null,null,null,null,null,null,null,null,null,null,null,null,null,"ASISTENCIAS E INASISTENCIAS",null,"AZUL"]
[null,null,null,null,null,null,null,null,null,null,null,null,null,null,null,null,null,null,null,null,null,null,null,null,null,null,null,null,null,null,null,null,null,"Presente","P"]
[{"$f":"AL30","v":"REGISTRO DE ASISTENCIA DICIEMBRE  2019"},null,null,null,null,null,null,null,null,null,null,null,null,null,null,null,null,null,null,null,null,null,null,null,null,null,null,null,null,null,null,null,null,"Atraso","A"]
[{"$f":"+UPPER(CARATULA!C21)","v":"MAESTRA (O):"},null,null,{"$f":"CARATULA!E21","v":0},null,null,null,null,null,null,null,null,null,null,null,null,null,null,null,null,null,null,null,null,"TURNO: ",null,null,null,{"$f":"CARATULA!E14","v":0},null,null,null,null,"falta con licencia","F"]
["NIVEL:",null,{"$f":"CARATULA!E22","v":0},null,null,null,null,null,null,null,null,null,null,null,null,null,null,null,null,null,null,null,null,null,"PARALELO:",null,null,null,{"$f":"CARATULA!E15","v":0},null,null,null,null,"Falta sin licencia","L"]
[{"$f":"+CONCATENATE(\"AÑO DE ESCOLARIDAD:  \",CARATULA!E23)","v":"AÑO DE ESCOLARIDAD:  "}]
["Nº","NÓMINA",null,null,"DÍA","L","M","M","J","V","L","M","M","J","V","L","M","M","J","V","L",{"$f":"IF(F8=7,\"\",\"M\")","v":"M"},{"$f":"IF(V8>27,\"\",\"M\")","v":"M"},{"$f":"IF(W8>27,\"\",\"J\")","v":"J"},{"$f":"IF(X8>27,\"\",\"V\")","v":"V"},"L","M",null,"LICENCIA (L)","FALTA (F)","ATRASO (A)","PRESENTE=DÍAS TRABAJAOS",null,"dias materias tecnicas",0]
[null,null,null,null,"FECHA",2,{"$f":"F8+1","v":3},{"$f":"G8+1","v":4},{"$f":"H8+1","v":5},{"$f":"I8+1","v":6},{"$f":"J8+3","v":9},{"$f":"K8+1","v":10},{"$f":"L8+1","v":11},{"$f":"M8+1","v":12},{"$f":"N8+1","v":13},{"$f":"O8+3","v":16},{"$f":"P8+1","v":17},{"$f":"Q8+1","v":18},{"$f":"R8+1","v":19},20,{"$f":"T8+3","v":23},24,25,26,27,{"$f":"Y8+3","v":30},{"$f":"+Z8+1","v":31},{"$f":"IF($AH$9=\"FEBRERO\",\"\",AA8+1)","v":32}]
[1,{"$f":"IF(FILIACION_ESTUDIANTE!D8=0,\"\",FILIACION_PPFF!B7)","v":""},null,null,null,null,null,null,null,null,null,null,null,null,null,null,null,null,null,null,null,null,null,null,null,null,null,null,{"$f":"IF((COUNTBLANK(F9:AB9))>=23,\" \",(COUNTIF((F9:AB9),$AI$5)))","v":" "},{"$f":"IF((COUNTBLANK(F9:AB9))>=23,\" \",(COUNTIF((F9:AB9),$AI$4)))","v":" "},{"$f":"IF((COUNTBLANK(F9:AB9))>=23,\" \",(COUNTIF((F9:AB9),$AI$3)))","v":" "},{"$f":"IF(COUNTBLANK(F9:AB9)>=23,\" \",(COUNTIF((F9:AB9),$AI$2)+AE9+$AI$7))","v":" "},null,"DICEMBRE"]
[2,{"$f":"IF(FILIACION_ESTUDIANTE!D9=0,\"\",FILIACION_PPFF!B8)","v":""},null,null,null,null,null,null,null,null,null,null,null,null,null,null,null,null,null,null,null,null,null,null,null,null,null,null," "," "," "," "]
[3,{"$f":"IF(FILIACION_ESTUDIANTE!D10=0,\"\",FILIACION_PPFF!B9)","v":""},null,null,null,null,null,null,null,null,null,null,null,null,null,null,null,null,null,null,null,null,null,null,null,null,null,null," "," "," "," "]
[4,{"$f":"IF(FILIACION_ESTUDIANTE!D11=0,\"\",FILIACION_PPFF!B10)","v":""},null,null,null,null,null,null,null,null,null,null,null,null,null,null,null,null,null,null,null,null,null,null,null,null,null,null," "," "," "," ",null,null,null,null,null,null,null,null,null,null,null,null,null,null,null,null,null,null,null,{"$f":"ISLOGICAL((#REF!))","v":false},1]
[5,{"$f":"IF(FILIACION_ESTUDIANTE!D12=0,\"\",FILIACION_PPFF!B11)","v":""},null,null,null,null,null,null,null,null,null,null,null,null,null,null,null,null,null,null,null,null,null,null,null,null,null,null," "," "," "," ",null,null,null,null,null,null,null,null,null,null,null,null,null,null,null,null,null,null,null,null,"A"]
[6,{"$f":"IF(FILIACION_ESTUDIANTE!D13=0,\"\",FILIACION_PPFF!B12)","v":""},null,null,null,null,null,null,null,null,null,null,null,null,null,null,null,null,null,null,null,null,null,null,null,null,null,null," "," "," "," ",null,null,null,null,null,null,null,null,null,null,null,null,null,null,null,null,null,null,{"$f":"ISTEXT(#REF!)","v":false}]
[7,{"$f":"IF(FILIACION_ESTUDIANTE!D14=0,\"\",FILIACION_PPFF!B13)","v":""},null,null,null,null,null,null,null,null,null,null,null,null,null,null,null,null,null,null,null,null,null,null,null,null,null,null," "," "," "," ",null,null,null,null,null,null,null,null,null,null,null,null,null,null,null,null,null,null,null,null,"a"]
[8,{"$f":"IF(FILIACION_ESTUDIANTE!D15=0,\"\",FILIACION_PPFF!B14)","v":""},null,null,null,null,null,null,null,null,null,null,null,null,null,null,null,null,null,null,null,null,null,null,null,null,null,null," "," "," "," ",null,null,null,null,null,null,null,null,null,null,null,null,null,null,null,null,null,null,null,null,"a"]
[9,{"$f":"IF(FILIACION_ESTUDIANTE!D16=0,\"\",FILIACION_PPFF!B15)","v":""},null,null,null,null,null,null,null,null,null,null,null,null,null,null,null,null,null,null,null,null,null,null,null,null,null,null," "," "," "," ",null,null,null,null,null,"ENCABEZADO DE LOS FORMULARIOS DE CONTROL DE ASISTENCIA",null,null,null,null,null,null,null,null,null,null,null,{"$f":"MONTH(AX18)","v":2},null,null,"f"]
[10,{"$f":"IF(FILIACION_ESTUDIANTE!D17=0,\"\",FILIACION_PPFF!B16)","v":""},null,null,null,null,null,null,null,null,null,null,null,null,null,null,null,null,null,null,null,null,null,null,null,null,null,null," "," "," "," ",null,null,null,null,null,null,null,null,null,null,null,null,null,null,null,null,null,"2010-02-01",null,null,"f"]
[11,{"$f":"IF(FILIACION_ESTUDIANTE!D18=0,\"\",FILIACION_PPFF!B17)","v":""},null,null,null,null,null,null,null,null,null,null,null,null,null,null,null,null,null,null,null,null,null,null,null,null,null,null," "," "," "," ",null,null,null,null,null,null,null,null,null,null,null,null,null,null,null,null,null,null,null,null,"f"]
[12,{"$f":"IF(FILIACION_ESTUDIANTE!D19=0,\"\",FILIACION_PPFF!B18)","v":""},null,null,null,null,null,null,null,null,null,null,null,null,null,null,null,null,null,null,null,null,null,null,null,null,null,null," "," "," "," ",null,null,null,null,null,{"$f":"CONCATENATE(AO20,\" \",AP20)","v":"REGISTRO DE ASISTENCIA FEBRERO  2019"},null,null,"REGISTRO DE ASISTENCIA FEBRERO ",{"$f":"CARATULA!F27","v":2019},null,null,null,null,null,null,null,null,null,null,"p"]
[13,{"$f":"IF(FILIACION_ESTUDIANTE!D20=0,\"\",FILIACION_PPFF!B19)","v":""},null,null,null,null,null,null,null,null,null,null,null,null,null,null,null,null,null,null,null,null,null,null,null,null,null,null," "," "," "," ",null,null,null,null,null,{"$f":"CONCATENATE(AO21,\" \",AP21)","v":"REGISTRO DE ASISTENCIA MARZO  2019"},null,null,"REGISTRO DE ASISTENCIA MARZO ",{"$f":"AP20","v":2019},null,null,null,null,null,null,null,null,null,null,"y"]
[14,{"$f":"IF(FILIACION_ESTUDIANTE!D21=0,\"\",FILIACION_PPFF!B20)","v":""},null,null,null,null,null,null,null,null,null,null,null,null,null,null,null,null,null,null,null,null,null,null,null,null,null,null," "," "," "," ",null,null,null,null,null,"REGISTRO DE ASISTENCIA ABRIL  2019",null,null,"REGISTRO DE ASISTENCIA ABRIL ",{"$f":"AP21","v":2019},null,null,null,null,null,null,null,null,null,null,"a"]
[15,{"$f":"IF(FILIACION_ESTUDIANTE!D22=0,\"\",FILIACION_PPFF!B21)","v":""},null,null,null,null,null,null,null,null,null,null,null,null,null,null,null,null,null,null,null,null,null,null,null,null,null,null," "," "," "," ",null,null,null,null,null,"REGISTRO DE ASISTENCIA MAYO  2019",null,null,"REGISTRO DE ASISTENCIA MAYO ",{"$f":"AP22","v":2019},null,null,null,null,null,null,null,null,null,null,"a"]
[16,{"$f":"IF(FILIACION_ESTUDIANTE!D23=0,\"\",FILIACION_PPFF!B22)","v":""},null,null,null,null,null,null,null,null,null,null,null,null,null,null,null,null,null,null,null,null,null,null,null,null,null,null," "," "," "," ",null,null,null,null,null,"REGISTRO DE ASISTENCIA JUNIO  2019",null,null,"REGISTRO DE ASISTENCIA JUNIO ",2019,null,null,null,null,null,null,null,null,null,null,"a"]
[17,{"$f":"IF(FILIACION_ESTUDIANTE!D24=0,\"\",FILIACION_PPFF!B23)","v":""},null,null,null,null,null,null,null,null,null,null,null,null,null,null,null,null,null,null,null,null,null,null,null,null,null,null," "," "," "," ",null,null,null,null,null,"REGISTRO DE ASISTENCIA JULIO  2019",null,null,"REGISTRO DE ASISTENCIA JULIO ",2019,null,null,null,null,null,null,null,null,null,null,"a"]
[18,{"$f":"IF(FILIACION_ESTUDIANTE!D25=0,\"\",FILIACION_PPFF!B24)","v":""},null,null,null,null,null,null,null,null,null,null,null,null,null,null,null,null,null,null,null,null,null,null,null,null,null,null," "," "," "," ",null,null,null,null,null,"REGISTRO DE ASISTENCIA AGOSTO  2019",null,null,"REGISTRO DE ASISTENCIA AGOSTO ",2019,null,null,null,null,null,null,null,null,null,null,"a"]
[19,{"$f":"IF(FILIACION_ESTUDIANTE!D26=0,\"\",FILIACION_PPFF!B25)","v":""},null,null,null,null,null,null,null,null,null,null,null,null,null,null,null,null,null,null,null,null,null,null,null,null,null,null," "," "," "," ",null,null,null,null,null,"REGISTRO DE ASISTENCIA SEPTIEMBRE  2019",null,null,"REGISTRO DE ASISTENCIA SEPTIEMBRE ",2019,null,null,null,null,null,null,null,null,null,null,"a"]
[20,{"$f":"IF(FILIACION_ESTUDIANTE!D27=0,\"\",FILIACION_PPFF!B26)","v":""},null,null,null,null,null,null,null,null,null,null,null,null,null,null,null,null,null,null,null,null,null,null,null,null,null,null," "," "," "," ",null,null,null,null,null,"REGISTRO DE ASISTENCIA OCTUBRE  2019",null,null,"REGISTRO DE ASISTENCIA OCTUBRE ",2019,null,null,null,null,null,null,null,null,null,null,"f"]
[21,{"$f":"IF(FILIACION_ESTUDIANTE!D28=0,\"\",FILIACION_PPFF!B27)","v":""},null,null,null,null,null,null,null,null,null,null,null,null,null,null,null,null,null,null,null,null,null,null,null,null,null,null," "," "," "," ",null,null,null,null,null,"REGISTRO DE ASISTENCIA NOVIEMBRE  2019",null,null,"REGISTRO DE ASISTENCIA NOVIEMBRE ",2019,null,null,null,null,null,null,null,null,null,null,"p"]
[22,{"$f":"IF(FILIACION_ESTUDIANTE!D29=0,\"\",FILIACION_PPFF!B28)","v":""},null,null,null,null,null,null,null,null,null,null,null,null,null,null,null,null,null,null,null,null,null,null,null,null,null,null," "," "," "," ",null,null,null,null,null,"REGISTRO DE ASISTENCIA DICIEMBRE  2019",null,null,"REGISTRO DE ASISTENCIA DICIEMBRE ",2019,null,null,null,null,null,null,null,null,null,null,"M"]
[23,{"$f":"IF(FILIACION_ESTUDIANTE!D30=0,\"\",FILIACION_PPFF!B29)","v":""},null,null,null,null,null,null,null,null,null,null,null,null,null,null,null,null,null,null,null,null,null,null,null,null,null,null," "," "," "," "]
[24,{"$f":"IF(FILIACION_ESTUDIANTE!D31=0,\"\",FILIACION_PPFF!B30)","v":""},null,null,null,null,null,null,null,null,null,null,null,null,null,null,null,null,null,null,null,null,null,null,null,null,null,null," "," "," "," ",null,null,null,null,null,null,null,null,null,null,null,null,null,null,null,null,null,null,null,null,"M"]
[25,{"$f":"IF(FILIACION_ESTUDIANTE!D32=0,\"\",FILIACION_PPFF!B31)","v":""},null,null,null,null,null,null,null,null,null,null,null,null,null,null,null,null,null,null,null,null,null,null,null,null,null,null," "," "," "," ",null,null,null,null,null,null,null,null,null,null,null,null,null,null,null,null,null,null,null,null,"M"]
[26,{"$f":"IF(FILIACION_ESTUDIANTE!D33=0,\"\",FILIACION_PPFF!B32)","v":""},null,null,null,null,null,null,null,null,null,null,null,null,null,null,null,null,null,null,null,null,null,null,null,null,null,null," "," "," "," ",null,null,null,null,null,null,null,null,null,null,null,null,null,null,null,null,null,null,null,null,"M"]
[27,{"$f":"IF(FILIACION_ESTUDIANTE!D34=0,\"\",FILIACION_PPFF!B33)","v":""},null,null,null,null,null,null,null,null,null,null,null,null,null,null,null,null,null,null,null,null,null,null,null,null,null,null," "," "," "," ",null,null,null,null,null,null,null,null,null,null,null,null,null,null,null,null,null,null,null,null,"M"]
[28,{"$f":"IF(FILIACION_ESTUDIANTE!D35=0,\"\",FILIACION_PPFF!B34)","v":""},null,null,null,null,null,null,null,null,null,null,null,null,null,null,null,null,null,null,null,null,null,null,null,null,null,null," "," "," "," ",null,null,null,null,null,null,null,null,null,null,null,null,null,null,null,null,null,null,null,null,"M"]
[29,{"$f":"IF(FILIACION_ESTUDIANTE!D36=0,\"\",FILIACION_PPFF!B35)","v":""},null,null,null,null,null,null,null,null,null,null,null,null,null,null,null,null,null,null,null,null,null,null,null,null,null,null," "," "," "," "]
[30,{"$f":"IF(FILIACION_ESTUDIANTE!D37=0,\"\",FILIACION_PPFF!B36)","v":""},null,null,null,null,null,null,null,null,null,null,null,null,null,null,null,null,null,null,null,null,null,null,null,null,null,null," "," "," "," "]
[31,{"$f":"IF(FILIACION_ESTUDIANTE!D38=0,\"\",FILIACION_PPFF!B37)","v":""},null,null,null,null,null,null,null,null,null,null,null,null,null,null,null,null,null,null,null,null,null,null,null,null,null,null," "," "," "," ",null,null,null,null,null,null,null,null,null,null,null,null,null,null,null,null,null,null,null,null,"M"]
[32,{"$f":"IF(FILIACION_ESTUDIANTE!D39=0,\"\",FILIACION_PPFF!B38)","v":""},null,null,null,null,null,null,null,null,null,null,null,null,null,null,null,null,null,null,null,null,null,null,null,null,null,null," "," "," "," ",null,null,null,null,null,null,null,null,null,null,null,null,null,null,null,null,null,null,null,null,"M"]
[33,{"$f":"IF(FILIACION_ESTUDIANTE!D40=0,\"\",FILIACION_PPFF!B39)","v":""},null,null,null,null,null,null,null,null,null,null,null,null,null,null,null,null,null,null,null,null,null,null,null,null,null,null," "," "," "," "]
[34,{"$f":"IF(FILIACION_ESTUDIANTE!D41=0,\"\",FILIACION_PPFF!B40)","v":""},null,null,null,null,null,null,null,null,null,null,null,null,null,null,null,null,null,null,null,null,null,null,null,null,null,null," "," "," "," "]
[35,{"$f":"IF(FILIACION_ESTUDIANTE!D42=0,\"\",FILIACION_PPFF!B41)","v":""},null,null,null,null,null,null,null,null,null,null,null,null,null,null,null,null,null,null,null,null,null,null,null,null,null,null," "," "," "," "]
[36,{"$f":"IF(FILIACION_ESTUDIANTE!D43=0,\"\",FILIACION_PPFF!B42)","v":""},null,null,null,null,null,null,null,null,null,null,null,null,null,null,null,null,null,null,null,null,null,null,null,null,null,null," "," "," "," "]
[37,{"$f":"IF(FILIACION_ESTUDIANTE!D44=0,\"\",FILIACION_PPFF!B43)","v":""},null,null,null,null,null,null,null,null,null,null,null,null,null,null,null,null,null,null,null,null,null,null,null,null,null,null," "," "," "," "]
[38,{"$f":"IF(FILIACION_ESTUDIANTE!D45=0,\"\",FILIACION_PPFF!B44)","v":""},null,null,null,null,null,null,null,null,null,null,null,null,null,null,null,null,null,null,null,null,null,null,null,null,null,null," "," "," "," "]
[39,{"$f":"IF(FILIACION_ESTUDIANTE!D46=0,\"\",FILIACION_PPFF!B45)","v":""},null,null,null,null,null,null,null,null,null,null,null,null,null,null,null,null,null,null,null,null,null,null,null,null,null,null," "," "," "," "]
[40,{"$f":"IF(FILIACION_ESTUDIANTE!D47=0,\"\",FILIACION_PPFF!B46)","v":""},null,null,null,null,null,null,null,null,null,null,null,null,null,null,null,null,null,null,null,null,null,null,null,null,null,null," "," "," "," "]
[null,null,null,null,null,null,null,null,null,null,null,null,null,null,null,null,null,null,null,null,null,null,null,null,null,null,null,null,null,null,null,null,null,{"$f":"IF(AJ50=0,\"Asistencia Vacia contactese con eliascarloshidalgo@gmail.com O LLAME AL 74094003\",IF(I53=W53,\"Impresión Asistencia  correcta \",\"CUIDADO LOS RESULTADOS NO SON LOS CORRECTOS\"))","v":{"$error":"#VALUE!"}}]
[null,null,null,"INSCRITOS","NO INCORPORADO",null,null,null,"EFECTIVOS",null,null,null,null,null,null,null,null,null,null,null,null,null,"PROMEDIO",null,null,null,null,"%",null,null,null,null,null,null,null,{"$f":"(SUM(AF9:AF48,AC9:AD48)/D53)","v":{"$error":"#VALUE!"}},"SUMATORIA","DIAS TRAB","PROMEDIO"]
[null,"VARONES",null,{"$f":"COUNTIF(FILIACION_ESTUDIANTE!J8:J47,\"M\")","v":0},0,null,null,null,{"$f":"IF(D51=0,\" \",(D51-E51-G51))","v":" "},null,null,null,null,null,null,"ASISTENCIA",null,null,null,null,null,null,{"$f":"IF(AJ50=0,\"\",ROUND(AM51-G53,0))","v":{"$error":"#VALUE!"}},null,null,null,null,{"$f":"IF(AJ50=0,\"\",ROUND((100*W51)/W53,0))","v":{"$error":"#VALUE!"}},null,null,null,null,null,null,null,"PRESENTE",{"$f":"IF(AJ50=0,\"\",SUM(AE9:AF48))","v":{"$error":"#VALUE!"}},{"$f":"IF(AJ50=0,\"\",AJ50)","v":{"$error":"#VALUE!"}},{"$f":"IF(AJ50=0,\"\",AK51/AL51)","v":{"$error":"#VALUE!"}}]
[null,"MUJERES",null,{"$f":"COUNTIF(FILIACION_ESTUDIANTE!J8:J47,\"F\")","v":0},0,null,null,null,{"$f":"IF(D52=0,\" \",(D52-E52-G52))","v":" "},null,null,null,null,null,null,"FALTA",null,null,null,null,null,null,{"$f":"IF(AJ50=0,\"\",ROUND(AM52,0))","v":{"$error":"#VALUE!"}},null,null,null,null,{"$f":"IF(AJ50=0,\"\",ROUND((100*W52)/W53,0))","v":{"$error":"#VALUE!"}},null,null,null,null,null,null,null,"FALTA",{"$f":"IF(AJ50=0,\"\",SUM(AC9:AD48))","v":{"$error":"#VALUE!"}},{"$f":"IF(AJ50=0,\"\",AJ50)","v":{"$error":"#VALUE!"}},{"$f":"IF(AJ50=0,\"\",AK52/AL52)","v":{"$error":"#VALUE!"}}]
[null,"TOTAL",null,{"$f":"IF(D51=0,\" \",(SUM(D51,D52)))","v":" "},{"$f":"SUM(E51,E52)","v":0},null,null,null,{"$f":"IF(I51=\" \",\" \",(SUM(I51,I52)))","v":" "},null,null,null,null,null,null,"TOTAL",null,null,null,null,null,null,{"$f":"IF(AJ50=0,\"\",SUM(W51:AA52))","v":{"$error":"#VALUE!"}},null,null,null,null,{"$f":"IF(AJ50=0,\"\",SUM(AB51:AD52))","v":{"$error":"#VALUE!"}},null,null,null,null,null,null,null,null,null,null,{"$f":"SUM(AM51:AM52)","v":{"$error":"#VALUE!"}}]

{"sheet":"VALORACION POR CAMPOS","index":19,"n_rows":0,"n_cols":0,"rows_kept":0,"cut":false,"hidden":false,"merged":[[0,0,0,7]]}

{"sheet":"COM_SOC_1B","index":20,"n_rows":55,"n_cols":48,"rows_kept":55,"cut":false,"hidden":false,"merged":[[3,12,3,17],[3,18,3,20],[12,1,13,1],[8,20,14,20],[9,14,11,14],[9,15,11,15],[12,6,14,6],[12,7,14,7],[12,8,14,8],[12,9,14,9],[9,1,11,1],[9,7,11,7],[9,8,11,8],[12,15,14,15],[12,16,14,16],[12,17,14,17],[8,0,14,0],[6,2,6,20],[9,9,11,9],[9,2,11,2],[9,3,11,3],[9,4,11,4],[9,5,11,5],[9,6,11,6],[9,16,11,16],[9,17,11,17],[9,10,11,10],[9,11,11,11],[9,12,11,12],[9,13,11,13],[12,18,14,19],[8,18,10,19],[1,1,2,1],[1,2,1,19],[1,27,8,31],[3,0,3,1],[3,2,3,11],[4,0,4,20],[7,0,7,1],[7,2,7,20],[8,2,8,5],[8,6,8,9],[8,10,8,13],[8,14,8,17],[2,2,2,19],[5,2,5,20],[5,0,5,1],[6,0,6,1],[15,18,15,19],[16,18,16,19],[17,18,17,19],[18,18,18,19],[19,18,19,19],[20,18,20,19],[21,18,21,19],[22,18,22,19],[23,18,23,19],[24,18,24,19],[25,18,25,19],[26,18,26,19],[27,18,27,19],[28,18,28,19],[29,18,29,19],[30,18,30,19],[31,18,31,19],[32,18,32,19],[33,18,33,19],[34,18,34,19],[35,18,35,19],[36,18,36,19],[37,18,37,19],[38,18,38,19],[39,18,39,19],[40,18,40,19],[41,18,41,19],[42,18,42,19],[43,18,43,19],[44,18,44,19],[45,18,45,19],[46,18,46,19],[47,18,47,19],[53,18,53,19],[54,18,54,19],[48,18,48,19],[49,18,49,19],[50,18,50,19],[51,18,51,19],[52,18,52,19],[12,2,14,2],[12,14,14,14],[12,10,14,10],[12,11,14,11],[12,12,14,12],[12,13,14,13],[12,5,14,5],[12,4,14,4],[12,3,14,3]]}
[]
[null,null,"CUADRO DE VALORACIÓN",null,null,null,null,null,null,null,null,null,null,null,null,null,null,null,null,null,null,null,null,null,null,null,null,"REGISTRO DE VALORACION",null,null,null,null,"ED",null,null,null,null,null,null,null,"DA","DO",null,"DP"]
[null,null,"EDUCACIÓN INICIAL  EN FAMILIA COMUNITARIA ",null,null,null,null,null,null,null,null,null,null,null,null,null,null,null,null,null,"1er BIMESTRE"]
[{"$f":"UPPER( CARATULA!$C$21)","v":"MAESTRA (O):"},null,{"$f":"CARATULA!$E$21","v":0},null,null,null,null,null,null,null,null,null,{"$f":"UPPER(CARATULA!$C$23)","v":"AÑO DE ESCOLARIDAD:"},null,null,null,null,null,{"$f":"CARATULA!$E$23","v":0}]
["CAMPO DE SABER Y CONOCIMIENTO COMUNIDAD Y SOCIEDAD"]
["INTRUMENTOS DE EVALUACIÓN"]
["ESTRATEGIAS DE EVALUACIÓN"]
["EVALUACIÓN",null,"CRITERIOS DE LAS DIMENSIONES"]
["Nº","DIMENSIONES","SER",null,null,null,"SABER",null,null,null,"HACER",null,null,null,"DECIDIR",null,null,null,"AUTOEVALUACIÓN (SER, SABER, HACER, DECIDIR)",null,"SÍNTESIS CUALITATIVA DEL BIMESTRE"]
[null,"PLANES DE CLASE (PDC)","PDC","PDC","PDC","PDC","PDC","PDC","PDC","PDC","PDC","PDC","PDC","PDC","PDC","PDC","PDC","PDC"]
[null,null,null,null,null,null,null,null,null,null,null,null,null,null,null,null,null,null,null,null,null,null,null,null,null,null,null,"DP","DO","DA","ED"]
[null,null,null,null,null,null,null,null,null,null,null,null,null,null,null,null,null,null,null,null,null,null,null,null,null,null,null,14,8,5,1]
[null,"CRITERIOS DE EVALUACIÓN",null,null,null,null,null,null,null,null,null,null,null,null,null,null,null,null,"ACTITUDES TRABAJOS, RESPONSABILIDADES"]
[]
[null,"APELLIDOS Y NOMBRES"]
[1,{"$f":"IF(FILIACION_ESTUDIANTE!D8=0,\"\",FILIACION_PPFF!B7)","v":""},null,null,null,null,null,null,null,null,null,null,null,null,null,null,null,null,null,null,null,null,null,"demuestra  algunas actitudes armonicas etre sfamilia Y  LE FALTAT",null,null,null,{"$f":"IF(C16=$AB$11,$AB$12,IF(C16=$AC$11,$AC$12,IF(C16=$AD$11,$AD$12,IF(C16=$AE$11,$AE$12))))","v":false},{"$f":"IF(D16=$AB$11,$AB$12,IF(D16=$AC$11,$AC$12,IF(D16=$AD$11,$AD$12,IF(D16=$AE$11,$AE$12))))","v":false},false,false,{"$f":"SUM(AB16:AE16)","v":0},{"$f":"IF(G16=$AB$11,$AB$12,IF(G16=$AC$11,$AC$12,IF(G16=$AD$11,$AD$12,IF(G16=$AE$11,$AE$12))))","v":false},{"$f":"IF(H16=$AB$11,$AB$12,IF(H16=$AC$11,$AC$12,IF(H16=$AD$11,$AD$12,IF(H16=$AE$11,$AE$12))))","v":false},false,false,{"$f":"SUM(AG16:AJ16)","v":0},{"$f":"IF(K16=$AB$11,$AB$12,IF(K16=$AC$11,$AC$12,IF(K16=$AD$11,$AD$12,IF(K16=$AE$11,$AE$12))))","v":false},{"$f":"IF(L16=$AB$11,$AB$12,IF(L16=$AC$11,$AC$12,IF(L16=$AD$11,$AD$12,IF(L16=$AE$11,$AE$12))))","v":false},{"$f":"IF(M16=$AB$11,$AB$12,IF(M16=$AC$11,$AC$12,IF(M16=$AD$11,$AD$12,IF(M16=$AE$11,$AE$12))))","v":false},{"$f":"IF(N16=$AB$11,$AB$12,IF(N16=$AC$11,$AC$12,IF(N16=$AD$11,$AD$12,IF(N16=$AE$11,$AE$12))))","v":false},{"$f":"SUM(AL16:AO16)","v":0},{"$f":"IF(O16=$AB$11,$AB$12,IF(O16=$AC$11,$AC$12,IF(O16=$AD$11,$AD$12,IF(O16=$AE$11,$AE$12))))","v":false},{"$f":"IF(P16=$AB$11,$AB$12,IF(P16=$AC$11,$AC$12,IF(P16=$AD$11,$AD$12,IF(P16=$AE$11,$AE$12))))","v":false},false,false,{"$f":"SUM(AQ16:AT16)","v":0},{"$f":"MAX(AF16,AK16,AP16,AU16)","v":0}]
[2,{"$f":"IF(FILIACION_ESTUDIANTE!D9=0,\"\",FILIACION_PPFF!B8)","v":""}]
[3,{"$f":"IF(FILIACION_ESTUDIANTE!D10=0,\"\",FILIACION_PPFF!B9)","v":""}]
[4,{"$f":"IF(FILIACION_ESTUDIANTE!D11=0,\"\",FILIACION_PPFF!B10)","v":""}]
[5,{"$f":"IF(FILIACION_ESTUDIANTE!D12=0,\"\",FILIACION_PPFF!B11)","v":""}]
[6,{"$f":"IF(FILIACION_ESTUDIANTE!D13=0,\"\",FILIACION_PPFF!B12)","v":""}]
[7,{"$f":"IF(FILIACION_ESTUDIANTE!D14=0,\"\",FILIACION_PPFF!B13)","v":""}]
[8,{"$f":"IF(FILIACION_ESTUDIANTE!D15=0,\"\",FILIACION_PPFF!B14)","v":""}]
[9,{"$f":"IF(FILIACION_ESTUDIANTE!D16=0,\"\",FILIACION_PPFF!B15)","v":""}]
[10,{"$f":"IF(FILIACION_ESTUDIANTE!D17=0,\"\",FILIACION_PPFF!B16)","v":""}]
[11,{"$f":"IF(FILIACION_ESTUDIANTE!D18=0,\"\",FILIACION_PPFF!B17)","v":""}]
[12,{"$f":"IF(FILIACION_ESTUDIANTE!D19=0,\"\",FILIACION_PPFF!B18)","v":""}]
[13,{"$f":"IF(FILIACION_ESTUDIANTE!D20=0,\"\",FILIACION_PPFF!B19)","v":""}]
[14,{"$f":"IF(FILIACION_ESTUDIANTE!D21=0,\"\",FILIACION_PPFF!B20)","v":""}]
[15,{"$f":"IF(FILIACION_ESTUDIANTE!D22=0,\"\",FILIACION_PPFF!B21)","v":""}]
[16,{"$f":"IF(FILIACION_ESTUDIANTE!D23=0,\"\",FILIACION_PPFF!B22)","v":""}]
[17,{"$f":"IF(FILIACION_ESTUDIANTE!D24=0,\"\",FILIACION_PPFF!B23)","v":""}]
[18,{"$f":"IF(FILIACION_ESTUDIANTE!D25=0,\"\",FILIACION_PPFF!B24)","v":""}]
[19,{"$f":"IF(FILIACION_ESTUDIANTE!D26=0,\"\",FILIACION_PPFF!B25)","v":""}]
[20,{"$f":"IF(FILIACION_ESTUDIANTE!D27=0,\"\",FILIACION_PPFF!B26)","v":""}]
[21,{"$f":"IF(FILIACION_ESTUDIANTE!D28=0,\"\",FILIACION_PPFF!B27)","v":""}]
[22,{"$f":"IF(FILIACION_ESTUDIANTE!D29=0,\"\",FILIACION_PPFF!B28)","v":""}]
[23,{"$f":"IF(FILIACION_ESTUDIANTE!D30=0,\"\",FILIACION_PPFF!B29)","v":""}]
[24,{"$f":"IF(FILIACION_ESTUDIANTE!D31=0,\"\",FILIACION_PPFF!B30)","v":""}]
[25,{"$f":"IF(FILIACION_ESTUDIANTE!D32=0,\"\",FILIACION_PPFF!B31)","v":""}]
[26,{"$f":"IF(FILIACION_ESTUDIANTE!D33=0,\"\",FILIACION_PPFF!B32)","v":""}]
[27,{"$f":"IF(FILIACION_ESTUDIANTE!D34=0,\"\",FILIACION_PPFF!B33)","v":""}]
[28,{"$f":"IF(FILIACION_ESTUDIANTE!D35=0,\"\",FILIACION_PPFF!B34)","v":""}]
[29,{"$f":"IF(FILIACION_ESTUDIANTE!D36=0,\"\",FILIACION_PPFF!B35)","v":""}]
[30,{"$f":"IF(FILIACION_ESTUDIANTE!D37=0,\"\",FILIACION_PPFF!B36)","v":""}]
[31,{"$f":"IF(FILIACION_ESTUDIANTE!D38=0,\"\",FILIACION_PPFF!B37)","v":""}]
[32,{"$f":"IF(FILIACION_ESTUDIANTE!D39=0,\"\",FILIACION_PPFF!B38)","v":""}]
[33,{"$f":"IF(FILIACION_ESTUDIANTE!D40=0,\"\",FILIACION_PPFF!B39)","v":""}]
[34,{"$f":"IF(FILIACION_ESTUDIANTE!D41=0,\"\",FILIACION_PPFF!B40)","v":""}]
[35,{"$f":"IF(FILIACION_ESTUDIANTE!D42=0,\"\",FILIACION_PPFF!B41)","v":""}]
[36,{"$f":"IF(FILIACION_ESTUDIANTE!D43=0,\"\",FILIACION_PPFF!B42)","v":""}]
[37,{"$f":"IF(FILIACION_ESTUDIANTE!D44=0,\"\",FILIACION_PPFF!B43)","v":""}]
[38,{"$f":"IF(FILIACION_ESTUDIANTE!D45=0,\"\",FILIACION_PPFF!B44)","v":""}]
[39,{"$f":"IF(FILIACION_ESTUDIANTE!D46=0,\"\",FILIACION_PPFF!B45)","v":""}]
[40,{"$f":"IF(FILIACION_ESTUDIANTE!D47=0,\"\",FILIACION_PPFF!B46)","v":""}]

{"sheet":"COM_SOC_2B","index":21,"n_rows":55,"n_cols":48,"rows_kept":55,"cut":false,"hidden":false,"merged":[[51,18,51,19],[52,18,52,19],[53,18,53,19],[54,18,54,19],[46,18,46,19],[47,18,47,19],[48,18,48,19],[49,18,49,19],[50,18,50,19],[41,18,41,19],[42,18,42,19],[43,18,43,19],[44,18,44,19],[45,18,45,19],[36,18,36,19],[37,18,37,19],[38,18,38,19],[39,18,39,19],[40,18,40,19],[31,18,31,19],[32,18,32,19],[33,18,33,19],[34,18,34,19],[35,18,35,19],[26,18,26,19],[27,18,27,19],[28,18,28,19],[29,18,29,19],[30,18,30,19],[21,18,21,19],[22,18,22,19],[23,18,23,19],[24,18,24,19],[25,18,25,19],[16,18,16,19],[17,18,17,19],[18,18,18,19],[19,18,19,19],[20,18,20,19],[9,15,11,15],[9,16,11,16],[9,17,11,17],[8,14,8,17],[15,18,15,19],[12,14,14,14],[12,15,14,15],[12,16,14,16],[12,17,14,17],[12,18,14,19],[6,0,6,1],[6,2,6,20],[7,0,7,1],[7,2,7,20],[9,14,11,14],[8,20,14,20],[9,1,11,1],[9,2,11,2],[9,3,11,3],[9,4,11,4],[9,5,11,5],[9,6,11,6],[9,10,11,10],[9,11,11,11],[9,12,11,12],[9,13,11,13],[12,11,14,11],[12,12,14,12],[12,13,14,13],[5,2,5,20],[12,7,14,7],[12,8,14,8],[9,7,11,7],[9,8,11,8],[9,9,11,9],[12,9,14,9],[12,2,14,2],[12,3,14,3],[12,4,14,4],[12,5,14,5],[12,6,14,6],[8,18,10,19],[12,1,13,1],[1,1,2,1],[1,2,1,19],[1,27,8,31],[2,2,2,19],[3,0,3,1],[3,2,3,11],[3,12,3,17],[3,18,3,20],[4,0,4,20],[5,0,5,1],[8,0,14,0],[8,2,8,5],[8,6,8,9],[8,10,8,13],[12,10,14,10]]}
[]
[null,null,"CUADRO DE VALORACIÓN",null,null,null,null,null,null,null,null,null,null,null,null,null,null,null,null,null,null,null,null,null,null,null,null,"REGISTRO DE VALORACION",null,null,null,null,"ED",null,null,null,null,null,null,null,"DA","DO",null,"DP"]
[null,null,"EDUCACIÓN INICIAL  EN FAMILIA COMUNITARIA ",null,null,null,null,null,null,null,null,null,null,null,null,null,null,null,null,null,"2° BIMESTRE"]
[{"$f":"UPPER( CARATULA!$C$21)","v":"MAESTRA (O):"},null,{"$f":"CARATULA!$E$21","v":0},null,null,null,null,null,null,null,null,null,{"$f":"UPPER(CARATULA!$C$23)","v":"AÑO DE ESCOLARIDAD:"},null,null,null,null,null,{"$f":"CARATULA!$E$23","v":0}]
["CAMPO DE SABER Y CONOCIMIENTO COMUNIDAD Y SOCIEDAD"]
["INTRUMENTOS DE EVALUACIÓN:"]
["ESTRATEGIAS DE EVALUACIÓN:"]
["EVALUACIÓN",null,"CRITERIOS DE LAS DIMENSIONES"]
["Nº","DIMENSIONES","SER",null,null,null,"SABER",null,null,null,"HACER",null,null,null,"DECIDIR",null,null,null,"AUTOEVALUACIÓN (SER, SABER, HACER, DECIDIR)",null,"SÍNTESIS CUALITATIVA DEL BIMESTRE"]
[null,"PLANES DE CLASE (PDC)","PDC","PDC","PDC","PDC","PDC","PDC","PDC","PDC","PDC","PDC","PDC","PDC","PDC","PDC","PDC","PDC"]
[null,null,null,null,null,null,null,null,null,null,null,null,null,null,null,null,null,null,null,null,null,null,null,null,null,null,null,"DP","DO","DA","ED"]
[null,null,null,null,null,null,null,null,null,null,null,null,null,null,null,null,null,null,null,null,null,null,null,null,null,null,null,14,8,5,1]
[null,"CRITERIOS DE EVALUACIÓN",null,null,null,null,null,null,null,null,null,null,null,null,null,null,null,null,"ACTITUDES TRABAJOS, RESPONSABILIDADES"]
[]
[null,"APELLIDOS Y NOMBRES"]
[1,{"$f":"IF(FILIACION_ESTUDIANTE!D8=0,\"\",FILIACION_PPFF!B7)","v":""},null,null,null,null,null,null,null,null,null,null,null,null,null,null,null,null,null,null,null,null,null,"demuestra  algunas actitudes armonicas etre sfamilia Y  LE FALTAT",null,null,null,{"$f":"IF(C16=$AB$11,$AB$12,IF(C16=$AC$11,$AC$12,IF(C16=$AD$11,$AD$12,IF(C16=$AE$11,$AE$12))))","v":false},{"$f":"IF(D16=$AB$11,$AB$12,IF(D16=$AC$11,$AC$12,IF(D16=$AD$11,$AD$12,IF(D16=$AE$11,$AE$12))))","v":false},false,false,{"$f":"SUM(AB16:AE16)","v":0},{"$f":"IF(G16=$AB$11,$AB$12,IF(G16=$AC$11,$AC$12,IF(G16=$AD$11,$AD$12,IF(G16=$AE$11,$AE$12))))","v":false},{"$f":"IF(H16=$AB$11,$AB$12,IF(H16=$AC$11,$AC$12,IF(H16=$AD$11,$AD$12,IF(H16=$AE$11,$AE$12))))","v":false},false,false,{"$f":"SUM(AG16:AJ16)","v":0},{"$f":"IF(K16=$AB$11,$AB$12,IF(K16=$AC$11,$AC$12,IF(K16=$AD$11,$AD$12,IF(K16=$AE$11,$AE$12))))","v":false},{"$f":"IF(L16=$AB$11,$AB$12,IF(L16=$AC$11,$AC$12,IF(L16=$AD$11,$AD$12,IF(L16=$AE$11,$AE$12))))","v":false},{"$f":"IF(M16=$AB$11,$AB$12,IF(M16=$AC$11,$AC$12,IF(M16=$AD$11,$AD$12,IF(M16=$AE$11,$AE$12))))","v":false},{"$f":"IF(N16=$AB$11,$AB$12,IF(N16=$AC$11,$AC$12,IF(N16=$AD$11,$AD$12,IF(N16=$AE$11,$AE$12))))","v":false},{"$f":"SUM(AL16:AO16)","v":0},{"$f":"IF(O16=$AB$11,$AB$12,IF(O16=$AC$11,$AC$12,IF(O16=$AD$11,$AD$12,IF(O16=$AE$11,$AE$12))))","v":false},{"$f":"IF(P16=$AB$11,$AB$12,IF(P16=$AC$11,$AC$12,IF(P16=$AD$11,$AD$12,IF(P16=$AE$11,$AE$12))))","v":false},false,false,{"$f":"SUM(AQ16:AT16)","v":0},{"$f":"MAX(AF16,AK16,AP16,AU16)","v":0}]
[2,{"$f":"IF(FILIACION_ESTUDIANTE!D9=0,\"\",FILIACION_PPFF!B8)","v":""}]
[3,{"$f":"IF(FILIACION_ESTUDIANTE!D10=0,\"\",FILIACION_PPFF!B9)","v":""}]
[4,{"$f":"IF(FILIACION_ESTUDIANTE!D11=0,\"\",FILIACION_PPFF!B10)","v":""}]
[5,{"$f":"IF(FILIACION_ESTUDIANTE!D12=0,\"\",FILIACION_PPFF!B11)","v":""}]
[6,{"$f":"IF(FILIACION_ESTUDIANTE!D13=0,\"\",FILIACION_PPFF!B12)","v":""}]
[7,{"$f":"IF(FILIACION_ESTUDIANTE!D14=0,\"\",FILIACION_PPFF!B13)","v":""}]
[8,{"$f":"IF(FILIACION_ESTUDIANTE!D15=0,\"\",FILIACION_PPFF!B14)","v":""}]
[9,{"$f":"IF(FILIACION_ESTUDIANTE!D16=0,\"\",FILIACION_PPFF!B15)","v":""}]
[10,{"$f":"IF(FILIACION_ESTUDIANTE!D17=0,\"\",FILIACION_PPFF!B16)","v":""}]
[11,{"$f":"IF(FILIACION_ESTUDIANTE!D18=0,\"\",FILIACION_PPFF!B17)","v":""}]
[12,{"$f":"IF(FILIACION_ESTUDIANTE!D19=0,\"\",FILIACION_PPFF!B18)","v":""}]
[13,{"$f":"IF(FILIACION_ESTUDIANTE!D20=0,\"\",FILIACION_PPFF!B19)","v":""}]
[14,{"$f":"IF(FILIACION_ESTUDIANTE!D21=0,\"\",FILIACION_PPFF!B20)","v":""}]
[15,{"$f":"IF(FILIACION_ESTUDIANTE!D22=0,\"\",FILIACION_PPFF!B21)","v":""}]
[16,{"$f":"IF(FILIACION_ESTUDIANTE!D23=0,\"\",FILIACION_PPFF!B22)","v":""}]
[17,{"$f":"IF(FILIACION_ESTUDIANTE!D24=0,\"\",FILIACION_PPFF!B23)","v":""}]
[18,{"$f":"IF(FILIACION_ESTUDIANTE!D25=0,\"\",FILIACION_PPFF!B24)","v":""}]
[19,{"$f":"IF(FILIACION_ESTUDIANTE!D26=0,\"\",FILIACION_PPFF!B25)","v":""}]
[20,{"$f":"IF(FILIACION_ESTUDIANTE!D27=0,\"\",FILIACION_PPFF!B26)","v":""}]
[21,{"$f":"IF(FILIACION_ESTUDIANTE!D28=0,\"\",FILIACION_PPFF!B27)","v":""}]
[22,{"$f":"IF(FILIACION_ESTUDIANTE!D29=0,\"\",FILIACION_PPFF!B28)","v":""}]
[23,{"$f":"IF(FILIACION_ESTUDIANTE!D30=0,\"\",FILIACION_PPFF!B29)","v":""}]
[24,{"$f":"IF(FILIACION_ESTUDIANTE!D31=0,\"\",FILIACION_PPFF!B30)","v":""}]
[25,{"$f":"IF(FILIACION_ESTUDIANTE!D32=0,\"\",FILIACION_PPFF!B31)","v":""}]
[26,{"$f":"IF(FILIACION_ESTUDIANTE!D33=0,\"\",FILIACION_PPFF!B32)","v":""}]
[27,{"$f":"IF(FILIACION_ESTUDIANTE!D34=0,\"\",FILIACION_PPFF!B33)","v":""}]
[28,{"$f":"IF(FILIACION_ESTUDIANTE!D35=0,\"\",FILIACION_PPFF!B34)","v":""}]
[29,{"$f":"IF(FILIACION_ESTUDIANTE!D36=0,\"\",FILIACION_PPFF!B35)","v":""}]
[30,{"$f":"IF(FILIACION_ESTUDIANTE!D37=0,\"\",FILIACION_PPFF!B36)","v":""}]
[31,{"$f":"IF(FILIACION_ESTUDIANTE!D38=0,\"\",FILIACION_PPFF!B37)","v":""}]
[32,{"$f":"IF(FILIACION_ESTUDIANTE!D39=0,\"\",FILIACION_PPFF!B38)","v":""}]
[33,{"$f":"IF(FILIACION_ESTUDIANTE!D40=0,\"\",FILIACION_PPFF!B39)","v":""}]
[34,{"$f":"IF(FILIACION_ESTUDIANTE!D41=0,\"\",FILIACION_PPFF!B40)","v":""}]
[35,{"$f":"IF(FILIACION_ESTUDIANTE!D42=0,\"\",FILIACION_PPFF!B41)","v":""}]
[36,{"$f":"IF(FILIACION_ESTUDIANTE!D43=0,\"\",FILIACION_PPFF!B42)","v":""}]
[37,{"$f":"IF(FILIACION_ESTUDIANTE!D44=0,\"\",FILIACION_PPFF!B43)","v":""}]
[38,{"$f":"IF(FILIACION_ESTUDIANTE!D45=0,\"\",FILIACION_PPFF!B44)","v":""}]
[39,{"$f":"IF(FILIACION_ESTUDIANTE!D46=0,\"\",FILIACION_PPFF!B45)","v":""}]
[40,{"$f":"IF(FILIACION_ESTUDIANTE!D47=0,\"\",FILIACION_PPFF!B46)","v":""}]

{"sheet":"COM_SOC_3B","index":22,"n_rows":55,"n_cols":48,"rows_kept":55,"cut":false,"hidden":false,"merged":[[9,15,11,15],[9,16,11,16],[9,17,11,17],[8,18,10,19],[12,9,14,9],[12,10,14,10],[12,11,14,11],[12,12,14,12],[12,13,14,13],[12,14,14,14],[12,15,14,15],[12,16,14,16],[12,17,14,17],[12,18,14,19],[9,11,11,11],[9,12,11,12],[9,13,11,13],[12,1,13,1],[12,6,14,6],[12,7,14,7],[12,8,14,8],[12,2,14,2],[12,3,14,3],[12,4,14,4],[12,5,14,5],[6,0,6,1],[6,2,6,20],[7,0,7,1],[7,2,7,20],[9,14,11,14],[8,20,14,20],[9,1,11,1],[9,2,11,2],[9,3,11,3],[9,4,11,4],[9,5,11,5],[9,6,11,6],[9,7,11,7],[9,8,11,8],[9,9,11,9],[9,10,11,10],[1,1,2,1],[1,2,1,19],[1,27,8,31],[2,2,2,19],[3,0,3,1],[3,2,3,11],[3,12,3,17],[3,18,3,20],[4,0,4,20],[5,0,5,1],[8,0,14,0],[8,2,8,5],[8,6,8,9],[8,10,8,13],[8,14,8,17],[5,2,5,20],[15,18,15,19],[16,18,16,19],[17,18,17,19],[18,18,18,19],[19,18,19,19],[20,18,20,19],[21,18,21,19],[22,18,22,19],[23,18,23,19],[24,18,24,19],[25,18,25,19],[26,18,26,19],[27,18,27,19],[28,18,28,19],[29,18,29,19],[30,18,30,19],[31,18,31,19],[32,18,32,19],[33,18,33,19],[34,18,34,19],[35,18,35,19],[36,18,36,19],[37,18,37,19],[38,18,38,19],[39,18,39,19],[40,18,40,19],[41,18,41,19],[42,18,42,19],[43,18,43,19],[44,18,44,19],[45,18,45,19],[46,18,46,19],[47,18,47,19],[48,18,48,19],[49,18,49,19],[50,18,50,19],[51,18,51,19],[52,18,52,19],[53,18,53,19],[54,18,54,19]]}
[]
[null,null,"CUADRO DE VALORACIÓN",null,null,null,null,null,null,null,null,null,null,null,null,null,null,null,null,null,null,null,null,null,null,null,null,"REGISTRO DE VALORACION",null,null,null,null,"ED",null,null,null,null,null,null,null,"DA","DO",null,"DP"]
[null,null,"EDUCACIÓN INICIAL  EN FAMILIA COMUNITARIA ",null,null,null,null,null,null,null,null,null,null,null,null,null,null,null,null,null,"3er BIMESTRE"]
[{"$f":"UPPER( CARATULA!$C$21)","v":"MAESTRA (O):"},null,{"$f":"CARATULA!$E$21","v":0},null,null,null,null,null,null,null,null,null,{"$f":"UPPER(CARATULA!$C$23)","v":"AÑO DE ESCOLARIDAD:"},null,null,null,null,null,{"$f":"CARATULA!$E$23","v":0}]
["CAMPO DE SABER Y CONOCIMIENTO COMUNIDAD Y SOCIEDAD"]
["INTRUMENTOS DE EVALUACIÓN"]
["ESTRATEGIAS DE EVALUACIÓN"]
["EVALUACIÓN",null,"CRITERIOS DE LAS DIMENSIONES"]
["Nº","DIMENSIONES","SER",null,null,null,"SABER",null,null,null,"HACER",null,null,null,"DECIDIR",null,null,null,"AUTOEVALUACIÓN (SER, SABER, HACER, DECIDIR)",null,"SÍNTESIS CUALITATIVA DEL BIMESTRE"]
[null,"PLANES DE CLASE (PDC)","PDC","PDC","PDC","PDC","PDC","PDC","PDC","PDC","PDC","PDC","PDC","PDC","PDC","PDC","PDC","PDC"]
[null,null,null,null,null,null,null,null,null,null,null,null,null,null,null,null,null,null,null,null,null,null,null,null,null,null,null,"DP","DO","DA","ED"]
[null,null,null,null,null,null,null,null,null,null,null,null,null,null,null,null,null,null,null,null,null,null,null,null,null,null,null,14,8,5,1]
[null,"CRITERIOS DE EVALUACIÓN",null,null,null,null,null,null,null,null,null,null,null,null,null,null,null,null,"ACTITUDES TRABAJOS, RESPONSABILIDADES"]
[]
[null,"APELLIDOS Y NOMBRES"]
[1,{"$f":"IF(FILIACION_ESTUDIANTE!D8=0,\"\",FILIACION_PPFF!B7)","v":""},null,null,null,null,null,null,null,null,null,null,null,null,null,null,null,null,null,null,null,null,null,"demuestra  algunas actitudes armonicas etre sfamilia Y  LE FALTAT",null,null,null,{"$f":"IF(C16=$AB$11,$AB$12,IF(C16=$AC$11,$AC$12,IF(C16=$AD$11,$AD$12,IF(C16=$AE$11,$AE$12))))","v":false},{"$f":"IF(D16=$AB$11,$AB$12,IF(D16=$AC$11,$AC$12,IF(D16=$AD$11,$AD$12,IF(D16=$AE$11,$AE$12))))","v":false},false,false,{"$f":"SUM(AB16:AE16)","v":0},{"$f":"IF(G16=$AB$11,$AB$12,IF(G16=$AC$11,$AC$12,IF(G16=$AD$11,$AD$12,IF(G16=$AE$11,$AE$12))))","v":false},{"$f":"IF(H16=$AB$11,$AB$12,IF(H16=$AC$11,$AC$12,IF(H16=$AD$11,$AD$12,IF(H16=$AE$11,$AE$12))))","v":false},false,false,{"$f":"SUM(AG16:AJ16)","v":0},{"$f":"IF(K16=$AB$11,$AB$12,IF(K16=$AC$11,$AC$12,IF(K16=$AD$11,$AD$12,IF(K16=$AE$11,$AE$12))))","v":false},{"$f":"IF(L16=$AB$11,$AB$12,IF(L16=$AC$11,$AC$12,IF(L16=$AD$11,$AD$12,IF(L16=$AE$11,$AE$12))))","v":false},{"$f":"IF(M16=$AB$11,$AB$12,IF(M16=$AC$11,$AC$12,IF(M16=$AD$11,$AD$12,IF(M16=$AE$11,$AE$12))))","v":false},{"$f":"IF(N16=$AB$11,$AB$12,IF(N16=$AC$11,$AC$12,IF(N16=$AD$11,$AD$12,IF(N16=$AE$11,$AE$12))))","v":false},{"$f":"SUM(AL16:AO16)","v":0},{"$f":"IF(O16=$AB$11,$AB$12,IF(O16=$AC$11,$AC$12,IF(O16=$AD$11,$AD$12,IF(O16=$AE$11,$AE$12))))","v":false},{"$f":"IF(P16=$AB$11,$AB$12,IF(P16=$AC$11,$AC$12,IF(P16=$AD$11,$AD$12,IF(P16=$AE$11,$AE$12))))","v":false},false,false,{"$f":"SUM(AQ16:AT16)","v":0},{"$f":"MAX(AF16,AK16,AP16,AU16)","v":0}]
[2,{"$f":"IF(FILIACION_ESTUDIANTE!D9=0,\"\",FILIACION_PPFF!B8)","v":""}]
[3,{"$f":"IF(FILIACION_ESTUDIANTE!D10=0,\"\",FILIACION_PPFF!B9)","v":""}]
[4,{"$f":"IF(FILIACION_ESTUDIANTE!D11=0,\"\",FILIACION_PPFF!B10)","v":""}]
[5,{"$f":"IF(FILIACION_ESTUDIANTE!D12=0,\"\",FILIACION_PPFF!B11)","v":""}]
[6,{"$f":"IF(FILIACION_ESTUDIANTE!D13=0,\"\",FILIACION_PPFF!B12)","v":""}]
[7,{"$f":"IF(FILIACION_ESTUDIANTE!D14=0,\"\",FILIACION_PPFF!B13)","v":""}]
[8,{"$f":"IF(FILIACION_ESTUDIANTE!D15=0,\"\",FILIACION_PPFF!B14)","v":""}]
[9,{"$f":"IF(FILIACION_ESTUDIANTE!D16=0,\"\",FILIACION_PPFF!B15)","v":""}]
[10,{"$f":"IF(FILIACION_ESTUDIANTE!D17=0,\"\",FILIACION_PPFF!B16)","v":""}]
[11,{"$f":"IF(FILIACION_ESTUDIANTE!D18=0,\"\",FILIACION_PPFF!B17)","v":""}]
[12,{"$f":"IF(FILIACION_ESTUDIANTE!D19=0,\"\",FILIACION_PPFF!B18)","v":""}]
[13,{"$f":"IF(FILIACION_ESTUDIANTE!D20=0,\"\",FILIACION_PPFF!B19)","v":""}]
[14,{"$f":"IF(FILIACION_ESTUDIANTE!D21=0,\"\",FILIACION_PPFF!B20)","v":""}]
[15,{"$f":"IF(FILIACION_ESTUDIANTE!D22=0,\"\",FILIACION_PPFF!B21)","v":""}]
[16,{"$f":"IF(FILIACION_ESTUDIANTE!D23=0,\"\",FILIACION_PPFF!B22)","v":""}]
[17,{"$f":"IF(FILIACION_ESTUDIANTE!D24=0,\"\",FILIACION_PPFF!B23)","v":""}]
[18,{"$f":"IF(FILIACION_ESTUDIANTE!D25=0,\"\",FILIACION_PPFF!B24)","v":""}]
[19,{"$f":"IF(FILIACION_ESTUDIANTE!D26=0,\"\",FILIACION_PPFF!B25)","v":""}]
[20,{"$f":"IF(FILIACION_ESTUDIANTE!D27=0,\"\",FILIACION_PPFF!B26)","v":""}]
[21,{"$f":"IF(FILIACION_ESTUDIANTE!D28=0,\"\",FILIACION_PPFF!B27)","v":""}]
[22,{"$f":"IF(FILIACION_ESTUDIANTE!D29=0,\"\",FILIACION_PPFF!B28)","v":""}]
[23,{"$f":"IF(FILIACION_ESTUDIANTE!D30=0,\"\",FILIACION_PPFF!B29)","v":""}]
[24,{"$f":"IF(FILIACION_ESTUDIANTE!D31=0,\"\",FILIACION_PPFF!B30)","v":""}]
[25,{"$f":"IF(FILIACION_ESTUDIANTE!D32=0,\"\",FILIACION_PPFF!B31)","v":""}]
[26,{"$f":"IF(FILIACION_ESTUDIANTE!D33=0,\"\",FILIACION_PPFF!B32)","v":""}]
[27,{"$f":"IF(FILIACION_ESTUDIANTE!D34=0,\"\",FILIACION_PPFF!B33)","v":""}]
[28,{"$f":"IF(FILIACION_ESTUDIANTE!D35=0,\"\",FILIACION_PPFF!B34)","v":""}]
[29,{"$f":"IF(FILIACION_ESTUDIANTE!D36=0,\"\",FILIACION_PPFF!B35)","v":""},null,null,null,null,"DA"]
[30,{"$f":"IF(FILIACION_ESTUDIANTE!D37=0,\"\",FILIACION_PPFF!B36)","v":""}]
[31,{"$f":"IF(FILIACION_ESTUDIANTE!D38=0,\"\",FILIACION_PPFF!B37)","v":""}]
[32,{"$f":"IF(FILIACION_ESTUDIANTE!D39=0,\"\",FILIACION_PPFF!B38)","v":""}]
[33,{"$f":"IF(FILIACION_ESTUDIANTE!D40=0,\"\",FILIACION_PPFF!B39)","v":""}]
[34,{"$f":"IF(FILIACION_ESTUDIANTE!D41=0,\"\",FILIACION_PPFF!B40)","v":""}]
[35,{"$f":"IF(FILIACION_ESTUDIANTE!D42=0,\"\",FILIACION_PPFF!B41)","v":""}]
[36,{"$f":"IF(FILIACION_ESTUDIANTE!D43=0,\"\",FILIACION_PPFF!B42)","v":""}]
[37,{"$f":"IF(FILIACION_ESTUDIANTE!D44=0,\"\",FILIACION_PPFF!B43)","v":""}]
[38,{"$f":"IF(FILIACION_ESTUDIANTE!D45=0,\"\",FILIACION_PPFF!B44)","v":""}]
[39,{"$f":"IF(FILIACION_ESTUDIANTE!D46=0,\"\",FILIACION_PPFF!B45)","v":""}]
[40,{"$f":"IF(FILIACION_ESTUDIANTE!D47=0,\"\",FILIACION_PPFF!B46)","v":""}]

{"sheet":"COM_SOC_4B","index":23,"n_rows":55,"n_cols":48,"rows_kept":55,"cut":false,"hidden":false,"merged":[[9,15,11,15],[9,16,11,16],[9,17,11,17],[8,18,10,19],[12,9,14,9],[12,10,14,10],[12,11,14,11],[12,12,14,12],[12,13,14,13],[12,18,14,19],[12,14,14,14],[12,15,14,15],[12,16,14,16],[12,17,14,17],[9,11,11,11],[9,12,11,12],[9,13,11,13],[12,1,13,1],[12,6,14,6],[12,7,14,7],[12,8,14,8],[12,2,14,2],[12,3,14,3],[12,4,14,4],[12,5,14,5],[6,0,6,1],[6,2,6,20],[7,0,7,1],[7,2,7,20],[9,14,11,14],[8,20,14,20],[9,1,11,1],[9,2,11,2],[9,3,11,3],[9,4,11,4],[9,5,11,5],[9,6,11,6],[9,7,11,7],[9,8,11,8],[9,9,11,9],[9,10,11,10],[1,1,2,1],[1,2,1,19],[1,27,8,31],[2,2,2,19],[3,0,3,1],[3,2,3,11],[3,12,3,17],[3,18,3,20],[4,0,4,20],[5,0,5,1],[8,0,14,0],[8,2,8,5],[8,6,8,9],[8,10,8,13],[8,14,8,17],[5,2,5,20],[15,18,15,19],[16,18,16,19],[17,18,17,19],[18,18,18,19],[19,18,19,19],[20,18,20,19],[21,18,21,19],[22,18,22,19],[23,18,23,19],[24,18,24,19],[25,18,25,19],[26,18,26,19],[27,18,27,19],[28,18,28,19],[29,18,29,19],[30,18,30,19],[31,18,31,19],[32,18,32,19],[33,18,33,19],[34,18,34,19],[35,18,35,19],[36,18,36,19],[37,18,37,19],[38,18,38,19],[39,18,39,19],[40,18,40,19],[41,18,41,19],[42,18,42,19],[43,18,43,19],[44,18,44,19],[45,18,45,19],[46,18,46,19],[47,18,47,19],[48,18,48,19],[49,18,49,19],[50,18,50,19],[51,18,51,19],[52,18,52,19],[53,18,53,19],[54,18,54,19]]}
[]
[null,null,"CUADRO DE VALORACIÓN",null,null,null,null,null,null,null,null,null,null,null,null,null,null,null,null,null,null,null,null,null,null,null,null,"REGISTRO DE VALORACION",null,null,null,null,"ED",null,null,null,null,null,null,null,"DA","DO",null,"DP"]
[null,null,"EDUCACIÓN INICIAL  EN FAMILIA COMUNITARIA ",null,null,null,null,null,null,null,null,null,null,null,null,null,null,null,null,null,"4° BIMESTRE"]
[{"$f":"UPPER( CARATULA!$C$21)","v":"MAESTRA (O):"},null,{"$f":"CARATULA!$E$21","v":0},null,null,null,null,null,null,null,null,null,{"$f":"UPPER(CARATULA!$C$23)","v":"AÑO DE ESCOLARIDAD:"},null,null,null,null,null,{"$f":"CARATULA!$E$23","v":0}]
["CAMPO DE SABER Y CONOCIMIENTO COMUNIDAD Y SOCIEDAD"]
["INTRUMENTOS DE EVALUACIÓN"]
["ESTRATEGIAS DE EVALUACIÓN"]
["EVALUACIÓN",null,"CRITERIOS DE LAS DIMENSIONES"]
["Nº","DIMENSIONES","SER",null,null,null,"SABER",null,null,null,"HACER",null,null,null,"DECIDIR",null,null,null,"AUTOEVALUACIÓN (SER, SABER, HACER, DECIDIR)",null,"SÍNTESIS CUALITATIVA DEL BIMESTRE"]
[null,"PLANES DE CLASE (PDC)","PDC","PDC","PDC","PDC","PDC","PDC","PDC","PDC","PDC","PDC","PDC","PDC","PDC","PDC","PDC","PDC"]
[null,null,null,null,null,null,null,null,null,null,null,null,null,null,null,null,null,null,null,null,null,null,null,null,null,null,null,"DP","DO","DA","ED"]
[null,null,null,null,null,null,null,null,null,null,null,null,null,null,null,null,null,null,null,null,null,null,null,null,null,null,null,14,8,5,1]
[null,"CRITERIOS DE EVALUACIÓN",null,null,null,null,null,null,null,null,null,null,null,null,null,null,null,null,"ACTITUDES TRABAJOS, RESPONSABILIDADES"]
[]
[null,"APELLIDOS Y NOMBRES"]
[1,{"$f":"IF(FILIACION_ESTUDIANTE!D8=0,\"\",FILIACION_PPFF!B7)","v":""},null,null,null,null,null,null,null,null,null,null,null,null,null,null,null,null,null,null,null,null,null,"demuestra  algunas actitudes armonicas etre sfamilia Y  LE FALTAT",null,null,null,{"$f":"IF(C16=$AB$11,$AB$12,IF(C16=$AC$11,$AC$12,IF(C16=$AD$11,$AD$12,IF(C16=$AE$11,$AE$12))))","v":false},{"$f":"IF(D16=$AB$11,$AB$12,IF(D16=$AC$11,$AC$12,IF(D16=$AD$11,$AD$12,IF(D16=$AE$11,$AE$12))))","v":false},false,false,{"$f":"SUM(AB16:AE16)","v":0},{"$f":"IF(G16=$AB$11,$AB$12,IF(G16=$AC$11,$AC$12,IF(G16=$AD$11,$AD$12,IF(G16=$AE$11,$AE$12))))","v":false},{"$f":"IF(H16=$AB$11,$AB$12,IF(H16=$AC$11,$AC$12,IF(H16=$AD$11,$AD$12,IF(H16=$AE$11,$AE$12))))","v":false},false,false,{"$f":"SUM(AG16:AJ16)","v":0},{"$f":"IF(K16=$AB$11,$AB$12,IF(K16=$AC$11,$AC$12,IF(K16=$AD$11,$AD$12,IF(K16=$AE$11,$AE$12))))","v":false},{"$f":"IF(L16=$AB$11,$AB$12,IF(L16=$AC$11,$AC$12,IF(L16=$AD$11,$AD$12,IF(L16=$AE$11,$AE$12))))","v":false},{"$f":"IF(M16=$AB$11,$AB$12,IF(M16=$AC$11,$AC$12,IF(M16=$AD$11,$AD$12,IF(M16=$AE$11,$AE$12))))","v":false},{"$f":"IF(N16=$AB$11,$AB$12,IF(N16=$AC$11,$AC$12,IF(N16=$AD$11,$AD$12,IF(N16=$AE$11,$AE$12))))","v":false},{"$f":"SUM(AL16:AO16)","v":0},{"$f":"IF(O16=$AB$11,$AB$12,IF(O16=$AC$11,$AC$12,IF(O16=$AD$11,$AD$12,IF(O16=$AE$11,$AE$12))))","v":false},{"$f":"IF(P16=$AB$11,$AB$12,IF(P16=$AC$11,$AC$12,IF(P16=$AD$11,$AD$12,IF(P16=$AE$11,$AE$12))))","v":false},false,false,{"$f":"SUM(AQ16:AT16)","v":0},{"$f":"MAX(AF16,AK16,AP16,AU16)","v":0}]
[2,{"$f":"IF(FILIACION_ESTUDIANTE!D9=0,\"\",FILIACION_PPFF!B8)","v":""}]
[3,{"$f":"IF(FILIACION_ESTUDIANTE!D10=0,\"\",FILIACION_PPFF!B9)","v":""}]
[4,{"$f":"IF(FILIACION_ESTUDIANTE!D11=0,\"\",FILIACION_PPFF!B10)","v":""}]
[5,{"$f":"IF(FILIACION_ESTUDIANTE!D12=0,\"\",FILIACION_PPFF!B11)","v":""}]
[6,{"$f":"IF(FILIACION_ESTUDIANTE!D13=0,\"\",FILIACION_PPFF!B12)","v":""}]
[7,{"$f":"IF(FILIACION_ESTUDIANTE!D14=0,\"\",FILIACION_PPFF!B13)","v":""}]
[8,{"$f":"IF(FILIACION_ESTUDIANTE!D15=0,\"\",FILIACION_PPFF!B14)","v":""}]
[9,{"$f":"IF(FILIACION_ESTUDIANTE!D16=0,\"\",FILIACION_PPFF!B15)","v":""}]
[10,{"$f":"IF(FILIACION_ESTUDIANTE!D17=0,\"\",FILIACION_PPFF!B16)","v":""}]
[11,{"$f":"IF(FILIACION_ESTUDIANTE!D18=0,\"\",FILIACION_PPFF!B17)","v":""}]
[12,{"$f":"IF(FILIACION_ESTUDIANTE!D19=0,\"\",FILIACION_PPFF!B18)","v":""}]
[13,{"$f":"IF(FILIACION_ESTUDIANTE!D20=0,\"\",FILIACION_PPFF!B19)","v":""}]
[14,{"$f":"IF(FILIACION_ESTUDIANTE!D21=0,\"\",FILIACION_PPFF!B20)","v":""}]
[15,{"$f":"IF(FILIACION_ESTUDIANTE!D22=0,\"\",FILIACION_PPFF!B21)","v":""}]
[16,{"$f":"IF(FILIACION_ESTUDIANTE!D23=0,\"\",FILIACION_PPFF!B22)","v":""}]
[17,{"$f":"IF(FILIACION_ESTUDIANTE!D24=0,\"\",FILIACION_PPFF!B23)","v":""}]
[18,{"$f":"IF(FILIACION_ESTUDIANTE!D25=0,\"\",FILIACION_PPFF!B24)","v":""}]
[19,{"$f":"IF(FILIACION_ESTUDIANTE!D26=0,\"\",FILIACION_PPFF!B25)","v":""}]
[20,{"$f":"IF(FILIACION_ESTUDIANTE!D27=0,\"\",FILIACION_PPFF!B26)","v":""}]
[21,{"$f":"IF(FILIACION_ESTUDIANTE!D28=0,\"\",FILIACION_PPFF!B27)","v":""}]
[22,{"$f":"IF(FILIACION_ESTUDIANTE!D29=0,\"\",FILIACION_PPFF!B28)","v":""}]
[23,{"$f":"IF(FILIACION_ESTUDIANTE!D30=0,\"\",FILIACION_PPFF!B29)","v":""}]
[24,{"$f":"IF(FILIACION_ESTUDIANTE!D31=0,\"\",FILIACION_PPFF!B30)","v":""}]
[25,{"$f":"IF(FILIACION_ESTUDIANTE!D32=0,\"\",FILIACION_PPFF!B31)","v":""}]
[26,{"$f":"IF(FILIACION_ESTUDIANTE!D33=0,\"\",FILIACION_PPFF!B32)","v":""}]
[27,{"$f":"IF(FILIACION_ESTUDIANTE!D34=0,\"\",FILIACION_PPFF!B33)","v":""}]
[28,{"$f":"IF(FILIACION_ESTUDIANTE!D35=0,\"\",FILIACION_PPFF!B34)","v":""}]
[29,{"$f":"IF(FILIACION_ESTUDIANTE!D36=0,\"\",FILIACION_PPFF!B35)","v":""}]
[30,{"$f":"IF(FILIACION_ESTUDIANTE!D37=0,\"\",FILIACION_PPFF!B36)","v":""}]
[31,{"$f":"IF(FILIACION_ESTUDIANTE!D38=0,\"\",FILIACION_PPFF!B37)","v":""}]
[32,{"$f":"IF(FILIACION_ESTUDIANTE!D39=0,\"\",FILIACION_PPFF!B38)","v":""}]
[33,{"$f":"IF(FILIACION_ESTUDIANTE!D40=0,\"\",FILIACION_PPFF!B39)","v":""}]
[34,{"$f":"IF(FILIACION_ESTUDIANTE!D41=0,\"\",FILIACION_PPFF!B40)","v":""}]
[35,{"$f":"IF(FILIACION_ESTUDIANTE!D42=0,\"\",FILIACION_PPFF!B41)","v":""}]
[36,{"$f":"IF(FILIACION_ESTUDIANTE!D43=0,\"\",FILIACION_PPFF!B42)","v":""}]
[37,{"$f":"IF(FILIACION_ESTUDIANTE!D44=0,\"\",FILIACION_PPFF!B43)","v":""}]
[38,{"$f":"IF(FILIACION_ESTUDIANTE!D45=0,\"\",FILIACION_PPFF!B44)","v":""}]
[39,{"$f":"IF(FILIACION_ESTUDIANTE!D46=0,\"\",FILIACION_PPFF!B45)","v":""}]
[40,{"$f":"IF(FILIACION_ESTUDIANTE!D47=0,\"\",FILIACION_PPFF!B46)","v":""}]

{"sheet":"COSMOS_PENS_1B","index":24,"n_rows":55,"n_cols":48,"rows_kept":55,"cut":false,"hidden":false,"merged":[[16,18,16,19],[17,18,17,19],[18,18,18,19],[19,18,19,19],[20,18,20,19],[9,11,11,11],[9,17,11,17],[8,18,10,19],[12,18,14,19],[15,18,15,19],[9,15,11,15],[9,16,11,16],[12,14,14,14],[12,15,14,15],[12,16,14,16],[12,17,14,17],[9,14,11,14],[9,6,11,6],[9,7,11,7],[9,8,11,8],[9,9,11,9],[9,10,11,10],[12,3,14,3],[12,4,14,4],[12,5,14,5],[9,3,11,3],[9,4,11,4],[9,5,11,5],[8,20,14,20],[9,1,11,1],[9,2,11,2],[12,9,14,9],[12,10,14,10],[12,11,14,11],[12,12,14,12],[12,13,14,13],[9,12,11,12],[9,13,11,13],[12,1,13,1],[12,6,14,6],[12,7,14,7],[12,8,14,8],[12,2,14,2],[8,14,8,17],[5,2,5,20],[6,0,6,1],[6,2,6,20],[7,0,7,1],[7,2,7,20],[47,18,47,19],[48,18,48,19],[1,1,2,1],[1,2,1,19],[1,27,8,31],[2,2,2,19],[3,0,3,1],[3,2,3,11],[3,12,3,17],[3,18,3,20],[4,0,4,20],[5,0,5,1],[8,0,14,0],[8,2,8,5],[8,6,8,9],[8,10,8,13],[36,18,36,19],[49,18,49,19],[50,18,50,19],[51,18,51,19],[24,18,24,19],[25,18,25,19],[26,18,26,19],[43,18,43,19],[44,18,44,19],[45,18,45,19],[46,18,46,19],[42,18,42,19],[38,18,38,19],[39,18,39,19],[40,18,40,19],[41,18,41,19],[52,18,52,19],[53,18,53,19],[54,18,54,19],[21,18,21,19],[22,18,22,19],[23,18,23,19],[27,18,27,19],[28,18,28,19],[29,18,29,19],[30,18,30,19],[31,18,31,19],[37,18,37,19],[32,18,32,19],[33,18,33,19],[34,18,34,19],[35,18,35,19]]}
[]
[null,null,"CUADRO DE VALORACIÓN",null,null,null,null,null,null,null,null,null,null,null,null,null,null,null,null,null,null,null,null,null,null,null,null,"REGISTRO DE VALORACION",null,null,null,null,"ED",null,null,null,null,null,null,null,"DA","DO",null,"DP"]
[null,null,"EDUCACIÓN INICIAL  EN FAMILIA COMUNITARIA ",null,null,null,null,null,null,null,null,null,null,null,null,null,null,null,null,null,"1er BIMESTRE"]
[{"$f":"UPPER( CARATULA!$C$21)","v":"MAESTRA (O):"},null,{"$f":"CARATULA!$E$21","v":0},null,null,null,null,null,null,null,null,null,{"$f":"UPPER(CARATULA!$C$23)","v":"AÑO DE ESCOLARIDAD:"},null,null,null,null,null,{"$f":"CARATULA!$E$23","v":0}]
["CAMPO DE SABER Y CONOCIMIENTO -  COSMOS Y PENSAMIENTO"]
["INTRUMENTOS DE EVALUACIÓN",null,"A TRAVES DE LA OBSEVACION, PARTICIPACIÓN GRUPAL, PRUEBAS OBJETIVAS"]
["ESTRATEGIAS DE EVALUACIÓN",null,"CON RONDAS, CANCIONES, PARTICIPACIÓN GRUPAL TRABAJOS EN EL ARCHIVADOR, CUADERNILLOS "]
["EVALUACIÓN",null,"CRITERIOS DE LAS DIMENSIONES"]
["Nº","DIMENSIONES","SER",null,null,null,"SABER",null,null,null,"HACER",null,null,null,"DECIDIR",null,null,null,"AUTOEVALUACIÓN (SER, SABER, HACER, DECIDIR)",null,"SÍNTESIS CUALITATIVA DEL BIMESTRE"]
[null,"PLANES DE CLASE (PDC)","PDC","PDC","PDC","PDC","PDC","PDC","PDC","PDC","PDC","PDC","PDC","PDC","PDC","PDC","PDC","PDC"]
[null,null,null,null,null,null,null,null,null,null,null,null,null,null,null,null,null,null,null,null,null,null,null,null,null,null,null,"DP","DO","DA","ED"]
[null,null,null,null,null,null,null,null,null,null,null,null,null,null,null,null,null,null,null,null,null,null,null,null,null,null,null,14,8,5,1]
[null,"CRITERIOS DE EVALUACIÓN"]
[]
[null,"APELLIDOS Y NOMBRES"]
[1,{"$f":"IF(FILIACION_ESTUDIANTE!D8=0,\"\",FILIACION_PPFF!B7)","v":""},null,null,null,null,null,null,null,null,null,null,null,null,null,null,null,null,null,null,null,null,null,"demuestra  algunas actitudes armonicas etre sfamilia Y  LE FALTAT",null,null,null,{"$f":"IF(C16=$AB$11,$AB$12,IF(C16=$AC$11,$AC$12,IF(C16=$AD$11,$AD$12,IF(C16=$AE$11,$AE$12))))","v":false},{"$f":"IF(D16=$AB$11,$AB$12,IF(D16=$AC$11,$AC$12,IF(D16=$AD$11,$AD$12,IF(D16=$AE$11,$AE$12))))","v":false},false,false,{"$f":"SUM(AB16:AE16)","v":0},{"$f":"IF(G16=$AB$11,$AB$12,IF(G16=$AC$11,$AC$12,IF(G16=$AD$11,$AD$12,IF(G16=$AE$11,$AE$12))))","v":false},{"$f":"IF(H16=$AB$11,$AB$12,IF(H16=$AC$11,$AC$12,IF(H16=$AD$11,$AD$12,IF(H16=$AE$11,$AE$12))))","v":false},false,false,{"$f":"SUM(AG16:AJ16)","v":0},{"$f":"IF(K16=$AB$11,$AB$12,IF(K16=$AC$11,$AC$12,IF(K16=$AD$11,$AD$12,IF(K16=$AE$11,$AE$12))))","v":false},{"$f":"IF(L16=$AB$11,$AB$12,IF(L16=$AC$11,$AC$12,IF(L16=$AD$11,$AD$12,IF(L16=$AE$11,$AE$12))))","v":false},{"$f":"IF(M16=$AB$11,$AB$12,IF(M16=$AC$11,$AC$12,IF(M16=$AD$11,$AD$12,IF(M16=$AE$11,$AE$12))))","v":false},{"$f":"IF(N16=$AB$11,$AB$12,IF(N16=$AC$11,$AC$12,IF(N16=$AD$11,$AD$12,IF(N16=$AE$11,$AE$12))))","v":false},{"$f":"SUM(AL16:AO16)","v":0},{"$f":"IF(O16=$AB$11,$AB$12,IF(O16=$AC$11,$AC$12,IF(O16=$AD$11,$AD$12,IF(O16=$AE$11,$AE$12))))","v":false},{"$f":"IF(P16=$AB$11,$AB$12,IF(P16=$AC$11,$AC$12,IF(P16=$AD$11,$AD$12,IF(P16=$AE$11,$AE$12))))","v":false},false,false,{"$f":"SUM(AQ16:AT16)","v":0},{"$f":"MAX(AF16,AK16,AP16,AU16)","v":0}]
[2,{"$f":"IF(FILIACION_ESTUDIANTE!D9=0,\"\",FILIACION_PPFF!B8)","v":""}]
[3,{"$f":"IF(FILIACION_ESTUDIANTE!D10=0,\"\",FILIACION_PPFF!B9)","v":""}]
[4,{"$f":"IF(FILIACION_ESTUDIANTE!D11=0,\"\",FILIACION_PPFF!B10)","v":""}]
[5,{"$f":"IF(FILIACION_ESTUDIANTE!D12=0,\"\",FILIACION_PPFF!B11)","v":""}]
[6,{"$f":"IF(FILIACION_ESTUDIANTE!D13=0,\"\",FILIACION_PPFF!B12)","v":""}]
[7,{"$f":"IF(FILIACION_ESTUDIANTE!D14=0,\"\",FILIACION_PPFF!B13)","v":""}]
[8,{"$f":"IF(FILIACION_ESTUDIANTE!D15=0,\"\",FILIACION_PPFF!B14)","v":""}]
[9,{"$f":"IF(FILIACION_ESTUDIANTE!D16=0,\"\",FILIACION_PPFF!B15)","v":""}]
[10,{"$f":"IF(FILIACION_ESTUDIANTE!D17=0,\"\",FILIACION_PPFF!B16)","v":""}]
[11,{"$f":"IF(FILIACION_ESTUDIANTE!D18=0,\"\",FILIACION_PPFF!B17)","v":""}]
[12,{"$f":"IF(FILIACION_ESTUDIANTE!D19=0,\"\",FILIACION_PPFF!B18)","v":""}]
[13,{"$f":"IF(FILIACION_ESTUDIANTE!D20=0,\"\",FILIACION_PPFF!B19)","v":""}]
[14,{"$f":"IF(FILIACION_ESTUDIANTE!D21=0,\"\",FILIACION_PPFF!B20)","v":""}]
[15,{"$f":"IF(FILIACION_ESTUDIANTE!D22=0,\"\",FILIACION_PPFF!B21)","v":""}]
[16,{"$f":"IF(FILIACION_ESTUDIANTE!D23=0,\"\",FILIACION_PPFF!B22)","v":""}]
[17,{"$f":"IF(FILIACION_ESTUDIANTE!D24=0,\"\",FILIACION_PPFF!B23)","v":""}]
[18,{"$f":"IF(FILIACION_ESTUDIANTE!D25=0,\"\",FILIACION_PPFF!B24)","v":""}]
[19,{"$f":"IF(FILIACION_ESTUDIANTE!D26=0,\"\",FILIACION_PPFF!B25)","v":""}]
[20,{"$f":"IF(FILIACION_ESTUDIANTE!D27=0,\"\",FILIACION_PPFF!B26)","v":""}]
[21,{"$f":"IF(FILIACION_ESTUDIANTE!D28=0,\"\",FILIACION_PPFF!B27)","v":""}]
[22,{"$f":"IF(FILIACION_ESTUDIANTE!D29=0,\"\",FILIACION_PPFF!B28)","v":""}]
[23,{"$f":"IF(FILIACION_ESTUDIANTE!D30=0,\"\",FILIACION_PPFF!B29)","v":""}]
[24,{"$f":"IF(FILIACION_ESTUDIANTE!D31=0,\"\",FILIACION_PPFF!B30)","v":""}]
[25,{"$f":"IF(FILIACION_ESTUDIANTE!D32=0,\"\",FILIACION_PPFF!B31)","v":""}]
[26,{"$f":"IF(FILIACION_ESTUDIANTE!D33=0,\"\",FILIACION_PPFF!B32)","v":""}]
[27,{"$f":"IF(FILIACION_ESTUDIANTE!D34=0,\"\",FILIACION_PPFF!B33)","v":""}]
[28,{"$f":"IF(FILIACION_ESTUDIANTE!D35=0,\"\",FILIACION_PPFF!B34)","v":""}]
[29,{"$f":"IF(FILIACION_ESTUDIANTE!D36=0,\"\",FILIACION_PPFF!B35)","v":""}]
[30,{"$f":"IF(FILIACION_ESTUDIANTE!D37=0,\"\",FILIACION_PPFF!B36)","v":""}]
[31,{"$f":"IF(FILIACION_ESTUDIANTE!D38=0,\"\",FILIACION_PPFF!B37)","v":""}]
[32,{"$f":"IF(FILIACION_ESTUDIANTE!D39=0,\"\",FILIACION_PPFF!B38)","v":""}]
[33,{"$f":"IF(FILIACION_ESTUDIANTE!D40=0,\"\",FILIACION_PPFF!B39)","v":""}]
[34,{"$f":"IF(FILIACION_ESTUDIANTE!D41=0,\"\",FILIACION_PPFF!B40)","v":""}]
[35,{"$f":"IF(FILIACION_ESTUDIANTE!D42=0,\"\",FILIACION_PPFF!B41)","v":""}]
[36,{"$f":"IF(FILIACION_ESTUDIANTE!D43=0,\"\",FILIACION_PPFF!B42)","v":""}]
[37,{"$f":"IF(FILIACION_ESTUDIANTE!D44=0,\"\",FILIACION_PPFF!B43)","v":""}]
[38,{"$f":"IF(FILIACION_ESTUDIANTE!D45=0,\"\",FILIACION_PPFF!B44)","v":""}]
[39,{"$f":"IF(FILIACION_ESTUDIANTE!D46=0,\"\",FILIACION_PPFF!B45)","v":""}]
[40,{"$f":"IF(FILIACION_ESTUDIANTE!D47=0,\"\",FILIACION_PPFF!B46)","v":""}]

{"sheet":"COSMOS_PENS_2B","index":25,"n_rows":55,"n_cols":48,"rows_kept":55,"cut":false,"hidden":false,"merged":[[9,15,11,15],[9,16,11,16],[9,17,11,17],[8,18,10,19],[12,9,14,9],[12,10,14,10],[12,11,14,11],[12,12,14,12],[12,13,14,13],[12,14,14,14],[12,15,14,15],[12,16,14,16],[12,17,14,17],[12,18,14,19],[9,11,11,11],[9,12,11,12],[9,13,11,13],[12,1,13,1],[12,6,14,6],[12,7,14,7],[12,8,14,8],[12,2,14,2],[12,3,14,3],[12,4,14,4],[12,5,14,5],[6,0,6,1],[6,2,6,20],[7,0,7,1],[7,2,7,20],[9,14,11,14],[8,20,14,20],[9,1,11,1],[9,2,11,2],[9,3,11,3],[9,4,11,4],[9,5,11,5],[9,6,11,6],[9,7,11,7],[9,8,11,8],[9,9,11,9],[9,10,11,10],[1,1,2,1],[1,2,1,19],[1,27,8,31],[2,2,2,19],[3,0,3,1],[3,2,3,11],[3,12,3,17],[3,18,3,20],[4,0,4,20],[5,0,5,1],[8,0,14,0],[8,2,8,5],[8,6,8,9],[8,10,8,13],[8,14,8,17],[5,2,5,20],[15,18,15,19],[16,18,16,19],[17,18,17,19],[18,18,18,19],[19,18,19,19],[20,18,20,19],[21,18,21,19],[22,18,22,19],[23,18,23,19],[24,18,24,19],[25,18,25,19],[26,18,26,19],[27,18,27,19],[28,18,28,19],[29,18,29,19],[30,18,30,19],[31,18,31,19],[32,18,32,19],[33,18,33,19],[34,18,34,19],[35,18,35,19],[36,18,36,19],[37,18,37,19],[38,18,38,19],[39,18,39,19],[40,18,40,19],[41,18,41,19],[42,18,42,19],[43,18,43,19],[44,18,44,19],[45,18,45,19],[46,18,46,19],[47,18,47,19],[48,18,48,19],[49,18,49,19],[50,18,50,19],[51,18,51,19],[52,18,52,19],[53,18,53,19],[54,18,54,19]]}
[]
[null,null,"CUADRO DE VALORACIÓN",null,null,null,null,null,null,null,null,null,null,null,null,null,null,null,null,null,null,null,null,null,null,null,null,"REGISTRO DE VALORACION",null,null,null,null,"ED",null,null,null,null,null,null,null,"DA","DO",null,"DP"]
[null,null,"EDUCACIÓN INICIAL  EN FAMILIA COMUNITARIA ",null,null,null,null,null,null,null,null,null,null,null,null,null,null,null,null,null,"2° BIMESTRE"]
[{"$f":"UPPER( CARATULA!$C$21)","v":"MAESTRA (O):"},null,{"$f":"CARATULA!$E$21","v":0},null,null,null,null,null,null,null,null,null,{"$f":"UPPER(CARATULA!$C$23)","v":"AÑO DE ESCOLARIDAD:"},null,null,null,null,null,{"$f":"CARATULA!$E$23","v":0}]
["CAMPO DE SABER Y CONOCIMIENTO COSMOS Y PENSAMIENTO"]
["INTRUMENTOS DE EVALUACIÓN"]
["ESTRATEGIAS DE EVALUACIÓN"]
["EVALUACIÓN",null,"CRITERIOS DE LAS DIMENSIONES"]
["Nº","DIMENSIONES","SER",null,null,null,"SABER",null,null,null,"HACER",null,null,null,"DECIDIR",null,null,null,"AUTOEVALUACIÓN (SER, SABER, HACER, DECIDIR)",null,"SÍNTESIS CUALITATIVA DEL BIMESTRE"]
[null,"PLANES DE CLASE (PDC)","PDC","PDC","PDC","PDC","PDC","PDC","PDC","PDC","PDC","PDC","PDC","PDC","PDC","PDC","PDC","PDC"]
[null,null,null,null,null,null,null,null,null,null,null,null,null,null,null,null,null,null,null,null,null,null,null,null,null,null,null,"DP","DO","DA","ED"]
[null,null,null,null,null,null,null,null,null,null,null,null,null,null,null,null,null,null,null,null,null,null,null,null,null,null,null,14,8,5,1]
[null,"CRITERIOS DE EVALUACIÓN",null,null,null,null,null,null,null,null,null,null,null,null,null,null,null,null,"ACTITUDES TRABAJOS, RESPONSABILIDADES"]
[]
[null,"APELLIDOS Y NOMBRES"]
[1,{"$f":"IF(FILIACION_ESTUDIANTE!D8=0,\"\",FILIACION_PPFF!B7)","v":""},null,null,null,null,null,null,null,null,null,null,null,null,null,null,null,null,null,null,null,null,null,"demuestra  algunas actitudes armonicas etre sfamilia Y  LE FALTAT",null,null,null,{"$f":"IF(C16=$AB$11,$AB$12,IF(C16=$AC$11,$AC$12,IF(C16=$AD$11,$AD$12,IF(C16=$AE$11,$AE$12))))","v":false},{"$f":"IF(D16=$AB$11,$AB$12,IF(D16=$AC$11,$AC$12,IF(D16=$AD$11,$AD$12,IF(D16=$AE$11,$AE$12))))","v":false},false,false,{"$f":"SUM(AB16:AE16)","v":0},{"$f":"IF(G16=$AB$11,$AB$12,IF(G16=$AC$11,$AC$12,IF(G16=$AD$11,$AD$12,IF(G16=$AE$11,$AE$12))))","v":false},{"$f":"IF(H16=$AB$11,$AB$12,IF(H16=$AC$11,$AC$12,IF(H16=$AD$11,$AD$12,IF(H16=$AE$11,$AE$12))))","v":false},false,false,{"$f":"SUM(AG16:AJ16)","v":0},{"$f":"IF(K16=$AB$11,$AB$12,IF(K16=$AC$11,$AC$12,IF(K16=$AD$11,$AD$12,IF(K16=$AE$11,$AE$12))))","v":false},{"$f":"IF(L16=$AB$11,$AB$12,IF(L16=$AC$11,$AC$12,IF(L16=$AD$11,$AD$12,IF(L16=$AE$11,$AE$12))))","v":false},{"$f":"IF(M16=$AB$11,$AB$12,IF(M16=$AC$11,$AC$12,IF(M16=$AD$11,$AD$12,IF(M16=$AE$11,$AE$12))))","v":false},{"$f":"IF(N16=$AB$11,$AB$12,IF(N16=$AC$11,$AC$12,IF(N16=$AD$11,$AD$12,IF(N16=$AE$11,$AE$12))))","v":false},{"$f":"SUM(AL16:AO16)","v":0},{"$f":"IF(O16=$AB$11,$AB$12,IF(O16=$AC$11,$AC$12,IF(O16=$AD$11,$AD$12,IF(O16=$AE$11,$AE$12))))","v":false},{"$f":"IF(P16=$AB$11,$AB$12,IF(P16=$AC$11,$AC$12,IF(P16=$AD$11,$AD$12,IF(P16=$AE$11,$AE$12))))","v":false},false,false,{"$f":"SUM(AQ16:AT16)","v":0},{"$f":"MAX(AF16,AK16,AP16,AU16)","v":0}]
[2,{"$f":"IF(FILIACION_ESTUDIANTE!D9=0,\"\",FILIACION_PPFF!B8)","v":""}]
[3,{"$f":"IF(FILIACION_ESTUDIANTE!D10=0,\"\",FILIACION_PPFF!B9)","v":""}]
[4,{"$f":"IF(FILIACION_ESTUDIANTE!D11=0,\"\",FILIACION_PPFF!B10)","v":""}]
[5,{"$f":"IF(FILIACION_ESTUDIANTE!D12=0,\"\",FILIACION_PPFF!B11)","v":""}]
[6,{"$f":"IF(FILIACION_ESTUDIANTE!D13=0,\"\",FILIACION_PPFF!B12)","v":""}]
[7,{"$f":"IF(FILIACION_ESTUDIANTE!D14=0,\"\",FILIACION_PPFF!B13)","v":""}]
[8,{"$f":"IF(FILIACION_ESTUDIANTE!D15=0,\"\",FILIACION_PPFF!B14)","v":""}]
[9,{"$f":"IF(FILIACION_ESTUDIANTE!D16=0,\"\",FILIACION_PPFF!B15)","v":""}]
[10,{"$f":"IF(FILIACION_ESTUDIANTE!D17=0,\"\",FILIACION_PPFF!B16)","v":""}]
[11,{"$f":"IF(FILIACION_ESTUDIANTE!D18=0,\"\",FILIACION_PPFF!B17)","v":""}]
[12,{"$f":"IF(FILIACION_ESTUDIANTE!D19=0,\"\",FILIACION_PPFF!B18)","v":""}]
[13,{"$f":"IF(FILIACION_ESTUDIANTE!D20=0,\"\",FILIACION_PPFF!B19)","v":""}]
[14,{"$f":"IF(FILIACION_ESTUDIANTE!D21=0,\"\",FILIACION_PPFF!B20)","v":""}]
[15,{"$f":"IF(FILIACION_ESTUDIANTE!D22=0,\"\",FILIACION_PPFF!B21)","v":""}]
[16,{"$f":"IF(FILIACION_ESTUDIANTE!D23=0,\"\",FILIACION_PPFF!B22)","v":""}]
[17,{"$f":"IF(FILIACION_ESTUDIANTE!D24=0,\"\",FILIACION_PPFF!B23)","v":""}]
[18,{"$f":"IF(FILIACION_ESTUDIANTE!D25=0,\"\",FILIACION_PPFF!B24)","v":""}]
[19,{"$f":"IF(FILIACION_ESTUDIANTE!D26=0,\"\",FILIACION_PPFF!B25)","v":""}]
[20,{"$f":"IF(FILIACION_ESTUDIANTE!D27=0,\"\",FILIACION_PPFF!B26)","v":""}]
[21,{"$f":"IF(FILIACION_ESTUDIANTE!D28=0,\"\",FILIACION_PPFF!B27)","v":""}]
[22,{"$f":"IF(FILIACION_ESTUDIANTE!D29=0,\"\",FILIACION_PPFF!B28)","v":""}]
[23,{"$f":"IF(FILIACION_ESTUDIANTE!D30=0,\"\",FILIACION_PPFF!B29)","v":""}]
[24,{"$f":"IF(FILIACION_ESTUDIANTE!D31=0,\"\",FILIACION_PPFF!B30)","v":""}]
[25,{"$f":"IF(FILIACION_ESTUDIANTE!D32=0,\"\",FILIACION_PPFF!B31)","v":""}]
[26,{"$f":"IF(FILIACION_ESTUDIANTE!D33=0,\"\",FILIACION_PPFF!B32)","v":""}]
[27,{"$f":"IF(FILIACION_ESTUDIANTE!D34=0,\"\",FILIACION_PPFF!B33)","v":""}]
[28,{"$f":"IF(FILIACION_ESTUDIANTE!D35=0,\"\",FILIACION_PPFF!B34)","v":""}]
[29,{"$f":"IF(FILIACION_ESTUDIANTE!D36=0,\"\",FILIACION_PPFF!B35)","v":""}]
[30,{"$f":"IF(FILIACION_ESTUDIANTE!D37=0,\"\",FILIACION_PPFF!B36)","v":""}]
[31,{"$f":"IF(FILIACION_ESTUDIANTE!D38=0,\"\",FILIACION_PPFF!B37)","v":""}]
[32,{"$f":"IF(FILIACION_ESTUDIANTE!D39=0,\"\",FILIACION_PPFF!B38)","v":""}]
[33,{"$f":"IF(FILIACION_ESTUDIANTE!D40=0,\"\",FILIACION_PPFF!B39)","v":""}]
[34,{"$f":"IF(FILIACION_ESTUDIANTE!D41=0,\"\",FILIACION_PPFF!B40)","v":""}]
[35,{"$f":"IF(FILIACION_ESTUDIANTE!D42=0,\"\",FILIACION_PPFF!B41)","v":""}]
[36,{"$f":"IF(FILIACION_ESTUDIANTE!D43=0,\"\",FILIACION_PPFF!B42)","v":""}]
[37,{"$f":"IF(FILIACION_ESTUDIANTE!D44=0,\"\",FILIACION_PPFF!B43)","v":""}]
[38,{"$f":"IF(FILIACION_ESTUDIANTE!D45=0,\"\",FILIACION_PPFF!B44)","v":""}]
[39,{"$f":"IF(FILIACION_ESTUDIANTE!D46=0,\"\",FILIACION_PPFF!B45)","v":""}]
[40,{"$f":"IF(FILIACION_ESTUDIANTE!D47=0,\"\",FILIACION_PPFF!B46)","v":""}]

{"sheet":"COSMOS_PENS_3B","index":26,"n_rows":55,"n_cols":48,"rows_kept":55,"cut":false,"hidden":false,"merged":[[9,15,11,15],[9,16,11,16],[9,17,11,17],[8,18,10,19],[12,9,14,9],[12,10,14,10],[12,11,14,11],[12,12,14,12],[12,13,14,13],[12,18,14,19],[12,14,14,14],[12,15,14,15],[12,16,14,16],[12,17,14,17],[9,11,11,11],[9,12,11,12],[9,13,11,13],[12,1,13,1],[12,6,14,6],[12,7,14,7],[12,8,14,8],[12,2,14,2],[12,3,14,3],[12,4,14,4],[12,5,14,5],[6,0,6,1],[6,2,6,20],[7,0,7,1],[7,2,7,20],[9,14,11,14],[8,20,14,20],[9,1,11,1],[9,2,11,2],[9,3,11,3],[9,4,11,4],[9,5,11,5],[9,6,11,6],[9,7,11,7],[9,8,11,8],[9,9,11,9],[9,10,11,10],[1,1,2,1],[1,2,1,19],[1,27,8,31],[2,2,2,19],[3,0,3,1],[3,2,3,11],[3,12,3,17],[3,18,3,20],[4,0,4,20],[5,0,5,1],[8,0,14,0],[8,2,8,5],[8,6,8,9],[8,10,8,13],[8,14,8,17],[5,2,5,20],[15,18,15,19],[16,18,16,19],[17,18,17,19],[18,18,18,19],[19,18,19,19],[20,18,20,19],[21,18,21,19],[22,18,22,19],[23,18,23,19],[24,18,24,19],[25,18,25,19],[26,18,26,19],[27,18,27,19],[28,18,28,19],[29,18,29,19],[30,18,30,19],[31,18,31,19],[32,18,32,19],[33,18,33,19],[34,18,34,19],[35,18,35,19],[36,18,36,19],[37,18,37,19],[38,18,38,19],[39,18,39,19],[40,18,40,19],[41,18,41,19],[42,18,42,19],[43,18,43,19],[44,18,44,19],[45,18,45,19],[46,18,46,19],[47,18,47,19],[48,18,48,19],[49,18,49,19],[50,18,50,19],[51,18,51,19],[52,18,52,19],[53,18,53,19],[54,18,54,19]]}
[]
[null,null,"CUADRO DE VALORACIÓN",null,null,null,null,null,null,null,null,null,null,null,null,null,null,null,null,null,null,null,null,null,null,null,null,"REGISTRO DE VALORACION",null,null,null,null,"ED",null,null,null,null,null,null,null,"DA","DO",null,"DP"]
[null,null,"EDUCACIÓN INICIAL  EN FAMILIA COMUNITARIA ",null,null,null,null,null,null,null,null,null,null,null,null,null,null,null,null,null,"3er BIMESTRE"]
[{"$f":"UPPER( CARATULA!$C$21)","v":"MAESTRA (O):"},null,{"$f":"CARATULA!$E$21","v":0},null,null,null,null,null,null,null,null,null,{"$f":"UPPER(CARATULA!$C$23)","v":"AÑO DE ESCOLARIDAD:"},null,null,null,null,null,{"$f":"CARATULA!$E$23","v":0}]
["CAMPO DE SABER Y CONOCIMIENTO COSMOS Y PENSAMIENTO"]
["INTRUMENTOS DE EVALUACIÓN"]
["ESTRATEGIAS DE EVALUACIÓN"]
["EVALUACIÓN",null,"CRITERIOS DE LAS DIMENSIONES"]
["Nº","DIMENSIONES","SER",null,null,null,"SABER",null,null,null,"HACER",null,null,null,"DECIDIR",null,null,null,"AUTOEVALUACIÓN (SER, SABER, HACER, DECIDIR)",null,"SÍNTESIS CUALITATIVA DEL BIMESTRE"]
[null,"PLANES DE CLASE (PDC)","PDC","PDC","PDC","PDC","PDC","PDC","PDC","PDC","PDC","PDC","PDC","PDC","PDC","PDC","PDC","PDC"]
[null,null,null,null,null,null,null,null,null,null,null,null,null,null,null,null,null,null,null,null,null,null,null,null,null,null,null,"DP","DO","DA","ED"]
[null,null,null,null,null,null,null,null,null,null,null,null,null,null,null,null,null,null,null,null,null,null,null,null,null,null,null,14,8,5,1]
[null,"CRITERIOS DE EVALUACIÓN",null,null,null,null,null,null,null,null,null,null,null,null,null,null,null,null,"ACTITUDES TRABAJOS, RESPONSABILIDADES"]
[]
[null,"APELLIDOS Y NOMBRES"]
[1,{"$f":"IF(FILIACION_ESTUDIANTE!D8=0,\"\",FILIACION_PPFF!B7)","v":""},null,null,null,null,null,null,null,null,null,null,null,null,null,null,null,null,null,null,null,null,null,"demuestra  algunas actitudes armonicas etre sfamilia Y  LE FALTAT",null,null,null,{"$f":"IF(C16=$AB$11,$AB$12,IF(C16=$AC$11,$AC$12,IF(C16=$AD$11,$AD$12,IF(C16=$AE$11,$AE$12))))","v":false},{"$f":"IF(D16=$AB$11,$AB$12,IF(D16=$AC$11,$AC$12,IF(D16=$AD$11,$AD$12,IF(D16=$AE$11,$AE$12))))","v":false},false,false,{"$f":"SUM(AB16:AE16)","v":0},{"$f":"IF(G16=$AB$11,$AB$12,IF(G16=$AC$11,$AC$12,IF(G16=$AD$11,$AD$12,IF(G16=$AE$11,$AE$12))))","v":false},{"$f":"IF(H16=$AB$11,$AB$12,IF(H16=$AC$11,$AC$12,IF(H16=$AD$11,$AD$12,IF(H16=$AE$11,$AE$12))))","v":false},false,false,{"$f":"SUM(AG16:AJ16)","v":0},{"$f":"IF(K16=$AB$11,$AB$12,IF(K16=$AC$11,$AC$12,IF(K16=$AD$11,$AD$12,IF(K16=$AE$11,$AE$12))))","v":false},{"$f":"IF(L16=$AB$11,$AB$12,IF(L16=$AC$11,$AC$12,IF(L16=$AD$11,$AD$12,IF(L16=$AE$11,$AE$12))))","v":false},{"$f":"IF(M16=$AB$11,$AB$12,IF(M16=$AC$11,$AC$12,IF(M16=$AD$11,$AD$12,IF(M16=$AE$11,$AE$12))))","v":false},{"$f":"IF(N16=$AB$11,$AB$12,IF(N16=$AC$11,$AC$12,IF(N16=$AD$11,$AD$12,IF(N16=$AE$11,$AE$12))))","v":false},{"$f":"SUM(AL16:AO16)","v":0},{"$f":"IF(O16=$AB$11,$AB$12,IF(O16=$AC$11,$AC$12,IF(O16=$AD$11,$AD$12,IF(O16=$AE$11,$AE$12))))","v":false},{"$f":"IF(P16=$AB$11,$AB$12,IF(P16=$AC$11,$AC$12,IF(P16=$AD$11,$AD$12,IF(P16=$AE$11,$AE$12))))","v":false},false,false,{"$f":"SUM(AQ16:AT16)","v":0},{"$f":"MAX(AF16,AK16,AP16,AU16)","v":0}]
[2,{"$f":"IF(FILIACION_ESTUDIANTE!D9=0,\"\",FILIACION_PPFF!B8)","v":""}]
[3,{"$f":"IF(FILIACION_ESTUDIANTE!D10=0,\"\",FILIACION_PPFF!B9)","v":""}]
[4,{"$f":"IF(FILIACION_ESTUDIANTE!D11=0,\"\",FILIACION_PPFF!B10)","v":""}]
[5,{"$f":"IF(FILIACION_ESTUDIANTE!D12=0,\"\",FILIACION_PPFF!B11)","v":""}]
[6,{"$f":"IF(FILIACION_ESTUDIANTE!D13=0,\"\",FILIACION_PPFF!B12)","v":""}]
[7,{"$f":"IF(FILIACION_ESTUDIANTE!D14=0,\"\",FILIACION_PPFF!B13)","v":""}]
[8,{"$f":"IF(FILIACION_ESTUDIANTE!D15=0,\"\",FILIACION_PPFF!B14)","v":""}]
[9,{"$f":"IF(FILIACION_ESTUDIANTE!D16=0,\"\",FILIACION_PPFF!B15)","v":""}]
[10,{"$f":"IF(FILIACION_ESTUDIANTE!D17=0,\"\",FILIACION_PPFF!B16)","v":""}]
[11,{"$f":"IF(FILIACION_ESTUDIANTE!D18=0,\"\",FILIACION_PPFF!B17)","v":""}]
[12,{"$f":"IF(FILIACION_ESTUDIANTE!D19=0,\"\",FILIACION_PPFF!B18)","v":""}]
[13,{"$f":"IF(FILIACION_ESTUDIANTE!D20=0,\"\",FILIACION_PPFF!B19)","v":""}]
[14,{"$f":"IF(FILIACION_ESTUDIANTE!D21=0,\"\",FILIACION_PPFF!B20)","v":""}]
[15,{"$f":"IF(FILIACION_ESTUDIANTE!D22=0,\"\",FILIACION_PPFF!B21)","v":""}]
[16,{"$f":"IF(FILIACION_ESTUDIANTE!D23=0,\"\",FILIACION_PPFF!B22)","v":""}]
[17,{"$f":"IF(FILIACION_ESTUDIANTE!D24=0,\"\",FILIACION_PPFF!B23)","v":""}]
[18,{"$f":"IF(FILIACION_ESTUDIANTE!D25=0,\"\",FILIACION_PPFF!B24)","v":""}]
[19,{"$f":"IF(FILIACION_ESTUDIANTE!D26=0,\"\",FILIACION_PPFF!B25)","v":""}]
[20,{"$f":"IF(FILIACION_ESTUDIANTE!D27=0,\"\",FILIACION_PPFF!B26)","v":""}]
[21,{"$f":"IF(FILIACION_ESTUDIANTE!D28=0,\"\",FILIACION_PPFF!B27)","v":""}]
[22,{"$f":"IF(FILIACION_ESTUDIANTE!D29=0,\"\",FILIACION_PPFF!B28)","v":""}]
[23,{"$f":"IF(FILIACION_ESTUDIANTE!D30=0,\"\",FILIACION_PPFF!B29)","v":""}]
[24,{"$f":"IF(FILIACION_ESTUDIANTE!D31=0,\"\",FILIACION_PPFF!B30)","v":""}]
[25,{"$f":"IF(FILIACION_ESTUDIANTE!D32=0,\"\",FILIACION_PPFF!B31)","v":""}]
[26,{"$f":"IF(FILIACION_ESTUDIANTE!D33=0,\"\",FILIACION_PPFF!B32)","v":""}]
[27,{"$f":"IF(FILIACION_ESTUDIANTE!D34=0,\"\",FILIACION_PPFF!B33)","v":""}]
[28,{"$f":"IF(FILIACION_ESTUDIANTE!D35=0,\"\",FILIACION_PPFF!B34)","v":""}]
[29,{"$f":"IF(FILIACION_ESTUDIANTE!D36=0,\"\",FILIACION_PPFF!B35)","v":""}]
[30,{"$f":"IF(FILIACION_ESTUDIANTE!D37=0,\"\",FILIACION_PPFF!B36)","v":""}]
[31,{"$f":"IF(FILIACION_ESTUDIANTE!D38=0,\"\",FILIACION_PPFF!B37)","v":""}]
[32,{"$f":"IF(FILIACION_ESTUDIANTE!D39=0,\"\",FILIACION_PPFF!B38)","v":""}]
[33,{"$f":"IF(FILIACION_ESTUDIANTE!D40=0,\"\",FILIACION_PPFF!B39)","v":""}]
[34,{"$f":"IF(FILIACION_ESTUDIANTE!D41=0,\"\",FILIACION_PPFF!B40)","v":""}]
[35,{"$f":"IF(FILIACION_ESTUDIANTE!D42=0,\"\",FILIACION_PPFF!B41)","v":""}]
[36,{"$f":"IF(FILIACION_ESTUDIANTE!D43=0,\"\",FILIACION_PPFF!B42)","v":""}]
[37,{"$f":"IF(FILIACION_ESTUDIANTE!D44=0,\"\",FILIACION_PPFF!B43)","v":""}]
[38,{"$f":"IF(FILIACION_ESTUDIANTE!D45=0,\"\",FILIACION_PPFF!B44)","v":""}]
[39,{"$f":"IF(FILIACION_ESTUDIANTE!D46=0,\"\",FILIACION_PPFF!B45)","v":""}]
[40,{"$f":"IF(FILIACION_ESTUDIANTE!D47=0,\"\",FILIACION_PPFF!B46)","v":""}]

{"sheet":"COSMOS_PENS_4B","index":27,"n_rows":55,"n_cols":48,"rows_kept":55,"cut":false,"hidden":false,"merged":[[9,15,11,15],[9,16,11,16],[9,17,11,17],[8,18,10,19],[12,9,14,9],[12,10,14,10],[12,11,14,11],[12,12,14,12],[12,13,14,13],[12,18,14,19],[12,14,14,14],[12,15,14,15],[12,16,14,16],[12,17,14,17],[9,11,11,11],[9,12,11,12],[9,13,11,13],[12,1,13,1],[12,6,14,6],[12,7,14,7],[12,8,14,8],[12,2,14,2],[12,3,14,3],[12,4,14,4],[12,5,14,5],[6,0,6,1],[6,2,6,20],[7,0,7,1],[7,2,7,20],[9,14,11,14],[8,20,14,20],[9,1,11,1],[9,2,11,2],[9,3,11,3],[9,4,11,4],[9,5,11,5],[9,6,11,6],[9,7,11,7],[9,8,11,8],[9,9,11,9],[9,10,11,10],[1,1,2,1],[1,2,1,19],[1,27,8,31],[2,2,2,19],[3,0,3,1],[3,2,3,11],[3,12,3,17],[3,18,3,20],[4,0,4,20],[5,0,5,1],[8,0,14,0],[8,2,8,5],[8,6,8,9],[8,10,8,13],[8,14,8,17],[5,2,5,20],[15,18,15,19],[16,18,16,19],[17,18,17,19],[18,18,18,19],[19,18,19,19],[20,18,20,19],[21,18,21,19],[22,18,22,19],[23,18,23,19],[24,18,24,19],[25,18,25,19],[26,18,26,19],[27,18,27,19],[28,18,28,19],[29,18,29,19],[30,18,30,19],[31,18,31,19],[32,18,32,19],[33,18,33,19],[34,18,34,19],[35,18,35,19],[36,18,36,19],[37,18,37,19],[38,18,38,19],[39,18,39,19],[40,18,40,19],[41,18,41,19],[42,18,42,19],[43,18,43,19],[44,18,44,19],[45,18,45,19],[46,18,46,19],[47,18,47,19],[48,18,48,19],[49,18,49,19],[50,18,50,19],[51,18,51,19],[52,18,52,19],[53,18,53,19],[54,18,54,19]]}
[]
[null,null,"CUADRO DE VALORACIÓN",null,null,null,null,null,null,null,null,null,null,null,null,null,null,null,null,null,null,null,null,null,null,null,null,"REGISTRO DE VALORACION",null,null,null,null,"ED",null,null,null,null,null,null,null,"DA","DO",null,"DP"]
[null,null,"EDUCACIÓN INICIAL  EN FAMILIA COMUNITARIA ",null,null,null,null,null,null,null,null,null,null,null,null,null,null,null,null,null,"4° BIMESTRE"]
[{"$f":"UPPER( CARATULA!$C$21)","v":"MAESTRA (O):"},null,{"$f":"CARATULA!$E$21","v":0},null,null,null,null,null,null,null,null,null,{"$f":"UPPER(CARATULA!$C$23)","v":"AÑO DE ESCOLARIDAD:"},null,null,null,null,null,{"$f":"CARATULA!$E$23","v":0}]
["CAMPO DE SABER Y CONOCIMIENTO COSMOS Y PENSAMIENTO"]
["INTRUMENTOS DE EVALUACIÓN"]
["ESTRATEGIAS DE EVALUACIÓN"]
["EVALUACIÓN",null,"CRITERIOS DE LAS DIMENSIONES"]
["Nº","DIMENSIONES","SER",null,null,null,"SABER",null,null,null,"HACER",null,null,null,"DECIDIR",null,null,null,"AUTOEVALUACIÓN (SER, SABER, HACER, DECIDIR)",null,"SÍNTESIS CUALITATIVA DEL BIMESTRE"]
[null,"PLANES DE CLASE (PDC)","PDC","PDC","PDC","PDC","PDC","PDC","PDC","PDC","PDC","PDC","PDC","PDC","PDC","PDC","PDC","PDC"]
[null,null,null,null,null,null,null,null,null,null,null,null,null,null,null,null,null,null,null,null,null,null,null,null,null,null,null,"DP","DO","DA","ED"]
[null,null,null,null,null,null,null,null,null,null,null,null,null,null,null,null,null,null,null,null,null,null,null,null,null,null,null,14,8,5,1]
[null,"CRITERIOS DE EVALUACIÓN",null,null,null,null,null,null,null,null,null,null,null,null,null,null,null,null,"ACTITUDES TRABAJOS, RESPONSABILIDADES"]
[]
[null,"APELLIDOS Y NOMBRES"]
[1,{"$f":"IF(FILIACION_ESTUDIANTE!D8=0,\"\",FILIACION_PPFF!B7)","v":""},null,null,null,null,null,null,null,null,null,null,null,null,null,null,null,null,null,null,null,null,null,"demuestra  algunas actitudes armonicas etre sfamilia Y  LE FALTAT",null,null,null,{"$f":"IF(C16=$AB$11,$AB$12,IF(C16=$AC$11,$AC$12,IF(C16=$AD$11,$AD$12,IF(C16=$AE$11,$AE$12))))","v":false},{"$f":"IF(D16=$AB$11,$AB$12,IF(D16=$AC$11,$AC$12,IF(D16=$AD$11,$AD$12,IF(D16=$AE$11,$AE$12))))","v":false},false,false,{"$f":"SUM(AB16:AE16)","v":0},{"$f":"IF(G16=$AB$11,$AB$12,IF(G16=$AC$11,$AC$12,IF(G16=$AD$11,$AD$12,IF(G16=$AE$11,$AE$12))))","v":false},{"$f":"IF(H16=$AB$11,$AB$12,IF(H16=$AC$11,$AC$12,IF(H16=$AD$11,$AD$12,IF(H16=$AE$11,$AE$12))))","v":false},false,false,{"$f":"SUM(AG16:AJ16)","v":0},{"$f":"IF(K16=$AB$11,$AB$12,IF(K16=$AC$11,$AC$12,IF(K16=$AD$11,$AD$12,IF(K16=$AE$11,$AE$12))))","v":false},{"$f":"IF(L16=$AB$11,$AB$12,IF(L16=$AC$11,$AC$12,IF(L16=$AD$11,$AD$12,IF(L16=$AE$11,$AE$12))))","v":false},{"$f":"IF(M16=$AB$11,$AB$12,IF(M16=$AC$11,$AC$12,IF(M16=$AD$11,$AD$12,IF(M16=$AE$11,$AE$12))))","v":false},{"$f":"IF(N16=$AB$11,$AB$12,IF(N16=$AC$11,$AC$12,IF(N16=$AD$11,$AD$12,IF(N16=$AE$11,$AE$12))))","v":false},{"$f":"SUM(AL16:AO16)","v":0},{"$f":"IF(O16=$AB$11,$AB$12,IF(O16=$AC$11,$AC$12,IF(O16=$AD$11,$AD$12,IF(O16=$AE$11,$AE$12))))","v":false},{"$f":"IF(P16=$AB$11,$AB$12,IF(P16=$AC$11,$AC$12,IF(P16=$AD$11,$AD$12,IF(P16=$AE$11,$AE$12))))","v":false},false,false,{"$f":"SUM(AQ16:AT16)","v":0},{"$f":"MAX(AF16,AK16,AP16,AU16)","v":0}]
[2,{"$f":"IF(FILIACION_ESTUDIANTE!D9=0,\"\",FILIACION_PPFF!B8)","v":""}]
[3,{"$f":"IF(FILIACION_ESTUDIANTE!D10=0,\"\",FILIACION_PPFF!B9)","v":""}]
[4,{"$f":"IF(FILIACION_ESTUDIANTE!D11=0,\"\",FILIACION_PPFF!B10)","v":""}]
[5,{"$f":"IF(FILIACION_ESTUDIANTE!D12=0,\"\",FILIACION_PPFF!B11)","v":""}]
[6,{"$f":"IF(FILIACION_ESTUDIANTE!D13=0,\"\",FILIACION_PPFF!B12)","v":""}]
[7,{"$f":"IF(FILIACION_ESTUDIANTE!D14=0,\"\",FILIACION_PPFF!B13)","v":""}]
[8,{"$f":"IF(FILIACION_ESTUDIANTE!D15=0,\"\",FILIACION_PPFF!B14)","v":""}]
[9,{"$f":"IF(FILIACION_ESTUDIANTE!D16=0,\"\",FILIACION_PPFF!B15)","v":""}]
[10,{"$f":"IF(FILIACION_ESTUDIANTE!D17=0,\"\",FILIACION_PPFF!B16)","v":""}]
[11,{"$f":"IF(FILIACION_ESTUDIANTE!D18=0,\"\",FILIACION_PPFF!B17)","v":""}]
[12,{"$f":"IF(FILIACION_ESTUDIANTE!D19=0,\"\",FILIACION_PPFF!B18)","v":""}]
[13,{"$f":"IF(FILIACION_ESTUDIANTE!D20=0,\"\",FILIACION_PPFF!B19)","v":""}]
[14,{"$f":"IF(FILIACION_ESTUDIANTE!D21=0,\"\",FILIACION_PPFF!B20)","v":""}]
[15,{"$f":"IF(FILIACION_ESTUDIANTE!D22=0,\"\",FILIACION_PPFF!B21)","v":""}]
[16,{"$f":"IF(FILIACION_ESTUDIANTE!D23=0,\"\",FILIACION_PPFF!B22)","v":""}]
[17,{"$f":"IF(FILIACION_ESTUDIANTE!D24=0,\"\",FILIACION_PPFF!B23)","v":""}]
[18,{"$f":"IF(FILIACION_ESTUDIANTE!D25=0,\"\",FILIACION_PPFF!B24)","v":""}]
[19,{"$f":"IF(FILIACION_ESTUDIANTE!D26=0,\"\",FILIACION_PPFF!B25)","v":""}]
[20,{"$f":"IF(FILIACION_ESTUDIANTE!D27=0,\"\",FILIACION_PPFF!B26)","v":""}]
[21,{"$f":"IF(FILIACION_ESTUDIANTE!D28=0,\"\",FILIACION_PPFF!B27)","v":""}]
[22,{"$f":"IF(FILIACION_ESTUDIANTE!D29=0,\"\",FILIACION_PPFF!B28)","v":""}]
[23,{"$f":"IF(FILIACION_ESTUDIANTE!D30=0,\"\",FILIACION_PPFF!B29)","v":""}]
[24,{"$f":"IF(FILIACION_ESTUDIANTE!D31=0,\"\",FILIACION_PPFF!B30)","v":""}]
[25,{"$f":"IF(FILIACION_ESTUDIANTE!D32=0,\"\",FILIACION_PPFF!B31)","v":""}]
[26,{"$f":"IF(FILIACION_ESTUDIANTE!D33=0,\"\",FILIACION_PPFF!B32)","v":""}]
[27,{"$f":"IF(FILIACION_ESTUDIANTE!D34=0,\"\",FILIACION_PPFF!B33)","v":""}]
[28,{"$f":"IF(FILIACION_ESTUDIANTE!D35=0,\"\",FILIACION_PPFF!B34)","v":""}]
[29,{"$f":"IF(FILIACION_ESTUDIANTE!D36=0,\"\",FILIACION_PPFF!B35)","v":""}]
[30,{"$f":"IF(FILIACION_ESTUDIANTE!D37=0,\"\",FILIACION_PPFF!B36)","v":""}]
[31,{"$f":"IF(FILIACION_ESTUDIANTE!D38=0,\"\",FILIACION_PPFF!B37)","v":""}]
[32,{"$f":"IF(FILIACION_ESTUDIANTE!D39=0,\"\",FILIACION_PPFF!B38)","v":""}]
[33,{"$f":"IF(FILIACION_ESTUDIANTE!D40=0,\"\",FILIACION_PPFF!B39)","v":""}]
[34,{"$f":"IF(FILIACION_ESTUDIANTE!D41=0,\"\",FILIACION_PPFF!B40)","v":""}]
[35,{"$f":"IF(FILIACION_ESTUDIANTE!D42=0,\"\",FILIACION_PPFF!B41)","v":""}]
[36,{"$f":"IF(FILIACION_ESTUDIANTE!D43=0,\"\",FILIACION_PPFF!B42)","v":""}]
[37,{"$f":"IF(FILIACION_ESTUDIANTE!D44=0,\"\",FILIACION_PPFF!B43)","v":""}]
[38,{"$f":"IF(FILIACION_ESTUDIANTE!D45=0,\"\",FILIACION_PPFF!B44)","v":""}]
[39,{"$f":"IF(FILIACION_ESTUDIANTE!D46=0,\"\",FILIACION_PPFF!B45)","v":""}]
[40,{"$f":"IF(FILIACION_ESTUDIANTE!D47=0,\"\",FILIACION_PPFF!B46)","v":""}]

{"sheet":"CIENCIA_TEC_1B","index":28,"n_rows":55,"n_cols":48,"rows_kept":55,"cut":false,"hidden":false,"merged":[[9,15,11,15],[9,16,11,16],[9,17,11,17],[8,18,10,19],[12,9,14,9],[12,10,14,10],[12,11,14,11],[12,12,14,12],[12,13,14,13],[12,14,14,14],[12,15,14,15],[12,16,14,16],[12,17,14,17],[12,18,14,19],[9,11,11,11],[9,12,11,12],[9,13,11,13],[12,1,13,1],[12,6,14,6],[12,7,14,7],[12,8,14,8],[12,2,14,2],[12,3,14,3],[12,4,14,4],[12,5,14,5],[6,0,6,1],[6,2,6,20],[7,0,7,1],[7,2,7,20],[9,14,11,14],[8,20,14,20],[9,1,11,1],[9,2,11,2],[9,3,11,3],[9,4,11,4],[9,5,11,5],[9,6,11,6],[9,7,11,7],[9,8,11,8],[9,9,11,9],[9,10,11,10],[1,1,2,1],[1,2,1,19],[1,27,8,31],[2,2,2,19],[3,0,3,1],[3,2,3,11],[3,12,3,17],[3,18,3,20],[4,0,4,20],[5,0,5,1],[8,0,14,0],[8,2,8,5],[8,6,8,9],[8,10,8,13],[8,14,8,17],[5,2,5,20],[15,18,15,19],[16,18,16,19],[17,18,17,19],[18,18,18,19],[19,18,19,19],[20,18,20,19],[21,18,21,19],[22,18,22,19],[23,18,23,19],[24,18,24,19],[25,18,25,19],[26,18,26,19],[27,18,27,19],[28,18,28,19],[29,18,29,19],[30,18,30,19],[31,18,31,19],[32,18,32,19],[33,18,33,19],[34,18,34,19],[35,18,35,19],[36,18,36,19],[37,18,37,19],[38,18,38,19],[39,18,39,19],[40,18,40,19],[41,18,41,19],[42,18,42,19],[43,18,43,19],[44,18,44,19],[45,18,45,19],[46,18,46,19],[47,18,47,19],[48,18,48,19],[49,18,49,19],[50,18,50,19],[51,18,51,19],[52,18,52,19],[53,18,53,19],[54,18,54,19]]}
[]
[null,null,"CUADRO DE VALORACIÓN",null,null,null,null,null,null,null,null,null,null,null,null,null,null,null,null,null,null,null,null,null,null,null,null,"REGISTRO DE VALORACION",null,null,null,null,"ED",null,null,null,null,null,null,null,"DA","DO",null,"DP"]
[null,null,"EDUCACIÓN INICIAL  EN FAMILIA COMUNITARIA ",null,null,null,null,null,null,null,null,null,null,null,null,null,null,null,null,null,"1er BIMESTRE"]
[{"$f":"UPPER( CARATULA!$C$21)","v":"MAESTRA (O):"},null,{"$f":"CARATULA!$E$21","v":0},null,null,null,null,null,null,null,null,null,{"$f":"UPPER(CARATULA!$C$23)","v":"AÑO DE ESCOLARIDAD:"},null,null,null,null,null,{"$f":"CARATULA!$E$23","v":0}]
["CAMPO DE SABER Y CONOCIMIENTO CIENCIA TECNOLOGIA Y PRODUCCIÓN"]
["INTRUMENTOS DE EVALUACIÓN",null,"A TRAVES DE LA OBSEVACION, PARTICIPACIÓN GRUPAL, PRUEBAS OBJETIVAS"]
["ESTRATEGIAS DE EVALUACIÓN",null,"CON RONDAS, CANCIONES, PARTICIPACIÓN GRUPAL TRABAJOS EN EL ARCHIVADOR, CUADERNILLOS "]
["EVALUACIÓN",null,"CRITERIOS DE LAS DIMENSIONES"]
["Nº","DIMENSIONES","SER",null,null,null,"SABER",null,null,null,"HACER",null,null,null,"DECIDIR",null,null,null,"AUTOEVALUACIÓN (SER, SABER, HACER, DECIDIR)",null,"SÍNTESIS CUALITATIVA DEL BIMESTRE"]
[null,"PLANES DE CLASE (PDC)","PDC","PDC","PDC","PDC","PDC","PDC","PDC","PDC","PDC","PDC","PDC","PDC","PDC","PDC","PDC","PDC"]
[null,null,null,null,null,null,null,null,null,null,null,null,null,null,null,null,null,null,null,null,null,null,null,null,null,null,null,"DP","DO","DA","ED"]
[null,null,null,null,null,null,null,null,null,null,null,null,null,null,null,null,null,null,null,null,null,null,null,null,null,null,null,14,8,5,1]
[null,"CRITERIOS DE EVALUACIÓN",null,null,null,null,null,null,null,null,null,null,null,null,null,null,null,null,"ACTITUDES TRABAJOS, RESPONSABILIDADES"]
[]
[null,"APELLIDOS Y NOMBRES"]
[1,{"$f":"IF(FILIACION_ESTUDIANTE!D8=0,\"\",FILIACION_PPFF!B7)","v":""},null,null,null,null,null,null,null,null,null,null,null,null,null,null,null,null,null,null,null,null,null,"demuestra  algunas actitudes armonicas etre sfamilia Y  LE FALTAT",null,null,null,{"$f":"IF(C16=$AB$11,$AB$12,IF(C16=$AC$11,$AC$12,IF(C16=$AD$11,$AD$12,IF(C16=$AE$11,$AE$12))))","v":false},{"$f":"IF(D16=$AB$11,$AB$12,IF(D16=$AC$11,$AC$12,IF(D16=$AD$11,$AD$12,IF(D16=$AE$11,$AE$12))))","v":false},false,false,{"$f":"SUM(AB16:AE16)","v":0},{"$f":"IF(G16=$AB$11,$AB$12,IF(G16=$AC$11,$AC$12,IF(G16=$AD$11,$AD$12,IF(G16=$AE$11,$AE$12))))","v":false},{"$f":"IF(H16=$AB$11,$AB$12,IF(H16=$AC$11,$AC$12,IF(H16=$AD$11,$AD$12,IF(H16=$AE$11,$AE$12))))","v":false},false,false,{"$f":"SUM(AG16:AJ16)","v":0},{"$f":"IF(K16=$AB$11,$AB$12,IF(K16=$AC$11,$AC$12,IF(K16=$AD$11,$AD$12,IF(K16=$AE$11,$AE$12))))","v":false},{"$f":"IF(L16=$AB$11,$AB$12,IF(L16=$AC$11,$AC$12,IF(L16=$AD$11,$AD$12,IF(L16=$AE$11,$AE$12))))","v":false},{"$f":"IF(M16=$AB$11,$AB$12,IF(M16=$AC$11,$AC$12,IF(M16=$AD$11,$AD$12,IF(M16=$AE$11,$AE$12))))","v":false},{"$f":"IF(N16=$AB$11,$AB$12,IF(N16=$AC$11,$AC$12,IF(N16=$AD$11,$AD$12,IF(N16=$AE$11,$AE$12))))","v":false},{"$f":"SUM(AL16:AO16)","v":0},{"$f":"IF(O16=$AB$11,$AB$12,IF(O16=$AC$11,$AC$12,IF(O16=$AD$11,$AD$12,IF(O16=$AE$11,$AE$12))))","v":false},{"$f":"IF(P16=$AB$11,$AB$12,IF(P16=$AC$11,$AC$12,IF(P16=$AD$11,$AD$12,IF(P16=$AE$11,$AE$12))))","v":false},false,false,{"$f":"SUM(AQ16:AT16)","v":0},{"$f":"MAX(AF16,AK16,AP16,AU16)","v":0}]
[2,{"$f":"IF(FILIACION_ESTUDIANTE!D9=0,\"\",FILIACION_PPFF!B8)","v":""}]
[3,{"$f":"IF(FILIACION_ESTUDIANTE!D10=0,\"\",FILIACION_PPFF!B9)","v":""}]
[4,{"$f":"IF(FILIACION_ESTUDIANTE!D11=0,\"\",FILIACION_PPFF!B10)","v":""}]
[5,{"$f":"IF(FILIACION_ESTUDIANTE!D12=0,\"\",FILIACION_PPFF!B11)","v":""}]
[6,{"$f":"IF(FILIACION_ESTUDIANTE!D13=0,\"\",FILIACION_PPFF!B12)","v":""}]
[7,{"$f":"IF(FILIACION_ESTUDIANTE!D14=0,\"\",FILIACION_PPFF!B13)","v":""}]
[8,{"$f":"IF(FILIACION_ESTUDIANTE!D15=0,\"\",FILIACION_PPFF!B14)","v":""}]
[9,{"$f":"IF(FILIACION_ESTUDIANTE!D16=0,\"\",FILIACION_PPFF!B15)","v":""}]
[10,{"$f":"IF(FILIACION_ESTUDIANTE!D17=0,\"\",FILIACION_PPFF!B16)","v":""}]
[11,{"$f":"IF(FILIACION_ESTUDIANTE!D18=0,\"\",FILIACION_PPFF!B17)","v":""}]
[12,{"$f":"IF(FILIACION_ESTUDIANTE!D19=0,\"\",FILIACION_PPFF!B18)","v":""}]
[13,{"$f":"IF(FILIACION_ESTUDIANTE!D20=0,\"\",FILIACION_PPFF!B19)","v":""}]
[14,{"$f":"IF(FILIACION_ESTUDIANTE!D21=0,\"\",FILIACION_PPFF!B20)","v":""}]
[15,{"$f":"IF(FILIACION_ESTUDIANTE!D22=0,\"\",FILIACION_PPFF!B21)","v":""}]
[16,{"$f":"IF(FILIACION_ESTUDIANTE!D23=0,\"\",FILIACION_PPFF!B22)","v":""}]
[17,{"$f":"IF(FILIACION_ESTUDIANTE!D24=0,\"\",FILIACION_PPFF!B23)","v":""}]
[18,{"$f":"IF(FILIACION_ESTUDIANTE!D25=0,\"\",FILIACION_PPFF!B24)","v":""}]
[19,{"$f":"IF(FILIACION_ESTUDIANTE!D26=0,\"\",FILIACION_PPFF!B25)","v":""}]
[20,{"$f":"IF(FILIACION_ESTUDIANTE!D27=0,\"\",FILIACION_PPFF!B26)","v":""}]
[21,{"$f":"IF(FILIACION_ESTUDIANTE!D28=0,\"\",FILIACION_PPFF!B27)","v":""}]
[22,{"$f":"IF(FILIACION_ESTUDIANTE!D29=0,\"\",FILIACION_PPFF!B28)","v":""}]
[23,{"$f":"IF(FILIACION_ESTUDIANTE!D30=0,\"\",FILIACION_PPFF!B29)","v":""}]
[24,{"$f":"IF(FILIACION_ESTUDIANTE!D31=0,\"\",FILIACION_PPFF!B30)","v":""}]
[25,{"$f":"IF(FILIACION_ESTUDIANTE!D32=0,\"\",FILIACION_PPFF!B31)","v":""}]
[26,{"$f":"IF(FILIACION_ESTUDIANTE!D33=0,\"\",FILIACION_PPFF!B32)","v":""}]
[27,{"$f":"IF(FILIACION_ESTUDIANTE!D34=0,\"\",FILIACION_PPFF!B33)","v":""}]
[28,{"$f":"IF(FILIACION_ESTUDIANTE!D35=0,\"\",FILIACION_PPFF!B34)","v":""}]
[29,{"$f":"IF(FILIACION_ESTUDIANTE!D36=0,\"\",FILIACION_PPFF!B35)","v":""}]
[30,{"$f":"IF(FILIACION_ESTUDIANTE!D37=0,\"\",FILIACION_PPFF!B36)","v":""}]
[31,{"$f":"IF(FILIACION_ESTUDIANTE!D38=0,\"\",FILIACION_PPFF!B37)","v":""}]
[32,{"$f":"IF(FILIACION_ESTUDIANTE!D39=0,\"\",FILIACION_PPFF!B38)","v":""}]
[33,{"$f":"IF(FILIACION_ESTUDIANTE!D40=0,\"\",FILIACION_PPFF!B39)","v":""}]
[34,{"$f":"IF(FILIACION_ESTUDIANTE!D41=0,\"\",FILIACION_PPFF!B40)","v":""}]
[35,{"$f":"IF(FILIACION_ESTUDIANTE!D42=0,\"\",FILIACION_PPFF!B41)","v":""}]
[36,{"$f":"IF(FILIACION_ESTUDIANTE!D43=0,\"\",FILIACION_PPFF!B42)","v":""}]
[37,{"$f":"IF(FILIACION_ESTUDIANTE!D44=0,\"\",FILIACION_PPFF!B43)","v":""}]
[38,{"$f":"IF(FILIACION_ESTUDIANTE!D45=0,\"\",FILIACION_PPFF!B44)","v":""}]
[39,{"$f":"IF(FILIACION_ESTUDIANTE!D46=0,\"\",FILIACION_PPFF!B45)","v":""}]
[40,{"$f":"IF(FILIACION_ESTUDIANTE!D47=0,\"\",FILIACION_PPFF!B46)","v":""}]

{"sheet":"CIENCIA_TEC_2B","index":29,"n_rows":55,"n_cols":48,"rows_kept":55,"cut":false,"hidden":false,"merged":[[9,15,11,15],[9,16,11,16],[9,17,11,17],[8,18,10,19],[12,9,14,9],[12,10,14,10],[12,11,14,11],[12,12,14,12],[12,13,14,13],[12,14,14,14],[12,15,14,15],[12,16,14,16],[12,17,14,17],[12,18,14,19],[9,11,11,11],[9,12,11,12],[9,13,11,13],[12,1,13,1],[12,6,14,6],[12,7,14,7],[12,8,14,8],[12,2,14,2],[12,3,14,3],[12,4,14,4],[12,5,14,5],[6,0,6,1],[6,2,6,20],[7,0,7,1],[7,2,7,20],[9,14,11,14],[8,20,14,20],[9,1,11,1],[9,2,11,2],[9,3,11,3],[9,4,11,4],[9,5,11,5],[9,6,11,6],[9,7,11,7],[9,8,11,8],[9,9,11,9],[9,10,11,10],[1,1,2,1],[1,2,1,19],[1,27,8,31],[2,2,2,19],[3,0,3,1],[3,2,3,11],[3,12,3,17],[3,18,3,20],[4,0,4,20],[5,0,5,1],[8,0,14,0],[8,2,8,5],[8,6,8,9],[8,10,8,13],[8,14,8,17],[5,2,5,20],[15,18,15,19],[16,18,16,19],[17,18,17,19],[18,18,18,19],[19,18,19,19],[20,18,20,19],[21,18,21,19],[22,18,22,19],[23,18,23,19],[24,18,24,19],[25,18,25,19],[26,18,26,19],[27,18,27,19],[28,18,28,19],[29,18,29,19],[30,18,30,19],[31,18,31,19],[32,18,32,19],[33,18,33,19],[34,18,34,19],[35,18,35,19],[36,18,36,19],[37,18,37,19],[38,18,38,19],[39,18,39,19],[40,18,40,19],[41,18,41,19],[42,18,42,19],[43,18,43,19],[44,18,44,19],[45,18,45,19],[46,18,46,19],[47,18,47,19],[48,18,48,19],[49,18,49,19],[50,18,50,19],[51,18,51,19],[52,18,52,19],[53,18,53,19],[54,18,54,19]]}
[]
[null,null,"CUADRO DE VALORACIÓN",null,null,null,null,null,null,null,null,null,null,null,null,null,null,null,null,null,null,null,null,null,null,null,null,"REGISTRO DE VALORACION",null,null,null,null,"ED",null,null,null,null,null,null,null,"DA","DO",null,"DP"]
[null,null,"EDUCACIÓN INICIAL  EN FAMILIA COMUNITARIA ",null,null,null,null,null,null,null,null,null,null,null,null,null,null,null,null,null,"2° BIMESTRE"]
[{"$f":"UPPER( CARATULA!$C$21)","v":"MAESTRA (O):"},null,{"$f":"CARATULA!$E$21","v":0},null,null,null,null,null,null,null,null,null,{"$f":"UPPER(CARATULA!$C$23)","v":"AÑO DE ESCOLARIDAD:"},null,null,null,null,null,{"$f":"CARATULA!$E$23","v":0}]
["CAMPO DE SABER Y CONOCIMIENTO CIENCIA TECNOLOGIA Y PRODUCCIÓN"]
["INTRUMENTOS DE EVALUACIÓN"]
["ESTRATEGIAS DE EVALUACIÓN"]
["EVALUACIÓN",null,"CRITERIOS DE LAS DIMENSIONES"]
["Nº","DIMENSIONES","SER",null,null,null,"SABER",null,null,null,"HACER",null,null,null,"DECIDIR",null,null,null,"AUTOEVALUACIÓN (SER, SABER, HACER, DECIDIR)",null,"SÍNTESIS CUALITATIVA DEL BIMESTRE"]
[null,"PLANES DE CLASE (PDC)","PDC","PDC","PDC","PDC","PDC","PDC","PDC","PDC","PDC","PDC","PDC","PDC","PDC","PDC","PDC","PDC"]
[null,null,null,null,null,null,null,null,null,null,null,null,null,null,null,null,null,null,null,null,null,null,null,null,null,null,null,"DP","DO","DA","ED"]
[null,null,null,null,null,null,null,null,null,null,null,null,null,null,null,null,null,null,null,null,null,null,null,null,null,null,null,14,8,5,1]
[null,"CRITERIOS DE EVALUACIÓN",null,null,null,null,null,null,null,null,null,null,null,null,null,null,null,null,"ACTITUDES TRABAJOS, RESPONSABILIDADES"]
[]
[null,"APELLIDOS Y NOMBRES"]
[1,{"$f":"IF(FILIACION_ESTUDIANTE!D8=0,\"\",FILIACION_PPFF!B7)","v":""},null,null,null,null,null,null,null,null,null,null,null,null,null,null,null,null,null,null,null,null,null,"demuestra  algunas actitudes armonicas etre sfamilia Y  LE FALTAT",null,null,null,{"$f":"IF(C16=$AB$11,$AB$12,IF(C16=$AC$11,$AC$12,IF(C16=$AD$11,$AD$12,IF(C16=$AE$11,$AE$12))))","v":false},{"$f":"IF(D16=$AB$11,$AB$12,IF(D16=$AC$11,$AC$12,IF(D16=$AD$11,$AD$12,IF(D16=$AE$11,$AE$12))))","v":false},false,false,{"$f":"SUM(AB16:AE16)","v":0},{"$f":"IF(G16=$AB$11,$AB$12,IF(G16=$AC$11,$AC$12,IF(G16=$AD$11,$AD$12,IF(G16=$AE$11,$AE$12))))","v":false},{"$f":"IF(H16=$AB$11,$AB$12,IF(H16=$AC$11,$AC$12,IF(H16=$AD$11,$AD$12,IF(H16=$AE$11,$AE$12))))","v":false},false,false,{"$f":"SUM(AG16:AJ16)","v":0},{"$f":"IF(K16=$AB$11,$AB$12,IF(K16=$AC$11,$AC$12,IF(K16=$AD$11,$AD$12,IF(K16=$AE$11,$AE$12))))","v":false},{"$f":"IF(L16=$AB$11,$AB$12,IF(L16=$AC$11,$AC$12,IF(L16=$AD$11,$AD$12,IF(L16=$AE$11,$AE$12))))","v":false},{"$f":"IF(M16=$AB$11,$AB$12,IF(M16=$AC$11,$AC$12,IF(M16=$AD$11,$AD$12,IF(M16=$AE$11,$AE$12))))","v":false},{"$f":"IF(N16=$AB$11,$AB$12,IF(N16=$AC$11,$AC$12,IF(N16=$AD$11,$AD$12,IF(N16=$AE$11,$AE$12))))","v":false},{"$f":"SUM(AL16:AO16)","v":0},{"$f":"IF(O16=$AB$11,$AB$12,IF(O16=$AC$11,$AC$12,IF(O16=$AD$11,$AD$12,IF(O16=$AE$11,$AE$12))))","v":false},{"$f":"IF(P16=$AB$11,$AB$12,IF(P16=$AC$11,$AC$12,IF(P16=$AD$11,$AD$12,IF(P16=$AE$11,$AE$12))))","v":false},false,false,{"$f":"SUM(AQ16:AT16)","v":0},{"$f":"MAX(AF16,AK16,AP16,AU16)","v":0}]
[2,{"$f":"IF(FILIACION_ESTUDIANTE!D9=0,\"\",FILIACION_PPFF!B8)","v":""}]
[3,{"$f":"IF(FILIACION_ESTUDIANTE!D10=0,\"\",FILIACION_PPFF!B9)","v":""}]
[4,{"$f":"IF(FILIACION_ESTUDIANTE!D11=0,\"\",FILIACION_PPFF!B10)","v":""}]
[5,{"$f":"IF(FILIACION_ESTUDIANTE!D12=0,\"\",FILIACION_PPFF!B11)","v":""}]
[6,{"$f":"IF(FILIACION_ESTUDIANTE!D13=0,\"\",FILIACION_PPFF!B12)","v":""}]
[7,{"$f":"IF(FILIACION_ESTUDIANTE!D14=0,\"\",FILIACION_PPFF!B13)","v":""}]
[8,{"$f":"IF(FILIACION_ESTUDIANTE!D15=0,\"\",FILIACION_PPFF!B14)","v":""}]
[9,{"$f":"IF(FILIACION_ESTUDIANTE!D16=0,\"\",FILIACION_PPFF!B15)","v":""}]
[10,{"$f":"IF(FILIACION_ESTUDIANTE!D17=0,\"\",FILIACION_PPFF!B16)","v":""}]
[11,{"$f":"IF(FILIACION_ESTUDIANTE!D18=0,\"\",FILIACION_PPFF!B17)","v":""}]
[12,{"$f":"IF(FILIACION_ESTUDIANTE!D19=0,\"\",FILIACION_PPFF!B18)","v":""}]
[13,{"$f":"IF(FILIACION_ESTUDIANTE!D20=0,\"\",FILIACION_PPFF!B19)","v":""}]
[14,{"$f":"IF(FILIACION_ESTUDIANTE!D21=0,\"\",FILIACION_PPFF!B20)","v":""}]
[15,{"$f":"IF(FILIACION_ESTUDIANTE!D22=0,\"\",FILIACION_PPFF!B21)","v":""}]
[16,{"$f":"IF(FILIACION_ESTUDIANTE!D23=0,\"\",FILIACION_PPFF!B22)","v":""}]
[17,{"$f":"IF(FILIACION_ESTUDIANTE!D24=0,\"\",FILIACION_PPFF!B23)","v":""}]
[18,{"$f":"IF(FILIACION_ESTUDIANTE!D25=0,\"\",FILIACION_PPFF!B24)","v":""}]
[19,{"$f":"IF(FILIACION_ESTUDIANTE!D26=0,\"\",FILIACION_PPFF!B25)","v":""}]
[20,{"$f":"IF(FILIACION_ESTUDIANTE!D27=0,\"\",FILIACION_PPFF!B26)","v":""}]
[21,{"$f":"IF(FILIACION_ESTUDIANTE!D28=0,\"\",FILIACION_PPFF!B27)","v":""}]
[22,{"$f":"IF(FILIACION_ESTUDIANTE!D29=0,\"\",FILIACION_PPFF!B28)","v":""}]
[23,{"$f":"IF(FILIACION_ESTUDIANTE!D30=0,\"\",FILIACION_PPFF!B29)","v":""}]
[24,{"$f":"IF(FILIACION_ESTUDIANTE!D31=0,\"\",FILIACION_PPFF!B30)","v":""}]
[25,{"$f":"IF(FILIACION_ESTUDIANTE!D32=0,\"\",FILIACION_PPFF!B31)","v":""}]
[26,{"$f":"IF(FILIACION_ESTUDIANTE!D33=0,\"\",FILIACION_PPFF!B32)","v":""}]
[27,{"$f":"IF(FILIACION_ESTUDIANTE!D34=0,\"\",FILIACION_PPFF!B33)","v":""}]
[28,{"$f":"IF(FILIACION_ESTUDIANTE!D35=0,\"\",FILIACION_PPFF!B34)","v":""}]
[29,{"$f":"IF(FILIACION_ESTUDIANTE!D36=0,\"\",FILIACION_PPFF!B35)","v":""}]
[30,{"$f":"IF(FILIACION_ESTUDIANTE!D37=0,\"\",FILIACION_PPFF!B36)","v":""}]
[31,{"$f":"IF(FILIACION_ESTUDIANTE!D38=0,\"\",FILIACION_PPFF!B37)","v":""}]
[32,{"$f":"IF(FILIACION_ESTUDIANTE!D39=0,\"\",FILIACION_PPFF!B38)","v":""}]
[33,{"$f":"IF(FILIACION_ESTUDIANTE!D40=0,\"\",FILIACION_PPFF!B39)","v":""}]
[34,{"$f":"IF(FILIACION_ESTUDIANTE!D41=0,\"\",FILIACION_PPFF!B40)","v":""}]
[35,{"$f":"IF(FILIACION_ESTUDIANTE!D42=0,\"\",FILIACION_PPFF!B41)","v":""}]
[36,{"$f":"IF(FILIACION_ESTUDIANTE!D43=0,\"\",FILIACION_PPFF!B42)","v":""}]
[37,{"$f":"IF(FILIACION_ESTUDIANTE!D44=0,\"\",FILIACION_PPFF!B43)","v":""}]
[38,{"$f":"IF(FILIACION_ESTUDIANTE!D45=0,\"\",FILIACION_PPFF!B44)","v":""}]
[39,{"$f":"IF(FILIACION_ESTUDIANTE!D46=0,\"\",FILIACION_PPFF!B45)","v":""}]
[40,{"$f":"IF(FILIACION_ESTUDIANTE!D47=0,\"\",FILIACION_PPFF!B46)","v":""}]

{"sheet":"CIENCIA_TEC_3B","index":30,"n_rows":55,"n_cols":48,"rows_kept":55,"cut":false,"hidden":false,"merged":[[9,15,11,15],[9,16,11,16],[9,17,11,17],[8,18,10,19],[12,9,14,9],[12,10,14,10],[12,11,14,11],[12,12,14,12],[12,13,14,13],[12,18,14,19],[12,14,14,14],[12,15,14,15],[12,16,14,16],[12,17,14,17],[9,11,11,11],[9,12,11,12],[9,13,11,13],[12,1,13,1],[12,6,14,6],[12,7,14,7],[12,8,14,8],[12,2,14,2],[12,3,14,3],[12,4,14,4],[12,5,14,5],[6,0,6,1],[6,2,6,20],[7,0,7,1],[7,2,7,20],[9,14,11,14],[8,20,14,20],[9,1,11,1],[9,2,11,2],[9,3,11,3],[9,4,11,4],[9,5,11,5],[9,6,11,6],[9,7,11,7],[9,8,11,8],[9,9,11,9],[9,10,11,10],[1,1,2,1],[1,2,1,19],[1,27,8,31],[2,2,2,19],[3,0,3,1],[3,2,3,11],[3,12,3,17],[3,18,3,20],[4,0,4,20],[5,0,5,1],[8,0,14,0],[8,2,8,5],[8,6,8,9],[8,10,8,13],[8,14,8,17],[5,2,5,20],[15,18,15,19],[16,18,16,19],[17,18,17,19],[18,18,18,19],[19,18,19,19],[20,18,20,19],[21,18,21,19],[22,18,22,19],[23,18,23,19],[24,18,24,19],[25,18,25,19],[26,18,26,19],[27,18,27,19],[28,18,28,19],[29,18,29,19],[30,18,30,19],[31,18,31,19],[32,18,32,19],[33,18,33,19],[34,18,34,19],[35,18,35,19],[36,18,36,19],[37,18,37,19],[38,18,38,19],[39,18,39,19],[40,18,40,19],[41,18,41,19],[42,18,42,19],[43,18,43,19],[44,18,44,19],[45,18,45,19],[46,18,46,19],[47,18,47,19],[48,18,48,19],[49,18,49,19],[50,18,50,19],[51,18,51,19],[52,18,52,19],[53,18,53,19],[54,18,54,19]]}
[]
[null,null,"CUADRO DE VALORACIÓN",null,null,null,null,null,null,null,null,null,null,null,null,null,null,null,null,null,null,null,null,null,null,null,null,"REGISTRO DE VALORACION",null,null,null,null,"ED",null,null,null,null,null,null,null,"DA","DO",null,"DP"]
[null,null,"EDUCACIÓN INICIAL  EN FAMILIA COMUNITARIA ",null,null,null,null,null,null,null,null,null,null,null,null,null,null,null,null,null,"3er BIMESTRE"]
[{"$f":"UPPER( CARATULA!$C$21)","v":"MAESTRA (O):"},null,{"$f":"CARATULA!$E$21","v":0},null,null,null,null,null,null,null,null,null,{"$f":"UPPER(CARATULA!$C$23)","v":"AÑO DE ESCOLARIDAD:"},null,null,null,null,null,{"$f":"CARATULA!$E$23","v":0}]
["CAMPO DE SABER Y CONOCIMIENTO CIENCIA TECNOLOGIA Y PRODUCCIÓN"]
["INTRUMENTOS DE EVALUACIÓN"]
["ESTRATEGIAS DE EVALUACIÓN"]
["EVALUACIÓN",null,"CRITERIOS DE LAS DIMENSIONES"]
["Nº","DIMENSIONES","SER",null,null,null,"SABER",null,null,null,"HACER",null,null,null,"DECIDIR",null,null,null,"AUTOEVALUACIÓN (SER, SABER, HACER, DECIDIR)",null,"SÍNTESIS CUALITATIVA DEL BIMESTRE"]
[null,"PLANES DE CLASE (PDC)","PDC","PDC","PDC","PDC","PDC","PDC","PDC","PDC","PDC","PDC","PDC","PDC","PDC","PDC","PDC","PDC"]
[null,null,null,null,null,null,null,null,null,null,null,null,null,null,null,null,null,null,null,null,null,null,null,null,null,null,null,"DP","DO","DA","ED"]
[null,null,null,null,null,null,null,null,null,null,null,null,null,null,null,null,null,null,null,null,null,null,null,null,null,null,null,14,8,5,1]
[null,"CRITERIOS DE EVALUACIÓN",null,null,null,null,null,null,null,null,null,null,null,null,null,null,null,null,"ACTITUDES TRABAJOS, RESPONSABILIDADES"]
[]
[null,"APELLIDOS Y NOMBRES"]
[1,{"$f":"IF(FILIACION_ESTUDIANTE!D8=0,\"\",FILIACION_PPFF!B7)","v":""},null,null,null,null,null,null,null,null,null,null,null,null,null,null,null,null,null,null,null,null,null,"demuestra  algunas actitudes armonicas etre sfamilia Y  LE FALTAT",null,null,null,{"$f":"IF(C16=$AB$11,$AB$12,IF(C16=$AC$11,$AC$12,IF(C16=$AD$11,$AD$12,IF(C16=$AE$11,$AE$12))))","v":false},{"$f":"IF(D16=$AB$11,$AB$12,IF(D16=$AC$11,$AC$12,IF(D16=$AD$11,$AD$12,IF(D16=$AE$11,$AE$12))))","v":false},false,false,{"$f":"SUM(AB16:AE16)","v":0},{"$f":"IF(G16=$AB$11,$AB$12,IF(G16=$AC$11,$AC$12,IF(G16=$AD$11,$AD$12,IF(G16=$AE$11,$AE$12))))","v":false},{"$f":"IF(H16=$AB$11,$AB$12,IF(H16=$AC$11,$AC$12,IF(H16=$AD$11,$AD$12,IF(H16=$AE$11,$AE$12))))","v":false},false,false,{"$f":"SUM(AG16:AJ16)","v":0},{"$f":"IF(K16=$AB$11,$AB$12,IF(K16=$AC$11,$AC$12,IF(K16=$AD$11,$AD$12,IF(K16=$AE$11,$AE$12))))","v":false},{"$f":"IF(L16=$AB$11,$AB$12,IF(L16=$AC$11,$AC$12,IF(L16=$AD$11,$AD$12,IF(L16=$AE$11,$AE$12))))","v":false},{"$f":"IF(M16=$AB$11,$AB$12,IF(M16=$AC$11,$AC$12,IF(M16=$AD$11,$AD$12,IF(M16=$AE$11,$AE$12))))","v":false},{"$f":"IF(N16=$AB$11,$AB$12,IF(N16=$AC$11,$AC$12,IF(N16=$AD$11,$AD$12,IF(N16=$AE$11,$AE$12))))","v":false},{"$f":"SUM(AL16:AO16)","v":0},{"$f":"IF(O16=$AB$11,$AB$12,IF(O16=$AC$11,$AC$12,IF(O16=$AD$11,$AD$12,IF(O16=$AE$11,$AE$12))))","v":false},{"$f":"IF(P16=$AB$11,$AB$12,IF(P16=$AC$11,$AC$12,IF(P16=$AD$11,$AD$12,IF(P16=$AE$11,$AE$12))))","v":false},false,false,{"$f":"SUM(AQ16:AT16)","v":0},{"$f":"MAX(AF16,AK16,AP16,AU16)","v":0}]
[2,{"$f":"IF(FILIACION_ESTUDIANTE!D9=0,\"\",FILIACION_PPFF!B8)","v":""}]
[3,{"$f":"IF(FILIACION_ESTUDIANTE!D10=0,\"\",FILIACION_PPFF!B9)","v":""}]
[4,{"$f":"IF(FILIACION_ESTUDIANTE!D11=0,\"\",FILIACION_PPFF!B10)","v":""}]
[5,{"$f":"IF(FILIACION_ESTUDIANTE!D12=0,\"\",FILIACION_PPFF!B11)","v":""}]
[6,{"$f":"IF(FILIACION_ESTUDIANTE!D13=0,\"\",FILIACION_PPFF!B12)","v":""}]
[7,{"$f":"IF(FILIACION_ESTUDIANTE!D14=0,\"\",FILIACION_PPFF!B13)","v":""}]
[8,{"$f":"IF(FILIACION_ESTUDIANTE!D15=0,\"\",FILIACION_PPFF!B14)","v":""}]
[9,{"$f":"IF(FILIACION_ESTUDIANTE!D16=0,\"\",FILIACION_PPFF!B15)","v":""}]
[10,{"$f":"IF(FILIACION_ESTUDIANTE!D17=0,\"\",FILIACION_PPFF!B16)","v":""}]
[11,{"$f":"IF(FILIACION_ESTUDIANTE!D18=0,\"\",FILIACION_PPFF!B17)","v":""}]
[12,{"$f":"IF(FILIACION_ESTUDIANTE!D19=0,\"\",FILIACION_PPFF!B18)","v":""}]
[13,{"$f":"IF(FILIACION_ESTUDIANTE!D20=0,\"\",FILIACION_PPFF!B19)","v":""}]
[14,{"$f":"IF(FILIACION_ESTUDIANTE!D21=0,\"\",FILIACION_PPFF!B20)","v":""}]
[15,{"$f":"IF(FILIACION_ESTUDIANTE!D22=0,\"\",FILIACION_PPFF!B21)","v":""}]
[16,{"$f":"IF(FILIACION_ESTUDIANTE!D23=0,\"\",FILIACION_PPFF!B22)","v":""}]
[17,{"$f":"IF(FILIACION_ESTUDIANTE!D24=0,\"\",FILIACION_PPFF!B23)","v":""}]
[18,{"$f":"IF(FILIACION_ESTUDIANTE!D25=0,\"\",FILIACION_PPFF!B24)","v":""}]
[19,{"$f":"IF(FILIACION_ESTUDIANTE!D26=0,\"\",FILIACION_PPFF!B25)","v":""}]
[20,{"$f":"IF(FILIACION_ESTUDIANTE!D27=0,\"\",FILIACION_PPFF!B26)","v":""}]
[21,{"$f":"IF(FILIACION_ESTUDIANTE!D28=0,\"\",FILIACION_PPFF!B27)","v":""}]
[22,{"$f":"IF(FILIACION_ESTUDIANTE!D29=0,\"\",FILIACION_PPFF!B28)","v":""}]
[23,{"$f":"IF(FILIACION_ESTUDIANTE!D30=0,\"\",FILIACION_PPFF!B29)","v":""}]
[24,{"$f":"IF(FILIACION_ESTUDIANTE!D31=0,\"\",FILIACION_PPFF!B30)","v":""}]
[25,{"$f":"IF(FILIACION_ESTUDIANTE!D32=0,\"\",FILIACION_PPFF!B31)","v":""}]
[26,{"$f":"IF(FILIACION_ESTUDIANTE!D33=0,\"\",FILIACION_PPFF!B32)","v":""}]
[27,{"$f":"IF(FILIACION_ESTUDIANTE!D34=0,\"\",FILIACION_PPFF!B33)","v":""}]
[28,{"$f":"IF(FILIACION_ESTUDIANTE!D35=0,\"\",FILIACION_PPFF!B34)","v":""}]
[29,{"$f":"IF(FILIACION_ESTUDIANTE!D36=0,\"\",FILIACION_PPFF!B35)","v":""}]
[30,{"$f":"IF(FILIACION_ESTUDIANTE!D37=0,\"\",FILIACION_PPFF!B36)","v":""}]
[31,{"$f":"IF(FILIACION_ESTUDIANTE!D38=0,\"\",FILIACION_PPFF!B37)","v":""}]
[32,{"$f":"IF(FILIACION_ESTUDIANTE!D39=0,\"\",FILIACION_PPFF!B38)","v":""}]
[33,{"$f":"IF(FILIACION_ESTUDIANTE!D40=0,\"\",FILIACION_PPFF!B39)","v":""}]
[34,{"$f":"IF(FILIACION_ESTUDIANTE!D41=0,\"\",FILIACION_PPFF!B40)","v":""}]
[35,{"$f":"IF(FILIACION_ESTUDIANTE!D42=0,\"\",FILIACION_PPFF!B41)","v":""}]
[36,{"$f":"IF(FILIACION_ESTUDIANTE!D43=0,\"\",FILIACION_PPFF!B42)","v":""}]
[37,{"$f":"IF(FILIACION_ESTUDIANTE!D44=0,\"\",FILIACION_PPFF!B43)","v":""}]
[38,{"$f":"IF(FILIACION_ESTUDIANTE!D45=0,\"\",FILIACION_PPFF!B44)","v":""}]
[39,{"$f":"IF(FILIACION_ESTUDIANTE!D46=0,\"\",FILIACION_PPFF!B45)","v":""}]
[40,{"$f":"IF(FILIACION_ESTUDIANTE!D47=0,\"\",FILIACION_PPFF!B46)","v":""}]

{"sheet":"CIENCIA_TEC_4B","index":31,"n_rows":55,"n_cols":48,"rows_kept":55,"cut":false,"hidden":false,"merged":[[9,15,11,15],[9,16,11,16],[9,17,11,17],[8,18,10,19],[12,9,14,9],[12,10,14,10],[12,11,14,11],[12,12,14,12],[12,13,14,13],[12,18,14,19],[12,14,14,14],[12,15,14,15],[12,16,14,16],[12,17,14,17],[9,11,11,11],[9,12,11,12],[9,13,11,13],[12,1,13,1],[12,6,14,6],[12,7,14,7],[12,8,14,8],[12,2,14,2],[12,3,14,3],[12,4,14,4],[12,5,14,5],[6,0,6,1],[6,2,6,20],[7,0,7,1],[7,2,7,20],[9,14,11,14],[8,20,14,20],[9,1,11,1],[9,2,11,2],[9,3,11,3],[9,4,11,4],[9,5,11,5],[9,6,11,6],[9,7,11,7],[9,8,11,8],[9,9,11,9],[9,10,11,10],[1,1,2,1],[1,2,1,19],[1,27,8,31],[2,2,2,19],[3,0,3,1],[3,2,3,11],[3,12,3,17],[3,18,3,20],[4,0,4,20],[5,0,5,1],[8,0,14,0],[8,2,8,5],[8,6,8,9],[8,10,8,13],[8,14,8,17],[5,2,5,20],[15,18,15,19],[16,18,16,19],[17,18,17,19],[18,18,18,19],[19,18,19,19],[20,18,20,19],[21,18,21,19],[22,18,22,19],[23,18,23,19],[24,18,24,19],[25,18,25,19],[26,18,26,19],[27,18,27,19],[28,18,28,19],[29,18,29,19],[30,18,30,19],[31,18,31,19],[32,18,32,19],[33,18,33,19],[34,18,34,19],[35,18,35,19],[36,18,36,19],[37,18,37,19],[38,18,38,19],[39,18,39,19],[40,18,40,19],[41,18,41,19],[42,18,42,19],[43,18,43,19],[44,18,44,19],[45,18,45,19],[46,18,46,19],[47,18,47,19],[48,18,48,19],[49,18,49,19],[50,18,50,19],[51,18,51,19],[52,18,52,19],[53,18,53,19],[54,18,54,19]]}
[]
[null,null,"CUADRO DE VALORACIÓN",null,null,null,null,null,null,null,null,null,null,null,null,null,null,null,null,null,null,null,null,null,null,null,null,"REGISTRO DE VALORACION",null,null,null,null,"ED",null,null,null,null,null,null,null,"DA","DO",null,"DP"]
[null,null,"EDUCACIÓN INICIAL  EN FAMILIA COMUNITARIA ",null,null,null,null,null,null,null,null,null,null,null,null,null,null,null,null,null,"4° BIMESTRE"]
[{"$f":"UPPER( CARATULA!$C$21)","v":"MAESTRA (O):"},null,{"$f":"CARATULA!$E$21","v":0},null,null,null,null,null,null,null,null,null,{"$f":"UPPER(CARATULA!$C$23)","v":"AÑO DE ESCOLARIDAD:"},null,null,null,null,null,{"$f":"CARATULA!$E$23","v":0}]
["CAMPO DE SABER Y CONOCIMIENTO CIENCIA TECNOLOGIA Y PRODUCCIÓN"]
["INTRUMENTOS DE EVALUACIÓN"]
["ESTRATEGIAS DE EVALUACIÓN"]
["EVALUACIÓN",null,"CRITERIOS DE LAS DIMENSIONES"]
["Nº","DIMENSIONES","SER",null,null,null,"SABER",null,null,null,"HACER",null,null,null,"DECIDIR",null,null,null,"AUTOEVALUACIÓN (SER, SABER, HACER, DECIDIR)",null,"SÍNTESIS CUALITATIVA DEL BIMESTRE"]
[null,"PLANES DE CLASE (PDC)","PDC","PDC","PDC","PDC","PDC","PDC","PDC","PDC","PDC","PDC","PDC","PDC","PDC","PDC","PDC","PDC"]
[null,null,null,null,null,null,null,null,null,null,null,null,null,null,null,null,null,null,null,null,null,null,null,null,null,null,null,"DP","DO","DA","ED"]
[null,null,null,null,null,null,null,null,null,null,null,null,null,null,null,null,null,null,null,null,null,null,null,null,null,null,null,14,8,5,1]
[null,"CRITERIOS DE EVALUACIÓN",null,null,null,null,null,null,null,null,null,null,null,null,null,null,null,null,"ACTITUDES TRABAJOS, RESPONSABILIDADES"]
[]
[null,"APELLIDOS Y NOMBRES"]
[1,{"$f":"IF(FILIACION_ESTUDIANTE!D8=0,\"\",FILIACION_PPFF!B7)","v":""},null,null,null,null,null,null,null,null,null,null,null,null,null,null,null,null,null,null,null,null,null,"demuestra  algunas actitudes armonicas etre sfamilia Y  LE FALTAT",null,null,null,{"$f":"IF(C16=$AB$11,$AB$12,IF(C16=$AC$11,$AC$12,IF(C16=$AD$11,$AD$12,IF(C16=$AE$11,$AE$12))))","v":false},{"$f":"IF(D16=$AB$11,$AB$12,IF(D16=$AC$11,$AC$12,IF(D16=$AD$11,$AD$12,IF(D16=$AE$11,$AE$12))))","v":false},false,false,{"$f":"SUM(AB16:AE16)","v":0},{"$f":"IF(G16=$AB$11,$AB$12,IF(G16=$AC$11,$AC$12,IF(G16=$AD$11,$AD$12,IF(G16=$AE$11,$AE$12))))","v":false},{"$f":"IF(H16=$AB$11,$AB$12,IF(H16=$AC$11,$AC$12,IF(H16=$AD$11,$AD$12,IF(H16=$AE$11,$AE$12))))","v":false},false,false,{"$f":"SUM(AG16:AJ16)","v":0},{"$f":"IF(K16=$AB$11,$AB$12,IF(K16=$AC$11,$AC$12,IF(K16=$AD$11,$AD$12,IF(K16=$AE$11,$AE$12))))","v":false},{"$f":"IF(L16=$AB$11,$AB$12,IF(L16=$AC$11,$AC$12,IF(L16=$AD$11,$AD$12,IF(L16=$AE$11,$AE$12))))","v":false},{"$f":"IF(M16=$AB$11,$AB$12,IF(M16=$AC$11,$AC$12,IF(M16=$AD$11,$AD$12,IF(M16=$AE$11,$AE$12))))","v":false},{"$f":"IF(N16=$AB$11,$AB$12,IF(N16=$AC$11,$AC$12,IF(N16=$AD$11,$AD$12,IF(N16=$AE$11,$AE$12))))","v":false},{"$f":"SUM(AL16:AO16)","v":0},{"$f":"IF(O16=$AB$11,$AB$12,IF(O16=$AC$11,$AC$12,IF(O16=$AD$11,$AD$12,IF(O16=$AE$11,$AE$12))))","v":false},{"$f":"IF(P16=$AB$11,$AB$12,IF(P16=$AC$11,$AC$12,IF(P16=$AD$11,$AD$12,IF(P16=$AE$11,$AE$12))))","v":false},false,false,{"$f":"SUM(AQ16:AT16)","v":0},{"$f":"MAX(AF16,AK16,AP16,AU16)","v":0}]
[2,{"$f":"IF(FILIACION_ESTUDIANTE!D9=0,\"\",FILIACION_PPFF!B8)","v":""}]
[3,{"$f":"IF(FILIACION_ESTUDIANTE!D10=0,\"\",FILIACION_PPFF!B9)","v":""}]
[4,{"$f":"IF(FILIACION_ESTUDIANTE!D11=0,\"\",FILIACION_PPFF!B10)","v":""}]
[5,{"$f":"IF(FILIACION_ESTUDIANTE!D12=0,\"\",FILIACION_PPFF!B11)","v":""}]
[6,{"$f":"IF(FILIACION_ESTUDIANTE!D13=0,\"\",FILIACION_PPFF!B12)","v":""}]
[7,{"$f":"IF(FILIACION_ESTUDIANTE!D14=0,\"\",FILIACION_PPFF!B13)","v":""}]
[8,{"$f":"IF(FILIACION_ESTUDIANTE!D15=0,\"\",FILIACION_PPFF!B14)","v":""}]
[9,{"$f":"IF(FILIACION_ESTUDIANTE!D16=0,\"\",FILIACION_PPFF!B15)","v":""}]
[10,{"$f":"IF(FILIACION_ESTUDIANTE!D17=0,\"\",FILIACION_PPFF!B16)","v":""}]
[11,{"$f":"IF(FILIACION_ESTUDIANTE!D18=0,\"\",FILIACION_PPFF!B17)","v":""}]
[12,{"$f":"IF(FILIACION_ESTUDIANTE!D19=0,\"\",FILIACION_PPFF!B18)","v":""}]
[13,{"$f":"IF(FILIACION_ESTUDIANTE!D20=0,\"\",FILIACION_PPFF!B19)","v":""}]
[14,{"$f":"IF(FILIACION_ESTUDIANTE!D21=0,\"\",FILIACION_PPFF!B20)","v":""}]
[15,{"$f":"IF(FILIACION_ESTUDIANTE!D22=0,\"\",FILIACION_PPFF!B21)","v":""}]
[16,{"$f":"IF(FILIACION_ESTUDIANTE!D23=0,\"\",FILIACION_PPFF!B22)","v":""}]
[17,{"$f":"IF(FILIACION_ESTUDIANTE!D24=0,\"\",FILIACION_PPFF!B23)","v":""}]
[18,{"$f":"IF(FILIACION_ESTUDIANTE!D25=0,\"\",FILIACION_PPFF!B24)","v":""}]
[19,{"$f":"IF(FILIACION_ESTUDIANTE!D26=0,\"\",FILIACION_PPFF!B25)","v":""}]
[20,{"$f":"IF(FILIACION_ESTUDIANTE!D27=0,\"\",FILIACION_PPFF!B26)","v":""}]
[21,{"$f":"IF(FILIACION_ESTUDIANTE!D28=0,\"\",FILIACION_PPFF!B27)","v":""}]
[22,{"$f":"IF(FILIACION_ESTUDIANTE!D29=0,\"\",FILIACION_PPFF!B28)","v":""}]
[23,{"$f":"IF(FILIACION_ESTUDIANTE!D30=0,\"\",FILIACION_PPFF!B29)","v":""}]
[24,{"$f":"IF(FILIACION_ESTUDIANTE!D31=0,\"\",FILIACION_PPFF!B30)","v":""}]
[25,{"$f":"IF(FILIACION_ESTUDIANTE!D32=0,\"\",FILIACION_PPFF!B31)","v":""}]
[26,{"$f":"IF(FILIACION_ESTUDIANTE!D33=0,\"\",FILIACION_PPFF!B32)","v":""}]
[27,{"$f":"IF(FILIACION_ESTUDIANTE!D34=0,\"\",FILIACION_PPFF!B33)","v":""}]
[28,{"$f":"IF(FILIACION_ESTUDIANTE!D35=0,\"\",FILIACION_PPFF!B34)","v":""}]
[29,{"$f":"IF(FILIACION_ESTUDIANTE!D36=0,\"\",FILIACION_PPFF!B35)","v":""}]
[30,{"$f":"IF(FILIACION_ESTUDIANTE!D37=0,\"\",FILIACION_PPFF!B36)","v":""}]
[31,{"$f":"IF(FILIACION_ESTUDIANTE!D38=0,\"\",FILIACION_PPFF!B37)","v":""}]
[32,{"$f":"IF(FILIACION_ESTUDIANTE!D39=0,\"\",FILIACION_PPFF!B38)","v":""}]
[33,{"$f":"IF(FILIACION_ESTUDIANTE!D40=0,\"\",FILIACION_PPFF!B39)","v":""}]
[34,{"$f":"IF(FILIACION_ESTUDIANTE!D41=0,\"\",FILIACION_PPFF!B40)","v":""}]
[35,{"$f":"IF(FILIACION_ESTUDIANTE!D42=0,\"\",FILIACION_PPFF!B41)","v":""}]
[36,{"$f":"IF(FILIACION_ESTUDIANTE!D43=0,\"\",FILIACION_PPFF!B42)","v":""}]
[37,{"$f":"IF(FILIACION_ESTUDIANTE!D44=0,\"\",FILIACION_PPFF!B43)","v":""}]
[38,{"$f":"IF(FILIACION_ESTUDIANTE!D45=0,\"\",FILIACION_PPFF!B44)","v":""}]
[39,{"$f":"IF(FILIACION_ESTUDIANTE!D46=0,\"\",FILIACION_PPFF!B45)","v":""}]
[40,{"$f":"IF(FILIACION_ESTUDIANTE!D47=0,\"\",FILIACION_PPFF!B46)","v":""}]

{"sheet":"VIDA_TIERRA_1B","index":32,"n_rows":55,"n_cols":48,"rows_kept":55,"cut":false,"hidden":false,"merged":[[9,15,11,15],[9,16,11,16],[9,17,11,17],[8,18,10,19],[12,9,14,9],[12,10,14,10],[12,11,14,11],[12,12,14,12],[12,13,14,13],[12,14,14,14],[12,15,14,15],[12,16,14,16],[12,17,14,17],[12,18,14,19],[9,11,11,11],[9,12,11,12],[9,13,11,13],[12,1,13,1],[12,6,14,6],[12,7,14,7],[12,8,14,8],[12,2,14,2],[12,3,14,3],[12,4,14,4],[12,5,14,5],[6,0,6,1],[6,2,6,20],[7,0,7,1],[7,2,7,20],[9,14,11,14],[8,20,14,20],[9,1,11,1],[9,2,11,2],[9,3,11,3],[9,4,11,4],[9,5,11,5],[9,6,11,6],[9,7,11,7],[9,8,11,8],[9,9,11,9],[9,10,11,10],[1,1,2,1],[1,2,1,19],[1,27,8,31],[2,2,2,19],[3,0,3,1],[3,2,3,11],[3,12,3,17],[3,18,3,20],[4,0,4,20],[5,0,5,1],[8,0,14,0],[8,2,8,5],[8,6,8,9],[8,10,8,13],[8,14,8,17],[5,2,5,20],[15,18,15,19],[16,18,16,19],[17,18,17,19],[18,18,18,19],[19,18,19,19],[20,18,20,19],[21,18,21,19],[22,18,22,19],[23,18,23,19],[24,18,24,19],[25,18,25,19],[26,18,26,19],[27,18,27,19],[28,18,28,19],[29,18,29,19],[30,18,30,19],[31,18,31,19],[32,18,32,19],[33,18,33,19],[34,18,34,19],[35,18,35,19],[36,18,36,19],[37,18,37,19],[38,18,38,19],[39,18,39,19],[40,18,40,19],[41,18,41,19],[42,18,42,19],[43,18,43,19],[44,18,44,19],[45,18,45,19],[46,18,46,19],[47,18,47,19],[48,18,48,19],[49,18,49,19],[50,18,50,19],[51,18,51,19],[52,18,52,19],[53,18,53,19],[54,18,54,19]]}
[]
[null,null,"CUADRO DE VALORACIÓN",null,null,null,null,null,null,null,null,null,null,null,null,null,null,null,null,null,null,null,null,null,null,null,null,"REGISTRO DE VALORACION",null,null,null,null,"ED",null,null,null,null,null,null,null,"DA","DO",null,"DP"]
[null,null,"EDUCACIÓN INICIAL  EN FAMILIA COMUNITARIA ",null,null,null,null,null,null,null,null,null,null,null,null,null,null,null,null,null,"1er BIMESTRE"]
[{"$f":"UPPER( CARATULA!$C$21)","v":"MAESTRA (O):"},null,{"$f":"CARATULA!$E$21","v":0},null,null,null,null,null,null,null,null,null,{"$f":"UPPER(CARATULA!$C$23)","v":"AÑO DE ESCOLARIDAD:"},null,null,null,null,null,{"$f":"CARATULA!$E$23","v":0}]
["CAMPO DE SABER Y CONOCIMIENTO VIDA TIERRA TERRITORIO"]
["INTRUMENTOS DE EVALUACIOÓN",null,"A TRAVES DE LA OBSEVACION, PARTICIPACIÓN GRUPAL, PRUEBAS OBJETIVAS"]
["ESTRATEGIAS DE EVALUACIÓN",null,"CON RONDAS, CANCIONES, PARTICIPACIÓN GRUPAL TRABAJOS EN EL ARCHIVADOR, CUADERNILLOS "]
["EVALUACIÓN",null,"CRITERIOS DE LAS DIMENSIONES"]
["Nº","DIMENSIONES","SER",null,null,null,"SABER",null,null,null,"HACER",null,null,null,"DECIDIR",null,null,null,"AUTOEVALUACIÓN (SER, SABER, HACER, DECIDIR)",null,"SÍNTESIS CUALITATIVA DEL BIMESTRE"]
[null,"PLANES DE CLASE (PDC)","PDC","PDC","PDC","PDC","PDC","PDC","PDC","PDC","PDC","PDC","PDC","PDC","PDC","PDC","PDC","PDC"]
[null,null,null,null,null,null,null,null,null,null,null,null,null,null,null,null,null,null,null,null,null,null,null,null,null,null,null,"DP","DO","DA","ED"]
[null,null,null,null,null,null,null,null,null,null,null,null,null,null,null,null,null,null,null,null,null,null,null,null,null,null,null,14,8,5,1]
[null,"CRITERIOS DE EVALUACIÓN",null,null,null,null,null,null,null,null,null,null,null,null,null,null,null,null,"ACTITUDES TRABAJOS, RESPONSABILIDADES"]
[]
[null,"APELLIDOS Y NOMBRES"]
[1,{"$f":"IF(FILIACION_ESTUDIANTE!D8=0,\"\",FILIACION_PPFF!B7)","v":""},null,null,null,null,null,null,null,null,null,null,null,null,null,null,null,null,null,null,null,null,null,"demuestra  algunas actitudes armonicas etre sfamilia Y  LE FALTAT",null,null,null,{"$f":"IF(C16=$AB$11,$AB$12,IF(C16=$AC$11,$AC$12,IF(C16=$AD$11,$AD$12,IF(C16=$AE$11,$AE$12))))","v":false},{"$f":"IF(D16=$AB$11,$AB$12,IF(D16=$AC$11,$AC$12,IF(D16=$AD$11,$AD$12,IF(D16=$AE$11,$AE$12))))","v":false},false,false,{"$f":"SUM(AB16:AE16)","v":0},{"$f":"IF(G16=$AB$11,$AB$12,IF(G16=$AC$11,$AC$12,IF(G16=$AD$11,$AD$12,IF(G16=$AE$11,$AE$12))))","v":false},{"$f":"IF(H16=$AB$11,$AB$12,IF(H16=$AC$11,$AC$12,IF(H16=$AD$11,$AD$12,IF(H16=$AE$11,$AE$12))))","v":false},false,false,{"$f":"SUM(AG16:AJ16)","v":0},{"$f":"IF(K16=$AB$11,$AB$12,IF(K16=$AC$11,$AC$12,IF(K16=$AD$11,$AD$12,IF(K16=$AE$11,$AE$12))))","v":false},{"$f":"IF(L16=$AB$11,$AB$12,IF(L16=$AC$11,$AC$12,IF(L16=$AD$11,$AD$12,IF(L16=$AE$11,$AE$12))))","v":false},{"$f":"IF(M16=$AB$11,$AB$12,IF(M16=$AC$11,$AC$12,IF(M16=$AD$11,$AD$12,IF(M16=$AE$11,$AE$12))))","v":false},{"$f":"IF(N16=$AB$11,$AB$12,IF(N16=$AC$11,$AC$12,IF(N16=$AD$11,$AD$12,IF(N16=$AE$11,$AE$12))))","v":false},{"$f":"SUM(AL16:AO16)","v":0},{"$f":"IF(O16=$AB$11,$AB$12,IF(O16=$AC$11,$AC$12,IF(O16=$AD$11,$AD$12,IF(O16=$AE$11,$AE$12))))","v":false},{"$f":"IF(P16=$AB$11,$AB$12,IF(P16=$AC$11,$AC$12,IF(P16=$AD$11,$AD$12,IF(P16=$AE$11,$AE$12))))","v":false},false,false,{"$f":"SUM(AQ16:AT16)","v":0},{"$f":"MAX(AF16,AK16,AP16,AU16)","v":0}]
[2,{"$f":"IF(FILIACION_ESTUDIANTE!D9=0,\"\",FILIACION_PPFF!B8)","v":""}]
[3,{"$f":"IF(FILIACION_ESTUDIANTE!D10=0,\"\",FILIACION_PPFF!B9)","v":""}]
[4,{"$f":"IF(FILIACION_ESTUDIANTE!D11=0,\"\",FILIACION_PPFF!B10)","v":""}]
[5,{"$f":"IF(FILIACION_ESTUDIANTE!D12=0,\"\",FILIACION_PPFF!B11)","v":""}]
[6,{"$f":"IF(FILIACION_ESTUDIANTE!D13=0,\"\",FILIACION_PPFF!B12)","v":""}]
[7,{"$f":"IF(FILIACION_ESTUDIANTE!D14=0,\"\",FILIACION_PPFF!B13)","v":""}]
[8,{"$f":"IF(FILIACION_ESTUDIANTE!D15=0,\"\",FILIACION_PPFF!B14)","v":""}]
[9,{"$f":"IF(FILIACION_ESTUDIANTE!D16=0,\"\",FILIACION_PPFF!B15)","v":""}]
[10,{"$f":"IF(FILIACION_ESTUDIANTE!D17=0,\"\",FILIACION_PPFF!B16)","v":""}]
[11,{"$f":"IF(FILIACION_ESTUDIANTE!D18=0,\"\",FILIACION_PPFF!B17)","v":""}]
[12,{"$f":"IF(FILIACION_ESTUDIANTE!D19=0,\"\",FILIACION_PPFF!B18)","v":""}]
[13,{"$f":"IF(FILIACION_ESTUDIANTE!D20=0,\"\",FILIACION_PPFF!B19)","v":""}]
[14,{"$f":"IF(FILIACION_ESTUDIANTE!D21=0,\"\",FILIACION_PPFF!B20)","v":""}]
[15,{"$f":"IF(FILIACION_ESTUDIANTE!D22=0,\"\",FILIACION_PPFF!B21)","v":""}]
[16,{"$f":"IF(FILIACION_ESTUDIANTE!D23=0,\"\",FILIACION_PPFF!B22)","v":""}]
[17,{"$f":"IF(FILIACION_ESTUDIANTE!D24=0,\"\",FILIACION_PPFF!B23)","v":""}]
[18,{"$f":"IF(FILIACION_ESTUDIANTE!D25=0,\"\",FILIACION_PPFF!B24)","v":""}]
[19,{"$f":"IF(FILIACION_ESTUDIANTE!D26=0,\"\",FILIACION_PPFF!B25)","v":""}]
[20,{"$f":"IF(FILIACION_ESTUDIANTE!D27=0,\"\",FILIACION_PPFF!B26)","v":""}]
[21,{"$f":"IF(FILIACION_ESTUDIANTE!D28=0,\"\",FILIACION_PPFF!B27)","v":""}]
[22,{"$f":"IF(FILIACION_ESTUDIANTE!D29=0,\"\",FILIACION_PPFF!B28)","v":""}]
[23,{"$f":"IF(FILIACION_ESTUDIANTE!D30=0,\"\",FILIACION_PPFF!B29)","v":""}]
[24,{"$f":"IF(FILIACION_ESTUDIANTE!D31=0,\"\",FILIACION_PPFF!B30)","v":""}]
[25,{"$f":"IF(FILIACION_ESTUDIANTE!D32=0,\"\",FILIACION_PPFF!B31)","v":""}]
[26,{"$f":"IF(FILIACION_ESTUDIANTE!D33=0,\"\",FILIACION_PPFF!B32)","v":""}]
[27,{"$f":"IF(FILIACION_ESTUDIANTE!D34=0,\"\",FILIACION_PPFF!B33)","v":""}]
[28,{"$f":"IF(FILIACION_ESTUDIANTE!D35=0,\"\",FILIACION_PPFF!B34)","v":""}]
[29,{"$f":"IF(FILIACION_ESTUDIANTE!D36=0,\"\",FILIACION_PPFF!B35)","v":""}]
[30,{"$f":"IF(FILIACION_ESTUDIANTE!D37=0,\"\",FILIACION_PPFF!B36)","v":""}]
[31,{"$f":"IF(FILIACION_ESTUDIANTE!D38=0,\"\",FILIACION_PPFF!B37)","v":""}]
[32,{"$f":"IF(FILIACION_ESTUDIANTE!D39=0,\"\",FILIACION_PPFF!B38)","v":""}]
[33,{"$f":"IF(FILIACION_ESTUDIANTE!D40=0,\"\",FILIACION_PPFF!B39)","v":""}]
[34,{"$f":"IF(FILIACION_ESTUDIANTE!D41=0,\"\",FILIACION_PPFF!B40)","v":""}]
[35,{"$f":"IF(FILIACION_ESTUDIANTE!D42=0,\"\",FILIACION_PPFF!B41)","v":""}]
[36,{"$f":"IF(FILIACION_ESTUDIANTE!D43=0,\"\",FILIACION_PPFF!B42)","v":""}]
[37,{"$f":"IF(FILIACION_ESTUDIANTE!D44=0,\"\",FILIACION_PPFF!B43)","v":""}]
[38,{"$f":"IF(FILIACION_ESTUDIANTE!D45=0,\"\",FILIACION_PPFF!B44)","v":""}]
[39,{"$f":"IF(FILIACION_ESTUDIANTE!D46=0,\"\",FILIACION_PPFF!B45)","v":""}]
[40,{"$f":"IF(FILIACION_ESTUDIANTE!D47=0,\"\",FILIACION_PPFF!B46)","v":""}]

{"sheet":"VIDA_TIERRA_2B","index":33,"n_rows":55,"n_cols":48,"rows_kept":55,"cut":false,"hidden":false,"merged":[[9,15,11,15],[9,16,11,16],[9,17,11,17],[8,18,10,19],[12,9,14,9],[12,10,14,10],[12,11,14,11],[12,12,14,12],[12,13,14,13],[12,14,14,14],[12,15,14,15],[12,16,14,16],[12,17,14,17],[12,18,14,19],[9,11,11,11],[9,12,11,12],[9,13,11,13],[12,1,13,1],[12,6,14,6],[12,7,14,7],[12,8,14,8],[12,2,14,2],[12,3,14,3],[12,4,14,4],[12,5,14,5],[6,0,6,1],[6,2,6,20],[7,0,7,1],[7,2,7,20],[9,14,11,14],[8,20,14,20],[9,1,11,1],[9,2,11,2],[9,3,11,3],[9,4,11,4],[9,5,11,5],[9,6,11,6],[9,7,11,7],[9,8,11,8],[9,9,11,9],[9,10,11,10],[1,1,2,1],[1,2,1,19],[1,27,8,31],[2,2,2,19],[3,0,3,1],[3,2,3,11],[3,12,3,17],[3,18,3,20],[4,0,4,20],[5,0,5,1],[8,0,14,0],[8,2,8,5],[8,6,8,9],[8,10,8,13],[8,14,8,17],[5,2,5,20],[15,18,15,19],[16,18,16,19],[17,18,17,19],[18,18,18,19],[19,18,19,19],[20,18,20,19],[21,18,21,19],[22,18,22,19],[23,18,23,19],[24,18,24,19],[25,18,25,19],[26,18,26,19],[27,18,27,19],[28,18,28,19],[29,18,29,19],[30,18,30,19],[31,18,31,19],[32,18,32,19],[33,18,33,19],[34,18,34,19],[35,18,35,19],[36,18,36,19],[37,18,37,19],[38,18,38,19],[39,18,39,19],[40,18,40,19],[41,18,41,19],[42,18,42,19],[43,18,43,19],[44,18,44,19],[45,18,45,19],[46,18,46,19],[47,18,47,19],[48,18,48,19],[49,18,49,19],[50,18,50,19],[51,18,51,19],[52,18,52,19],[53,18,53,19],[54,18,54,19]]}
[]
[null,null,"CUADRO DE VALORACIÓN",null,null,null,null,null,null,null,null,null,null,null,null,null,null,null,null,null,null,null,null,null,null,null,null,"REGISTRO DE VALORACION",null,null,null,null,"ED",null,null,null,null,null,null,null,"DA","DO",null,"DP"]
[null,null,"EDUCACIÓN INICIAL  EN FAMILIA COMUNITARIA ",null,null,null,null,null,null,null,null,null,null,null,null,null,null,null,null,null,"2° BIMESTRE"]
[{"$f":"UPPER( CARATULA!$C$21)","v":"MAESTRA (O):"},null,{"$f":"CARATULA!$E$21","v":0},null,null,null,null,null,null,null,null,null,{"$f":"UPPER(CARATULA!$C$23)","v":"AÑO DE ESCOLARIDAD:"},null,null,null,null,null,{"$f":"CARATULA!$E$23","v":0}]
["CAMPO DE SABER Y CONOCIMIENTO VIDA TIERRA TERRITORIO"]
["INTRUMENTOS DE EVALUACIÓN"]
["ESTRATEGIAS DE EVALUACIÓN"]
["EVALUACIÓN",null,"CRITERIOS DE LAS DIMENSIONES"]
["Nº","DIMENSIONES","SER",null,null,null,"SABER",null,null,null,"HACER",null,null,null,"DECIDIR",null,null,null,"AUTOEVALUACIÓN (SER, SABER, HACER, DECIDIR)",null,"SÍNTESIS CUALITATIVA DEL BIMESTRE"]
[null,"PLANES DE CLASE (PDC)","PDC","PDC","PDC","PDC","PDC","PDC","PDC","PDC","PDC","PDC","PDC","PDC","PDC","PDC","PDC","PDC"]
[null,null,null,null,null,null,null,null,null,null,null,null,null,null,null,null,null,null,null,null,null,null,null,null,null,null,null,"DP","DO","DA","ED"]
[null,null,null,null,null,null,null,null,null,null,null,null,null,null,null,null,null,null,null,null,null,null,null,null,null,null,null,14,8,5,1]
[null,"CRITERIOS DE EVALUACIÓN",null,null,null,null,null,null,null,null,null,null,null,null,null,null,null,null,"ACTITUDES TRABAJOS, RESPONSABILIDADES"]
[]
[null,"APELLIDOS Y NOMBRES"]
[1,{"$f":"IF(FILIACION_ESTUDIANTE!D8=0,\"\",FILIACION_PPFF!B7)","v":""},null,null,null,null,null,null,null,null,null,null,null,null,null,null,null,null,null,null,null,null,null,"demuestra  algunas actitudes armonicas etre sfamilia Y  LE FALTAT",null,null,null,{"$f":"IF(C16=$AB$11,$AB$12,IF(C16=$AC$11,$AC$12,IF(C16=$AD$11,$AD$12,IF(C16=$AE$11,$AE$12))))","v":false},{"$f":"IF(D16=$AB$11,$AB$12,IF(D16=$AC$11,$AC$12,IF(D16=$AD$11,$AD$12,IF(D16=$AE$11,$AE$12))))","v":false},false,false,{"$f":"SUM(AB16:AE16)","v":0},{"$f":"IF(G16=$AB$11,$AB$12,IF(G16=$AC$11,$AC$12,IF(G16=$AD$11,$AD$12,IF(G16=$AE$11,$AE$12))))","v":false},{"$f":"IF(H16=$AB$11,$AB$12,IF(H16=$AC$11,$AC$12,IF(H16=$AD$11,$AD$12,IF(H16=$AE$11,$AE$12))))","v":false},false,false,{"$f":"SUM(AG16:AJ16)","v":0},{"$f":"IF(K16=$AB$11,$AB$12,IF(K16=$AC$11,$AC$12,IF(K16=$AD$11,$AD$12,IF(K16=$AE$11,$AE$12))))","v":false},{"$f":"IF(L16=$AB$11,$AB$12,IF(L16=$AC$11,$AC$12,IF(L16=$AD$11,$AD$12,IF(L16=$AE$11,$AE$12))))","v":false},{"$f":"IF(M16=$AB$11,$AB$12,IF(M16=$AC$11,$AC$12,IF(M16=$AD$11,$AD$12,IF(M16=$AE$11,$AE$12))))","v":false},{"$f":"IF(N16=$AB$11,$AB$12,IF(N16=$AC$11,$AC$12,IF(N16=$AD$11,$AD$12,IF(N16=$AE$11,$AE$12))))","v":false},{"$f":"SUM(AL16:AO16)","v":0},{"$f":"IF(O16=$AB$11,$AB$12,IF(O16=$AC$11,$AC$12,IF(O16=$AD$11,$AD$12,IF(O16=$AE$11,$AE$12))))","v":false},{"$f":"IF(P16=$AB$11,$AB$12,IF(P16=$AC$11,$AC$12,IF(P16=$AD$11,$AD$12,IF(P16=$AE$11,$AE$12))))","v":false},false,false,{"$f":"SUM(AQ16:AT16)","v":0},{"$f":"MAX(AF16,AK16,AP16,AU16)","v":0}]
[2,{"$f":"IF(FILIACION_ESTUDIANTE!D9=0,\"\",FILIACION_PPFF!B8)","v":""}]
[3,{"$f":"IF(FILIACION_ESTUDIANTE!D10=0,\"\",FILIACION_PPFF!B9)","v":""}]
[4,{"$f":"IF(FILIACION_ESTUDIANTE!D11=0,\"\",FILIACION_PPFF!B10)","v":""}]
[5,{"$f":"IF(FILIACION_ESTUDIANTE!D12=0,\"\",FILIACION_PPFF!B11)","v":""}]
[6,{"$f":"IF(FILIACION_ESTUDIANTE!D13=0,\"\",FILIACION_PPFF!B12)","v":""}]
[7,{"$f":"IF(FILIACION_ESTUDIANTE!D14=0,\"\",FILIACION_PPFF!B13)","v":""}]
[8,{"$f":"IF(FILIACION_ESTUDIANTE!D15=0,\"\",FILIACION_PPFF!B14)","v":""}]
[9,{"$f":"IF(FILIACION_ESTUDIANTE!D16=0,\"\",FILIACION_PPFF!B15)","v":""}]
[10,{"$f":"IF(FILIACION_ESTUDIANTE!D17=0,\"\",FILIACION_PPFF!B16)","v":""}]
[11,{"$f":"IF(FILIACION_ESTUDIANTE!D18=0,\"\",FILIACION_PPFF!B17)","v":""}]
[12,{"$f":"IF(FILIACION_ESTUDIANTE!D19=0,\"\",FILIACION_PPFF!B18)","v":""}]
[13,{"$f":"IF(FILIACION_ESTUDIANTE!D20=0,\"\",FILIACION_PPFF!B19)","v":""}]
[14,{"$f":"IF(FILIACION_ESTUDIANTE!D21=0,\"\",FILIACION_PPFF!B20)","v":""}]
[15,{"$f":"IF(FILIACION_ESTUDIANTE!D22=0,\"\",FILIACION_PPFF!B21)","v":""}]
[16,{"$f":"IF(FILIACION_ESTUDIANTE!D23=0,\"\",FILIACION_PPFF!B22)","v":""}]
[17,{"$f":"IF(FILIACION_ESTUDIANTE!D24=0,\"\",FILIACION_PPFF!B23)","v":""}]
[18,{"$f":"IF(FILIACION_ESTUDIANTE!D25=0,\"\",FILIACION_PPFF!B24)","v":""}]
[19,{"$f":"IF(FILIACION_ESTUDIANTE!D26=0,\"\",FILIACION_PPFF!B25)","v":""}]
[20,{"$f":"IF(FILIACION_ESTUDIANTE!D27=0,\"\",FILIACION_PPFF!B26)","v":""}]
[21,{"$f":"IF(FILIACION_ESTUDIANTE!D28=0,\"\",FILIACION_PPFF!B27)","v":""}]
[22,{"$f":"IF(FILIACION_ESTUDIANTE!D29=0,\"\",FILIACION_PPFF!B28)","v":""}]
[23,{"$f":"IF(FILIACION_ESTUDIANTE!D30=0,\"\",FILIACION_PPFF!B29)","v":""}]
[24,{"$f":"IF(FILIACION_ESTUDIANTE!D31=0,\"\",FILIACION_PPFF!B30)","v":""}]
[25,{"$f":"IF(FILIACION_ESTUDIANTE!D32=0,\"\",FILIACION_PPFF!B31)","v":""}]
[26,{"$f":"IF(FILIACION_ESTUDIANTE!D33=0,\"\",FILIACION_PPFF!B32)","v":""}]
[27,{"$f":"IF(FILIACION_ESTUDIANTE!D34=0,\"\",FILIACION_PPFF!B33)","v":""}]
[28,{"$f":"IF(FILIACION_ESTUDIANTE!D35=0,\"\",FILIACION_PPFF!B34)","v":""}]
[29,{"$f":"IF(FILIACION_ESTUDIANTE!D36=0,\"\",FILIACION_PPFF!B35)","v":""}]
[30,{"$f":"IF(FILIACION_ESTUDIANTE!D37=0,\"\",FILIACION_PPFF!B36)","v":""}]
[31,{"$f":"IF(FILIACION_ESTUDIANTE!D38=0,\"\",FILIACION_PPFF!B37)","v":""}]
[32,{"$f":"IF(FILIACION_ESTUDIANTE!D39=0,\"\",FILIACION_PPFF!B38)","v":""}]
[33,{"$f":"IF(FILIACION_ESTUDIANTE!D40=0,\"\",FILIACION_PPFF!B39)","v":""}]
[34,{"$f":"IF(FILIACION_ESTUDIANTE!D41=0,\"\",FILIACION_PPFF!B40)","v":""}]
[35,{"$f":"IF(FILIACION_ESTUDIANTE!D42=0,\"\",FILIACION_PPFF!B41)","v":""}]
[36,{"$f":"IF(FILIACION_ESTUDIANTE!D43=0,\"\",FILIACION_PPFF!B42)","v":""}]
[37,{"$f":"IF(FILIACION_ESTUDIANTE!D44=0,\"\",FILIACION_PPFF!B43)","v":""}]
[38,{"$f":"IF(FILIACION_ESTUDIANTE!D45=0,\"\",FILIACION_PPFF!B44)","v":""}]
[39,{"$f":"IF(FILIACION_ESTUDIANTE!D46=0,\"\",FILIACION_PPFF!B45)","v":""}]
[40,{"$f":"IF(FILIACION_ESTUDIANTE!D47=0,\"\",FILIACION_PPFF!B46)","v":""}]

{"sheet":"VIDA_TIERRA_3B","index":34,"n_rows":55,"n_cols":48,"rows_kept":55,"cut":false,"hidden":false,"merged":[[9,15,11,15],[9,16,11,16],[9,17,11,17],[8,18,10,19],[12,9,14,9],[12,10,14,10],[12,11,14,11],[12,12,14,12],[12,13,14,13],[12,18,14,19],[12,14,14,14],[12,15,14,15],[12,16,14,16],[12,17,14,17],[9,11,11,11],[9,12,11,12],[9,13,11,13],[12,1,13,1],[12,6,14,6],[12,7,14,7],[12,8,14,8],[12,2,14,2],[12,3,14,3],[12,4,14,4],[12,5,14,5],[6,0,6,1],[6,2,6,20],[7,0,7,1],[7,2,7,20],[9,14,11,14],[8,20,14,20],[9,1,11,1],[9,2,11,2],[9,3,11,3],[9,4,11,4],[9,5,11,5],[9,6,11,6],[9,7,11,7],[9,8,11,8],[9,9,11,9],[9,10,11,10],[1,1,2,1],[1,2,1,19],[1,27,8,31],[2,2,2,19],[3,0,3,1],[3,2,3,11],[3,12,3,17],[3,18,3,20],[4,0,4,20],[5,0,5,1],[8,0,14,0],[8,2,8,5],[8,6,8,9],[8,10,8,13],[8,14,8,17],[5,2,5,20],[15,18,15,19],[16,18,16,19],[17,18,17,19],[18,18,18,19],[19,18,19,19],[20,18,20,19],[21,18,21,19],[22,18,22,19],[23,18,23,19],[24,18,24,19],[25,18,25,19],[26,18,26,19],[27,18,27,19],[28,18,28,19],[29,18,29,19],[30,18,30,19],[31,18,31,19],[32,18,32,19],[33,18,33,19],[34,18,34,19],[35,18,35,19],[36,18,36,19],[37,18,37,19],[38,18,38,19],[39,18,39,19],[40,18,40,19],[41,18,41,19],[42,18,42,19],[43,18,43,19],[44,18,44,19],[45,18,45,19],[46,18,46,19],[47,18,47,19],[48,18,48,19],[49,18,49,19],[50,18,50,19],[51,18,51,19],[52,18,52,19],[53,18,53,19],[54,18,54,19]]}
[]
[null,null,"CUADRO DE VALORACIÓN",null,null,null,null,null,null,null,null,null,null,null,null,null,null,null,null,null,null,null,null,null,null,null,null,"REGISTRO DE VALORACION",null,null,null,null,"ED",null,null,null,null,null,null,null,"DA","DO",null,"DP"]
[null,null,"EDUCACIÓN INICIAL  EN FAMILIA COMUNITARIA ",null,null,null,null,null,null,null,null,null,null,null,null,null,null,null,null,null,"3er BIMESTRE"]
[{"$f":"UPPER( CARATULA!$C$21)","v":"MAESTRA (O):"},null,{"$f":"CARATULA!$E$21","v":0},null,null,null,null,null,null,null,null,null,{"$f":"UPPER(CARATULA!$C$23)","v":"AÑO DE ESCOLARIDAD:"},null,null,null,null,null,{"$f":"CARATULA!$E$23","v":0}]
["CAMPO DE SABER Y CONOCIMIENTO VIDA TIERRA TERRITORIO"]
["INTRUMENTOS DE EVALUACIÓN"]
["ESTRATEGIAS DE EVALUACIÓN"]
["EVALUACIÓN",null,"CRITERIOS DE LAS DIMENSIONES"]
["Nº","DIMENSIONES","SER",null,null,null,"SABER",null,null,null,"HACER",null,null,null,"DECIDIR",null,null,null,"AUTOEVALUACIÓN (SER, SABER, HACER, DECIDIR)",null,"SÍNTESIS CUALITATIVA DEL BIMESTRE"]
[null,"PLANES DE CLASE (PDC)","PDC","PDC","PDC","PDC","PDC","PDC","PDC","PDC","PDC","PDC","PDC","PDC","PDC","PDC","PDC","PDC"]
[null,null,null,null,null,null,null,null,null,null,null,null,null,null,null,null,null,null,null,null,null,null,null,null,null,null,null,"DP","DO","DA","ED"]
[null,null,null,null,null,null,null,null,null,null,null,null,null,null,null,null,null,null,null,null,null,null,null,null,null,null,null,14,8,5,1]
[null,"CRITERIOS DE EVALUACIÓN",null,null,null,null,null,null,null,null,null,null,null,null,null,null,null,null,"ACTITUDES TRABAJOS, RESPONSABILIDADES"]
[]
[null,"APELLIDOS Y NOMBRES"]
[1,{"$f":"IF(FILIACION_ESTUDIANTE!D8=0,\"\",FILIACION_PPFF!B7)","v":""},null,null,null,null,null,null,null,null,null,null,null,null,null,null,null,null,null,null,null,null,null,"demuestra  algunas actitudes armonicas etre sfamilia Y  LE FALTAT",null,null,null,{"$f":"IF(C16=$AB$11,$AB$12,IF(C16=$AC$11,$AC$12,IF(C16=$AD$11,$AD$12,IF(C16=$AE$11,$AE$12))))","v":false},{"$f":"IF(D16=$AB$11,$AB$12,IF(D16=$AC$11,$AC$12,IF(D16=$AD$11,$AD$12,IF(D16=$AE$11,$AE$12))))","v":false},false,false,{"$f":"SUM(AB16:AE16)","v":0},{"$f":"IF(G16=$AB$11,$AB$12,IF(G16=$AC$11,$AC$12,IF(G16=$AD$11,$AD$12,IF(G16=$AE$11,$AE$12))))","v":false},{"$f":"IF(H16=$AB$11,$AB$12,IF(H16=$AC$11,$AC$12,IF(H16=$AD$11,$AD$12,IF(H16=$AE$11,$AE$12))))","v":false},false,false,{"$f":"SUM(AG16:AJ16)","v":0},{"$f":"IF(K16=$AB$11,$AB$12,IF(K16=$AC$11,$AC$12,IF(K16=$AD$11,$AD$12,IF(K16=$AE$11,$AE$12))))","v":false},{"$f":"IF(L16=$AB$11,$AB$12,IF(L16=$AC$11,$AC$12,IF(L16=$AD$11,$AD$12,IF(L16=$AE$11,$AE$12))))","v":false},{"$f":"IF(M16=$AB$11,$AB$12,IF(M16=$AC$11,$AC$12,IF(M16=$AD$11,$AD$12,IF(M16=$AE$11,$AE$12))))","v":false},{"$f":"IF(N16=$AB$11,$AB$12,IF(N16=$AC$11,$AC$12,IF(N16=$AD$11,$AD$12,IF(N16=$AE$11,$AE$12))))","v":false},{"$f":"SUM(AL16:AO16)","v":0},{"$f":"IF(O16=$AB$11,$AB$12,IF(O16=$AC$11,$AC$12,IF(O16=$AD$11,$AD$12,IF(O16=$AE$11,$AE$12))))","v":false},{"$f":"IF(P16=$AB$11,$AB$12,IF(P16=$AC$11,$AC$12,IF(P16=$AD$11,$AD$12,IF(P16=$AE$11,$AE$12))))","v":false},false,false,{"$f":"SUM(AQ16:AT16)","v":0},{"$f":"MAX(AF16,AK16,AP16,AU16)","v":0}]
[2,{"$f":"IF(FILIACION_ESTUDIANTE!D9=0,\"\",FILIACION_PPFF!B8)","v":""}]
[3,{"$f":"IF(FILIACION_ESTUDIANTE!D10=0,\"\",FILIACION_PPFF!B9)","v":""}]
[4,{"$f":"IF(FILIACION_ESTUDIANTE!D11=0,\"\",FILIACION_PPFF!B10)","v":""}]
[5,{"$f":"IF(FILIACION_ESTUDIANTE!D12=0,\"\",FILIACION_PPFF!B11)","v":""}]
[6,{"$f":"IF(FILIACION_ESTUDIANTE!D13=0,\"\",FILIACION_PPFF!B12)","v":""}]
[7,{"$f":"IF(FILIACION_ESTUDIANTE!D14=0,\"\",FILIACION_PPFF!B13)","v":""}]
[8,{"$f":"IF(FILIACION_ESTUDIANTE!D15=0,\"\",FILIACION_PPFF!B14)","v":""}]
[9,{"$f":"IF(FILIACION_ESTUDIANTE!D16=0,\"\",FILIACION_PPFF!B15)","v":""}]
[10,{"$f":"IF(FILIACION_ESTUDIANTE!D17=0,\"\",FILIACION_PPFF!B16)","v":""}]
[11,{"$f":"IF(FILIACION_ESTUDIANTE!D18=0,\"\",FILIACION_PPFF!B17)","v":""}]
[12,{"$f":"IF(FILIACION_ESTUDIANTE!D19=0,\"\",FILIACION_PPFF!B18)","v":""}]
[13,{"$f":"IF(FILIACION_ESTUDIANTE!D20=0,\"\",FILIACION_PPFF!B19)","v":""}]
[14,{"$f":"IF(FILIACION_ESTUDIANTE!D21=0,\"\",FILIACION_PPFF!B20)","v":""}]
[15,{"$f":"IF(FILIACION_ESTUDIANTE!D22=0,\"\",FILIACION_PPFF!B21)","v":""}]
[16,{"$f":"IF(FILIACION_ESTUDIANTE!D23=0,\"\",FILIACION_PPFF!B22)","v":""}]
[17,{"$f":"IF(FILIACION_ESTUDIANTE!D24=0,\"\",FILIACION_PPFF!B23)","v":""}]
[18,{"$f":"IF(FILIACION_ESTUDIANTE!D25=0,\"\",FILIACION_PPFF!B24)","v":""}]
[19,{"$f":"IF(FILIACION_ESTUDIANTE!D26=0,\"\",FILIACION_PPFF!B25)","v":""}]
[20,{"$f":"IF(FILIACION_ESTUDIANTE!D27=0,\"\",FILIACION_PPFF!B26)","v":""}]
[21,{"$f":"IF(FILIACION_ESTUDIANTE!D28=0,\"\",FILIACION_PPFF!B27)","v":""}]
[22,{"$f":"IF(FILIACION_ESTUDIANTE!D29=0,\"\",FILIACION_PPFF!B28)","v":""}]
[23,{"$f":"IF(FILIACION_ESTUDIANTE!D30=0,\"\",FILIACION_PPFF!B29)","v":""}]
[24,{"$f":"IF(FILIACION_ESTUDIANTE!D31=0,\"\",FILIACION_PPFF!B30)","v":""}]
[25,{"$f":"IF(FILIACION_ESTUDIANTE!D32=0,\"\",FILIACION_PPFF!B31)","v":""}]
[26,{"$f":"IF(FILIACION_ESTUDIANTE!D33=0,\"\",FILIACION_PPFF!B32)","v":""}]
[27,{"$f":"IF(FILIACION_ESTUDIANTE!D34=0,\"\",FILIACION_PPFF!B33)","v":""}]
[28,{"$f":"IF(FILIACION_ESTUDIANTE!D35=0,\"\",FILIACION_PPFF!B34)","v":""}]
[29,{"$f":"IF(FILIACION_ESTUDIANTE!D36=0,\"\",FILIACION_PPFF!B35)","v":""}]
[30,{"$f":"IF(FILIACION_ESTUDIANTE!D37=0,\"\",FILIACION_PPFF!B36)","v":""}]
[31,{"$f":"IF(FILIACION_ESTUDIANTE!D38=0,\"\",FILIACION_PPFF!B37)","v":""}]
[32,{"$f":"IF(FILIACION_ESTUDIANTE!D39=0,\"\",FILIACION_PPFF!B38)","v":""}]
[33,{"$f":"IF(FILIACION_ESTUDIANTE!D40=0,\"\",FILIACION_PPFF!B39)","v":""}]
[34,{"$f":"IF(FILIACION_ESTUDIANTE!D41=0,\"\",FILIACION_PPFF!B40)","v":""}]
[35,{"$f":"IF(FILIACION_ESTUDIANTE!D42=0,\"\",FILIACION_PPFF!B41)","v":""}]
[36,{"$f":"IF(FILIACION_ESTUDIANTE!D43=0,\"\",FILIACION_PPFF!B42)","v":""}]
[37,{"$f":"IF(FILIACION_ESTUDIANTE!D44=0,\"\",FILIACION_PPFF!B43)","v":""}]
[38,{"$f":"IF(FILIACION_ESTUDIANTE!D45=0,\"\",FILIACION_PPFF!B44)","v":""}]
[39,{"$f":"IF(FILIACION_ESTUDIANTE!D46=0,\"\",FILIACION_PPFF!B45)","v":""}]
[40,{"$f":"IF(FILIACION_ESTUDIANTE!D47=0,\"\",FILIACION_PPFF!B46)","v":""}]

{"sheet":"VIDA_TIERRA_4B","index":35,"n_rows":55,"n_cols":48,"rows_kept":55,"cut":false,"hidden":false,"merged":[[9,15,11,15],[9,16,11,16],[9,17,11,17],[8,18,10,19],[12,9,14,9],[12,10,14,10],[12,11,14,11],[12,12,14,12],[12,13,14,13],[12,18,14,19],[12,14,14,14],[12,15,14,15],[12,16,14,16],[12,17,14,17],[9,11,11,11],[9,12,11,12],[9,13,11,13],[12,1,13,1],[12,6,14,6],[12,7,14,7],[12,8,14,8],[12,2,14,2],[12,3,14,3],[12,4,14,4],[12,5,14,5],[6,0,6,1],[6,2,6,20],[7,0,7,1],[7,2,7,20],[9,14,11,14],[8,20,14,20],[9,1,11,1],[9,2,11,2],[9,3,11,3],[9,4,11,4],[9,5,11,5],[9,6,11,6],[9,7,11,7],[9,8,11,8],[9,9,11,9],[9,10,11,10],[1,1,2,1],[1,2,1,19],[1,27,8,31],[2,2,2,19],[3,0,3,1],[3,2,3,11],[3,12,3,17],[3,18,3,20],[4,0,4,20],[5,0,5,1],[8,0,14,0],[8,2,8,5],[8,6,8,9],[8,10,8,13],[8,14,8,17],[5,2,5,20],[15,18,15,19],[16,18,16,19],[17,18,17,19],[18,18,18,19],[19,18,19,19],[20,18,20,19],[21,18,21,19],[22,18,22,19],[23,18,23,19],[24,18,24,19],[25,18,25,19],[26,18,26,19],[27,18,27,19],[28,18,28,19],[29,18,29,19],[30,18,30,19],[31,18,31,19],[32,18,32,19],[33,18,33,19],[34,18,34,19],[35,18,35,19],[36,18,36,19],[37,18,37,19],[38,18,38,19],[39,18,39,19],[40,18,40,19],[41,18,41,19],[42,18,42,19],[43,18,43,19],[44,18,44,19],[45,18,45,19],[46,18,46,19],[47,18,47,19],[48,18,48,19],[49,18,49,19],[50,18,50,19],[51,18,51,19],[52,18,52,19],[53,18,53,19],[54,18,54,19]]}
[]
[null,null,"CUADRO DE VALORACIÓN",null,null,null,null,null,null,null,null,null,null,null,null,null,null,null,null,null,null,null,null,null,null,null,null,"REGISTRO DE VALORACION",null,null,null,null,"ED",null,null,null,null,null,null,null,"DA","DO",null,"DP"]
[null,null,"EDUCACIÓN INICIAL  EN FAMILIA COMUNITARIA ",null,null,null,null,null,null,null,null,null,null,null,null,null,null,null,null,null,"4° BIMESTRE"]
[{"$f":"UPPER( CARATULA!$C$21)","v":"MAESTRA (O):"},null,{"$f":"CARATULA!$E$21","v":0},null,null,null,null,null,null,null,null,null,{"$f":"UPPER(CARATULA!$C$23)","v":"AÑO DE ESCOLARIDAD:"},null,null,null,null,null,{"$f":"CARATULA!$E$23","v":0}]
["CAMPO DE SABER Y CONOCIMIENTO VIDA TIERRA TERRITORIO"]
["INTRUMENTOS DE EVALUACIÓN"]
["ESTRATEGIAS DE EVALUACIÓN"]
["EVALUACIÓN",null,"CRITERIOS DE LAS DIMENSIONES"]
["Nº","DIMENSIONES","SER",null,null,null,"SABER",null,null,null,"HACER",null,null,null,"DECIDIR",null,null,null,"AUTOEVALUACIÓN (SER, SABER, HACER, DECIDIR)",null,"SÍNTESIS CUALITATIVA DEL BIMESTRE"]
[null,"PLANES DE CLASE (PDC)","PDC","PDC","PDC","PDC","PDC","PDC","PDC","PDC","PDC","PDC","PDC","PDC","PDC","PDC","PDC","PDC"]
[null,null,null,null,null,null,null,null,null,null,null,null,null,null,null,null,null,null,null,null,null,null,null,null,null,null,null,"DP","DO","DA","ED"]
[null,null,null,null,null,null,null,null,null,null,null,null,null,null,null,null,null,null,null,null,null,null,null,null,null,null,null,14,8,5,1]
[null,"CRITERIOS DE EVALUACIÓN",null,null,null,null,null,null,null,null,null,null,null,null,null,null,null,null,"ACTITUDES TRABAJOS, RESPONSABILIDADES"]
[]
[null,"APELLIDOS Y NOMBRES"]
[1,{"$f":"IF(FILIACION_ESTUDIANTE!D8=0,\"\",FILIACION_PPFF!B7)","v":""},null,null,null,null,null,null,null,null,null,null,null,null,null,null,null,null,null,null,null,null,null,"demuestra  algunas actitudes armonicas etre sfamilia Y  LE FALTAT",null,null,null,{"$f":"IF(C16=$AB$11,$AB$12,IF(C16=$AC$11,$AC$12,IF(C16=$AD$11,$AD$12,IF(C16=$AE$11,$AE$12))))","v":false},{"$f":"IF(D16=$AB$11,$AB$12,IF(D16=$AC$11,$AC$12,IF(D16=$AD$11,$AD$12,IF(D16=$AE$11,$AE$12))))","v":false},false,false,{"$f":"SUM(AB16:AE16)","v":0},{"$f":"IF(G16=$AB$11,$AB$12,IF(G16=$AC$11,$AC$12,IF(G16=$AD$11,$AD$12,IF(G16=$AE$11,$AE$12))))","v":false},{"$f":"IF(H16=$AB$11,$AB$12,IF(H16=$AC$11,$AC$12,IF(H16=$AD$11,$AD$12,IF(H16=$AE$11,$AE$12))))","v":false},false,false,{"$f":"SUM(AG16:AJ16)","v":0},{"$f":"IF(K16=$AB$11,$AB$12,IF(K16=$AC$11,$AC$12,IF(K16=$AD$11,$AD$12,IF(K16=$AE$11,$AE$12))))","v":false},{"$f":"IF(L16=$AB$11,$AB$12,IF(L16=$AC$11,$AC$12,IF(L16=$AD$11,$AD$12,IF(L16=$AE$11,$AE$12))))","v":false},{"$f":"IF(M16=$AB$11,$AB$12,IF(M16=$AC$11,$AC$12,IF(M16=$AD$11,$AD$12,IF(M16=$AE$11,$AE$12))))","v":false},{"$f":"IF(N16=$AB$11,$AB$12,IF(N16=$AC$11,$AC$12,IF(N16=$AD$11,$AD$12,IF(N16=$AE$11,$AE$12))))","v":false},{"$f":"SUM(AL16:AO16)","v":0},{"$f":"IF(O16=$AB$11,$AB$12,IF(O16=$AC$11,$AC$12,IF(O16=$AD$11,$AD$12,IF(O16=$AE$11,$AE$12))))","v":false},{"$f":"IF(P16=$AB$11,$AB$12,IF(P16=$AC$11,$AC$12,IF(P16=$AD$11,$AD$12,IF(P16=$AE$11,$AE$12))))","v":false},false,false,{"$f":"SUM(AQ16:AT16)","v":0},{"$f":"MAX(AF16,AK16,AP16,AU16)","v":0}]
[2,{"$f":"IF(FILIACION_ESTUDIANTE!D9=0,\"\",FILIACION_PPFF!B8)","v":""}]
[3,{"$f":"IF(FILIACION_ESTUDIANTE!D10=0,\"\",FILIACION_PPFF!B9)","v":""}]
[4,{"$f":"IF(FILIACION_ESTUDIANTE!D11=0,\"\",FILIACION_PPFF!B10)","v":""}]
[5,{"$f":"IF(FILIACION_ESTUDIANTE!D12=0,\"\",FILIACION_PPFF!B11)","v":""}]
[6,{"$f":"IF(FILIACION_ESTUDIANTE!D13=0,\"\",FILIACION_PPFF!B12)","v":""}]
[7,{"$f":"IF(FILIACION_ESTUDIANTE!D14=0,\"\",FILIACION_PPFF!B13)","v":""}]
[8,{"$f":"IF(FILIACION_ESTUDIANTE!D15=0,\"\",FILIACION_PPFF!B14)","v":""}]
[9,{"$f":"IF(FILIACION_ESTUDIANTE!D16=0,\"\",FILIACION_PPFF!B15)","v":""}]
[10,{"$f":"IF(FILIACION_ESTUDIANTE!D17=0,\"\",FILIACION_PPFF!B16)","v":""}]
[11,{"$f":"IF(FILIACION_ESTUDIANTE!D18=0,\"\",FILIACION_PPFF!B17)","v":""}]
[12,{"$f":"IF(FILIACION_ESTUDIANTE!D19=0,\"\",FILIACION_PPFF!B18)","v":""}]
[13,{"$f":"IF(FILIACION_ESTUDIANTE!D20=0,\"\",FILIACION_PPFF!B19)","v":""}]
[14,{"$f":"IF(FILIACION_ESTUDIANTE!D21=0,\"\",FILIACION_PPFF!B20)","v":""}]
[15,{"$f":"IF(FILIACION_ESTUDIANTE!D22=0,\"\",FILIACION_PPFF!B21)","v":""}]
[16,{"$f":"IF(FILIACION_ESTUDIANTE!D23=0,\"\",FILIACION_PPFF!B22)","v":""}]
[17,{"$f":"IF(FILIACION_ESTUDIANTE!D24=0,\"\",FILIACION_PPFF!B23)","v":""}]
[18,{"$f":"IF(FILIACION_ESTUDIANTE!D25=0,\"\",FILIACION_PPFF!B24)","v":""}]
[19,{"$f":"IF(FILIACION_ESTUDIANTE!D26=0,\"\",FILIACION_PPFF!B25)","v":""}]
[20,{"$f":"IF(FILIACION_ESTUDIANTE!D27=0,\"\",FILIACION_PPFF!B26)","v":""}]
[21,{"$f":"IF(FILIACION_ESTUDIANTE!D28=0,\"\",FILIACION_PPFF!B27)","v":""}]
[22,{"$f":"IF(FILIACION_ESTUDIANTE!D29=0,\"\",FILIACION_PPFF!B28)","v":""}]
[23,{"$f":"IF(FILIACION_ESTUDIANTE!D30=0,\"\",FILIACION_PPFF!B29)","v":""}]
[24,{"$f":"IF(FILIACION_ESTUDIANTE!D31=0,\"\",FILIACION_PPFF!B30)","v":""}]
[25,{"$f":"IF(FILIACION_ESTUDIANTE!D32=0,\"\",FILIACION_PPFF!B31)","v":""}]
[26,{"$f":"IF(FILIACION_ESTUDIANTE!D33=0,\"\",FILIACION_PPFF!B32)","v":""}]
[27,{"$f":"IF(FILIACION_ESTUDIANTE!D34=0,\"\",FILIACION_PPFF!B33)","v":""}]
[28,{"$f":"IF(FILIACION_ESTUDIANTE!D35=0,\"\",FILIACION_PPFF!B34)","v":""}]
[29,{"$f":"IF(FILIACION_ESTUDIANTE!D36=0,\"\",FILIACION_PPFF!B35)","v":""}]
[30,{"$f":"IF(FILIACION_ESTUDIANTE!D37=0,\"\",FILIACION_PPFF!B36)","v":""}]
[31,{"$f":"IF(FILIACION_ESTUDIANTE!D38=0,\"\",FILIACION_PPFF!B37)","v":""}]
[32,{"$f":"IF(FILIACION_ESTUDIANTE!D39=0,\"\",FILIACION_PPFF!B38)","v":""}]
[33,{"$f":"IF(FILIACION_ESTUDIANTE!D40=0,\"\",FILIACION_PPFF!B39)","v":""}]
[34,{"$f":"IF(FILIACION_ESTUDIANTE!D41=0,\"\",FILIACION_PPFF!B40)","v":""}]
[35,{"$f":"IF(FILIACION_ESTUDIANTE!D42=0,\"\",FILIACION_PPFF!B41)","v":""}]
[36,{"$f":"IF(FILIACION_ESTUDIANTE!D43=0,\"\",FILIACION_PPFF!B42)","v":""}]
[37,{"$f":"IF(FILIACION_ESTUDIANTE!D44=0,\"\",FILIACION_PPFF!B43)","v":""}]
[38,{"$f":"IF(FILIACION_ESTUDIANTE!D45=0,\"\",FILIACION_PPFF!B44)","v":""}]
[39,{"$f":"IF(FILIACION_ESTUDIANTE!D46=0,\"\",FILIACION_PPFF!B45)","v":""}]
[40,{"$f":"IF(FILIACION_ESTUDIANTE!D47=0,\"\",FILIACION_PPFF!B46)","v":""}]

{"sheet":"INFORME_FINAL","index":36,"n_rows":46,"n_cols":30,"rows_kept":46,"cut":false,"hidden":false,"merged":[[1,0,1,2],[2,0,2,2],[1,9,4,13],[4,0,4,2]]}
[]
["INFORME ANUAL",null,null,null,null,null,null,null,null,"REGISTRO DE VALORACION",null,null,null,null,"ED",null,null,null,null,null,null,null,"DA","DO",null,"DP"]
["EDUCACIÓN INICIAL  EN FAMILIA COMUNITARIA "]
[]
[{"$f":" UPPER(CONCATENATE(CARATULA!C21,CARATULA!E21))","v":"MAESTRA (O):"}]
["N°","APELLIDOS Y NOMBRES","INFORME ANUAL DEL PROCESO EDUCATIVO"]
[1,{"$f":"IF(FILIACION_ESTUDIANTE!D8=0,\"\",FILIACION_PPFF!B7)","v":""},null,null,null,"demuestra  algunas actitudes armonicas etre sfamilia Y  LE FALTAT",null,null,null,{"$f":"IF(#REF!=#REF!,#REF!,IF(#REF!=#REF!,#REF!,IF(#REF!=#REF!,#REF!,IF(#REF!=#REF!,#REF!))))","v":{"$error":"#REF!"}},{"$f":"IF(#REF!=#REF!,#REF!,IF(#REF!=#REF!,#REF!,IF(#REF!=#REF!,#REF!,IF(#REF!=#REF!,#REF!))))","v":{"$error":"#REF!"}},{"$f":"IF(#REF!=#REF!,#REF!,IF(#REF!=#REF!,#REF!,IF(#REF!=#REF!,#REF!,IF(#REF!=#REF!,#REF!))))","v":{"$error":"#REF!"}},{"$f":"IF(#REF!=#REF!,#REF!,IF(#REF!=#REF!,#REF!,IF(#REF!=#REF!,#REF!,IF(#REF!=#REF!,#REF!))))","v":{"$error":"#REF!"}},{"$f":"SUM(J7:M7)","v":{"$error":"#REF!"}},{"$f":"IF(#REF!=#REF!,#REF!,IF(#REF!=#REF!,#REF!,IF(#REF!=#REF!,#REF!,IF(#REF!=#REF!,#REF!))))","v":{"$error":"#REF!"}},{"$f":"IF(#REF!=#REF!,#REF!,IF(#REF!=#REF!,#REF!,IF(#REF!=#REF!,#REF!,IF(#REF!=#REF!,#REF!))))","v":{"$error":"#REF!"}},{"$f":"IF(#REF!=#REF!,#REF!,IF(#REF!=#REF!,#REF!,IF(#REF!=#REF!,#REF!,IF(#REF!=#REF!,#REF!))))","v":{"$error":"#REF!"}},{"$f":"IF(#REF!=#REF!,#REF!,IF(#REF!=#REF!,#REF!,IF(#REF!=#REF!,#REF!,IF(#REF!=#REF!,#REF!))))","v":{"$error":"#REF!"}},{"$f":"SUM(O7:R7)","v":{"$error":"#REF!"}},{"$f":"IF(#REF!=#REF!,#REF!,IF(#REF!=#REF!,#REF!,IF(#REF!=#REF!,#REF!,IF(#REF!=#REF!,#REF!))))","v":{"$error":"#REF!"}},{"$f":"IF(#REF!=#REF!,#REF!,IF(#REF!=#REF!,#REF!,IF(#REF!=#REF!,#REF!,IF(#REF!=#REF!,#REF!))))","v":{"$error":"#REF!"}},{"$f":"IF(#REF!=#REF!,#REF!,IF(#REF!=#REF!,#REF!,IF(#REF!=#REF!,#REF!,IF(#REF!=#REF!,#REF!))))","v":{"$error":"#REF!"}},{"$f":"IF(#REF!=#REF!,#REF!,IF(#REF!=#REF!,#REF!,IF(#REF!=#REF!,#REF!,IF(#REF!=#REF!,#REF!))))","v":{"$error":"#REF!"}},{"$f":"SUM(T7:W7)","v":{"$error":"#REF!"}},{"$f":"IF(#REF!=#REF!,#REF!,IF(#REF!=#REF!,#REF!,IF(#REF!=#REF!,#REF!,IF(#REF!=#REF!,#REF!))))","v":{"$error":"#REF!"}},{"$f":"IF(#REF!=#REF!,#REF!,IF(#REF!=#REF!,#REF!,IF(#REF!=#REF!,#REF!,IF(#REF!=#REF!,#REF!))))","v":{"$error":"#REF!"}},{"$f":"IF(#REF!=#REF!,#REF!,IF(#REF!=#REF!,#REF!,IF(#REF!=#REF!,#REF!,IF(#REF!=#REF!,#REF!))))","v":{"$error":"#REF!"}},{"$f":"IF(#REF!=#REF!,#REF!,IF(#REF!=#REF!,#REF!,IF(#REF!=#REF!,#REF!,IF(#REF!=#REF!,#REF!))))","v":{"$error":"#REF!"}},{"$f":"SUM(Y7:AB7)","v":{"$error":"#REF!"}},{"$f":"MAX(N7,S7,X7,AC7)","v":{"$error":"#REF!"}}]
[2,{"$f":"IF(FILIACION_ESTUDIANTE!D9=0,\"\",FILIACION_PPFF!B8)","v":""}]
[3,{"$f":"IF(FILIACION_ESTUDIANTE!D10=0,\"\",FILIACION_PPFF!B9)","v":""}]
[4,{"$f":"IF(FILIACION_ESTUDIANTE!D11=0,\"\",FILIACION_PPFF!B10)","v":""}]
[5,{"$f":"IF(FILIACION_ESTUDIANTE!D12=0,\"\",FILIACION_PPFF!B11)","v":""}]
[6,{"$f":"IF(FILIACION_ESTUDIANTE!D13=0,\"\",FILIACION_PPFF!B12)","v":""}]
[7,{"$f":"IF(FILIACION_ESTUDIANTE!D14=0,\"\",FILIACION_PPFF!B13)","v":""}]
[8,{"$f":"IF(FILIACION_ESTUDIANTE!D15=0,\"\",FILIACION_PPFF!B14)","v":""}]
[9,{"$f":"IF(FILIACION_ESTUDIANTE!D16=0,\"\",FILIACION_PPFF!B15)","v":""}]
[10,{"$f":"IF(FILIACION_ESTUDIANTE!D17=0,\"\",FILIACION_PPFF!B16)","v":""}]
[11,{"$f":"IF(FILIACION_ESTUDIANTE!D18=0,\"\",FILIACION_PPFF!B17)","v":""}]
[12,{"$f":"IF(FILIACION_ESTUDIANTE!D19=0,\"\",FILIACION_PPFF!B18)","v":""}]
[13,{"$f":"IF(FILIACION_ESTUDIANTE!D20=0,\"\",FILIACION_PPFF!B19)","v":""}]
[14,{"$f":"IF(FILIACION_ESTUDIANTE!D21=0,\"\",FILIACION_PPFF!B20)","v":""}]
[15,{"$f":"IF(FILIACION_ESTUDIANTE!D22=0,\"\",FILIACION_PPFF!B21)","v":""}]
[16,{"$f":"IF(FILIACION_ESTUDIANTE!D23=0,\"\",FILIACION_PPFF!B22)","v":""}]
[17,{"$f":"IF(FILIACION_ESTUDIANTE!D24=0,\"\",FILIACION_PPFF!B23)","v":""}]
[18,{"$f":"IF(FILIACION_ESTUDIANTE!D25=0,\"\",FILIACION_PPFF!B24)","v":""}]
[19,{"$f":"IF(FILIACION_ESTUDIANTE!D26=0,\"\",FILIACION_PPFF!B25)","v":""}]
[20,{"$f":"IF(FILIACION_ESTUDIANTE!D27=0,\"\",FILIACION_PPFF!B26)","v":""}]
[21,{"$f":"IF(FILIACION_ESTUDIANTE!D28=0,\"\",FILIACION_PPFF!B27)","v":""}]
[22,{"$f":"IF(FILIACION_ESTUDIANTE!D29=0,\"\",FILIACION_PPFF!B28)","v":""}]
[23,{"$f":"IF(FILIACION_ESTUDIANTE!D30=0,\"\",FILIACION_PPFF!B29)","v":""}]
[24,{"$f":"IF(FILIACION_ESTUDIANTE!D31=0,\"\",FILIACION_PPFF!B30)","v":""}]
[25,{"$f":"IF(FILIACION_ESTUDIANTE!D32=0,\"\",FILIACION_PPFF!B31)","v":""}]
[26,{"$f":"IF(FILIACION_ESTUDIANTE!D33=0,\"\",FILIACION_PPFF!B32)","v":""}]
[27,{"$f":"IF(FILIACION_ESTUDIANTE!D34=0,\"\",FILIACION_PPFF!B33)","v":""}]
[28,{"$f":"IF(FILIACION_ESTUDIANTE!D35=0,\"\",FILIACION_PPFF!B34)","v":""}]
[29,{"$f":"IF(FILIACION_ESTUDIANTE!D36=0,\"\",FILIACION_PPFF!B35)","v":""}]
[30,{"$f":"IF(FILIACION_ESTUDIANTE!D37=0,\"\",FILIACION_PPFF!B36)","v":""}]
[31,{"$f":"IF(FILIACION_ESTUDIANTE!D38=0,\"\",FILIACION_PPFF!B37)","v":""}]
[32,{"$f":"IF(FILIACION_ESTUDIANTE!D39=0,\"\",FILIACION_PPFF!B38)","v":""}]
[33,{"$f":"IF(FILIACION_ESTUDIANTE!D40=0,\"\",FILIACION_PPFF!B39)","v":""}]
[34,{"$f":"IF(FILIACION_ESTUDIANTE!D41=0,\"\",FILIACION_PPFF!B40)","v":""}]
[35,{"$f":"IF(FILIACION_ESTUDIANTE!D42=0,\"\",FILIACION_PPFF!B41)","v":""}]
[36,{"$f":"IF(FILIACION_ESTUDIANTE!D43=0,\"\",FILIACION_PPFF!B42)","v":""}]
[37,{"$f":"IF(FILIACION_ESTUDIANTE!D44=0,\"\",FILIACION_PPFF!B43)","v":""}]
[38,{"$f":"IF(FILIACION_ESTUDIANTE!D45=0,\"\",FILIACION_PPFF!B44)","v":""}]
[39,{"$f":"IF(FILIACION_ESTUDIANTE!D46=0,\"\",FILIACION_PPFF!B45)","v":""}]
[40,{"$f":"IF(FILIACION_ESTUDIANTE!D47=0,\"\",FILIACION_PPFF!B46)","v":""}]

{"sheet":"CENTRALIZADOR","index":37,"n_rows":28,"n_cols":25,"rows_kept":28,"cut":false,"hidden":false,"merged":[[10,18,11,21],[12,4,13,7],[12,8,13,12],[10,1,10,3],[11,1,11,3],[13,1,13,3],[10,8,11,12],[10,13,11,17],[10,4,11,7],[0,23,2,23],[0,1,0,20],[8,4,8,21],[8,1,9,3],[1,1,1,21],[2,1,2,21],[9,8,9,12],[9,13,9,17],[9,18,9,21],[3,2,3,7],[4,2,4,7],[7,2,7,7],[3,9,3,14],[4,9,4,14],[5,9,5,14],[7,9,7,14],[24,7,24,13],[25,7,25,13],[12,13,13,17],[18,4,20,21],[14,18,15,21],[16,4,17,7],[14,8,15,12],[16,8,17,12],[16,13,17,17],[16,18,17,21],[14,13,15,17],[25,16,25,20],[12,18,13,21],[25,1,25,5],[12,1,12,3],[9,4,9,7],[27,16,27,19],[6,9,6,18],[5,2,5,6],[6,2,6,5],[5,7,5,8],[6,6,6,8],[5,15,5,21],[6,20,6,21],[15,1,15,3],[16,1,16,3],[17,1,17,3],[14,4,15,7],[14,1,14,3],[18,1,19,2],[24,1,24,5]]}
[null,null,null,null,null,null,null,null,null,null,null,null,null,null,null,null,null,null,null,null,null,null,null,1]
[null,"CENTRALIZADOR"]
[null,"EDUCACION INICIAL EN FAMILIA COMUNITARIA"]
[null,"Unidad Educativa:",{"$f":"IF(CARATULA!E13=0,\"\",CARATULA!E13)","v":""},null,null,null,null,null,"Código SIE:",{"$f":"IF(CARATULA!E19=0,\"\",CARATULA!E19)","v":""}]
[null,"Dependencia:",{"$f":"IF(CARATULA!E18=0,\"\",CARATULA!E18)","v":""},null,null,null,null,null,"Turno:",{"$f":"IF(CARATULA!E14=0,\"\",CARATULA!E14)","v":""}]
[null,"Distrito Educativo:",{"$f":"IF(CARATULA!E15=0,\"\",CARATULA!E15)","v":""},null,null,null,null,"Departamento:",null,{"$f":"IF(CARATULA!E12=0,\"\",CARATULA!E12)","v":""},null,null,null,null,null,"CASTELLANO/IDIOMA ORIGINARIO"]
[null,"Código Rude:",{"$f":"LOOKUP(CENTRALIZADOR!X1,FILIACION_ESTUDIANTE!A8:A47,FILIACION_ESTUDIANTE!E8:E47)","v":0},null,null,null,"Apellidos y Nombres:",null,null,{"$f":"LOOKUP(CENTRALIZADOR!X1,FILIACION_PPFF!A7:A46,FILIACION_PPFF!B7:B46)","v":""},null,null,null,null,null,null,null,null,null,"C.I.",{"$f":"LOOKUP(CENTRALIZADOR!X1,FILIACION_ESTUDIANTE!A8:A47,FILIACION_ESTUDIANTE!G8:G47)","v":0},null,null,null,1]
[null,"Año de Escolaridad:",{"$f":"IF(CARATULA!E23=0,\"\",CARATULA!E23)","v":""},null,null,null,null,null,"Gestión:",{"$f":"IF(CARATULA!F27=0,\"\",CARATULA!F27)","v":2019},null,null,null,null,null,null,null,null,null,null,null,null,null,null,40]
[null,"CAMPOS DE SABERES Y CONOCIMIENTOS",null,null,"VALORACIÓN CUALITATIVA"]
[null,null,null,null,"Primer Bimestre",null,null,null,"Segundo Bimestre",null,null,null,null,"Tercer Bimestre",null,null,null,null,"Cuarto Bimestre"]
[null,"COMUNIDAD Y SOCIEDAD",null,null,{"$f":"LOOKUP(CENTRALIZADOR!X1,COM_SOC_1B!A15:A54,COM_SOC_1B!U15:U54)","v":0},null,null,null,{"$f":"LOOKUP(CENTRALIZADOR!X1,COM_SOC_2B!A15:A54,COM_SOC_2B!U15:U54)","v":0},null,null,null,null,{"$f":"LOOKUP(CENTRALIZADOR!X1,COM_SOC_3B!A15:A54,COM_SOC_3B!U15:U54)","v":0},null,null,null,null,{"$f":"LOOKUP(CENTRALIZADOR!X1,COM_SOC_4B!A15:A54,COM_SOC_4B!U15:U54)","v":0}]
[null,"DESARROLLO DE LA COMUNICACIÓN, LENGUAJES Y ARTES (MÚSICA, ARTES PLÁSTICAS Y VISUALES, CIENCIAS SOCIALES - RECREACIÓN)"]
[null,"CIENCIA , TECNOLOGÍA Y PRODUCCIÓN",null,null,{"$f":"LOOKUP(CENTRALIZADOR!X1,CIENCIA_TEC_1B!A15:A54,CIENCIA_TEC_1B!U15:U54)","v":0},null,null,null,{"$f":"LOOKUP(CENTRALIZADOR!X1,CIENCIA_TEC_2B!A15:A54,CIENCIA_TEC_2B!U15:U54)","v":0},null,null,null,null,{"$f":"LOOKUP(CENTRALIZADOR!X1,CIENCIA_TEC_3B!A15:A54,CIENCIA_TEC_3B!U15:U54)","v":0},null,null,null,null,{"$f":"LOOKUP(CENTRALIZADOR!X1,CIENCIA_TEC_4B!A15:A54,CIENCIA_TEC_4B!U15:U54)","v":0}]
[null,"DESARROLLO DEL CONOCIMIENTO Y DE LA PRODUCCIÓN MATEMÁTICA - TÉCNICA TECNOLÓGICA."]
[null,"VIDA TIERRA TERRITORIO",null,null,{"$f":"LOOKUP(CENTRALIZADOR!X1,VIDA_TIERRA_1B!A15:A54,VIDA_TIERRA_1B!U15:U54)","v":0},null,null,null,{"$f":"LOOKUP(CENTRALIZADOR!X1,VIDA_TIERRA_2B!A15:A54,VIDA_TIERRA_2B!U15:U54)","v":0},null,null,null,null,{"$f":"LOOKUP(CENTRALIZADOR!X1,VIDA_TIERRA_3B!A15:A54,VIDA_TIERRA_3B!U15:U54)","v":0},null,null,null,null,{"$f":"LOOKUP(CENTRALIZADOR!X1,VIDA_TIERRA_4B!A15:A54,VIDA_TIERRA_4B!U15:U54)","v":0}]
[null,"DESARROLLO BIO SICOMOTRIZ (CIENCIAS NATURALES)."]
[null,"COSMOS Y PENSAMIENTO",null,null,{"$f":"LOOKUP(CENTRALIZADOR!X1,COSMOS_PENS_1B!A15:A54,COSMOS_PENS_1B!U15:U54)","v":0},null,null,null,{"$f":"LOOKUP(CENTRALIZADOR!X1,COSMOS_PENS_2B!A15:A54,COSMOS_PENS_2B!U15:U54)","v":0},null,null,null,null,{"$f":"LOOKUP(CENTRALIZADOR!X1,COSMOS_PENS_3B!A15:A54,COSMOS_PENS_3B!U15:U54)","v":0},null,null,null,null,{"$f":"LOOKUP(CENTRALIZADOR!X1,COSMOS_PENS_4B!A15:A54,COSMOS_PENS_4B!U15:U54)","v":0}]
[null,"DESARROLLO SOCIOCULTURAL AFECTIVO Y ESPIRITUAL."]
[null,"Informe Anual del proceso educativo:",null,null,{"$f":"LOOKUP(CENTRALIZADOR!X1,INFORME_FINAL!A7:A46,INFORME_FINAL!C7:C46)","v":0}]
[]
[]
[]
[]
[]
[null,{"$f":"IF(CARATULA!E21=0,\"\",CARATULA!E21)","v":""},null,null,null,null,null,{"$f":"IF(CARATULA!E20=0,\"\",CARATULA!E20)","v":""}]
[null,"Firma Maestra/Maestro",null,null,null,null,null,"Firma Directora/Director",null,null,null,null,null,null,null,null,"Sello Unidad Educativa"]
[]
[null,null,null,null,null,null,null,null,null,null,null,null,null,null,null,null,{"$f":"+NOW()","v":"2019-01-24T18:58:30.450"}]